Workbook

Sheet Guide
D2: UK Lung cancer screening model (UK-LCSM)
D3: Last edited by developers: 30 July 2018
C4: User guide | D4: Version for Public use
C5: Access and Conditions of use
C6: Data from the UK Lung Cancer Screening Trial (UKLS), the Health Survey for England (2014) and the National Lung Screening Trial (NLST) are not owned by the authors and cannot be shared. The economic model developed for this assessment has been deposited in the Open Research Exeter repository (https://ore.exeter.ac.uk/) under a Creative Commons Attribution-NonCommercial-NoDerivatives 4.0 International License (CC BY-NC-ND 4.0), complete with the base case simulation data (simulation data from other analyses have not been retained by the authors).
C9: NAVIGATION | D9: Select worksheet name to access sheet via hyperlink
C10: Worksheet name | D10: Function / Content
C11: Control | D11: This is the control centre for the model, which allows you to specify which sort of analyses to run, and to run them
C12: Patient | D12: Performs the microsimulation of an individual patients, simultaneously through all model strategies
C13: Cohort | D13: The depot of simulation results of individual patients for a single fixed parameter set, forming the 'Cohort'
C14: Case selection | D14: Defines which of the programme strategies, if any, the simulated patient is eligible to join
C15: R-Live [Results Live] | D15: Holds the resultant outcomes of the most recently conducted microsimulated cohort
C16: Decision tree | D16: Applies cost and benefit weightings to non-joining invitees who turned out not to be high risk, or are aged outside the entry criteria of any given programme strategy
C17: Full incr an [Full incremental analysis] | D17: Examines incremental inter-relationships between strategy cost and benefit merits, and produces the cost-effectivess frontier
C18: CE frontier | D18: Extracts outcomes for only the strategies sitting on the cost-effectiveness frontier
C19: R-Deterministic [Results of deterministic] | D19: Holds the outcome results of current simulation, both joining and non-joining invitees, and hard holds the results of the last main (base case) simulation
C20: Outputs | D20: Collates all model results for reporting
C21: Univariate SA | D21: Performs the sensitivity analysis of model inputs with bivariate variation of point estimate
C22: Scenarios | D22: Performs the sensitivity analysis of selected inputs using plausable alternative scenarios
C23: PSA | D23: The depot of the most recently conducted PSA simulations - each line the high-level outcomes a single parameter set run multiple times
C24: R-PSA [Results of PSA] | D24: Summary results of PSA
C25: Logic | D25: Decision logic tables to help direct the microsimulation of individual patients in <Patient>
C26: Parameters | D26: Listed full set of parameters that apply to all individuals, including point estimates, assoiated sampling distribution, and other alternative estimates
C27: HR-QoL | D27: Determination of utility estimates, feeds into <Parameters>
C28: Costs | D28: Determination of some cost parameters, feeds into <Parameters>
C29: Stability | D29: Calculates level of stability in costs and QALY outcomes by observation of the trend in convergence of the mean for increasingly large cohorts
C30: Survival data | D30: Data supporting the origination of estimates of stage-based survival, from the natural history model, feeds <Parameters>
C33: MODELLING METHODS | D33: A full description of methods can be found in the report 'Systematic review and economic evaluation of lung cancer screening by low-dose computed tomography' Chaper 6, Section 1.
C34: Modelling approach | D34: Target population and subgroups | E34: The target population is people who are at higher risk of lung cancer relative to the general population. Specifically, the model base case considers people aged between 55 and 80 years with a smoking history (i.e., current or former smokers). Subgroups in this population are identified by further restricting the age range and by imposing a minimum threshold on the predicted risk of lung cancer for an individual to be eligible for screening. These population parameters can be altered from the base case settings in <Control>.
D35: Setting and location | E35: The NHS in the UK. Initial invitations to screening may be sent from primary care, as initial identification of people who may be at high risk could be from primary care records. Screening CT scans are performed in secondary and tertiary settings. Cancer care is performed in secondary and tertiary settings. Palliative care may be delivered in secondary settings, in the community or in hospices.
D36: Study perspective | E36: The perspective on costs is NHS and personal social services. The economic evaluation therefore does not include any effect on tax revenue, pensions, productivity or out-of-pocket expenses for affected individuals (e.g., transport). Direct health effects on individuals contacted by a screening programme are included, but no direct health effects on family or carers are included as no good quality evidence is available to support their inclusion. Although some screening studies have shown an impact on smoking behaviour of participants (e.g., Clark et al. 2016), and despite it being very likely that increased quitting reduces the risk of lung cancer mortality, no attempt is made to model smoking behaviour in the model.
D37: Comparators | E37: Four screening programme designs are compared to no screening in 12 population alternatives, thereby creating 48 intervention strategies and one control (no screening programme) strategy which represents current practice.
D38: Discount rate | E38: Costs and QALYs are discounted at 3.5% per year in the base case default. These are the conventional discount rates for technology appraisal in England, Scotland, and Wales (Northern Ireland typically endorses NICE technology appraisals) and are derived from the UK Treasury discount rate.
D39: Time horizon | E39: Individuals are modelled until death. Most simulated individuals in the base case are dead by age 100 years (e.g., 98.9% of women simulated from age 80 die before age 100 years).
D40: Choice of health outcomes | E40: The primary health outcomes are health-related quality of life and life-years attained in each strategy, expressed in QALYs, as is the preference in UK cost-effectiveness decision analyses. In the incremental analysis the outcome is QALYs gained versus no screening. In addition, secondary health outcomes ae: Screening programme sensitivity; Number of lung cancers diagnosed per 100,000 entrants; Interval cancers diagnosed per 100,000 entrants; Mortality per 100,000 entrants; Five-year survival from diagnosis of lung cancer; Sub-stage distribution; Average age at diagnosis; Death from lung cancer; Death from other; Lead time.
D41: Analysis method | E41: The economic evaluation employs a cost-effectiveness (cost–utility) analysis where the costs and QALYs for each alternative (combination of population and intervention strategies) are estimated, and then a cost-effectiveness frontier is constructed by eliminating strategies which are dominated or extendedly dominated. The cost-effectiveness of each remaining alternative is then assessed using the incremental cost-effectiveness ratio (ICER), the ratio of incremental costs to incremental QALYs. Main analysis: Cost-effectiveness analysis of all alternatives, where the ICER is calculated both versus the most effective alternative on the cost-effectiveness frontier which is less effective than the current option and versus current practice (no screening). Secondary analyses: (1) Cost-effectiveness analyses of intervention strategies for each choice of population strategies (e.g. a cost-effectiveness of four intervention strategies and no screening assuming a minimum age at entry of 60, a maximum age at entry of 75 and a minimum risk of 4%); (2) Net monetary benefit (NMB) maximisation (at willingness-to-pay of £20,000 per QALY in the base case default) conducted for each intervention strategy to identify the optimal choice of age limits and predicted risk thresholds. These analyses are conducted in the base case analysis (where all parameters are fixed at their base case values and a large cohort of patients is simulated). Sensitivity analyses are also conducted: (A) Deterministic sensitivity analysis: Main analysis conducted with deterministic changes to parameter values (the results remain stochastic as individual patients continue to be simulated); (B) Probabilistic sensitivity analysis: Multiple cohorts simulated, each with a single set of parameter values sampled probabilistically from suitable distributions reflecting parameter uncertainty. Main analysis conducted and cost-effectiveness acceptability curves produced.
D42: Software | E42: The model is implemented in Microsoft Excel 2013 (Microsoft, Redmond: WA). Supporting analyses are conducted in Stata 14.2 (StataCorp LLC, Texas), R 3.3.3, and JAGS.
C43: Model structure | D43: Overview | E43: A cohort of individuals is simulated with a range of baseline characteristics (including age and predicted risk of lung cancer). The age range of simulated individuals is 55 to 80 since no screening programmes are being evaluated which would include individuals outside this age range. Each individual is concurrently simulated with four screening intervention arms and a control (no screening) arm. By simulating the individuals concurrently through all arms there is a reduction in stochastic variation. The costs, QALYs and other outcomes for each full programme (combination of population strategy and intervention) are estimated using a decision tree (Report Figure 24, also below). Costs of administering the screening programme (sending letters with questionnaires, analysing the questionnaires to estimate the lung cancer risk, sending invitations to those at high risk) are accumulated through the decision tree, and long-term costs and QALYs are estimated at the leaves of the decision tree by identifying appropriate individuals simulated in the cohort and assigning them appropriately to either the screening intervention (if they meet all criteria and join the screening programme) or to no screening. It was assumed that the two uptake probabilities (relating to a person completing a risk questionnaire and agreeing to join the programme after being informed they are high risk) are independent of age and sex, although gender has been identified as a potential factor influencing the decision to participate in a lung cancer screening programme (see Report Section 7).
C45: Key methodological figures and tables
C46: Report Figure 24 shows how the costs, QALYs and other outcomes for each full programme (combination of population strategy and intervention) are estimated using a decision tree
C66: Report Figure 25 shows how age thresholds and the risk threshold are used to identify individuals at high risk and map them to screening interventions
C82: Report Figure 26: Model diagram for simulating individuals
E114: Key: LC, lung cancer
C116: Report Table 8: Screening programme design
C146: Table 9: Modelled populations, specified by age and predicted risk of disease

Sheet Control
A1: User controls
N2: Live diagnostics panel (Light green indicates conformity to A>=B>=T>=S>=N pattern)
A3: Guide to control cells: | B3: Sub-population selection | C3: Cohort size and CE threshold selection | D3: Result- Do not edit | E3: Macro button and related detail | F3: Information only | G3: 1. Use macro buttons to rerun simulations (create fresh cohorts) 2. Use Function9 (F9) to recalucate parameter changes using existing cohort | N3: Whole cohort
N4: =COUNTIF('R-Live'!AU5:AX127,"#Div/0!") -> 0 | O4: #DIV/0! generated within simulations
A5: Current analysis | B5: =CHOOSE(analysis_mode,"Microsimulation","PSA + Microsimulation","Univariate SA","Alternatives") -> Microsimulation | C5: 1 | D5: 1 = Microsimulation, 2 = PSA + Microsimulation, 3 = Univariate SA, 4 = Scenario alternatives | N5: =IF(Cohort!$B$2=ms_cohort_size,0,1) -> 0 | O5: Cohort size is equal to simulated number
N6: =SUM('R-Live'!$AY$5:$AY$64)+'R-Live'!AY68+'R-Live'!AY73+'R-Live'!AY78+'R-Live'!AY83+'R-Live'!AY88+'R-Live'!AY93+'R-Live'!AY98+'R-Live'!AY103+'R-Live'!AY108+'R-Live'!AY113+'R-Live'!AY118+'R-Live'!AY123 -> 5.486526788e-10 | O6: Category costs sum to total cost (within £0.10)
A7: Enter number of simulations | B7: 20000 | C7: =CONCATENATE("Last run= ",Cohort!B2) -> Last run= 20000 | D7: Last run of macros | H7: Cohort size (Defined "B7") | N7: Ineligible cases / non-participants
D8: Simulation date | E8: Start time | F8: End time | G8: Duration | I8: Cohort sets | J8: Simulations | N8: =SUM('R-Live'!AZ68:AZ127) -> 0 | O8: Survival equals delta age death age entry, ineligible cases, all strategies
A9: Create new main cohort | D9: 42914 | E9: 16:55:17 | F9: 17:14:59 | G9: =F9-E9 -> 00:19:42 | H9: 20000 | I9: 1 | J9: =H9*I9 -> 20000 | N9: =SUM('R-Deterministic'!AV68:AV127) -> 0 | O9: Undiscounted costs sum to components, ineligible cases, all strategies
N10: Eligible cases / participants
A11: Create new PSA cohort | D11: 42917 | E11: 06:49:35 | F11: 18:38:13 | G11: =F11-E11 -> 11:48:38 | H11: 3000 | I11: 200 | J11: =H11*I11 -> 600000 | N11: =SUM('R-Live'!AZ5:AZ64) -> 0 | O11: Survival equals delta age death age entry, eligible cases, all strategies
N12: =SUM('R-Deterministic'!AV5:AV64) -> 0 | O12: Undiscounted costs sum to components, eligible cases, all strategies
A13: Re-run 1-way sensitivity analysis | D13: 42915 | E13: 21:31:35 | F13: 14:51:28 | G13: =IF(F13>E13,F13-E13,F13+24-E13) -> 23.7221412 | H13: 6000 | I13: 81 | J13: =H13*I13 -> 486000 | N13: ='R-Live'!$M$66 -> 0 | O13: Check Screen detected cases A>=B>=T>=S>=N
D14: 42915 | E14: 21:52:26 | F14: 07:16:52 | G14: =IF(F14>E14,F14-E14,F14+24-E14) -> 23.39196759 | H14: 6000 | I14: 81 | J14: =H14*I14 -> 486000 | N14: ='R-Live'!$N$66 -> 0 | O14: Check Average number of screens A>=B>=T>=S>=N
A15: 1-way SA +/- 'swing' | B15: 0.1 | N15: ='R-Live'!$O$66 -> 0 | O15: Check Number of False positives A>=B>=T>=S>=N
A16: Re-run alternative scenario analysis | D16: 42919 | E16: 19:34:40 | F16: 23:06:33 | G16: =IF(F16>E16,F16-E16,F16+24-E16) -> 03:31:53 | H16: 10000 | I16: 18 | J16: =H16*I16 -> 180000 | N16: ='R-Live'!$P$66 -> 12 | O16: Check Lead time (mean, yrs) A>=B>=T>=S>=N
N17: ='R-Live'!$Q$66 -> 0 | O17: Check Diagnosed with lung cancer A>=B>=T>=S>=N
A18: Primary CE threshold | B18: 20000 | C18: Press F9 for recalc | F18: =CONCATENATE("Reasonable stability in Costs and QALYs reached at ",Stability!$N$36," microsimulations") -> Reasonable stability in Costs and QALYs reached at 3000 microsimulations | N18: ='R-Live'!$R$66 -> 6 | O18: Check Deaths due to lung cancer A<=B<=T<=S<=N
N19: ='R-Live'!$S$66 -> 6 | O19: Check Mortality due to lung cancer A<=B<=T<=S<=N
A20: SUMMARY RESULTS | N20: ='R-Live'!$T$66 -> 0 | O20: Check Deaths due to Other with dx LC A>=B>=T>=S>=N
D21: Sub population selections | N21: ='R-Live'!$U$66 -> 0 | O21: Check 5-year lung cancer survival A>=B>=T>=S>=N
A22: Optimal intervetional strategy | N22: ='R-Live'!$V$66 -> 8 | O22: Check Life Years (incl. lead time) A>=B>=T>=S>=N
A23: Screening strategy | B23: ='CE frontier'!A7 -> S-60-75-3% | D23: Min_age_1 | E23: 55 | G23: Nunber | H23: Reference | I23: Min start age | J23: Max start age | K23: Min LC risk | N23: ='R-Live'!$W$66 -> 8 | O23: Check AC survival whole cohort (yrs) - exc lead time A>=B>=T>=S>=N
A24: Lead time per person (yrs) | B24: =VLOOKUP($B$23,TBL_front_outcomes_hard,6,FALSE) -> 0.2994640155 | D24: Min_age_2 | E24: 60 | G24: 1 | H24: =CONCATENATE(I24,"-",J24,"-",TEXT(K24,"#%")) -> 55-80-3% | I24: =Min_age_1 -> 55 | J24: =Max_age_2 -> 80 | K24: =Low_risk -> 0.03 | N24: ='R-Live'!$X$66 -> 0 | O24: Check Survival with lung cancer (yrs) A>=B>=T>=S>=N
A25: Life-year gain per person (yrs) | B25: =VLOOKUP($B$23,TBL_front_outcomes_hard,12,FALSE) -> 0.05366710581 | D25: Max_age_1 | E25: 75 | G25: 2 | H25: =CONCATENATE(I25,"-",J25,"-",TEXT(K25,"#%")) -> 55-80-4% | I25: =Min_age_1 -> 55 | J25: 80 | K25: =Mid_risk -> 0.04 | N25: ='R-Live'!$Y$66 -> 12 | O25: Check QALYs A>=B>=T>=S>=N
A26: CE gain per person (QALYs) | B26: =VLOOKUP($B$23,TBL_front_outcomes_hard,15,FALSE) -> 0.0008168142542 | D26: Max_age_2 | E26: 80 | G26: 3 | H26: 55-80-5% | I26: =Min_age_1 -> 55 | J26: 80 | K26: =High_risk -> 0.05 | N26: ='R-Live'!$Z$66 -> 12 | O26: Check d_QALYs A>=B>=T>=S>=N
A27: £/QALY v No scrng | B27: =VLOOKUP($B$23,TBL_front_outcomes_hard,27,FALSE) -> 28169.02961 | D27: Low_risk | E27: 0.03 | G27: 4 | H27: 60-80-3% | I27: =Min_age_2 -> 60 | J27: 80 | K27: =Low_risk -> 0.03 | N27: ='R-Live'!$AA$66 -> 0 | O27: Check Screening programme diagnoses A>=B>=T>=S>=N
A28: Additional proportion living to 5-years | B28: =VLOOKUP($B$23,TBL_front_outcomes_hard,11,FALSE) -> 0.1612709372 | D28: Mid_risk | E28: 0.04 | G28: 5 | H28: 60-80-4% | I28: =Min_age_2 -> 60 | J28: 80 | K28: =Mid_risk -> 0.04 | N28: ='R-Live'!$AB$66 -> 12 | O28: Check Interval cancers (scrn detected) A>=B>=T>=S>=N
A29: Deaths due to lung cancer (abs) | B29: =CONCATENATE(VLOOKUP($B$23,TBL_front_outcomes_hard,8,FALSE)," out of ",$H$9) -> -34 out of 20000 | D29: High_risk | E29: 0.05 | G29: 6 | H29: 60-80-5% | I29: =Min_age_2 -> 60 | J29: 80 | K29: =High_risk -> 0.05 | N29: ='R-Live'!$AC$66 -> 2 | O29: Check Age if and when diagnosed A<=B<=T<=S<=N
G30: 7 | H30: 55-75-3% | I30: =Min_age_1 -> 55 | J30: =Max_age_1 -> 75 | K30: =Low_risk -> 0.03 | N30: ='R-Live'!$AD$66 -> 8 | O30: Check Age at death from All causes A>=B>=T>=S>=N
A31: Strategies on the CE frontier (v No screening), Base case | G31: 8 | H31: 55-75-4% | I31: =Min_age_1 -> 55 | J31: 75 | K31: =Mid_risk -> 0.04 | N31: ='R-Live'!$AE$66 -> 3 | O31: Check Age at death from Lung cancer A>=B>=T>=S>=N
B32: Incremental NMB rank | C32: CE? (ICER if CE) | G32: 9 | H32: 55-75-5% | I32: =Min_age_1 -> 55 | J32: 75 | K32: =High_risk -> 0.05 | N32: ='R-Live'!$AU$66 -> 0 | O32: Check LDCT cost A>=B>=T>=S>=N
A33: 1 | B33: =IF('CE frontier'!A7="","",'CE frontier'!A7) -> S-60-75-3% | C33: =IF($B33="","",IF('CE frontier'!$AA7<0,"Dominant",IF('CE frontier'!$AA7<ce_thresh,"Cost effective","Not cost effective"))) -> Not cost effective | G33: 10 | H33: 60-75-3% | I33: =Min_age_2 -> 60 | J33: 75 | K33: =Low_risk -> 0.03 | N33: ='R-Live'!$AV$66 -> 0 | O33: Check Secondary care cost A>=B>=T>=S>=N
A34: 2 | B34: =IF('CE frontier'!A8="","",'CE frontier'!A8) -> S-55-75-3% | C34: =IF($B34="","",IF('CE frontier'!$AA8<0,"Dominant",IF('CE frontier'!$AA8<ce_thresh,"Cost effective","Not cost effective"))) -> Not cost effective | G34: 11 | H34: 60-75-4% | I34: =Min_age_2 -> 60 | J34: 75 | K34: =Mid_risk -> 0.04 | N34: ='R-Live'!$AW$66 -> 4 | O34: Check EoL cost A<=B<=T<=S<=N
A35: 3 | B35: =IF('CE frontier'!A9="","",'CE frontier'!A9) -> S-55-80-3% | C35: =IF($B35="","",IF('CE frontier'!$AA9<0,"Dominant",IF('CE frontier'!$AA9<ce_thresh,"Cost effective","Not cost effective"))) -> Not cost effective | G35: 12 | H35: 60-75-5% | I35: =Min_age_2 -> 60 | J35: 75 | K35: =High_risk -> 0.05 | N35: ='R-Live'!$AX$66 -> 0 | O35: Check Total d_Cost A>=B>=T>=S>=N
A36: 4 | B36: =IF('CE frontier'!A10="","",'CE frontier'!A10) -> T-55-80-3% | C36: =IF($B36="","",IF('CE frontier'!$AA10<0,"Dominant",IF('CE frontier'!$AA10<ce_thresh,"Cost effective","Not cost effective"))) -> Not cost effective | G36: 13 | H36: All invitees | I36: All | J36: All | K36: All
A37: 5 | B37: =IF('CE frontier'!A11="","",'CE frontier'!A11) ->  | C37: =IF($B37="","",IF('CE frontier'!$AA11<0,"Dominant",IF('CE frontier'!$AA11<ce_thresh,"Cost effective","Not cost effective"))) -> 
A38: 6 | B38: =IF('CE frontier'!A12="","",'CE frontier'!A12) ->  | C38: =IF($B38="","",IF('CE frontier'!$AA12<0,"Dominant",IF('CE frontier'!$AA12<ce_thresh,"Cost effective","Not cost effective"))) -> 
A39: 7 | B39: =IF('CE frontier'!A13="","",'CE frontier'!A13) ->  | C39: =IF($B39="","",IF('CE frontier'!$AA13<0,"Dominant",IF('CE frontier'!$AA13<ce_thresh,"Cost effective","Not cost effective"))) -> 
A40: 8 | B40: =IF('CE frontier'!A14="","",'CE frontier'!A14) ->  | C40: =IF($B40="","",IF('CE frontier'!$AA14<0,"Dominant",IF('CE frontier'!$AA14<ce_thresh,"Cost effective","Not cost effective"))) -> 
A41: 9 | B41: =IF('CE frontier'!A15="","",'CE frontier'!A15) ->  | C41: =IF($B41="","",IF('CE frontier'!$AA15<0,"Dominant",IF('CE frontier'!$AA15<ce_thresh,"Cost effective","Not cost effective"))) -> 
A42: 10 | B42: =IF('CE frontier'!A16="","",'CE frontier'!A16) ->  | C42: =IF($B42="","",IF('CE frontier'!$AA16<0,"Dominant",IF('CE frontier'!$AA16<ce_thresh,"Cost effective","Not cost effective"))) -> 
N363: 292 | O363: #DIV/0! generated within simulations
B364: PSA + Microsimulation | C364: 2 | D364: 1 = Microsimulation, 2 = PSA + Microsimulation, 3 = Univariate SA, 4 = Scenario alternatives
N451: 0 | O451: #DIV/0! generated within simulations
B452: PSA + Microsimulation | C452: 2 | D452: 1 = Microsimulation, 2 = PSA + Microsimulation, 3 = Univariate SA

Sheet Patient
A1: Sampled patient characteristics | C1: 4 | D1: 5 | E1: 6 | F1: 7 | G1: 8 | H1: 9 | I1: 10 | J1: Patient Outcomes by programme design | M1: 14 | N1: 15 | O1: 16 | P1: 17 | Q1: 18 | R1: 19 | S1: 20 | T1: 21 | U1: 22 | V1: 23 | W1: 24 | X1: 25 | Y1: 26 | Z1: 27 | AA1: 28 | AB1: 29 | AC1: 30 | AD1: 31 | AE1: 32 | AF1: 33 | AG1: 34 | AH1: 35 | AI1: 36 | AJ1: 37 | AK1: 38 | AL1: 39 | AM1: 40 | AN1: 41 | AO1: 42 | AP1: 43 | AQ1: 44 | AR1: 45 | AS1: 46 | AT1: 47 | AU1: 48 | AV1: 49 | AW1: 50 | AX1: 51 | AY1: 52 | AZ1: 53 | BA1: 54 | BB1: 55 | BC1: 56 | BD1: 57 | BE1: 58 | BF1: 59 | BG1: 60 | BH1: 61 | BI1: 62 | BJ1: 63 | BK1: 64 | BL1: 65 | BM1: 66 | BN1: 67 | BO1: 68 | BP1: 69 | BQ1: 70 | BR1: 71 | BS1: 72 | BT1: 73 | BU1: 74 | BV1: 75 | BW1: 76 | BX1: 77 | BY1: 78 | BZ1: 79 | CA1: 80 | CB1: 81 | CC1: 82 | CD1: 83 | CE1: 84 | CF1: 85 | CG1: 86 | CH1: 87 | CI1: 88 | CJ1: 89 | CK1: 90 | CL1: 91 | CM1: 92 | CN1: 93 | CO1: 94 | CP1: 95 | CQ1: 96 | CR1: 97 | CS1: 98 | CT1: 99 | CU1: 100 | CV1: 101 | CW1: 102 | CX1: 103 | CY1: 104 | CZ1: 105 | DA1: 106 | DB1: 107 | DC1: 108 | DD1: 109 | DE1: 110 | DF1: 111 | DG1: 112 | DH1: 113 | DI1: 114 | DJ1: 115
A2: Age at start | B2: Gender code | C2: Gender | D2: Entry code | E2: Entry state | F2: Actual outcome | G2: Predicted risk | H2: Age at preclinical lung cancer incidence | I2: Age at death from other causes | J2: Design N - No screening | K2: Entry State (1=LC) | L2: Death from (1=LC, 0=Other) | M2: New cancer (post entry) | N2: Screen detected? | O2: Age at diagnosis | P2: Lead time | Q2: Sub-stage ref at dx | R2: Number of screens | S2: Interval cancer | T2: False positives | U2: Age at death any cause | V2: Survival with lung cancer (if dx) | W2: Life Years | X2: QALYs | Y2: d_QALYs | Z2: Early diagnosis (Stage I/II) | AA2: d_LDCT cost | AB2: d_Referral, diagnosis, treatment and f/up cost | AC2: d_EoL care cost | AD2: Total d_Cost | AE2: Design S - Single | AF2: Entry State (1=LC) | AG2: Death from (1=LC, 0=Other) | AH2: New cancer (post entry) | AI2: Screen detected? | AJ2: Age at diagnosis | AK2: Lead time | AL2: Sub-stage ref at dx | AM2: Number of screens | AN2: Interval cancer | AO2: False positive | AP2: Age at death any cause | AQ2: Survival with lung cancer (if dx) | AR2: Life Years | AS2: QALYs | AT2: d_QALYs | AU2: Early diagnosis (Stage I/II) | AV2: d_LDCT cost | AW2: d_Referral, diagnosis, treatment and f/up cost | AX2: d_EoL care cost | AY2: Total d_Cost | AZ2: Design T - Triple | BA2: Entry State (1=LC) | BB2: Death from (1=LC, 0=Other) | BC2: New cancer (post entry) | BD2: Screen detected? | BE2: Age at diagnosis | BF2: Lead time | BG2: Sub-stage ref at dx | BH2: Number of screens | BI2: Interval cancer | BJ2: False positives | BK2: Age at death any cause | BL2: Survival with lung cancer (if dx) | BM2: Life Years | BN2: QALYs | BO2: d_QALYs | BP2: Early diagnosis (Stage I/II) | BQ2: d_LDCT cost | BR2: d_Referral, diagnosis, treatment and f/up cost | BS2: d_EoL care cost | BT2: Total d_Cost | BU2: Design A - Annual | BV2: Entry State (1=LC) | BW2: Death from (1=LC, 0=Other) | BX2: New cancer (post entry) | BY2: Screen detected? | BZ2: Age at diagnosis | CA2: Lead time | CB2: Sub-stage ref at dx | CC2: Number of screens | CD2: Interval cancer | CE2: False positives | CF2: Age at death any cause | CG2: Survival with lung cancer (if dx) | CH2: Life Years | CI2: QALYs | CJ2: d_QALYs | CK2: Early diagnosis (Stage I/II) | CL2: d_LDCT cost | CM2: d_Referral, diagnosis, treatment and f/up cost | CN2: d_EoL care cost | CO2: Total d_cost | CP2: Design B - Biennial | CQ2: Entry State (1=LC) | CR2: Death from (1=LC, 0=Other) | CS2: New cancer (post entry) | CT2: Screen detected? | CU2: Age at diagnosis | CV2: Lead time | CW2: Sub-stage ref at dx | CX2: Number of screens | CY2: Interval cancer | CZ2: False positives | DA2: Age at death any cause | DB2: Survival with lung cancer (if dx) | DC2: Life Years | DD2: QALYs | DE2: d_QALYs | DF2: Early diagnosis (Stage I/II) | DG2: d_LDCT cost | DH2: d_Referral, diagnosis, treatment and f/up cost | DI2: d_EoL care cost | DJ2: Total d_Cost
A3: =_xlfn.NORM.INV(pop_age_LL+(pop_age_UL-pop_age_LL)*RAND(),pop_age_mean,pop_age_sd) -> 63.10629124 | B3: =1*(RAND()<p_male) -> 1 | C3: =VLOOKUP($B$3,TBL_SEX,2,FALSE) -> Male | D3: =IF(H3>=A3,"A",INDEX($A$164:$A$171,MATCH($B$175,$C$164:$C$171,1))) -> A | E3: =VLOOKUP($D$3,TBL_STATE,2) -> No lung cancer | F3: =IF(D3<>"A",1,COUNTIFS($A$14:$A$23,"<3",$B$14:$B$23,8)) -> 0 | G3: =1/(1+EXP(-_xlfn.NORM.INV(RAND(),risk_intercept+risk_age*A3+risk_male*$B$3+risk_lungcancer*F3+risk_smoker*D5,risk_SD))) -> 0.01609096546 | H3: =_xlfn.LOGNORM.INV(RAND()*(1-_xlfn.LOGNORM.DIST(0.001,IF($B$3=1,mu_AB,mu_AB+delta_mu_AB_F),sigma_AB,TRUE))+_xlfn.LOGNORM.DIST(0.001,IF($B$3=1,mu_AB,mu_AB+delta_mu_AB_F),sigma_AB,TRUE),IF($B$3=1,mu_AB,mu_AB+delta_mu_AB_F),sigma_AB) -> 115.0568878 | I3: =IF($B$3=0,(LN(-LN(RAND()*EXP(-lambda_ocm_F*EXP(gamma_ocm_F*A3))))-LN(lambda_ocm_F))/gamma_ocm_F,(LN(-LN(RAND()*EXP(-lambda_ocm_M*EXP(gamma_ocm_M*A3))))-LN(lambda_ocm_M))/gamma_ocm_M) -> 66.57641635 | J3: No screening | K3: =IF($E$14="A",0,1) -> 0 | L3: =COUNTIF($H14:$H23,9) -> 0 | M3: =COUNTIF($H14:$H23,6) -> 0 | N3: 0 | O3: =IF(COUNTIF($H$14:$H$23,2),SUM($M$14:$M$23),IF(COUNTIF($H$14:$H$23,8),SUM($M$14:$M$23))) -> FALSE | P3: =MAX($N14:$N23) -> 0 | Q3: =IF(SUM($O14:$O23)>0,MAX($O14:$O23),FALSE) -> FALSE | R3: 0 | S3: 0 | T3: 0 | U3: =MIN($P$14:$P$23) -> 66.57641635 | V3: =IF($O3,$U3-$O3) -> FALSE | W3: =$U3-$A$3 -> 3.470125118 | X3: =IF(SUM($Z$14:$Z$23)<0,0,SUM($Z$14:$Z$23)) -> 2.712405012 | Y3: =IF(SUM($AA$14:$AA$23)<0,0,SUM($AA$14:$AA$23)) -> 2.556759893 | Z3: =IF($Q3<5,1,0) -> 0 | AA3: =SUM($T$14:$T$23) -> 0 | AB3: =SUM($U$14:$U$23) -> 0 | AC3: =SUM($V$14:$V$23) -> 0 | AD3: =SUM($AA3:$AC3) -> 0 | AE3: Single | AF3: =IF($E$26="A",0,1) -> 0 | AG3: =COUNTIF($H26:$H37,9) -> 0 | AH3: =COUNTIF($H26:$H37,6) -> 0 | AI3: =COUNTIF($K26:$K37,">0") -> 0 | AJ3: =IF(COUNTIF($H$26:$H$37,2),SUM($M$26:$M$37),IF(COUNTIF($H$26:$H$37,8),SUM($M$26:$M$37))) -> FALSE | AK3: =MAX($N26:$N37) -> 0 | AL3: =IF(SUM($O26:$O37)>0,MAX($O26:$O37),FALSE) -> FALSE | AM3: =MAX($G26:$G37) -> 1 | AN3: 0 | AO3: =COUNTIF($H$26:$H$37,3) -> 0 | AP3: =MIN($P$26:$P$37) -> 66.57641635 | AQ3: =IF($AJ3,$AP3-$AJ3) -> FALSE | AR3: =$AP3-$A$3 -> 3.470125118 | AS3: =IF(SUM($Z$26:$Z$37)<0,0,SUM($Z$26:$Z$37)) -> 2.712020396 | AT3: =IF(SUM($AA$26:$AA$37)<0,0,SUM($AA$26:$AA$37)) -> 2.556375278 | AU3: =IF($AL3<5,1,0) -> 0 | AV3: =SUM($T$26:$T$37) -> 104.7715187 | AW3: =SUM($U$26:$U$37) -> 0 | AX3: =SUM($V$26:$V$37) -> 0 | AY3: =SUM($AV3:$AX3) -> 104.7715187 | AZ3: Triple | BA3: =IF($E$40="A",0,1) -> 0 | BB3: =COUNTIF($H40:$H54,9) -> 0 | BC3: =COUNTIF($H40:$H54,6) -> 0 | BD3: =COUNTIF($K40:$K54,">0") -> 0 | BE3: =IF(COUNTIF($H$40:$H$54,2),SUM($M$40:$M$54),IF(COUNTIF($H$40:$H54,8),SUM($M$40:$M$54))) -> FALSE | BF3: =MAX($N40:$N54) -> 0 | BG3: =IF(SUM($O40:$O54)>0,MAX($O40:$O54),FALSE) -> FALSE | BH3: =MAX($G$40:$G$54) -> 3 | BI3: =SUM($AB$40:$AB$54) -> 0 | BJ3: =COUNTIF($H$40:$H$54,3) -> 2 | BK3: =MIN($P$40:$P$54) -> 66.57641635 | BL3: =IF($BE3,$BK3-$BE3) -> FALSE | BM3: =$BK3-$A$3 -> 3.470125118 | BN3: =IF(SUM($Z$40:$Z$54)<0,0,(SUM($Z$40:$Z$54))) -> 2.679751166 | BO3: =IF(SUM($AA$40:$AA$54)<0,0,SUM($AA$40:$AA$54)) -> 2.524695071 | BP3: =IF($BG3<5,1,0) -> 0 | BQ3: =SUM($T$40:$T$54) -> 304.3423044 | BR3: =SUM($U$40:$U$54) -> 350.7359737 | BS3: =SUM($V$40:$V$54) -> 0 | BT3: =SUM($BQ3:$BS3) -> 655.0782781 | BU3: Annual to 80 | BV3: =IF($E$57="A",0,1) -> 0 | BW3: =COUNTIF($H57:$H87,9) -> 0 | BX3: =COUNTIF($H57:$H87,6) -> 0 | BY3: =COUNTIF($K57:$K87,">0") -> 0 | BZ3: =IF(COUNTIF($H$57:$H$87,2),SUM($M$57:$M$87),IF(COUNTIF($H$57:$H$87,8),SUM($M$57:$M$87))) -> FALSE | CA3: =MAX($N$57:$N$87) -> 0 | CB3: =IF(SUM($O57:$O87)>0,MAX($O57:$O87),FALSE) -> FALSE | CC3: =MAX($G$57:$G$87) -> 4 | CD3: =SUM($AB57:$AB87) -> 0 | CE3: =COUNTIF($H$57:$H$87,3) -> 0 | CF3: =MIN($P$57:$P$87) -> 66.57641635 | CG3: =IF($BZ3,$CF3-$BZ3) -> FALSE | CH3: =$CF3-$A$3 -> 3.470125118 | CI3: =IF(SUM($Z$57:$Z$87)<0,0,SUM($Z$57:$Z$87)) -> 2.71086655 | CJ3: =IF(SUM($AA$57:$AA$87)<0,0,SUM($AA$57:$AA$87)) -> 2.555261046 | CK3: =IF($CB3<5,1,0) -> 0 | CL3: =SUM($T$57:$T$87) -> 399.0951374 | CM3: =SUM($U$57:$U$87) -> 0 | CN3: =SUM($V$57:$V$87) -> 0 | CO3: =SUM($CL3:$CN3) -> 399.0951374 | CP3: Biennual to 80 | CQ3: =IF($E$90="A",0,1) -> 0 | CR3: =COUNTIF($H90:$H115,9) -> 0 | CS3: =COUNTIF($H90:$H115,6) -> 0 | CT3: =COUNTIF($K90:$K115,">0") -> 0 | CU3: =IF(COUNTIF($H$90:$H$115,2),SUM($M$90:$M$115),IF(COUNTIF($H$90:$H$115,8),SUM($M$90:$M$115))) -> FALSE | CV3: =MAX($N$90:$N$115) -> 0 | CW3: =IF(SUM($O90:$O115)>0,MAX($O90:$O115),FALSE) -> FALSE | CX3: =MAX($G$90:$G$115) -> 2 | CY3: =SUM($AB90:$AB115) -> 0 | CZ3: =COUNTIF($H$90:$H$115,3) -> 1 | DA3: =MIN($P$90:$P$115) -> 66.57641635 | DB3: =IF($CU3,$DA3-$CU3) -> FALSE | DC3: =$DA3-$A$3 -> 3.470125118 | DD3: =IF(SUM($Z$90:$Z$115)<0,0,SUM($Z$90:$Z$115)) -> 2.695885781 | DE3: =IF(SUM($AA$90:$AA$115)<0,0,SUM($AA$90:$AA$115)) -> 2.540284072 | DF3: =IF($CW3<5,1,0) -> 0 | DG3: =SUM($T$90:$T$115) -> 202.8407008 | DH3: =SUM($U$90:$U$115) -> 172.3518298 | DI3: =SUM($V$90:$V$115) -> 0 | DJ3: =SUM($DG3:$DI3) -> 375.1925307
I4: Count of event rows | J4: Quick comparison ofoutcomes
C5: Smoker | D5: 1 | I5: =ROWS(I14:I23) -> 10 | J5: No screening | K5: =K3 -> 0 | L5: 0 | M5: 0 | N5: 0 | O5: FALSE | P5: 0 | Q5: FALSE | R5: 0 | S5: 0 | T5: =T3 -> 0 | U5: =U3 -> 66.57641635 | V5: FALSE | W5: 3.470125118 | X5: 2.712405012 | Y5: 2.556759893 | Z5: 0 | AA5: 0 | AB5: 0 | AC5: 0 | AD5: 0
I6: =ROWS(I26:I37) -> 12 | J6: Single | K6: =AF3 -> 0 | L6: =AG3 -> 0 | M6: =AH3 -> 0 | N6: =AI3 -> 0 | O6: =AJ3 -> FALSE | P6: =Lead_time_Single_scrn -> 0 | Q6: =AL3 -> FALSE | R6: =AM3 -> 1 | S6: =AN3 -> 0 | T6: =AO3 -> 0 | U6: =AP3 -> 66.57641635 | V6: FALSE | W6: 3.470125118 | X6: 2.712020396 | Y6: 2.556375278 | Z6: 0 | AA6: 104.7715187 | AB6: 0 | AC6: 0 | AD6: 104.7715187
I7: =ROWS(I40:I54) -> 15 | J7: Triple | K7: =BA3 -> 0 | L7: =BB3 -> 0 | M7: =BC3 -> 0 | N7: =BD3 -> 0 | O7: =BE3 -> FALSE | P7: =Lead_time_Triple_scn -> 0 | Q7: =BG3 -> FALSE | R7: =BH3 -> 3 | S7: =BI3 -> 0 | T7: =BJ3 -> 2 | U7: =BK3 -> 66.57641635 | V7: FALSE | W7: 3.470125118 | X7: 2.679751166 | Y7: 2.524695071 | Z7: 0 | AA7: 304.3423044 | AB7: 350.7359737 | AC7: 0 | AD7: 655.0782781
I8: =ROWS(I57:I87) -> 31 | J8: Annual to 80 | K8: =BV3 -> 0 | L8: =BW3 -> 0 | M8: =BX3 -> 0 | N8: =BY3 -> 0 | O8: =BZ3 -> FALSE | P8: =Lead_time_Annual_scn -> 0 | Q8: =CB3 -> FALSE | R8: =CC3 -> 4 | S8: =CD3 -> 0 | T8: =CE3 -> 0 | U8: =CF3 -> 66.57641635 | V8: FALSE | W8: 3.470125118 | X8: 2.71086655 | Y8: 2.555261046 | Z8: 0 | AA8: 399.0951374 | AB8: 0 | AC8: 0 | AD8: 399.0951374
I9: =ROWS(I90:I115) -> 26 | J9: Biennual to 80 | K9: =CQ3 -> 0 | L9: =CR3 -> 0 | M9: =CS3 -> 0 | N9: =CT3 -> 0 | O9: =CU3 -> FALSE | P9: =Lead_time_Biennual_scn -> 0 | Q9: =CW3 -> FALSE | R9: =CX3 -> 2 | S9: =CY3 -> 0 | T9: =CZ3 -> 1 | U9: =DA3 -> 66.57641635 | V9: FALSE | W9: 3.470125118 | X9: 2.695885781 | Y9: 2.540284072 | Z9: 0 | AA9: 202.8407008 | AB9: 172.3518298 | AC9: 0 | AD9: 375.1925307
A11: Elapsed time (yrs) | B11: Event ID | C11: Precipitating Event | D11: Age (yrs) | E11: State ID | F11: State | G11: Screen count | H11: Next event ID | I11: Next event | J11: Time to event (yrs) | K11: Stage if screened TP | L11: Stage-shift due to programme | M11: Age at diagnosis | N11: Lead time | O11: Sub-stage ref at dx | P11: Age at death | Q11: Preclinical disease at death? | R11: Scenario: 10-yr horizon: benefits retained | S11: Age at final scheduled screen | T11: d_Cost of LDCT | U11: d_Cost of referral, diagnosis, treatment and f/up | V11: d_Cost EoL | W11: State utility | X11: Event disutility (QALYs) | Y11: d_Event disutility | Z11: Period QALYs (inc. events) | AA11: d_Period QALYs (inc. events) | AB11: Interval cancer (scrn detected) | AC11: Event - LDCT screening result (2-5) | AG11: Event - Lung cancer incidence (6) | AK11: Event - Preclinical progression (7) | AO11: Event - Clinical presentation (8) | AS11: Event - Lung cancer mortality (9) | AW11: Event - Non-lung cancer mortality (10) | BA11: EVENT - Sub LDCT screen (11) | BE11: Summary - Event times | BL11: Summary - Event IDs | BS11: Summary - Event utilities | BZ11: For alternative scenario of survival
AC12: Applicable | AD12: Time to event | AE12: Event ID | AF12: Event utility/ disutility (QALYs) | AG12: Applicable | AH12: Time to event | AI12: Event ID | AJ12: Event utility/ disutility (QALYs) | AK12: Applicable | AL12: Time to event | AM12: Event ID | AN12: Event utility/ disutility (QALYs) | AO12: Applicable | AP12: Time to event | AQ12: Event ID | AR12: Event utility/ disutility (QALYs) | AS12: Applicable | AT12: Time to event | AU12: Event ID | AV12: Event utility/ disutility (QALYs) | AW12: Applicable | AX12: Time to event | AY12: Event ID | AZ12: Event utility/ disutility (QALYs) | BA12: Applicable | BB12: Time to event | BC12: Event ID | BD12: Event utility/ disutility (QALYs) | BE12: Initial LDCT screening | BF12: Lung cancer incidence | BG12: Preclinical progression | BH12: Clinical presentation | BI12: Lung cancer mortality | BJ12: Non-lung cancer mortality | BK12: Subsequent LDCT screen | BL12: LDCT screening | BM12: Lung cancer incidence | BN12: Preclinical progression | BO12: Clinical presentation | BP12: Lung cancer mortality | BQ12: Non-lung cancer mortality | BR12: Subsequent LDCT screen | BS12: LDCT screening | BT12: Lung cancer incidence | BU12: Preclinical progression | BV12: Clinical presentation | BW12: Lung cancer mortality | BX12: Non-lung cancer mortality | BY12: Subsequent LDCT screen | BZ12: LC mortality - dx stage | CA12: LC mortality - no progr stage + lead time
A13: (N)-No screening | Q13: Scenario active and lived >10 yrs= | R13: =IF($W$3>10,IF(Scenarios!$D$21=1,1,0),0) -> 0
A14: 0 | B14: 0 | C14: =VLOOKUP($B14,TBL_EVENT,2,FALSE) -> Enter model | D14: =$A$3+$A14 -> 63.10629124 | E14: =$D$3 -> A | F14: =$E$3 -> No lung cancer | G14: 0 | H14: =INDEX($BM14:$BQ14,MATCH($J14,$BF14:$BJ14,0)) -> 10 | I14: =VLOOKUP($H14,TBL_EVENT,2,FALSE) -> Non-lung cancer death | J14: =MIN($BF14:$BJ14) -> 3.470125118 | K14: N/a | L14: FALSE | M14: =IF($H14=8,$A$3+$J14,FALSE) -> FALSE | N14: 0 | O14: =VLOOKUP($E14,TBL_STATE,6) -> FALSE | P14: =IF($H14=9,$A$3+$A15,$I$3) -> 66.57641635 | Q14: =IF($H14=10,IF($F14="Pre*",TRUE,FALSE),FALSE) -> FALSE | R14: =IF($R$13=1,IF($R13=1,IF($A14<10,IF($A15>10,(1-(($A15-10)/$J14)),1),0),0),1) -> 1 | S14: N/a | T14: =IF($G14>$G13,c_LDCT+c_scrn_nurse,0)*IF($R14=0,0,1)*(1+d_costs)^(-$A14) -> 0 | U14: =IF($O14,CHOOSE($O14, IF($V$3<0.25,c_rdtf_sIa_ini,IF($V$3<1,c_rdtf_sIa_ini+(($V$3-0.25)/0.75)*c_rdtf_sIa_rem_ind_yr,IF($V$3<IF(Scenarios!$D$16=1,5,2),c_rdtf_sIa_ini+c_rdtf_sIa_rem_ind_yr+($V$3-1)*c_rdtf_sIa_subyrs,c_rdtf_sIa_ini+c_rdtf_sIa_rem_ind_yr+c_rdtf_sIa_subyrs))), IF($V$3<0.25,c_rdtf_sIb_ini,IF($V$3<1,c_rdtf_sIb_ini+(($V$3-0.25)/0.75)*c_rdtf_sIb_rem_ind_yr,IF($V$3<IF(Scenarios!$D$16=1,5,2),c_rdtf_sIb_ini+c_rdtf_sIb_rem_ind_yr+($V$3-1)*c_rdtf_sIb_subyrs,c_rdtf_sIb_ini+c_rdtf_sIb_rem_ind_yr+c_rdtf_sIb_subyrs))), IF($V$3<0.25,c_rdtf_sIIa_ini,IF($V$3<1,c_rdtf_sIIa_ini+(($V$3-0.25)/0.75)*c_rdtf_sIIa_rem_ind_yr,IF($V$3<IF(Scenarios!$D$16=1,5,2),c_rdtf_sIIa_ini+c_rdtf_sIIa_rem_ind_yr+($V$3-1)*c_rdtf_sIIa_subyrs,c_rdtf_sIIa_ini+c_rdtf_sIIa_rem_ind_yr+c_rdtf_sIIa_subyrs))), IF($V$3<0.25,c_rdtf_sIIb_ini,IF($V$3<1,c_rdtf_sIIb_ini+(($V$3-0.25)/0.75)*c_rdtf_sIIb_rem_ind_yr,IF($V$3<IF(Scenarios!$D$16=1,5,2),c_rdtf_sIIb_ini+c_rdtf_sIIb_rem_ind_yr+($V$3-1)*c_rdtf_sIIb_subyrs,c_rdtf_sIIb_ini+c_rdtf_sIIb_rem_ind_yr+c_rdtf_sIIb_subyrs))), IF($V$3<0.25,c_rdtf_sIIIa_ini,IF($V$3<1,c_rdtf_sIIIa_ini+(($V$3-0.25)/0.75)*c_rdtf_sIIIa_rem_ind_yr,IF($V$3<IF(Scenarios!$D$16=1,5,2),c_rdtf_sIIIa_ini+c_rdtf_sIIIa_rem_ind_yr+($V$3-1)*c_rdtf_sIIIa_subyrs,c_rdtf_sIIIa_ini+c_rdtf_sIIIa_rem_ind_yr+c_rdtf_sIIIa_subyrs))), IF($V$3<0.25,c_rdtf_sIIIb_ini,IF($V$3<1,c_rdtf_sIIIb_ini+(($V$3-0.25)/0.75)*c_rdtf_sIIIb_rem_ind_yr,IF($V$3<IF(Scenarios!$D$16=1,5,2),c_rdtf_sIIIb_ini+c_rdtf_sIIIb_rem_ind_yr+($V$3-1)*c_rdtf_sIIIb_subyrs,c_rdtf_sIIIb_ini+c_rdtf_sIIIb_rem_ind_yr+c_rdtf_sIIIb_subyrs))), IF($V$3<0.25,c_rdtf_sIV_ini,IF($V$3<1,c_rdtf_sIV_ini+(($V$3-0.25)/0.75)*c_rdtf_sIV_rem_ind_yr,IF($V$3<IF(Scenarios!$D$16=1,5,2),c_rdtf_sIV_ini+c_rdtf_sIV_rem_ind_yr+($V$3-1)*c_rdtf_sIV_subyrs,c_rdtf_sIV_ini+c_rdtf_sIV_rem_ind_yr+c_rdtf_sIV_subyrs)))), IF($B14=3,c_false_pos,0)) *(1+d_costs)^(-$A14) -> 0 | V14: =IF($B14=9,c_eol_lung,0)*IF($R14=1,1,0)*(1+d_costs)^(-$A14) -> 0 | W14: =VLOOKUP($E14,TBL_STATE,IF($B$3=0,5,4)) -> 0.7816447302 | X14: =(INDEX($BT14:$BX14,MATCH($J14,$BF14:$BJ14,0))) -> 0 | Y14: =$X14*(1+d_benefits)^(-$A15) -> 0 | Z14: =(($J14*$W14)*$R14)+$X14 -> 2.712405012 | AA14: =$Y14+$W14*(EXP(-LN(1+d_benefits)*$A14)-EXP(-LN(1+d_benefits)*$A15))/LN(1+d_benefits) -> 2.556759893 | AB14: N/a | AC14: FALSE | AG14: =VLOOKUP(Logic!$A$34,TBL_EVENT,VLOOKUP($E14,TBL_STATE,3,FALSE),FALSE) -> TRUE | AH14: =$H$3-$D14 -> 51.95059658 | AI14: =Logic!$A$34 -> 6 | AJ14: 0 | AK14: =VLOOKUP(Logic!$A$35,TBL_EVENT,VLOOKUP($E14,TBL_STATE,3,FALSE),FALSE) -> FALSE | AL14: =VLOOKUP($E14,TBL_pre_cl_prog,6) -> 200 | AM14: =Logic!$A$35 -> 7 | AN14: 0 | AO14: =VLOOKUP(Logic!$A$36,TBL_EVENT,VLOOKUP($E14,TBL_STATE,3,FALSE),FALSE) -> FALSE | AP14: =VLOOKUP($E14,TBL_cl_pres,6) -> 200 | AQ14: =Logic!$A$36 -> 8 | AR14: 0 | AS14: =VLOOKUP(Logic!$A$37,TBL_EVENT,VLOOKUP($E14,TBL_STATE,3,FALSE),FALSE) -> FALSE | AT14: =t_no_event -> 200 | AU14: =Logic!$A$37 -> 9 | AV14: 0 | AW14: =VLOOKUP(Logic!$A$38,TBL_EVENT,VLOOKUP($E14,TBL_STATE,3,FALSE),FALSE) -> TRUE | AX14: =$I$3-$D14 -> 3.470125118 | AY14: =Logic!$A$38 -> 10 | AZ14: 0 | BE14: =IF($AC14,$AD14,t_no_event) -> 200 | BF14: =IF($AG14,$AH14,t_no_event) -> 51.95059658 | BG14: =IF($AK14,$AL14,t_no_event) -> 200 | BH14: =IF($AO14,$AP14,t_no_event) -> 200 | BI14: =IF($AS14,$AT14,t_no_event) -> 200 | BJ14: =IF($AW14,$AX14,t_no_event) -> 3.470125118 | BL14: =$AE14 -> 0 | BM14: =$AI14 -> 6 | BN14: =$AM14 -> 7 | BO14: =$AQ14 -> 8 | BP14: =$AU14 -> 9 | BQ14: =$AY14 -> 10 | BS14: =$AF14 -> 0 | BT14: =$AJ14 -> 0 | BU14: =$AN14 -> 0 | BV14: =$AR14 -> 0 | BW14: =$AV14 -> 0 | BX14: =$AZ14 -> 0
A15: =$A14+$J14 -> 3.470125118 | B15: =$H14 -> 10 | C15: =$I14 -> Non-lung cancer death | D15: =IF($E14="P",FALSE,IF(D14,$A$3+$A15,FALSE)) -> 66.57641635 | E15: =VLOOKUP($B15,TBL_EVENT_OUTCOME,VLOOKUP($E14,TBL_STATE,3,FALSE),FALSE) -> P | F15: =VLOOKUP($E15,TBL_STATE,2) -> Death | G15: =IF($H14<6,1,0)+$G14 -> 0 | H15: =IF($H14<9,INDEX($BM15:$BQ15,MATCH($J15,$BF15:$BJ15,0)),100) -> 100 | I15: =IF($H14>8,FALSE,VLOOKUP($H15,TBL_EVENT,2,FALSE)) -> FALSE | J15: =MIN($BF15:$BJ15) -> 200 | K15: N/a | L15: FALSE | M15: =IF($H15=8,$A$3+SUM($J14:$J15),FALSE) -> FALSE | N15: 0 | O15: FALSE | P15: =IF($H15=9,$A$3+$A16,$I$3) -> 66.57641635 | Q15: =IF($H15=10,IF($F15="Pre*",TRUE,FALSE),FALSE) -> FALSE | R15: =IF($R$13=1,IF($R14=1,IF($A15<10,IF($A16>10,(1-(($A16-10)/$J15)),1),0),0),1) -> 1 | S15: N/a | T15: 0 | U15: =IF($O15,CHOOSE($O15, IF($V$3<0.25,c_rdtf_sIa_ini,IF($V$3<1,c_rdtf_sIa_ini+(($V$3-0.25)/0.75)*c_rdtf_sIa_rem_ind_yr,IF($V$3<IF(Scenarios!$D$16=1,5,2),c_rdtf_sIa_ini+c_rdtf_sIa_rem_ind_yr+($V$3-1)*c_rdtf_sIa_subyrs,c_rdtf_sIa_ini+c_rdtf_sIa_rem_ind_yr+c_rdtf_sIa_subyrs))), IF($V$3<0.25,c_rdtf_sIb_ini,IF($V$3<1,c_rdtf_sIb_ini+(($V$3-0.25)/0.75)*c_rdtf_sIb_rem_ind_yr,IF($V$3<IF(Scenarios!$D$16=1,5,2),c_rdtf_sIb_ini+c_rdtf_sIb_rem_ind_yr+($V$3-1)*c_rdtf_sIb_subyrs,c_rdtf_sIb_ini+c_rdtf_sIb_rem_ind_yr+c_rdtf_sIb_subyrs))), IF($V$3<0.25,c_rdtf_sIIa_ini,IF($V$3<1,c_rdtf_sIIa_ini+(($V$3-0.25)/0.75)*c_rdtf_sIIa_rem_ind_yr,IF($V$3<IF(Scenarios!$D$16=1,5,2),c_rdtf_sIIa_ini+c_rdtf_sIIa_rem_ind_yr+($V$3-1)*c_rdtf_sIIa_subyrs,c_rdtf_sIIa_ini+c_rdtf_sIIa_rem_ind_yr+c_rdtf_sIIa_subyrs))), IF($V$3<0.25,c_rdtf_sIIb_ini,IF($V$3<1,c_rdtf_sIIb_ini+(($V$3-0.25)/0.75)*c_rdtf_sIIb_rem_ind_yr,IF($V$3<IF(Scenarios!$D$16=1,5,2),c_rdtf_sIIb_ini+c_rdtf_sIIb_rem_ind_yr+($V$3-1)*c_rdtf_sIIb_subyrs,c_rdtf_sIIb_ini+c_rdtf_sIIb_rem_ind_yr+c_rdtf_sIIb_subyrs))), IF($V$3<0.25,c_rdtf_sIIIa_ini,IF($V$3<1,c_rdtf_sIIIa_ini+(($V$3-0.25)/0.75)*c_rdtf_sIIIa_rem_ind_yr,IF($V$3<IF(Scenarios!$D$16=1,5,2),c_rdtf_sIIIa_ini+c_rdtf_sIIIa_rem_ind_yr+($V$3-1)*c_rdtf_sIIIa_subyrs,c_rdtf_sIIIa_ini+c_rdtf_sIIIa_rem_ind_yr+c_rdtf_sIIIa_subyrs))), IF($V$3<0.25,c_rdtf_sIIIb_ini,IF($V$3<1,c_rdtf_sIIIb_ini+(($V$3-0.25)/0.75)*c_rdtf_sIIIb_rem_ind_yr,IF($V$3<IF(Scenarios!$D$16=1,5,2),c_rdtf_sIIIb_ini+c_rdtf_sIIIb_rem_ind_yr+($V$3-1)*c_rdtf_sIIIb_subyrs,c_rdtf_sIIIb_ini+c_rdtf_sIIIb_rem_ind_yr+c_rdtf_sIIIb_subyrs))), IF($V$3<0.25,c_rdtf_sIV_ini,IF($V$3<1,c_rdtf_sIV_ini+(($V$3-0.25)/0.75)*c_rdtf_sIV_rem_ind_yr,IF($V$3<IF(Scenarios!$D$16=1,5,2),c_rdtf_sIV_ini+c_rdtf_sIV_rem_ind_yr+($V$3-1)*c_rdtf_sIV_subyrs,c_rdtf_sIV_ini+c_rdtf_sIV_rem_ind_yr+c_rdtf_sIV_subyrs)))), IF($B15=3,c_false_pos,0)) *(1+d_costs)^(-$A15) -> 0 | V15: 0 | W15: 0 | X15: =IF($J15=t_no_event,0,(INDEX($BT15:$BX15,MATCH($J15,$BF15:$BJ15,0)))) -> 0 | Y15: 0 | Z15: =(($J15*$W15)*$R15)+$X15 -> 0 | AA15: 0 | AB15: N/a | AC15: FALSE | AG15: =VLOOKUP(Logic!$A$34,TBL_EVENT,VLOOKUP($E15,TBL_STATE,3,FALSE),FALSE) -> FALSE | AH15: 48.48047147 | AI15: =Logic!$A$34 -> 6 | AJ15: 0 | AK15: =VLOOKUP(Logic!$A$35,TBL_EVENT,VLOOKUP($E15,TBL_STATE,3,FALSE),FALSE) -> FALSE | AL15: 200 | AM15: =Logic!$A$35 -> 7 | AN15: 0 | AO15: =VLOOKUP(Logic!$A$36,TBL_EVENT,VLOOKUP($E15,TBL_STATE,3,FALSE),FALSE) -> FALSE | AP15: 200 | AQ15: =Logic!$A$36 -> 8 | AR15: 0 | AS15: =VLOOKUP(Logic!$A$37,TBL_EVENT,VLOOKUP($E15,TBL_STATE,3,FALSE),FALSE) -> FALSE | AT15: =IF($M14,CHOOSE($O15,survival_sIa,survival_sIb,survival_sIIa,survival_sIIb,survival_sIIIa,survival_sIIIb,survival_sIV),t_no_event) -> 200 | AU15: =Logic!$A$37 -> 9 | AV15: 0 | AW15: =VLOOKUP(Logic!$A$38,TBL_EVENT,VLOOKUP($E15,TBL_STATE,3,FALSE),FALSE) -> FALSE | AX15: 0 | AY15: =Logic!$A$38 -> 10 | AZ15: 0 | BE15: 200 | BF15: 200 | BG15: 200 | BH15: 200 | BI15: =IF($AS15,$AT15,t_no_event) -> 200 | BJ15: 200 | BL15: 0 | BM15: 6 | BN15: 7 | BO15: 8 | BP15: 9 | BQ15: 10 | BS15: 0 | BT15: 0 | BU15: 0 | BV15: 0 | BW15: 0 | BX15: 0
A16: 203.4701251 | B16: 100 | C16: FALSE | D16: FALSE | E16: FALSE | F16: FALSE | G16: 0 | H16: 100 | I16: =IF($H15>8,FALSE,VLOOKUP($H16,TBL_EVENT,2,FALSE)) -> FALSE | J16: 200 | K16: N/a | L16: FALSE | M16: =IF($H16=8,$A$3+SUM($J14:$J16),FALSE) -> FALSE | N16: 0 | O16: FALSE | P16: 66.57641635 | Q16: =IF($H16=10,IF($F16="Pre*",TRUE,FALSE),FALSE) -> FALSE | R16: 1 | S16: N/a | T16: 0 | U16: =IF($O16,CHOOSE($O16, IF($V$3<0.25,c_rdtf_sIa_ini,IF($V$3<1,c_rdtf_sIa_ini+(($V$3-0.25)/0.75)*c_rdtf_sIa_rem_ind_yr,IF($V$3<IF(Scenarios!$D$16=1,5,2),c_rdtf_sIa_ini+c_rdtf_sIa_rem_ind_yr+($V$3-1)*c_rdtf_sIa_subyrs,c_rdtf_sIa_ini+c_rdtf_sIa_rem_ind_yr+c_rdtf_sIa_subyrs))), IF($V$3<0.25,c_rdtf_sIb_ini,IF($V$3<1,c_rdtf_sIb_ini+(($V$3-0.25)/0.75)*c_rdtf_sIb_rem_ind_yr,IF($V$3<IF(Scenarios!$D$16=1,5,2),c_rdtf_sIb_ini+c_rdtf_sIb_rem_ind_yr+($V$3-1)*c_rdtf_sIb_subyrs,c_rdtf_sIb_ini+c_rdtf_sIb_rem_ind_yr+c_rdtf_sIb_subyrs))), IF($V$3<0.25,c_rdtf_sIIa_ini,IF($V$3<1,c_rdtf_sIIa_ini+(($V$3-0.25)/0.75)*c_rdtf_sIIa_rem_ind_yr,IF($V$3<IF(Scenarios!$D$16=1,5,2),c_rdtf_sIIa_ini+c_rdtf_sIIa_rem_ind_yr+($V$3-1)*c_rdtf_sIIa_subyrs,c_rdtf_sIIa_ini+c_rdtf_sIIa_rem_ind_yr+c_rdtf_sIIa_subyrs))), IF($V$3<0.25,c_rdtf_sIIb_ini,IF($V$3<1,c_rdtf_sIIb_ini+(($V$3-0.25)/0.75)*c_rdtf_sIIb_rem_ind_yr,IF($V$3<IF(Scenarios!$D$16=1,5,2),c_rdtf_sIIb_ini+c_rdtf_sIIb_rem_ind_yr+($V$3-1)*c_rdtf_sIIb_subyrs,c_rdtf_sIIb_ini+c_rdtf_sIIb_rem_ind_yr+c_rdtf_sIIb_subyrs))), IF($V$3<0.25,c_rdtf_sIIIa_ini,IF($V$3<1,c_rdtf_sIIIa_ini+(($V$3-0.25)/0.75)*c_rdtf_sIIIa_rem_ind_yr,IF($V$3<IF(Scenarios!$D$16=1,5,2),c_rdtf_sIIIa_ini+c_rdtf_sIIIa_rem_ind_yr+($V$3-1)*c_rdtf_sIIIa_subyrs,c_rdtf_sIIIa_ini+c_rdtf_sIIIa_rem_ind_yr+c_rdtf_sIIIa_subyrs))), IF($V$3<0.25,c_rdtf_sIIIb_ini,IF($V$3<1,c_rdtf_sIIIb_ini+(($V$3-0.25)/0.75)*c_rdtf_sIIIb_rem_ind_yr,IF($V$3<IF(Scenarios!$D$16=1,5,2),c_rdtf_sIIIb_ini+c_rdtf_sIIIb_rem_ind_yr+($V$3-1)*c_rdtf_sIIIb_subyrs,c_rdtf_sIIIb_ini+c_rdtf_sIIIb_rem_ind_yr+c_rdtf_sIIIb_subyrs))), IF($V$3<0.25,c_rdtf_sIV_ini,IF($V$3<1,c_rdtf_sIV_ini+(($V$3-0.25)/0.75)*c_rdtf_sIV_rem_ind_yr,IF($V$3<IF(Scenarios!$D$16=1,5,2),c_rdtf_sIV_ini+c_rdtf_sIV_rem_ind_yr+($V$3-1)*c_rdtf_sIV_subyrs,c_rdtf_sIV_ini+c_rdtf_sIV_rem_ind_yr+c_rdtf_sIV_subyrs)))), IF($B16=3,c_false_pos,0)) *(1+d_costs)^(-$A16) -> 0 | V16: 0 | W16: 0 | X16: 0 | Y16: 0 | Z16: 0 | AA16: 0 | AB16: N/a | AC16: FALSE | AG16: =VLOOKUP(Logic!$A$34,TBL_EVENT,VLOOKUP($E16,TBL_STATE,3,FALSE),FALSE) -> FALSE | AH16: 115.0568878 | AI16: =Logic!$A$34 -> 6 | AJ16: 0 | AK16: =VLOOKUP(Logic!$A$35,TBL_EVENT,VLOOKUP($E16,TBL_STATE,3,FALSE),FALSE) -> FALSE | AL16: 200 | AM16: =Logic!$A$35 -> 7 | AN16: 0 | AO16: =VLOOKUP(Logic!$A$36,TBL_EVENT,VLOOKUP($E16,TBL_STATE,3,FALSE),FALSE) -> FALSE | AP16: 200 | AQ16: =Logic!$A$36 -> 8 | AR16: 0 | AS16: =VLOOKUP(Logic!$A$37,TBL_EVENT,VLOOKUP($E16,TBL_STATE,3,FALSE),FALSE) -> FALSE | AT16: =IF($M15,CHOOSE($O16,survival_sIa,survival_sIb,survival_sIIa,survival_sIIb,survival_sIIIa,survival_sIIIb,survival_sIV),t_no_event) -> 200 | AU16: =Logic!$A$37 -> 9 | AV16: 0 | AW16: =VLOOKUP(Logic!$A$38,TBL_EVENT,VLOOKUP($E16,TBL_STATE,3,FALSE),FALSE) -> FALSE | AX16: 66.57641635 | AY16: =Logic!$A$38 -> 10 | AZ16: 0 | BE16: 200 | BF16: 200 | BG16: 200 | BH16: 200 | BI16: 200 | BJ16: 200 | BL16: 0 | BM16: 6 | BN16: 7 | BO16: 8 | BP16: 9 | BQ16: 10 | BS16: 0 | BT16: 0 | BU16: 0 | BV16: 0 | BW16: 0 | BX16: 0
A17: 403.4701251 | B17: 100 | C17: FALSE | D17: FALSE | E17: FALSE | F17: FALSE | G17: 0 | H17: 100 | I17: FALSE | J17: 200 | K17: N/a | L17: FALSE | M17: =IF($H17=8,$A$3+SUM($J14:$J17),FALSE) -> FALSE | N17: 0 | O17: FALSE | P17: 66.57641635 | Q17: =IF($H17=10,IF($F17="Pre*",TRUE,FALSE),FALSE) -> FALSE | R17: 1 | S17: N/a | T17: 0 | U17: =IF($O17,CHOOSE($O17, IF($V$3<0.25,c_rdtf_sIa_ini,IF($V$3<1,c_rdtf_sIa_ini+(($V$3-0.25)/0.75)*c_rdtf_sIa_rem_ind_yr,IF($V$3<IF(Scenarios!$D$16=1,5,2),c_rdtf_sIa_ini+c_rdtf_sIa_rem_ind_yr+($V$3-1)*c_rdtf_sIa_subyrs,c_rdtf_sIa_ini+c_rdtf_sIa_rem_ind_yr+c_rdtf_sIa_subyrs))), IF($V$3<0.25,c_rdtf_sIb_ini,IF($V$3<1,c_rdtf_sIb_ini+(($V$3-0.25)/0.75)*c_rdtf_sIb_rem_ind_yr,IF($V$3<IF(Scenarios!$D$16=1,5,2),c_rdtf_sIb_ini+c_rdtf_sIb_rem_ind_yr+($V$3-1)*c_rdtf_sIb_subyrs,c_rdtf_sIb_ini+c_rdtf_sIb_rem_ind_yr+c_rdtf_sIb_subyrs))), IF($V$3<0.25,c_rdtf_sIIa_ini,IF($V$3<1,c_rdtf_sIIa_ini+(($V$3-0.25)/0.75)*c_rdtf_sIIa_rem_ind_yr,IF($V$3<IF(Scenarios!$D$16=1,5,2),c_rdtf_sIIa_ini+c_rdtf_sIIa_rem_ind_yr+($V$3-1)*c_rdtf_sIIa_subyrs,c_rdtf_sIIa_ini+c_rdtf_sIIa_rem_ind_yr+c_rdtf_sIIa_subyrs))), IF($V$3<0.25,c_rdtf_sIIb_ini,IF($V$3<1,c_rdtf_sIIb_ini+(($V$3-0.25)/0.75)*c_rdtf_sIIb_rem_ind_yr,IF($V$3<IF(Scenarios!$D$16=1,5,2),c_rdtf_sIIb_ini+c_rdtf_sIIb_rem_ind_yr+($V$3-1)*c_rdtf_sIIb_subyrs,c_rdtf_sIIb_ini+c_rdtf_sIIb_rem_ind_yr+c_rdtf_sIIb_subyrs))), IF($V$3<0.25,c_rdtf_sIIIa_ini,IF($V$3<1,c_rdtf_sIIIa_ini+(($V$3-0.25)/0.75)*c_rdtf_sIIIa_rem_ind_yr,IF($V$3<IF(Scenarios!$D$16=1,5,2),c_rdtf_sIIIa_ini+c_rdtf_sIIIa_rem_ind_yr+($V$3-1)*c_rdtf_sIIIa_subyrs,c_rdtf_sIIIa_ini+c_rdtf_sIIIa_rem_ind_yr+c_rdtf_sIIIa_subyrs))), IF($V$3<0.25,c_rdtf_sIIIb_ini,IF($V$3<1,c_rdtf_sIIIb_ini+(($V$3-0.25)/0.75)*c_rdtf_sIIIb_rem_ind_yr,IF($V$3<IF(Scenarios!$D$16=1,5,2),c_rdtf_sIIIb_ini+c_rdtf_sIIIb_rem_ind_yr+($V$3-1)*c_rdtf_sIIIb_subyrs,c_rdtf_sIIIb_ini+c_rdtf_sIIIb_rem_ind_yr+c_rdtf_sIIIb_subyrs))), IF($V$3<0.25,c_rdtf_sIV_ini,IF($V$3<1,c_rdtf_sIV_ini+(($V$3-0.25)/0.75)*c_rdtf_sIV_rem_ind_yr,IF($V$3<IF(Scenarios!$D$16=1,5,2),c_rdtf_sIV_ini+c_rdtf_sIV_rem_ind_yr+($V$3-1)*c_rdtf_sIV_subyrs,c_rdtf_sIV_ini+c_rdtf_sIV_rem_ind_yr+c_rdtf_sIV_subyrs)))), IF($B17=3,c_false_pos,0)) *(1+d_costs)^(-$A17) -> 0 | V17: 0 | W17: 0 | X17: 0 | Y17: 0 | Z17: 0 | AA17: 0 | AB17: N/a | AC17: FALSE | AG17: =VLOOKUP(Logic!$A$34,TBL_EVENT,VLOOKUP($E17,TBL_STATE,3,FALSE),FALSE) -> FALSE | AH17: 115.0568878 | AI17: =Logic!$A$34 -> 6 | AJ17: 0 | AK17: =VLOOKUP(Logic!$A$35,TBL_EVENT,VLOOKUP($E17,TBL_STATE,3,FALSE),FALSE) -> FALSE | AL17: 200 | AM17: =Logic!$A$35 -> 7 | AN17: 0 | AO17: =VLOOKUP(Logic!$A$36,TBL_EVENT,VLOOKUP($E17,TBL_STATE,3,FALSE),FALSE) -> FALSE | AP17: 200 | AQ17: =Logic!$A$36 -> 8 | AR17: 0 | AS17: =VLOOKUP(Logic!$A$37,TBL_EVENT,VLOOKUP($E17,TBL_STATE,3,FALSE),FALSE) -> FALSE | AT17: 200 | AU17: =Logic!$A$37 -> 9 | AV17: 0 | AW17: =VLOOKUP(Logic!$A$38,TBL_EVENT,VLOOKUP($E17,TBL_STATE,3,FALSE),FALSE) -> FALSE | AX17: 66.57641635 | AY17: =Logic!$A$38 -> 10 | AZ17: 0 | BE17: 200 | BF17: 200 | BG17: 200 | BH17: 200 | BI17: 200 | BJ17: 200 | BL17: 0 | BM17: 6 | BN17: 7 | BO17: 8 | BP17: 9 | BQ17: 10 | BS17: 0 | BT17: 0 | BU17: 0 | BV17: 0 | BW17: 0 | BX17: 0
A18: 603.4701251 | B18: 100 | C18: FALSE | D18: FALSE | E18: FALSE | F18: FALSE | G18: 0 | H18: 100 | I18: FALSE | J18: 200 | K18: N/a | L18: FALSE | M18: =IF($H18=8,$A$3+SUM($J14:$J18),FALSE) -> FALSE | N18: 0 | O18: FALSE | P18: 66.57641635 | Q18: FALSE | R18: 1 | S18: N/a | T18: 0 | U18: =IF($O18,CHOOSE($O18, IF($V$3<0.25,c_rdtf_sIa_ini,IF($V$3<1,c_rdtf_sIa_ini+(($V$3-0.25)/0.75)*c_rdtf_sIa_rem_ind_yr,IF($V$3<IF(Scenarios!$D$16=1,5,2),c_rdtf_sIa_ini+c_rdtf_sIa_rem_ind_yr+($V$3-1)*c_rdtf_sIa_subyrs,c_rdtf_sIa_ini+c_rdtf_sIa_rem_ind_yr+c_rdtf_sIa_subyrs))), IF($V$3<0.25,c_rdtf_sIb_ini,IF($V$3<1,c_rdtf_sIb_ini+(($V$3-0.25)/0.75)*c_rdtf_sIb_rem_ind_yr,IF($V$3<IF(Scenarios!$D$16=1,5,2),c_rdtf_sIb_ini+c_rdtf_sIb_rem_ind_yr+($V$3-1)*c_rdtf_sIb_subyrs,c_rdtf_sIb_ini+c_rdtf_sIb_rem_ind_yr+c_rdtf_sIb_subyrs))), IF($V$3<0.25,c_rdtf_sIIa_ini,IF($V$3<1,c_rdtf_sIIa_ini+(($V$3-0.25)/0.75)*c_rdtf_sIIa_rem_ind_yr,IF($V$3<IF(Scenarios!$D$16=1,5,2),c_rdtf_sIIa_ini+c_rdtf_sIIa_rem_ind_yr+($V$3-1)*c_rdtf_sIIa_subyrs,c_rdtf_sIIa_ini+c_rdtf_sIIa_rem_ind_yr+c_rdtf_sIIa_subyrs))), IF($V$3<0.25,c_rdtf_sIIb_ini,IF($V$3<1,c_rdtf_sIIb_ini+(($V$3-0.25)/0.75)*c_rdtf_sIIb_rem_ind_yr,IF($V$3<IF(Scenarios!$D$16=1,5,2),c_rdtf_sIIb_ini+c_rdtf_sIIb_rem_ind_yr+($V$3-1)*c_rdtf_sIIb_subyrs,c_rdtf_sIIb_ini+c_rdtf_sIIb_rem_ind_yr+c_rdtf_sIIb_subyrs))), IF($V$3<0.25,c_rdtf_sIIIa_ini,IF($V$3<1,c_rdtf_sIIIa_ini+(($V$3-0.25)/0.75)*c_rdtf_sIIIa_rem_ind_yr,IF($V$3<IF(Scenarios!$D$16=1,5,2),c_rdtf_sIIIa_ini+c_rdtf_sIIIa_rem_ind_yr+($V$3-1)*c_rdtf_sIIIa_subyrs,c_rdtf_sIIIa_ini+c_rdtf_sIIIa_rem_ind_yr+c_rdtf_sIIIa_subyrs))), IF($V$3<0.25,c_rdtf_sIIIb_ini,IF($V$3<1,c_rdtf_sIIIb_ini+(($V$3-0.25)/0.75)*c_rdtf_sIIIb_rem_ind_yr,IF($V$3<IF(Scenarios!$D$16=1,5,2),c_rdtf_sIIIb_ini+c_rdtf_sIIIb_rem_ind_yr+($V$3-1)*c_rdtf_sIIIb_subyrs,c_rdtf_sIIIb_ini+c_rdtf_sIIIb_rem_ind_yr+c_rdtf_sIIIb_subyrs))), IF($V$3<0.25,c_rdtf_sIV_ini,IF($V$3<1,c_rdtf_sIV_ini+(($V$3-0.25)/0.75)*c_rdtf_sIV_rem_ind_yr,IF($V$3<IF(Scenarios!$D$16=1,5,2),c_rdtf_sIV_ini+c_rdtf_sIV_rem_ind_yr+($V$3-1)*c_rdtf_sIV_subyrs,c_rdtf_sIV_ini+c_rdtf_sIV_rem_ind_yr+c_rdtf_sIV_subyrs)))), IF($B18=3,c_false_pos,0)) *(1+d_costs)^(-$A18) -> 0 | V18: 0 | W18: 0 | X18: =IF($J18=t_no_event,0,(INDEX($BT18:$BX18,MATCH($J18,$BF18:$BJ18,0)))) -> 0 | Y18: 0 | Z18: 0 | AA18: 0 | AB18: N/a | AC18: FALSE | AG18: =VLOOKUP(Logic!$A$34,TBL_EVENT,VLOOKUP($E18,TBL_STATE,3,FALSE),FALSE) -> FALSE | AH18: 115.0568878 | AI18: =Logic!$A$34 -> 6 | AJ18: 0 | AK18: =VLOOKUP(Logic!$A$35,TBL_EVENT,VLOOKUP($E18,TBL_STATE,3,FALSE),FALSE) -> FALSE | AL18: 200 | AM18: =Logic!$A$35 -> 7 | AN18: 0 | AO18: =VLOOKUP(Logic!$A$36,TBL_EVENT,VLOOKUP($E18,TBL_STATE,3,FALSE),FALSE) -> FALSE | AP18: 200 | AQ18: =Logic!$A$36 -> 8 | AR18: 0 | AS18: =VLOOKUP(Logic!$A$37,TBL_EVENT,VLOOKUP($E18,TBL_STATE,3,FALSE),FALSE) -> FALSE | AT18: 200 | AU18: =Logic!$A$37 -> 9 | AV18: 0 | AW18: =VLOOKUP(Logic!$A$38,TBL_EVENT,VLOOKUP($E18,TBL_STATE,3,FALSE),FALSE) -> FALSE | AX18: 66.57641635 | AY18: =Logic!$A$38 -> 10 | AZ18: 0 | BE18: 200 | BF18: 200 | BG18: 200 | BH18: 200 | BI18: 200 | BJ18: 200 | BL18: 0 | BM18: 6 | BN18: 7 | BO18: 8 | BP18: 9 | BQ18: 10 | BS18: 0 | BT18: 0 | BU18: 0 | BV18: 0 | BW18: 0 | BX18: 0
A19: 803.4701251 | B19: 100 | C19: FALSE | D19: FALSE | E19: FALSE | F19: FALSE | G19: 0 | H19: 100 | I19: FALSE | J19: 200 | K19: N/a | L19: FALSE | M19: =IF($H19=8,$A$3+SUM($J14:$J19),FALSE) -> FALSE | N19: 0 | O19: FALSE | P19: 66.57641635 | Q19: FALSE | R19: 1 | S19: N/a | T19: 0 | U19: =IF($O19,CHOOSE($O19, IF($V$3<0.25,c_rdtf_sIa_ini,IF($V$3<1,c_rdtf_sIa_ini+(($V$3-0.25)/0.75)*c_rdtf_sIa_rem_ind_yr,IF($V$3<IF(Scenarios!$D$16=1,5,2),c_rdtf_sIa_ini+c_rdtf_sIa_rem_ind_yr+($V$3-1)*c_rdtf_sIa_subyrs,c_rdtf_sIa_ini+c_rdtf_sIa_rem_ind_yr+c_rdtf_sIa_subyrs))), IF($V$3<0.25,c_rdtf_sIb_ini,IF($V$3<1,c_rdtf_sIb_ini+(($V$3-0.25)/0.75)*c_rdtf_sIb_rem_ind_yr,IF($V$3<IF(Scenarios!$D$16=1,5,2),c_rdtf_sIb_ini+c_rdtf_sIb_rem_ind_yr+($V$3-1)*c_rdtf_sIb_subyrs,c_rdtf_sIb_ini+c_rdtf_sIb_rem_ind_yr+c_rdtf_sIb_subyrs))), IF($V$3<0.25,c_rdtf_sIIa_ini,IF($V$3<1,c_rdtf_sIIa_ini+(($V$3-0.25)/0.75)*c_rdtf_sIIa_rem_ind_yr,IF($V$3<IF(Scenarios!$D$16=1,5,2),c_rdtf_sIIa_ini+c_rdtf_sIIa_rem_ind_yr+($V$3-1)*c_rdtf_sIIa_subyrs,c_rdtf_sIIa_ini+c_rdtf_sIIa_rem_ind_yr+c_rdtf_sIIa_subyrs))), IF($V$3<0.25,c_rdtf_sIIb_ini,IF($V$3<1,c_rdtf_sIIb_ini+(($V$3-0.25)/0.75)*c_rdtf_sIIb_rem_ind_yr,IF($V$3<IF(Scenarios!$D$16=1,5,2),c_rdtf_sIIb_ini+c_rdtf_sIIb_rem_ind_yr+($V$3-1)*c_rdtf_sIIb_subyrs,c_rdtf_sIIb_ini+c_rdtf_sIIb_rem_ind_yr+c_rdtf_sIIb_subyrs))), IF($V$3<0.25,c_rdtf_sIIIa_ini,IF($V$3<1,c_rdtf_sIIIa_ini+(($V$3-0.25)/0.75)*c_rdtf_sIIIa_rem_ind_yr,IF($V$3<IF(Scenarios!$D$16=1,5,2),c_rdtf_sIIIa_ini+c_rdtf_sIIIa_rem_ind_yr+($V$3-1)*c_rdtf_sIIIa_subyrs,c_rdtf_sIIIa_ini+c_rdtf_sIIIa_rem_ind_yr+c_rdtf_sIIIa_subyrs))), IF($V$3<0.25,c_rdtf_sIIIb_ini,IF($V$3<1,c_rdtf_sIIIb_ini+(($V$3-0.25)/0.75)*c_rdtf_sIIIb_rem_ind_yr,IF($V$3<IF(Scenarios!$D$16=1,5,2),c_rdtf_sIIIb_ini+c_rdtf_sIIIb_rem_ind_yr+($V$3-1)*c_rdtf_sIIIb_subyrs,c_rdtf_sIIIb_ini+c_rdtf_sIIIb_rem_ind_yr+c_rdtf_sIIIb_subyrs))), IF($V$3<0.25,c_rdtf_sIV_ini,IF($V$3<1,c_rdtf_sIV_ini+(($V$3-0.25)/0.75)*c_rdtf_sIV_rem_ind_yr,IF($V$3<IF(Scenarios!$D$16=1,5,2),c_rdtf_sIV_ini+c_rdtf_sIV_rem_ind_yr+($V$3-1)*c_rdtf_sIV_subyrs,c_rdtf_sIV_ini+c_rdtf_sIV_rem_ind_yr+c_rdtf_sIV_subyrs)))), IF($B19=3,c_false_pos,0)) *(1+d_costs)^(-$A19) -> 0 | V19: 0 | W19: 0 | X19: 0 | Y19: 0 | Z19: 0 | AA19: 0 | AB19: N/a | AC19: FALSE | AG19: =VLOOKUP(Logic!$A$34,TBL_EVENT,VLOOKUP($E19,TBL_STATE,3,FALSE),FALSE) -> FALSE | AH19: 115.0568878 | AI19: =Logic!$A$34 -> 6 | AJ19: 0 | AK19: =VLOOKUP(Logic!$A$35,TBL_EVENT,VLOOKUP($E19,TBL_STATE,3,FALSE),FALSE) -> FALSE | AL19: 200 | AM19: =Logic!$A$35 -> 7 | AN19: 0 | AO19: =VLOOKUP(Logic!$A$36,TBL_EVENT,VLOOKUP($E19,TBL_STATE,3,FALSE),FALSE) -> FALSE | AP19: 200 | AQ19: =Logic!$A$36 -> 8 | AR19: 0 | AS19: =VLOOKUP(Logic!$A$37,TBL_EVENT,VLOOKUP($E19,TBL_STATE,3,FALSE),FALSE) -> FALSE | AT19: 200 | AU19: =Logic!$A$37 -> 9 | AV19: 0 | AW19: =VLOOKUP(Logic!$A$38,TBL_EVENT,VLOOKUP($E19,TBL_STATE,3,FALSE),FALSE) -> FALSE | AX19: 66.57641635 | AY19: =Logic!$A$38 -> 10 | AZ19: 0 | BE19: 200 | BF19: 200 | BG19: 200 | BH19: 200 | BI19: 200 | BJ19: 200 | BL19: 0 | BM19: 6 | BN19: 7 | BO19: 8 | BP19: 9 | BQ19: 10 | BS19: 0 | BT19: 0 | BU19: 0 | BV19: 0 | BW19: 0 | BX19: 0
A20: 1003.470125 | B20: 100 | C20: FALSE | D20: FALSE | E20: FALSE | F20: FALSE | G20: 0 | H20: 100 | I20: FALSE | J20: 200 | K20: N/a | L20: FALSE | M20: =IF($H20=8,$A$3+SUM($J14:$J20),FALSE) -> FALSE | N20: 0 | O20: FALSE | P20: 66.57641635 | Q20: FALSE | R20: 1 | S20: N/a | T20: 0 | U20: =IF($O20,CHOOSE($O20, IF($V$3<0.25,c_rdtf_sIa_ini,IF($V$3<1,c_rdtf_sIa_ini+(($V$3-0.25)/0.75)*c_rdtf_sIa_rem_ind_yr,IF($V$3<IF(Scenarios!$D$16=1,5,2),c_rdtf_sIa_ini+c_rdtf_sIa_rem_ind_yr+($V$3-1)*c_rdtf_sIa_subyrs,c_rdtf_sIa_ini+c_rdtf_sIa_rem_ind_yr+c_rdtf_sIa_subyrs))), IF($V$3<0.25,c_rdtf_sIb_ini,IF($V$3<1,c_rdtf_sIb_ini+(($V$3-0.25)/0.75)*c_rdtf_sIb_rem_ind_yr,IF($V$3<IF(Scenarios!$D$16=1,5,2),c_rdtf_sIb_ini+c_rdtf_sIb_rem_ind_yr+($V$3-1)*c_rdtf_sIb_subyrs,c_rdtf_sIb_ini+c_rdtf_sIb_rem_ind_yr+c_rdtf_sIb_subyrs))), IF($V$3<0.25,c_rdtf_sIIa_ini,IF($V$3<1,c_rdtf_sIIa_ini+(($V$3-0.25)/0.75)*c_rdtf_sIIa_rem_ind_yr,IF($V$3<IF(Scenarios!$D$16=1,5,2),c_rdtf_sIIa_ini+c_rdtf_sIIa_rem_ind_yr+($V$3-1)*c_rdtf_sIIa_subyrs,c_rdtf_sIIa_ini+c_rdtf_sIIa_rem_ind_yr+c_rdtf_sIIa_subyrs))), IF($V$3<0.25,c_rdtf_sIIb_ini,IF($V$3<1,c_rdtf_sIIb_ini+(($V$3-0.25)/0.75)*c_rdtf_sIIb_rem_ind_yr,IF($V$3<IF(Scenarios!$D$16=1,5,2),c_rdtf_sIIb_ini+c_rdtf_sIIb_rem_ind_yr+($V$3-1)*c_rdtf_sIIb_subyrs,c_rdtf_sIIb_ini+c_rdtf_sIIb_rem_ind_yr+c_rdtf_sIIb_subyrs))), IF($V$3<0.25,c_rdtf_sIIIa_ini,IF($V$3<1,c_rdtf_sIIIa_ini+(($V$3-0.25)/0.75)*c_rdtf_sIIIa_rem_ind_yr,IF($V$3<IF(Scenarios!$D$16=1,5,2),c_rdtf_sIIIa_ini+c_rdtf_sIIIa_rem_ind_yr+($V$3-1)*c_rdtf_sIIIa_subyrs,c_rdtf_sIIIa_ini+c_rdtf_sIIIa_rem_ind_yr+c_rdtf_sIIIa_subyrs))), IF($V$3<0.25,c_rdtf_sIIIb_ini,IF($V$3<1,c_rdtf_sIIIb_ini+(($V$3-0.25)/0.75)*c_rdtf_sIIIb_rem_ind_yr,IF($V$3<IF(Scenarios!$D$16=1,5,2),c_rdtf_sIIIb_ini+c_rdtf_sIIIb_rem_ind_yr+($V$3-1)*c_rdtf_sIIIb_subyrs,c_rdtf_sIIIb_ini+c_rdtf_sIIIb_rem_ind_yr+c_rdtf_sIIIb_subyrs))), IF($V$3<0.25,c_rdtf_sIV_ini,IF($V$3<1,c_rdtf_sIV_ini+(($V$3-0.25)/0.75)*c_rdtf_sIV_rem_ind_yr,IF($V$3<IF(Scenarios!$D$16=1,5,2),c_rdtf_sIV_ini+c_rdtf_sIV_rem_ind_yr+($V$3-1)*c_rdtf_sIV_subyrs,c_rdtf_sIV_ini+c_rdtf_sIV_rem_ind_yr+c_rdtf_sIV_subyrs)))), IF($B20=3,c_false_pos,0)) *(1+d_costs)^(-$A20) -> 0 | V20: 0 | W20: 0 | X20: 0 | Y20: 0 | Z20: 0 | AA20: 0 | AB20: N/a | AC20: FALSE | AG20: =VLOOKUP(Logic!$A$34,TBL_EVENT,VLOOKUP($E20,TBL_STATE,3,FALSE),FALSE) -> FALSE | AH20: 115.0568878 | AI20: =Logic!$A$34 -> 6 | AJ20: 0 | AK20: =VLOOKUP(Logic!$A$35,TBL_EVENT,VLOOKUP($E20,TBL_STATE,3,FALSE),FALSE) -> FALSE | AL20: 200 | AM20: =Logic!$A$35 -> 7 | AN20: 0 | AO20: =VLOOKUP(Logic!$A$36,TBL_EVENT,VLOOKUP($E20,TBL_STATE,3,FALSE),FALSE) -> FALSE | AP20: 200 | AQ20: =Logic!$A$36 -> 8 | AR20: 0 | AS20: =VLOOKUP(Logic!$A$37,TBL_EVENT,VLOOKUP($E20,TBL_STATE,3,FALSE),FALSE) -> FALSE | AT20: 200 | AU20: =Logic!$A$37 -> 9 | AV20: 0 | AW20: =VLOOKUP(Logic!$A$38,TBL_EVENT,VLOOKUP($E20,TBL_STATE,3,FALSE),FALSE) -> FALSE | AX20: 66.57641635 | AY20: =Logic!$A$38 -> 10 | AZ20: 0 | BE20: 200 | BF20: 200 | BG20: 200 | BH20: 200 | BI20: 200 | BJ20: 200 | BL20: 0 | BM20: 6 | BN20: 7 | BO20: 8 | BP20: 9 | BQ20: 10 | BS20: 0 | BT20: 0 | BU20: 0 | BV20: 0 | BW20: 0 | BX20: 0
A21: 1203.470125 | B21: 100 | C21: FALSE | D21: FALSE | E21: FALSE | F21: FALSE | G21: 0 | H21: 100 | I21: FALSE | J21: 200 | K21: N/a | L21: FALSE | M21: =IF($H21=8,$A$3+SUM($J14:$J21),FALSE) -> FALSE | N21: 0 | O21: FALSE | P21: 66.57641635 | Q21: FALSE | R21: 1 | S21: N/a | T21: 0 | U21: =IF($O21,CHOOSE($O21, IF($V$3<0.25,c_rdtf_sIa_ini,IF($V$3<1,c_rdtf_sIa_ini+(($V$3-0.25)/0.75)*c_rdtf_sIa_rem_ind_yr,IF($V$3<IF(Scenarios!$D$16=1,5,2),c_rdtf_sIa_ini+c_rdtf_sIa_rem_ind_yr+($V$3-1)*c_rdtf_sIa_subyrs,c_rdtf_sIa_ini+c_rdtf_sIa_rem_ind_yr+c_rdtf_sIa_subyrs))), IF($V$3<0.25,c_rdtf_sIb_ini,IF($V$3<1,c_rdtf_sIb_ini+(($V$3-0.25)/0.75)*c_rdtf_sIb_rem_ind_yr,IF($V$3<IF(Scenarios!$D$16=1,5,2),c_rdtf_sIb_ini+c_rdtf_sIb_rem_ind_yr+($V$3-1)*c_rdtf_sIb_subyrs,c_rdtf_sIb_ini+c_rdtf_sIb_rem_ind_yr+c_rdtf_sIb_subyrs))), IF($V$3<0.25,c_rdtf_sIIa_ini,IF($V$3<1,c_rdtf_sIIa_ini+(($V$3-0.25)/0.75)*c_rdtf_sIIa_rem_ind_yr,IF($V$3<IF(Scenarios!$D$16=1,5,2),c_rdtf_sIIa_ini+c_rdtf_sIIa_rem_ind_yr+($V$3-1)*c_rdtf_sIIa_subyrs,c_rdtf_sIIa_ini+c_rdtf_sIIa_rem_ind_yr+c_rdtf_sIIa_subyrs))), IF($V$3<0.25,c_rdtf_sIIb_ini,IF($V$3<1,c_rdtf_sIIb_ini+(($V$3-0.25)/0.75)*c_rdtf_sIIb_rem_ind_yr,IF($V$3<IF(Scenarios!$D$16=1,5,2),c_rdtf_sIIb_ini+c_rdtf_sIIb_rem_ind_yr+($V$3-1)*c_rdtf_sIIb_subyrs,c_rdtf_sIIb_ini+c_rdtf_sIIb_rem_ind_yr+c_rdtf_sIIb_subyrs))), IF($V$3<0.25,c_rdtf_sIIIa_ini,IF($V$3<1,c_rdtf_sIIIa_ini+(($V$3-0.25)/0.75)*c_rdtf_sIIIa_rem_ind_yr,IF($V$3<IF(Scenarios!$D$16=1,5,2),c_rdtf_sIIIa_ini+c_rdtf_sIIIa_rem_ind_yr+($V$3-1)*c_rdtf_sIIIa_subyrs,c_rdtf_sIIIa_ini+c_rdtf_sIIIa_rem_ind_yr+c_rdtf_sIIIa_subyrs))), IF($V$3<0.25,c_rdtf_sIIIb_ini,IF($V$3<1,c_rdtf_sIIIb_ini+(($V$3-0.25)/0.75)*c_rdtf_sIIIb_rem_ind_yr,IF($V$3<IF(Scenarios!$D$16=1,5,2),c_rdtf_sIIIb_ini+c_rdtf_sIIIb_rem_ind_yr+($V$3-1)*c_rdtf_sIIIb_subyrs,c_rdtf_sIIIb_ini+c_rdtf_sIIIb_rem_ind_yr+c_rdtf_sIIIb_subyrs))), IF($V$3<0.25,c_rdtf_sIV_ini,IF($V$3<1,c_rdtf_sIV_ini+(($V$3-0.25)/0.75)*c_rdtf_sIV_rem_ind_yr,IF($V$3<IF(Scenarios!$D$16=1,5,2),c_rdtf_sIV_ini+c_rdtf_sIV_rem_ind_yr+($V$3-1)*c_rdtf_sIV_subyrs,c_rdtf_sIV_ini+c_rdtf_sIV_rem_ind_yr+c_rdtf_sIV_subyrs)))), IF($B21=3,c_false_pos,0)) *(1+d_costs)^(-$A21) -> 0 | V21: 0 | W21: 0 | X21: 0 | Y21: 0 | Z21: 0 | AA21: 0 | AB21: N/a | AC21: FALSE | AG21: =VLOOKUP(Logic!$A$34,TBL_EVENT,VLOOKUP($E21,TBL_STATE,3,FALSE),FALSE) -> FALSE | AH21: 115.0568878 | AI21: =Logic!$A$34 -> 6 | AJ21: 0 | AK21: =VLOOKUP(Logic!$A$35,TBL_EVENT,VLOOKUP($E21,TBL_STATE,3,FALSE),FALSE) -> FALSE | AL21: 200 | AM21: =Logic!$A$35 -> 7 | AN21: 0 | AO21: =VLOOKUP(Logic!$A$36,TBL_EVENT,VLOOKUP($E21,TBL_STATE,3,FALSE),FALSE) -> FALSE | AP21: 200 | AQ21: =Logic!$A$36 -> 8 | AR21: 0 | AS21: =VLOOKUP(Logic!$A$37,TBL_EVENT,VLOOKUP($E21,TBL_STATE,3,FALSE),FALSE) -> FALSE | AT21: 200 | AU21: =Logic!$A$37 -> 9 | AV21: 0 | AW21: =VLOOKUP(Logic!$A$38,TBL_EVENT,VLOOKUP($E21,TBL_STATE,3,FALSE),FALSE) -> FALSE | AX21: 66.57641635 | AY21: =Logic!$A$38 -> 10 | AZ21: 0 | BE21: 200 | BF21: 200 | BG21: 200 | BH21: 200 | BI21: 200 | BJ21: 200 | BL21: 0 | BM21: 6 | BN21: 7 | BO21: 8 | BP21: 9 | BQ21: 10 | BS21: 0 | BT21: 0 | BU21: 0 | BV21: 0 | BW21: 0 | BX21: 0
A22: 1403.470125 | B22: 100 | C22: FALSE | D22: FALSE | E22: FALSE | F22: FALSE | G22: =IF($H21<6,1,0)+$G21 -> 0 | H22: 100 | I22: FALSE | J22: 200 | K22: N/a | L22: FALSE | M22: =IF($H22=8,$A$3+SUM($J15:$J22),FALSE) -> FALSE | N22: 0 | O22: FALSE | P22: 66.57641635 | Q22: =IF($H22=10,IF($F22="Pre*",TRUE,FALSE),FALSE) -> FALSE | R22: 1 | S22: N/a | T22: 0 | U22: =IF($O22,CHOOSE($O22, IF($V$3<0.25,c_rdtf_sIa_ini,IF($V$3<1,c_rdtf_sIa_ini+(($V$3-0.25)/0.75)*c_rdtf_sIa_rem_ind_yr,IF($V$3<IF(Scenarios!$D$16=1,5,2),c_rdtf_sIa_ini+c_rdtf_sIa_rem_ind_yr+($V$3-1)*c_rdtf_sIa_subyrs,c_rdtf_sIa_ini+c_rdtf_sIa_rem_ind_yr+c_rdtf_sIa_subyrs))), IF($V$3<0.25,c_rdtf_sIb_ini,IF($V$3<1,c_rdtf_sIb_ini+(($V$3-0.25)/0.75)*c_rdtf_sIb_rem_ind_yr,IF($V$3<IF(Scenarios!$D$16=1,5,2),c_rdtf_sIb_ini+c_rdtf_sIb_rem_ind_yr+($V$3-1)*c_rdtf_sIb_subyrs,c_rdtf_sIb_ini+c_rdtf_sIb_rem_ind_yr+c_rdtf_sIb_subyrs))), IF($V$3<0.25,c_rdtf_sIIa_ini,IF($V$3<1,c_rdtf_sIIa_ini+(($V$3-0.25)/0.75)*c_rdtf_sIIa_rem_ind_yr,IF($V$3<IF(Scenarios!$D$16=1,5,2),c_rdtf_sIIa_ini+c_rdtf_sIIa_rem_ind_yr+($V$3-1)*c_rdtf_sIIa_subyrs,c_rdtf_sIIa_ini+c_rdtf_sIIa_rem_ind_yr+c_rdtf_sIIa_subyrs))), IF($V$3<0.25,c_rdtf_sIIb_ini,IF($V$3<1,c_rdtf_sIIb_ini+(($V$3-0.25)/0.75)*c_rdtf_sIIb_rem_ind_yr,IF($V$3<IF(Scenarios!$D$16=1,5,2),c_rdtf_sIIb_ini+c_rdtf_sIIb_rem_ind_yr+($V$3-1)*c_rdtf_sIIb_subyrs,c_rdtf_sIIb_ini+c_rdtf_sIIb_rem_ind_yr+c_rdtf_sIIb_subyrs))), IF($V$3<0.25,c_rdtf_sIIIa_ini,IF($V$3<1,c_rdtf_sIIIa_ini+(($V$3-0.25)/0.75)*c_rdtf_sIIIa_rem_ind_yr,IF($V$3<IF(Scenarios!$D$16=1,5,2),c_rdtf_sIIIa_ini+c_rdtf_sIIIa_rem_ind_yr+($V$3-1)*c_rdtf_sIIIa_subyrs,c_rdtf_sIIIa_ini+c_rdtf_sIIIa_rem_ind_yr+c_rdtf_sIIIa_subyrs))), IF($V$3<0.25,c_rdtf_sIIIb_ini,IF($V$3<1,c_rdtf_sIIIb_ini+(($V$3-0.25)/0.75)*c_rdtf_sIIIb_rem_ind_yr,IF($V$3<IF(Scenarios!$D$16=1,5,2),c_rdtf_sIIIb_ini+c_rdtf_sIIIb_rem_ind_yr+($V$3-1)*c_rdtf_sIIIb_subyrs,c_rdtf_sIIIb_ini+c_rdtf_sIIIb_rem_ind_yr+c_rdtf_sIIIb_subyrs))), IF($V$3<0.25,c_rdtf_sIV_ini,IF($V$3<1,c_rdtf_sIV_ini+(($V$3-0.25)/0.75)*c_rdtf_sIV_rem_ind_yr,IF($V$3<IF(Scenarios!$D$16=1,5,2),c_rdtf_sIV_ini+c_rdtf_sIV_rem_ind_yr+($V$3-1)*c_rdtf_sIV_subyrs,c_rdtf_sIV_ini+c_rdtf_sIV_rem_ind_yr+c_rdtf_sIV_subyrs)))), IF($B22=3,c_false_pos,0)) *(1+d_costs)^(-$A22) -> 0 | V22: 0 | W22: 0 | X22: 0 | Y22: 0 | Z22: 0 | AA22: 0 | AB22: N/a | AC22: FALSE | AG22: =VLOOKUP(Logic!$A$34,TBL_EVENT,VLOOKUP($E22,TBL_STATE,3,FALSE),FALSE) -> FALSE | AH22: 115.0568878 | AI22: =Logic!$A$34 -> 6 | AJ22: 0 | AK22: =VLOOKUP(Logic!$A$35,TBL_EVENT,VLOOKUP($E22,TBL_STATE,3,FALSE),FALSE) -> FALSE | AL22: 200 | AM22: =Logic!$A$35 -> 7 | AN22: 0 | AO22: =VLOOKUP(Logic!$A$36,TBL_EVENT,VLOOKUP($E22,TBL_STATE,3,FALSE),FALSE) -> FALSE | AP22: 200 | AQ22: =Logic!$A$36 -> 8 | AR22: 0 | AS22: =VLOOKUP(Logic!$A$37,TBL_EVENT,VLOOKUP($E22,TBL_STATE,3,FALSE),FALSE) -> FALSE | AT22: 200 | AU22: =Logic!$A$37 -> 9 | AV22: 0 | AW22: =VLOOKUP(Logic!$A$38,TBL_EVENT,VLOOKUP($E22,TBL_STATE,3,FALSE),FALSE) -> FALSE | AX22: 66.57641635 | AY22: =Logic!$A$38 -> 10 | AZ22: 0 | BE22: 200 | BF22: 200 | BG22: 200 | BH22: 200 | BI22: 200 | BJ22: 200 | BL22: 0 | BM22: 6 | BN22: 7 | BO22: 8 | BP22: 9 | BQ22: 10 | BS22: 0 | BT22: 0 | BU22: 0 | BV22: 0 | BW22: 0 | BX22: 0
A23: 1603.470125 | B23: 100 | C23: FALSE | D23: FALSE | E23: FALSE | F23: FALSE | G23: 0 | H23: 100 | I23: FALSE | J23: 200 | K23: N/a | L23: FALSE | M23: =IF($H23=8,$A$3+SUM($J16:$J23),FALSE) -> FALSE | N23: 0 | O23: FALSE | P23: 66.57641635 | Q23: FALSE | R23: 1 | S23: N/a | T23: 0 | U23: =IF($O23,CHOOSE($O23, IF($V$3<0.25,c_rdtf_sIa_ini,IF($V$3<1,c_rdtf_sIa_ini+(($V$3-0.25)/0.75)*c_rdtf_sIa_rem_ind_yr,IF($V$3<IF(Scenarios!$D$16=1,5,2),c_rdtf_sIa_ini+c_rdtf_sIa_rem_ind_yr+($V$3-1)*c_rdtf_sIa_subyrs,c_rdtf_sIa_ini+c_rdtf_sIa_rem_ind_yr+c_rdtf_sIa_subyrs))), IF($V$3<0.25,c_rdtf_sIb_ini,IF($V$3<1,c_rdtf_sIb_ini+(($V$3-0.25)/0.75)*c_rdtf_sIb_rem_ind_yr,IF($V$3<IF(Scenarios!$D$16=1,5,2),c_rdtf_sIb_ini+c_rdtf_sIb_rem_ind_yr+($V$3-1)*c_rdtf_sIb_subyrs,c_rdtf_sIb_ini+c_rdtf_sIb_rem_ind_yr+c_rdtf_sIb_subyrs))), IF($V$3<0.25,c_rdtf_sIIa_ini,IF($V$3<1,c_rdtf_sIIa_ini+(($V$3-0.25)/0.75)*c_rdtf_sIIa_rem_ind_yr,IF($V$3<IF(Scenarios!$D$16=1,5,2),c_rdtf_sIIa_ini+c_rdtf_sIIa_rem_ind_yr+($V$3-1)*c_rdtf_sIIa_subyrs,c_rdtf_sIIa_ini+c_rdtf_sIIa_rem_ind_yr+c_rdtf_sIIa_subyrs))), IF($V$3<0.25,c_rdtf_sIIb_ini,IF($V$3<1,c_rdtf_sIIb_ini+(($V$3-0.25)/0.75)*c_rdtf_sIIb_rem_ind_yr,IF($V$3<IF(Scenarios!$D$16=1,5,2),c_rdtf_sIIb_ini+c_rdtf_sIIb_rem_ind_yr+($V$3-1)*c_rdtf_sIIb_subyrs,c_rdtf_sIIb_ini+c_rdtf_sIIb_rem_ind_yr+c_rdtf_sIIb_subyrs))), IF($V$3<0.25,c_rdtf_sIIIa_ini,IF($V$3<1,c_rdtf_sIIIa_ini+(($V$3-0.25)/0.75)*c_rdtf_sIIIa_rem_ind_yr,IF($V$3<IF(Scenarios!$D$16=1,5,2),c_rdtf_sIIIa_ini+c_rdtf_sIIIa_rem_ind_yr+($V$3-1)*c_rdtf_sIIIa_subyrs,c_rdtf_sIIIa_ini+c_rdtf_sIIIa_rem_ind_yr+c_rdtf_sIIIa_subyrs))), IF($V$3<0.25,c_rdtf_sIIIb_ini,IF($V$3<1,c_rdtf_sIIIb_ini+(($V$3-0.25)/0.75)*c_rdtf_sIIIb_rem_ind_yr,IF($V$3<IF(Scenarios!$D$16=1,5,2),c_rdtf_sIIIb_ini+c_rdtf_sIIIb_rem_ind_yr+($V$3-1)*c_rdtf_sIIIb_subyrs,c_rdtf_sIIIb_ini+c_rdtf_sIIIb_rem_ind_yr+c_rdtf_sIIIb_subyrs))), IF($V$3<0.25,c_rdtf_sIV_ini,IF($V$3<1,c_rdtf_sIV_ini+(($V$3-0.25)/0.75)*c_rdtf_sIV_rem_ind_yr,IF($V$3<IF(Scenarios!$D$16=1,5,2),c_rdtf_sIV_ini+c_rdtf_sIV_rem_ind_yr+($V$3-1)*c_rdtf_sIV_subyrs,c_rdtf_sIV_ini+c_rdtf_sIV_rem_ind_yr+c_rdtf_sIV_subyrs)))), IF($B23=3,c_false_pos,0)) *(1+d_costs)^(-$A23) -> 0 | V23: 0 | W23: 0 | X23: 0 | Y23: 0 | Z23: 0 | AA23: 0 | AB23: N/a | AC23: FALSE | AG23: =VLOOKUP(Logic!$A$34,TBL_EVENT,VLOOKUP($E23,TBL_STATE,3,FALSE),FALSE) -> FALSE | AH23: 115.0568878 | AI23: =Logic!$A$34 -> 6 | AJ23: 0 | AK23: =VLOOKUP(Logic!$A$35,TBL_EVENT,VLOOKUP($E23,TBL_STATE,3,FALSE),FALSE) -> FALSE | AL23: 200 | AM23: =Logic!$A$35 -> 7 | AN23: 0 | AO23: =VLOOKUP(Logic!$A$36,TBL_EVENT,VLOOKUP($E23,TBL_STATE,3,FALSE),FALSE) -> FALSE | AP23: 200 | AQ23: =Logic!$A$36 -> 8 | AR23: 0 | AS23: =VLOOKUP(Logic!$A$37,TBL_EVENT,VLOOKUP($E23,TBL_STATE,3,FALSE),FALSE) -> FALSE | AT23: 200 | AU23: =Logic!$A$37 -> 9 | AV23: 0 | AW23: =VLOOKUP(Logic!$A$38,TBL_EVENT,VLOOKUP($E23,TBL_STATE,3,FALSE),FALSE) -> FALSE | AX23: 66.57641635 | AY23: =Logic!$A$38 -> 10 | AZ23: 0 | BE23: 200 | BF23: 200 | BG23: 200 | BH23: 200 | BI23: 200 | BJ23: 200 | BL23: 0 | BM23: 6 | BN23: 7 | BO23: 8 | BP23: 9 | BQ23: 10 | BS23: 0 | BT23: 0 | BU23: 0 | BV23: 0 | BW23: 0 | BX23: 0
A24: 1803.470125
A25: (S)-Single screen, UKLS | Q25: Scenario active and lived >10 yrs= | R25: =IF($AR$3>10,IF(Scenarios!$D$21=1,1,0),0) -> 0
A26: 0 | B26: 0 | C26: =VLOOKUP($B26,TBL_EVENT,2,FALSE) -> Enter model | D26: =$A$3+$A26 -> 63.10629124 | E26: =$D$3 -> A | F26: =$E$3 -> No lung cancer | G26: 0 | H26: =INDEX($BL26:$BQ26,MATCH($J26,$BE26:$BJ26,0)) -> 5 | I26: =VLOOKUP($H26,TBL_EVENT,2,FALSE) -> LDCT screening - TN | J26: =MIN($BE26:$BJ26) -> 0.07831235998 | K26: =IF($H26=2,VLOOKUP($E26,TBL_STATE,7),FALSE) -> FALSE | L26: =IF($K26,IF($K26<>$Q$3,TRUE)) -> FALSE | M26: =IF((SUMIFS($A27,$H26,2)+SUMIFS($A27,$H26,8)+$A$3)=$A$3,FALSE,$A$3+$A27) -> FALSE | N26: =IF($O$3,IF($M26,$O$3-$M26),IF($M26,$U$3-$M26)) -> FALSE | O26: =VLOOKUP($E26,TBL_STATE,6) -> FALSE | P26: =IF($H26=9,($A$3+$A27),$I$3) -> 66.57641635 | Q26: =IF($H26=10,IF($F26="Pre*",TRUE,FALSE),FALSE) -> FALSE | R26: =IF($R$25=1,IF($R25=1,IF($A26<10,IF($A27>10,(1-(($A27-10)/$J26)),1),0),0),1) -> 1 | S26: N/a | T26: =IF($G26>$G25,c_LDCT+c_scrn_nurse,0)*IF($R26=0,0,1)*(1+d_costs)^(-$A26) -> 0 | U26: =IF($O26,CHOOSE($O26, IF($AQ$3<0.25,c_rdtf_sIa_ini,IF($AQ$3<1,c_rdtf_sIa_ini+(($AQ$3-0.25)/0.75)*c_rdtf_sIa_rem_ind_yr,IF($AQ$3<IF(Scenarios!$D$16=1,5,2),c_rdtf_sIa_ini+c_rdtf_sIa_rem_ind_yr+($AQ$3-1)*c_rdtf_sIa_subyrs,c_rdtf_sIa_ini+c_rdtf_sIa_rem_ind_yr+c_rdtf_sIa_subyrs))), IF($AQ$3<0.25,c_rdtf_sIb_ini,IF($AQ$3<1,c_rdtf_sIb_ini+(($AQ$3-0.25)/0.75)*c_rdtf_sIb_rem_ind_yr,IF($AQ$3<IF(Scenarios!$D$16=1,5,2),c_rdtf_sIb_ini+c_rdtf_sIb_rem_ind_yr+($AQ$3-1)*c_rdtf_sIb_subyrs,c_rdtf_sIb_ini+c_rdtf_sIb_rem_ind_yr+c_rdtf_sIb_subyrs))), IF($AQ$3<0.25,c_rdtf_sIIa_ini,IF($AQ$3<1,c_rdtf_sIIa_ini+(($AQ$3-0.25)/0.75)*c_rdtf_sIIa_rem_ind_yr,IF($AQ$3<IF(Scenarios!$D$16=1,5,2),c_rdtf_sIIa_ini+c_rdtf_sIIa_rem_ind_yr+($AQ$3-1)*c_rdtf_sIIa_subyrs,c_rdtf_sIIa_ini+c_rdtf_sIIa_rem_ind_yr+c_rdtf_sIIa_subyrs))), IF($AQ$3<0.25,c_rdtf_sIIb_ini,IF($AQ$3<1,c_rdtf_sIIb_ini+(($AQ$3-0.25)/0.75)*c_rdtf_sIIb_rem_ind_yr,IF($AQ$3<IF(Scenarios!$D$16=1,5,2),c_rdtf_sIIb_ini+c_rdtf_sIIb_rem_ind_yr+($AQ$3-1)*c_rdtf_sIIb_subyrs,c_rdtf_sIIb_ini+c_rdtf_sIIb_rem_ind_yr+c_rdtf_sIIb_subyrs))), IF($AQ$3<0.25,c_rdtf_sIIIa_ini,IF($AQ$3<1,c_rdtf_sIIIa_ini+(($AQ$3-0.25)/0.75)*c_rdtf_sIIIa_rem_ind_yr,IF($AQ$3<IF(Scenarios!$D$16=1,5,2),c_rdtf_sIIIa_ini+c_rdtf_sIIIa_rem_ind_yr+($AQ$3-1)*c_rdtf_sIIIa_subyrs,c_rdtf_sIIIa_ini+c_rdtf_sIIIa_rem_ind_yr+c_rdtf_sIIIa_subyrs))), IF($AQ$3<0.25,c_rdtf_sIIIb_ini,IF($AQ$3<1,c_rdtf_sIIIb_ini+(($AQ$3-0.25)/0.75)*c_rdtf_sIIIb_rem_ind_yr,IF($AQ$3<IF(Scenarios!$D$16=1,5,2),c_rdtf_sIIIb_ini+c_rdtf_sIIIb_rem_ind_yr+($AQ$3-1)*c_rdtf_sIIIb_subyrs,c_rdtf_sIIIb_ini+c_rdtf_sIIIb_rem_ind_yr+c_rdtf_sIIIb_subyrs))), IF($AQ$3<0.25,c_rdtf_sIV_ini,IF($AQ$3<1,c_rdtf_sIV_ini+(($AQ$3-0.25)/0.75)*c_rdtf_sIV_rem_ind_yr,IF($AQ$3<IF(Scenarios!$D$16=1,5,2),c_rdtf_sIV_ini+c_rdtf_sIV_rem_ind_yr+($AQ$3-1)*c_rdtf_sIV_subyrs,c_rdtf_sIV_ini+c_rdtf_sIV_rem_ind_yr+c_rdtf_sIV_subyrs)))), IF($B26=3,c_false_pos,0)) *(1+d_costs)^(-$A26) -> 0 | V26: =IF($B26=9,c_eol_lung,0)*IF($R26=1,1,0)*(1+d_costs)^(-$A26) -> 0 | W26: =VLOOKUP($E26,TBL_STATE,IF($B$3=0,5,4)) -> 0.7816447302 | X26: =IF($J26=t_no_event,0,(INDEX($BS26:$BX26,MATCH($J26,$BE26:$BJ26,0)))) -> -0.0003846153846 | Y26: =IF($J26=t_no_event,0,($X26*(1+d_benefits)^(-$A26))) -> -0.0003846153846 | Z26: =(($J26*$W26)*$R26)+$X26 -> 0.06082782811 | AA26: =$Y26+$W26*(EXP(-LN(1+d_benefits)*$A26)-EXP(-LN(1+d_benefits)*$A27))/LN(1+d_benefits) -> 0.0607454472 | AB26: N/a | AC26: =VLOOKUP(Logic!$A$29,TBL_EVENT,VLOOKUP($E26,TBL_STATE,3,FALSE),FALSE) -> TRUE | AD26: =_xlfn.LOGNORM.INV(RAND(),mu_ind_scrn_delay,sig_ind_scrn_delay) -> 0.07831235998 | AE26: =IF($E26=Logic!$A$7,IF(VLOOKUP($G26+1,TBL_rand_scrn_rnd,2,FALSE)<spec_LDCT,Logic!$A$33,Logic!$A$31),IF(VLOOKUP($G26+1,TBL_rand_scrn_rnd,3,FALSE)<sens_LDCT,Logic!$A$30,Logic!$A$32)) -> 5 | AF26: =IF(AE26<6,IF(AE26=3,(u_dis_scrn_anx*(t_dis_scrn_anx/52))+(u_dis_fp*(t_dis_fp/12)),u_dis_scrn_anx*(t_dis_scrn_anx/52)),0) -> -0.0003846153846 | AG26: =VLOOKUP(Logic!$A$34,TBL_EVENT,VLOOKUP($E26,TBL_STATE,3,FALSE),FALSE) -> TRUE | AH26: =$H$3-$D26 -> 51.95059658 | AI26: =Logic!$A$34 -> 6 | AJ26: 0 | AK26: =VLOOKUP(Logic!$A$35,TBL_EVENT,VLOOKUP($E26,TBL_STATE,3,FALSE),FALSE) -> FALSE | AL26: =VLOOKUP($E26,TBL_pre_cl_prog,6) -> 200 | AM26: =Logic!$A$35 -> 7 | AN26: 0 | AO26: =VLOOKUP(Logic!$A$36,TBL_EVENT,VLOOKUP($E26,TBL_STATE,3,FALSE),FALSE) -> FALSE | AP26: =VLOOKUP($E26,TBL_cl_pres,6) -> 200 | AQ26: =Logic!$A$36 -> 8 | AR26: 0 | AS26: =VLOOKUP(Logic!$A$37,TBL_EVENT,VLOOKUP($E26,TBL_STATE,3,FALSE),FALSE) -> FALSE | AT26: =t_no_event -> 200 | AU26: =Logic!$A$37 -> 9 | AV26: 0 | AW26: =VLOOKUP(Logic!$A$38,TBL_EVENT,VLOOKUP($E26,TBL_STATE,3,FALSE),FALSE) -> TRUE | AX26: =$I$3-$D26 -> 3.470125118 | AY26: =Logic!$A$38 -> 10 | AZ26: 0 | BE26: =IF($AC26,$AD26,t_no_event) -> 0.07831235998 | BF26: =IF($AG26,$AH26,t_no_event) -> 51.95059658 | BG26: =IF($AK26,$AL26,t_no_event) -> 200 | BH26: =IF($AO26,$AP26,t_no_event) -> 200 | BI26: =IF($AS26,$AT26,t_no_event) -> 200 | BJ26: =IF($AW26,$AX26,t_no_event) -> 3.470125118 | BL26: =$AE26 -> 5 | BM26: =$AI26 -> 6 | BN26: =$AM26 -> 7 | BO26: =$AQ26 -> 8 | BP26: =$AU26 -> 9 | BQ26: =$AY26 -> 10 | BS26: =$AF26 -> -0.0003846153846 | BT26: =$AJ26 -> 0 | BU26: =$AN26 -> 0 | BV26: =$AR26 -> 0 | BW26: =$AV26 -> 0 | BX26: =$AZ26 -> 0
A27: =$A26+$J26 -> 0.07831235998 | B27: =$H26 -> 5 | C27: =$I26 -> LDCT screening - TN | D27: =IF($E26="P",FALSE,IF(D26,$A$3+$A27,FALSE)) -> 63.1846036 | E27: =VLOOKUP($B27,TBL_EVENT_OUTCOME,VLOOKUP($E26,TBL_STATE,3,FALSE),FALSE) -> A | F27: =VLOOKUP($E27,TBL_STATE,2) -> No lung cancer | G27: =IF($H26<6,1,0)+$G26 -> 1 | H27: =IF($H26<9,INDEX($BL27:$BQ27,MATCH($J27,$BE27:$BJ27,0)),100) -> 10 | I27: =IF($H26>8,FALSE,VLOOKUP($H27,TBL_EVENT,2,FALSE)) -> Non-lung cancer death | J27: 3.391812758 | K27: FALSE | L27: FALSE | M27: FALSE | N27: =IF($O$3,IF($M27,$O$3-$M27),IF($M27,$U$3-$M27)) -> FALSE | O27: FALSE | P27: 66.57641635 | Q27: =IF($H27=10,IF($F27="Pre*",TRUE,FALSE),FALSE) -> FALSE | R27: 1 | S27: N/a | T27: 104.7715187 | U27: =IF($O27,CHOOSE($O27, IF($AQ$3<0.25,c_rdtf_sIa_ini,IF($AQ$3<1,c_rdtf_sIa_ini+(($AQ$3-0.25)/0.75)*c_rdtf_sIa_rem_ind_yr,IF($AQ$3<IF(Scenarios!$D$16=1,5,2),c_rdtf_sIa_ini+c_rdtf_sIa_rem_ind_yr+($AQ$3-1)*c_rdtf_sIa_subyrs,c_rdtf_sIa_ini+c_rdtf_sIa_rem_ind_yr+c_rdtf_sIa_subyrs))), IF($AQ$3<0.25,c_rdtf_sIb_ini,IF($AQ$3<1,c_rdtf_sIb_ini+(($AQ$3-0.25)/0.75)*c_rdtf_sIb_rem_ind_yr,IF($AQ$3<IF(Scenarios!$D$16=1,5,2),c_rdtf_sIb_ini+c_rdtf_sIb_rem_ind_yr+($AQ$3-1)*c_rdtf_sIb_subyrs,c_rdtf_sIb_ini+c_rdtf_sIb_rem_ind_yr+c_rdtf_sIb_subyrs))), IF($AQ$3<0.25,c_rdtf_sIIa_ini,IF($AQ$3<1,c_rdtf_sIIa_ini+(($AQ$3-0.25)/0.75)*c_rdtf_sIIa_rem_ind_yr,IF($AQ$3<IF(Scenarios!$D$16=1,5,2),c_rdtf_sIIa_ini+c_rdtf_sIIa_rem_ind_yr+($AQ$3-1)*c_rdtf_sIIa_subyrs,c_rdtf_sIIa_ini+c_rdtf_sIIa_rem_ind_yr+c_rdtf_sIIa_subyrs))), IF($AQ$3<0.25,c_rdtf_sIIb_ini,IF($AQ$3<1,c_rdtf_sIIb_ini+(($AQ$3-0.25)/0.75)*c_rdtf_sIIb_rem_ind_yr,IF($AQ$3<IF(Scenarios!$D$16=1,5,2),c_rdtf_sIIb_ini+c_rdtf_sIIb_rem_ind_yr+($AQ$3-1)*c_rdtf_sIIb_subyrs,c_rdtf_sIIb_ini+c_rdtf_sIIb_rem_ind_yr+c_rdtf_sIIb_subyrs))), IF($AQ$3<0.25,c_rdtf_sIIIa_ini,IF($AQ$3<1,c_rdtf_sIIIa_ini+(($AQ$3-0.25)/0.75)*c_rdtf_sIIIa_rem_ind_yr,IF($AQ$3<IF(Scenarios!$D$16=1,5,2),c_rdtf_sIIIa_ini+c_rdtf_sIIIa_rem_ind_yr+($AQ$3-1)*c_rdtf_sIIIa_subyrs,c_rdtf_sIIIa_ini+c_rdtf_sIIIa_rem_ind_yr+c_rdtf_sIIIa_subyrs))), IF($AQ$3<0.25,c_rdtf_sIIIb_ini,IF($AQ$3<1,c_rdtf_sIIIb_ini+(($AQ$3-0.25)/0.75)*c_rdtf_sIIIb_rem_ind_yr,IF($AQ$3<IF(Scenarios!$D$16=1,5,2),c_rdtf_sIIIb_ini+c_rdtf_sIIIb_rem_ind_yr+($AQ$3-1)*c_rdtf_sIIIb_subyrs,c_rdtf_sIIIb_ini+c_rdtf_sIIIb_rem_ind_yr+c_rdtf_sIIIb_subyrs))), IF($AQ$3<0.25,c_rdtf_sIV_ini,IF($AQ$3<1,c_rdtf_sIV_ini+(($AQ$3-0.25)/0.75)*c_rdtf_sIV_rem_ind_yr,IF($AQ$3<IF(Scenarios!$D$16=1,5,2),c_rdtf_sIV_ini+c_rdtf_sIV_rem_ind_yr+($AQ$3-1)*c_rdtf_sIV_subyrs,c_rdtf_sIV_ini+c_rdtf_sIV_rem_ind_yr+c_rdtf_sIV_subyrs)))), IF($B27=3,c_false_pos,0)) *(1+d_costs)^(-$A27) -> 0 | V27: 0 | W27: 0.7816447302 | X27: 0 | Y27: 0 | Z27: 2.651192568 | AA27: 2.495629831 | AB27: N/a | AC27: =IF($G27<1,VLOOKUP(Logic!$A$29,TBL_EVENT,VLOOKUP($E27,TBL_STATE,3,FALSE),FALSE),FALSE) -> FALSE | AD27: =$AD$26 -> 0.07831235998 | AE27: =IF($E27=Logic!$A$7,IF(VLOOKUP($G27+1,TBL_rand_scrn_rnd,2,FALSE)<spec_LDCT,Logic!$A$33,Logic!$A$31),IF(VLOOKUP($G27+1,TBL_rand_scrn_rnd,3,FALSE)<sens_LDCT,Logic!$A$30,Logic!$A$32)) -> 5 | AF27: -0.0003846153846 | AG27: =VLOOKUP(Logic!$A$34,TBL_EVENT,VLOOKUP($E27,TBL_STATE,3,FALSE),FALSE) -> TRUE | AH27: 51.87228422 | AI27: =Logic!$A$34 -> 6 | AJ27: 0 | AK27: =VLOOKUP(Logic!$A$35,TBL_EVENT,VLOOKUP($E27,TBL_STATE,3,FALSE),FALSE) -> FALSE | AL27: =IF($B27=4,VLOOKUP($E27,TBL_pre_cl_prog,6,FALSE)-$J26,VLOOKUP($E27,TBL_pre_cl_prog,6,FALSE)) -> 200 | AM27: =Logic!$A$35 -> 7 | AN27: 0 | AO27: =VLOOKUP(Logic!$A$36,TBL_EVENT,VLOOKUP($E27,TBL_STATE,3,FALSE),FALSE) -> FALSE | AP27: =IF($B27=4,VLOOKUP($E27,TBL_cl_pres,6,FALSE)-$J26,VLOOKUP($E27,TBL_cl_pres,6,FALSE)) -> 200 | AQ27: =Logic!$A$36 -> 8 | AR27: 0 | AS27: =VLOOKUP(Logic!$A$37,TBL_EVENT,VLOOKUP($E27,TBL_STATE,3,FALSE),FALSE) -> FALSE | AT27: =IF($M26,$CA27+IF($BZ27>$CA27,CHOOSE(Scenarios!$D$10+1,1,0,0.5)*$BZ27-$CA27,0),t_no_event) -> 200 | AU27: =Logic!$A$37 -> 9 | AV27: 0 | AW27: =VLOOKUP(Logic!$A$38,TBL_EVENT,VLOOKUP($E27,TBL_STATE,3,FALSE),FALSE) -> TRUE | AX27: 3.391812758 | AY27: =Logic!$A$38 -> 10 | AZ27: 0 | BE27: =IF($AC27,($BE26-MIN($BF26:$BJ26)),t_no_event) -> 200 | BF27: 51.87228422 | BG27: 200 | BH27: 200 | BI27: =IF($AS27,$AT27,t_no_event) -> 200 | BJ27: 3.391812758 | BL27: 5 | BM27: 6 | BN27: 7 | BO27: 8 | BP27: 9 | BQ27: 10 | BS27: -0.0003846153846 | BT27: 0 | BU27: 0 | BV27: 0 | BW27: 0 | BX27: 0 | BZ27: =IF($M26,CHOOSE($O27,survival_sIa,survival_sIb,survival_sIIa,survival_sIIb,survival_sIIIa,survival_sIIIb,survival_sIV),t_no_event) -> 200 | CA27: =IF($M26,CHOOSE(IF($Q$3,$Q$3,8),survival_sIa,survival_sIb,survival_sIIa,survival_sIIb,survival_sIIIa,survival_sIIIb,survival_sIV,t_no_event)+$N26,t_no_event) -> 200
A28: 3.470125118 | B28: 10 | C28: Non-lung cancer death | D28: 66.57641635 | E28: P | F28: Death | G28: 1 | H28: 100 | I28: =IF($H27>8,FALSE,VLOOKUP($H28,TBL_EVENT,2,FALSE)) -> FALSE | J28: 200 | K28: FALSE | L28: FALSE | M28: FALSE | N28: FALSE | O28: FALSE | P28: 66.57641635 | Q28: =IF($H28=10,IF($F28="Pre*",TRUE,FALSE),FALSE) -> FALSE | R28: 1 | S28: N/a | T28: 0 | U28: =IF($O28,CHOOSE($O28, IF($AQ$3<0.25,c_rdtf_sIa_ini,IF($AQ$3<1,c_rdtf_sIa_ini+(($AQ$3-0.25)/0.75)*c_rdtf_sIa_rem_ind_yr,IF($AQ$3<IF(Scenarios!$D$16=1,5,2),c_rdtf_sIa_ini+c_rdtf_sIa_rem_ind_yr+($AQ$3-1)*c_rdtf_sIa_subyrs,c_rdtf_sIa_ini+c_rdtf_sIa_rem_ind_yr+c_rdtf_sIa_subyrs))), IF($AQ$3<0.25,c_rdtf_sIb_ini,IF($AQ$3<1,c_rdtf_sIb_ini+(($AQ$3-0.25)/0.75)*c_rdtf_sIb_rem_ind_yr,IF($AQ$3<IF(Scenarios!$D$16=1,5,2),c_rdtf_sIb_ini+c_rdtf_sIb_rem_ind_yr+($AQ$3-1)*c_rdtf_sIb_subyrs,c_rdtf_sIb_ini+c_rdtf_sIb_rem_ind_yr+c_rdtf_sIb_subyrs))), IF($AQ$3<0.25,c_rdtf_sIIa_ini,IF($AQ$3<1,c_rdtf_sIIa_ini+(($AQ$3-0.25)/0.75)*c_rdtf_sIIa_rem_ind_yr,IF($AQ$3<IF(Scenarios!$D$16=1,5,2),c_rdtf_sIIa_ini+c_rdtf_sIIa_rem_ind_yr+($AQ$3-1)*c_rdtf_sIIa_subyrs,c_rdtf_sIIa_ini+c_rdtf_sIIa_rem_ind_yr+c_rdtf_sIIa_subyrs))), IF($AQ$3<0.25,c_rdtf_sIIb_ini,IF($AQ$3<1,c_rdtf_sIIb_ini+(($AQ$3-0.25)/0.75)*c_rdtf_sIIb_rem_ind_yr,IF($AQ$3<IF(Scenarios!$D$16=1,5,2),c_rdtf_sIIb_ini+c_rdtf_sIIb_rem_ind_yr+($AQ$3-1)*c_rdtf_sIIb_subyrs,c_rdtf_sIIb_ini+c_rdtf_sIIb_rem_ind_yr+c_rdtf_sIIb_subyrs))), IF($AQ$3<0.25,c_rdtf_sIIIa_ini,IF($AQ$3<1,c_rdtf_sIIIa_ini+(($AQ$3-0.25)/0.75)*c_rdtf_sIIIa_rem_ind_yr,IF($AQ$3<IF(Scenarios!$D$16=1,5,2),c_rdtf_sIIIa_ini+c_rdtf_sIIIa_rem_ind_yr+($AQ$3-1)*c_rdtf_sIIIa_subyrs,c_rdtf_sIIIa_ini+c_rdtf_sIIIa_rem_ind_yr+c_rdtf_sIIIa_subyrs))), IF($AQ$3<0.25,c_rdtf_sIIIb_ini,IF($AQ$3<1,c_rdtf_sIIIb_ini+(($AQ$3-0.25)/0.75)*c_rdtf_sIIIb_rem_ind_yr,IF($AQ$3<IF(Scenarios!$D$16=1,5,2),c_rdtf_sIIIb_ini+c_rdtf_sIIIb_rem_ind_yr+($AQ$3-1)*c_rdtf_sIIIb_subyrs,c_rdtf_sIIIb_ini+c_rdtf_sIIIb_rem_ind_yr+c_rdtf_sIIIb_subyrs))), IF($AQ$3<0.25,c_rdtf_sIV_ini,IF($AQ$3<1,c_rdtf_sIV_ini+(($AQ$3-0.25)/0.75)*c_rdtf_sIV_rem_ind_yr,IF($AQ$3<IF(Scenarios!$D$16=1,5,2),c_rdtf_sIV_ini+c_rdtf_sIV_rem_ind_yr+($AQ$3-1)*c_rdtf_sIV_subyrs,c_rdtf_sIV_ini+c_rdtf_sIV_rem_ind_yr+c_rdtf_sIV_subyrs)))), IF($B28=3,c_false_pos,0)) *(1+d_costs)^(-$A28) -> 0 | V28: 0 | W28: 0 | X28: 0 | Y28: 0 | Z28: 0 | AA28: 0 | AB28: N/a | AC28: =IF($G28<1,VLOOKUP(Logic!$A$29,TBL_EVENT,VLOOKUP($E28,TBL_STATE,3,FALSE),FALSE),FALSE) -> FALSE | AD28: =$AD$26 -> 0.07831235998 | AE28: =IF($E28=Logic!$A$7,IF(VLOOKUP($G28+1,TBL_rand_scrn_rnd,2,FALSE)<spec_LDCT,Logic!$A$33,Logic!$A$31),IF(VLOOKUP($G28+1,TBL_rand_scrn_rnd,3,FALSE)<sens_LDCT,Logic!$A$30,Logic!$A$32)) -> 2 | AF28: -0.0003846153846 | AG28: =VLOOKUP(Logic!$A$34,TBL_EVENT,VLOOKUP($E28,TBL_STATE,3,FALSE),FALSE) -> FALSE | AH28: 48.48047147 | AI28: =Logic!$A$34 -> 6 | AJ28: 0 | AK28: =VLOOKUP(Logic!$A$35,TBL_EVENT,VLOOKUP($E28,TBL_STATE,3,FALSE),FALSE) -> FALSE | AL28: 200 | AM28: =Logic!$A$35 -> 7 | AN28: 0 | AO28: =VLOOKUP(Logic!$A$36,TBL_EVENT,VLOOKUP($E28,TBL_STATE,3,FALSE),FALSE) -> FALSE | AP28: 200 | AQ28: =Logic!$A$36 -> 8 | AR28: 0 | AS28: =VLOOKUP(Logic!$A$37,TBL_EVENT,VLOOKUP($E28,TBL_STATE,3,FALSE),FALSE) -> FALSE | AT28: =IF($M27,$CA28+IF($BZ28>$CA28,CHOOSE(Scenarios!$D$10+1,1,0,0.5)*$BZ28-$CA28,0),t_no_event) -> 200 | AU28: =Logic!$A$37 -> 9 | AV28: 0 | AW28: =VLOOKUP(Logic!$A$38,TBL_EVENT,VLOOKUP($E28,TBL_STATE,3,FALSE),FALSE) -> FALSE | AX28: 0 | AY28: =Logic!$A$38 -> 10 | AZ28: 0 | BE28: 200 | BF28: 200 | BG28: 200 | BH28: 200 | BI28: 200 | BJ28: 200 | BL28: 2 | BM28: 6 | BN28: 7 | BO28: 8 | BP28: 9 | BQ28: 10 | BS28: -0.0003846153846 | BT28: 0 | BU28: 0 | BV28: 0 | BW28: 0 | BX28: 0 | BZ28: 200 | CA28: 200
A29: 203.4701251 | B29: 100 | C29: FALSE | D29: FALSE | E29: FALSE | F29: FALSE | G29: 1 | H29: 100 | I29: FALSE | J29: 200 | K29: FALSE | L29: FALSE | M29: FALSE | N29: FALSE | O29: FALSE | P29: 66.57641635 | Q29: =IF($H29=10,IF($F29="Pre*",TRUE,FALSE),FALSE) -> FALSE | R29: 1 | S29: N/a | T29: 0 | U29: =IF($O29,CHOOSE($O29, IF($AQ$3<0.25,c_rdtf_sIa_ini,IF($AQ$3<1,c_rdtf_sIa_ini+(($AQ$3-0.25)/0.75)*c_rdtf_sIa_rem_ind_yr,IF($AQ$3<IF(Scenarios!$D$16=1,5,2),c_rdtf_sIa_ini+c_rdtf_sIa_rem_ind_yr+($AQ$3-1)*c_rdtf_sIa_subyrs,c_rdtf_sIa_ini+c_rdtf_sIa_rem_ind_yr+c_rdtf_sIa_subyrs))), IF($AQ$3<0.25,c_rdtf_sIb_ini,IF($AQ$3<1,c_rdtf_sIb_ini+(($AQ$3-0.25)/0.75)*c_rdtf_sIb_rem_ind_yr,IF($AQ$3<IF(Scenarios!$D$16=1,5,2),c_rdtf_sIb_ini+c_rdtf_sIb_rem_ind_yr+($AQ$3-1)*c_rdtf_sIb_subyrs,c_rdtf_sIb_ini+c_rdtf_sIb_rem_ind_yr+c_rdtf_sIb_subyrs))), IF($AQ$3<0.25,c_rdtf_sIIa_ini,IF($AQ$3<1,c_rdtf_sIIa_ini+(($AQ$3-0.25)/0.75)*c_rdtf_sIIa_rem_ind_yr,IF($AQ$3<IF(Scenarios!$D$16=1,5,2),c_rdtf_sIIa_ini+c_rdtf_sIIa_rem_ind_yr+($AQ$3-1)*c_rdtf_sIIa_subyrs,c_rdtf_sIIa_ini+c_rdtf_sIIa_rem_ind_yr+c_rdtf_sIIa_subyrs))), IF($AQ$3<0.25,c_rdtf_sIIb_ini,IF($AQ$3<1,c_rdtf_sIIb_ini+(($AQ$3-0.25)/0.75)*c_rdtf_sIIb_rem_ind_yr,IF($AQ$3<IF(Scenarios!$D$16=1,5,2),c_rdtf_sIIb_ini+c_rdtf_sIIb_rem_ind_yr+($AQ$3-1)*c_rdtf_sIIb_subyrs,c_rdtf_sIIb_ini+c_rdtf_sIIb_rem_ind_yr+c_rdtf_sIIb_subyrs))), IF($AQ$3<0.25,c_rdtf_sIIIa_ini,IF($AQ$3<1,c_rdtf_sIIIa_ini+(($AQ$3-0.25)/0.75)*c_rdtf_sIIIa_rem_ind_yr,IF($AQ$3<IF(Scenarios!$D$16=1,5,2),c_rdtf_sIIIa_ini+c_rdtf_sIIIa_rem_ind_yr+($AQ$3-1)*c_rdtf_sIIIa_subyrs,c_rdtf_sIIIa_ini+c_rdtf_sIIIa_rem_ind_yr+c_rdtf_sIIIa_subyrs))), IF($AQ$3<0.25,c_rdtf_sIIIb_ini,IF($AQ$3<1,c_rdtf_sIIIb_ini+(($AQ$3-0.25)/0.75)*c_rdtf_sIIIb_rem_ind_yr,IF($AQ$3<IF(Scenarios!$D$16=1,5,2),c_rdtf_sIIIb_ini+c_rdtf_sIIIb_rem_ind_yr+($AQ$3-1)*c_rdtf_sIIIb_subyrs,c_rdtf_sIIIb_ini+c_rdtf_sIIIb_rem_ind_yr+c_rdtf_sIIIb_subyrs))), IF($AQ$3<0.25,c_rdtf_sIV_ini,IF($AQ$3<1,c_rdtf_sIV_ini+(($AQ$3-0.25)/0.75)*c_rdtf_sIV_rem_ind_yr,IF($AQ$3<IF(Scenarios!$D$16=1,5,2),c_rdtf_sIV_ini+c_rdtf_sIV_rem_ind_yr+($AQ$3-1)*c_rdtf_sIV_subyrs,c_rdtf_sIV_ini+c_rdtf_sIV_rem_ind_yr+c_rdtf_sIV_subyrs)))), IF($B29=3,c_false_pos,0)) *(1+d_costs)^(-$A29) -> 0 | V29: 0 | W29: 0 | X29: 0 | Y29: 0 | Z29: 0 | AA29: 0 | AB29: N/a | AC29: =IF($G29<1,VLOOKUP(Logic!$A$29,TBL_EVENT,VLOOKUP($E29,TBL_STATE,3,FALSE),FALSE),FALSE) -> FALSE | AD29: 0.07831235998 | AE29: =IF($E29=Logic!$A$7,IF(VLOOKUP($G29+1,TBL_rand_scrn_rnd,2,FALSE)<spec_LDCT,Logic!$A$33,Logic!$A$31),IF(VLOOKUP($G29+1,TBL_rand_scrn_rnd,3,FALSE)<sens_LDCT,Logic!$A$30,Logic!$A$32)) -> 2 | AF29: -0.0003846153846 | AG29: =VLOOKUP(Logic!$A$34,TBL_EVENT,VLOOKUP($E29,TBL_STATE,3,FALSE),FALSE) -> FALSE | AH29: 115.0568878 | AI29: =Logic!$A$34 -> 6 | AJ29: 0 | AK29: =VLOOKUP(Logic!$A$35,TBL_EVENT,VLOOKUP($E29,TBL_STATE,3,FALSE),FALSE) -> FALSE | AL29: 200 | AM29: =Logic!$A$35 -> 7 | AN29: 0 | AO29: =VLOOKUP(Logic!$A$36,TBL_EVENT,VLOOKUP($E29,TBL_STATE,3,FALSE),FALSE) -> FALSE | AP29: 200 | AQ29: =Logic!$A$36 -> 8 | AR29: 0 | AS29: =VLOOKUP(Logic!$A$37,TBL_EVENT,VLOOKUP($E29,TBL_STATE,3,FALSE),FALSE) -> FALSE | AT29: =IF($M28,$CA29+IF($BZ29>$CA29,CHOOSE(Scenarios!$D$10+1,1,0,0.5)*$BZ29-$CA29,0),t_no_event) -> 200 | AU29: =Logic!$A$37 -> 9 | AV29: 0 | AW29: =VLOOKUP(Logic!$A$38,TBL_EVENT,VLOOKUP($E29,TBL_STATE,3,FALSE),FALSE) -> FALSE | AX29: 66.57641635 | AY29: =Logic!$A$38 -> 10 | AZ29: 0 | BE29: 200 | BF29: 200 | BG29: 200 | BH29: 200 | BI29: 200 | BJ29: 200 | BL29: 2 | BM29: 6 | BN29: 7 | BO29: 8 | BP29: 9 | BQ29: 10 | BS29: -0.0003846153846 | BT29: 0 | BU29: 0 | BV29: 0 | BW29: 0 | BX29: 0 | BZ29: 200 | CA29: 200
A30: 403.4701251 | B30: 100 | C30: FALSE | D30: FALSE | E30: FALSE | F30: FALSE | G30: 1 | H30: 100 | I30: FALSE | J30: 200 | K30: FALSE | L30: FALSE | M30: FALSE | N30: FALSE | O30: FALSE | P30: =IF($H30=9,($A$3+$A31),$I$3) -> 66.57641635 | Q30: FALSE | R30: 1 | S30: N/a | T30: 0 | U30: =IF($O30,CHOOSE($O30, IF($AQ$3<0.25,c_rdtf_sIa_ini,IF($AQ$3<1,c_rdtf_sIa_ini+(($AQ$3-0.25)/0.75)*c_rdtf_sIa_rem_ind_yr,IF($AQ$3<IF(Scenarios!$D$16=1,5,2),c_rdtf_sIa_ini+c_rdtf_sIa_rem_ind_yr+($AQ$3-1)*c_rdtf_sIa_subyrs,c_rdtf_sIa_ini+c_rdtf_sIa_rem_ind_yr+c_rdtf_sIa_subyrs))), IF($AQ$3<0.25,c_rdtf_sIb_ini,IF($AQ$3<1,c_rdtf_sIb_ini+(($AQ$3-0.25)/0.75)*c_rdtf_sIb_rem_ind_yr,IF($AQ$3<IF(Scenarios!$D$16=1,5,2),c_rdtf_sIb_ini+c_rdtf_sIb_rem_ind_yr+($AQ$3-1)*c_rdtf_sIb_subyrs,c_rdtf_sIb_ini+c_rdtf_sIb_rem_ind_yr+c_rdtf_sIb_subyrs))), IF($AQ$3<0.25,c_rdtf_sIIa_ini,IF($AQ$3<1,c_rdtf_sIIa_ini+(($AQ$3-0.25)/0.75)*c_rdtf_sIIa_rem_ind_yr,IF($AQ$3<IF(Scenarios!$D$16=1,5,2),c_rdtf_sIIa_ini+c_rdtf_sIIa_rem_ind_yr+($AQ$3-1)*c_rdtf_sIIa_subyrs,c_rdtf_sIIa_ini+c_rdtf_sIIa_rem_ind_yr+c_rdtf_sIIa_subyrs))), IF($AQ$3<0.25,c_rdtf_sIIb_ini,IF($AQ$3<1,c_rdtf_sIIb_ini+(($AQ$3-0.25)/0.75)*c_rdtf_sIIb_rem_ind_yr,IF($AQ$3<IF(Scenarios!$D$16=1,5,2),c_rdtf_sIIb_ini+c_rdtf_sIIb_rem_ind_yr+($AQ$3-1)*c_rdtf_sIIb_subyrs,c_rdtf_sIIb_ini+c_rdtf_sIIb_rem_ind_yr+c_rdtf_sIIb_subyrs))), IF($AQ$3<0.25,c_rdtf_sIIIa_ini,IF($AQ$3<1,c_rdtf_sIIIa_ini+(($AQ$3-0.25)/0.75)*c_rdtf_sIIIa_rem_ind_yr,IF($AQ$3<IF(Scenarios!$D$16=1,5,2),c_rdtf_sIIIa_ini+c_rdtf_sIIIa_rem_ind_yr+($AQ$3-1)*c_rdtf_sIIIa_subyrs,c_rdtf_sIIIa_ini+c_rdtf_sIIIa_rem_ind_yr+c_rdtf_sIIIa_subyrs))), IF($AQ$3<0.25,c_rdtf_sIIIb_ini,IF($AQ$3<1,c_rdtf_sIIIb_ini+(($AQ$3-0.25)/0.75)*c_rdtf_sIIIb_rem_ind_yr,IF($AQ$3<IF(Scenarios!$D$16=1,5,2),c_rdtf_sIIIb_ini+c_rdtf_sIIIb_rem_ind_yr+($AQ$3-1)*c_rdtf_sIIIb_subyrs,c_rdtf_sIIIb_ini+c_rdtf_sIIIb_rem_ind_yr+c_rdtf_sIIIb_subyrs))), IF($AQ$3<0.25,c_rdtf_sIV_ini,IF($AQ$3<1,c_rdtf_sIV_ini+(($AQ$3-0.25)/0.75)*c_rdtf_sIV_rem_ind_yr,IF($AQ$3<IF(Scenarios!$D$16=1,5,2),c_rdtf_sIV_ini+c_rdtf_sIV_rem_ind_yr+($AQ$3-1)*c_rdtf_sIV_subyrs,c_rdtf_sIV_ini+c_rdtf_sIV_rem_ind_yr+c_rdtf_sIV_subyrs)))), IF($B30=3,c_false_pos,0)) *(1+d_costs)^(-$A30) -> 0 | V30: 0 | W30: 0 | X30: 0 | Y30: 0 | Z30: 0 | AA30: 0 | AB30: N/a | AC30: =IF($G30<1,VLOOKUP(Logic!$A$29,TBL_EVENT,VLOOKUP($E30,TBL_STATE,3,FALSE),FALSE),FALSE) -> FALSE | AD30: 0.07831235998 | AE30: =IF($E30=Logic!$A$7,IF(VLOOKUP($G30+1,TBL_rand_scrn_rnd,2,FALSE)<spec_LDCT,Logic!$A$33,Logic!$A$31),IF(VLOOKUP($G30+1,TBL_rand_scrn_rnd,3,FALSE)<sens_LDCT,Logic!$A$30,Logic!$A$32)) -> 2 | AF30: -0.0003846153846 | AG30: =VLOOKUP(Logic!$A$34,TBL_EVENT,VLOOKUP($E30,TBL_STATE,3,FALSE),FALSE) -> FALSE | AH30: 115.0568878 | AI30: =Logic!$A$34 -> 6 | AJ30: 0 | AK30: =VLOOKUP(Logic!$A$35,TBL_EVENT,VLOOKUP($E30,TBL_STATE,3,FALSE),FALSE) -> FALSE | AL30: 200 | AM30: =Logic!$A$35 -> 7 | AN30: 0 | AO30: =VLOOKUP(Logic!$A$36,TBL_EVENT,VLOOKUP($E30,TBL_STATE,3,FALSE),FALSE) -> FALSE | AP30: 200 | AQ30: =Logic!$A$36 -> 8 | AR30: 0 | AS30: =VLOOKUP(Logic!$A$37,TBL_EVENT,VLOOKUP($E30,TBL_STATE,3,FALSE),FALSE) -> FALSE | AT30: =IF($M29,$CA30+IF($BZ30>$CA30,CHOOSE(Scenarios!$D$10+1,1,0,0.5)*$BZ30-$CA30,0),t_no_event) -> 200 | AU30: =Logic!$A$37 -> 9 | AV30: 0 | AW30: =VLOOKUP(Logic!$A$38,TBL_EVENT,VLOOKUP($E30,TBL_STATE,3,FALSE),FALSE) -> FALSE | AX30: 66.57641635 | AY30: =Logic!$A$38 -> 10 | AZ30: 0 | BE30: 200 | BF30: 200 | BG30: 200 | BH30: 200 | BI30: 200 | BJ30: 200 | BL30: 2 | BM30: 6 | BN30: 7 | BO30: 8 | BP30: 9 | BQ30: 10 | BS30: -0.0003846153846 | BT30: 0 | BU30: 0 | BV30: 0 | BW30: 0 | BX30: 0 | BZ30: 200 | CA30: 200
A31: 603.4701251 | B31: 100 | C31: FALSE | D31: FALSE | E31: FALSE | F31: FALSE | G31: 1 | H31: 100 | I31: FALSE | J31: 200 | K31: FALSE | L31: FALSE | M31: FALSE | N31: FALSE | O31: FALSE | P31: 66.57641635 | Q31: =IF($H31=10,IF($F31="Pre*",TRUE,FALSE),FALSE) -> FALSE | R31: 1 | S31: N/a | T31: 0 | U31: =IF($O31,CHOOSE($O31, IF($AQ$3<0.25,c_rdtf_sIa_ini,IF($AQ$3<1,c_rdtf_sIa_ini+(($AQ$3-0.25)/0.75)*c_rdtf_sIa_rem_ind_yr,IF($AQ$3<IF(Scenarios!$D$16=1,5,2),c_rdtf_sIa_ini+c_rdtf_sIa_rem_ind_yr+($AQ$3-1)*c_rdtf_sIa_subyrs,c_rdtf_sIa_ini+c_rdtf_sIa_rem_ind_yr+c_rdtf_sIa_subyrs))), IF($AQ$3<0.25,c_rdtf_sIb_ini,IF($AQ$3<1,c_rdtf_sIb_ini+(($AQ$3-0.25)/0.75)*c_rdtf_sIb_rem_ind_yr,IF($AQ$3<IF(Scenarios!$D$16=1,5,2),c_rdtf_sIb_ini+c_rdtf_sIb_rem_ind_yr+($AQ$3-1)*c_rdtf_sIb_subyrs,c_rdtf_sIb_ini+c_rdtf_sIb_rem_ind_yr+c_rdtf_sIb_subyrs))), IF($AQ$3<0.25,c_rdtf_sIIa_ini,IF($AQ$3<1,c_rdtf_sIIa_ini+(($AQ$3-0.25)/0.75)*c_rdtf_sIIa_rem_ind_yr,IF($AQ$3<IF(Scenarios!$D$16=1,5,2),c_rdtf_sIIa_ini+c_rdtf_sIIa_rem_ind_yr+($AQ$3-1)*c_rdtf_sIIa_subyrs,c_rdtf_sIIa_ini+c_rdtf_sIIa_rem_ind_yr+c_rdtf_sIIa_subyrs))), IF($AQ$3<0.25,c_rdtf_sIIb_ini,IF($AQ$3<1,c_rdtf_sIIb_ini+(($AQ$3-0.25)/0.75)*c_rdtf_sIIb_rem_ind_yr,IF($AQ$3<IF(Scenarios!$D$16=1,5,2),c_rdtf_sIIb_ini+c_rdtf_sIIb_rem_ind_yr+($AQ$3-1)*c_rdtf_sIIb_subyrs,c_rdtf_sIIb_ini+c_rdtf_sIIb_rem_ind_yr+c_rdtf_sIIb_subyrs))), IF($AQ$3<0.25,c_rdtf_sIIIa_ini,IF($AQ$3<1,c_rdtf_sIIIa_ini+(($AQ$3-0.25)/0.75)*c_rdtf_sIIIa_rem_ind_yr,IF($AQ$3<IF(Scenarios!$D$16=1,5,2),c_rdtf_sIIIa_ini+c_rdtf_sIIIa_rem_ind_yr+($AQ$3-1)*c_rdtf_sIIIa_subyrs,c_rdtf_sIIIa_ini+c_rdtf_sIIIa_rem_ind_yr+c_rdtf_sIIIa_subyrs))), IF($AQ$3<0.25,c_rdtf_sIIIb_ini,IF($AQ$3<1,c_rdtf_sIIIb_ini+(($AQ$3-0.25)/0.75)*c_rdtf_sIIIb_rem_ind_yr,IF($AQ$3<IF(Scenarios!$D$16=1,5,2),c_rdtf_sIIIb_ini+c_rdtf_sIIIb_rem_ind_yr+($AQ$3-1)*c_rdtf_sIIIb_subyrs,c_rdtf_sIIIb_ini+c_rdtf_sIIIb_rem_ind_yr+c_rdtf_sIIIb_subyrs))), IF($AQ$3<0.25,c_rdtf_sIV_ini,IF($AQ$3<1,c_rdtf_sIV_ini+(($AQ$3-0.25)/0.75)*c_rdtf_sIV_rem_ind_yr,IF($AQ$3<IF(Scenarios!$D$16=1,5,2),c_rdtf_sIV_ini+c_rdtf_sIV_rem_ind_yr+($AQ$3-1)*c_rdtf_sIV_subyrs,c_rdtf_sIV_ini+c_rdtf_sIV_rem_ind_yr+c_rdtf_sIV_subyrs)))), IF($B31=3,c_false_pos,0)) *(1+d_costs)^(-$A31) -> 0 | V31: 0 | W31: 0 | X31: 0 | Y31: 0 | Z31: 0 | AA31: 0 | AB31: N/a | AC31: =IF($G31<1,VLOOKUP(Logic!$A$29,TBL_EVENT,VLOOKUP($E31,TBL_STATE,3,FALSE),FALSE),FALSE) -> FALSE | AD31: 0.07831235998 | AE31: =IF($E31=Logic!$A$7,IF(VLOOKUP($G31+1,TBL_rand_scrn_rnd,2,FALSE)<spec_LDCT,Logic!$A$33,Logic!$A$31),IF(VLOOKUP($G31+1,TBL_rand_scrn_rnd,3,FALSE)<sens_LDCT,Logic!$A$30,Logic!$A$32)) -> 2 | AF31: -0.0003846153846 | AG31: =VLOOKUP(Logic!$A$34,TBL_EVENT,VLOOKUP($E31,TBL_STATE,3,FALSE),FALSE) -> FALSE | AH31: 115.0568878 | AI31: =Logic!$A$34 -> 6 | AJ31: 0 | AK31: =VLOOKUP(Logic!$A$35,TBL_EVENT,VLOOKUP($E31,TBL_STATE,3,FALSE),FALSE) -> FALSE | AL31: 200 | AM31: =Logic!$A$35 -> 7 | AN31: 0 | AO31: =VLOOKUP(Logic!$A$36,TBL_EVENT,VLOOKUP($E31,TBL_STATE,3,FALSE),FALSE) -> FALSE | AP31: 200 | AQ31: =Logic!$A$36 -> 8 | AR31: 0 | AS31: =VLOOKUP(Logic!$A$37,TBL_EVENT,VLOOKUP($E31,TBL_STATE,3,FALSE),FALSE) -> FALSE | AT31: =IF($M30,$CA31+IF($BZ31>$CA31,CHOOSE(Scenarios!$D$10+1,1,0,0.5)*$BZ31-$CA31,0),t_no_event) -> 200 | AU31: =Logic!$A$37 -> 9 | AV31: 0 | AW31: =VLOOKUP(Logic!$A$38,TBL_EVENT,VLOOKUP($E31,TBL_STATE,3,FALSE),FALSE) -> FALSE | AX31: 66.57641635 | AY31: =Logic!$A$38 -> 10 | AZ31: 0 | BE31: 200 | BF31: 200 | BG31: 200 | BH31: 200 | BI31: 200 | BJ31: 200 | BL31: 2 | BM31: 6 | BN31: 7 | BO31: 8 | BP31: 9 | BQ31: 10 | BS31: -0.0003846153846 | BT31: 0 | BU31: 0 | BV31: 0 | BW31: 0 | BX31: 0 | BZ31: 200 | CA31: 200
A32: 803.4701251 | B32: 100 | C32: FALSE | D32: FALSE | E32: FALSE | F32: FALSE | G32: 1 | H32: 100 | I32: FALSE | J32: 200 | K32: FALSE | L32: FALSE | M32: FALSE | N32: FALSE | O32: FALSE | P32: 66.57641635 | Q32: FALSE | R32: 1 | S32: N/a | T32: 0 | U32: =IF($O32,CHOOSE($O32, IF($AQ$3<0.25,c_rdtf_sIa_ini,IF($AQ$3<1,c_rdtf_sIa_ini+(($AQ$3-0.25)/0.75)*c_rdtf_sIa_rem_ind_yr,IF($AQ$3<IF(Scenarios!$D$16=1,5,2),c_rdtf_sIa_ini+c_rdtf_sIa_rem_ind_yr+($AQ$3-1)*c_rdtf_sIa_subyrs,c_rdtf_sIa_ini+c_rdtf_sIa_rem_ind_yr+c_rdtf_sIa_subyrs))), IF($AQ$3<0.25,c_rdtf_sIb_ini,IF($AQ$3<1,c_rdtf_sIb_ini+(($AQ$3-0.25)/0.75)*c_rdtf_sIb_rem_ind_yr,IF($AQ$3<IF(Scenarios!$D$16=1,5,2),c_rdtf_sIb_ini+c_rdtf_sIb_rem_ind_yr+($AQ$3-1)*c_rdtf_sIb_subyrs,c_rdtf_sIb_ini+c_rdtf_sIb_rem_ind_yr+c_rdtf_sIb_subyrs))), IF($AQ$3<0.25,c_rdtf_sIIa_ini,IF($AQ$3<1,c_rdtf_sIIa_ini+(($AQ$3-0.25)/0.75)*c_rdtf_sIIa_rem_ind_yr,IF($AQ$3<IF(Scenarios!$D$16=1,5,2),c_rdtf_sIIa_ini+c_rdtf_sIIa_rem_ind_yr+($AQ$3-1)*c_rdtf_sIIa_subyrs,c_rdtf_sIIa_ini+c_rdtf_sIIa_rem_ind_yr+c_rdtf_sIIa_subyrs))), IF($AQ$3<0.25,c_rdtf_sIIb_ini,IF($AQ$3<1,c_rdtf_sIIb_ini+(($AQ$3-0.25)/0.75)*c_rdtf_sIIb_rem_ind_yr,IF($AQ$3<IF(Scenarios!$D$16=1,5,2),c_rdtf_sIIb_ini+c_rdtf_sIIb_rem_ind_yr+($AQ$3-1)*c_rdtf_sIIb_subyrs,c_rdtf_sIIb_ini+c_rdtf_sIIb_rem_ind_yr+c_rdtf_sIIb_subyrs))), IF($AQ$3<0.25,c_rdtf_sIIIa_ini,IF($AQ$3<1,c_rdtf_sIIIa_ini+(($AQ$3-0.25)/0.75)*c_rdtf_sIIIa_rem_ind_yr,IF($AQ$3<IF(Scenarios!$D$16=1,5,2),c_rdtf_sIIIa_ini+c_rdtf_sIIIa_rem_ind_yr+($AQ$3-1)*c_rdtf_sIIIa_subyrs,c_rdtf_sIIIa_ini+c_rdtf_sIIIa_rem_ind_yr+c_rdtf_sIIIa_subyrs))), IF($AQ$3<0.25,c_rdtf_sIIIb_ini,IF($AQ$3<1,c_rdtf_sIIIb_ini+(($AQ$3-0.25)/0.75)*c_rdtf_sIIIb_rem_ind_yr,IF($AQ$3<IF(Scenarios!$D$16=1,5,2),c_rdtf_sIIIb_ini+c_rdtf_sIIIb_rem_ind_yr+($AQ$3-1)*c_rdtf_sIIIb_subyrs,c_rdtf_sIIIb_ini+c_rdtf_sIIIb_rem_ind_yr+c_rdtf_sIIIb_subyrs))), IF($AQ$3<0.25,c_rdtf_sIV_ini,IF($AQ$3<1,c_rdtf_sIV_ini+(($AQ$3-0.25)/0.75)*c_rdtf_sIV_rem_ind_yr,IF($AQ$3<IF(Scenarios!$D$16=1,5,2),c_rdtf_sIV_ini+c_rdtf_sIV_rem_ind_yr+($AQ$3-1)*c_rdtf_sIV_subyrs,c_rdtf_sIV_ini+c_rdtf_sIV_rem_ind_yr+c_rdtf_sIV_subyrs)))), IF($B32=3,c_false_pos,0)) *(1+d_costs)^(-$A32) -> 0 | V32: 0 | W32: 0 | X32: 0 | Y32: 0 | Z32: 0 | AA32: 0 | AB32: N/a | AC32: =IF($G32<1,VLOOKUP(Logic!$A$29,TBL_EVENT,VLOOKUP($E32,TBL_STATE,3,FALSE),FALSE),FALSE) -> FALSE | AD32: 0.07831235998 | AE32: =IF($E32=Logic!$A$7,IF(VLOOKUP($G32+1,TBL_rand_scrn_rnd,2,FALSE)<spec_LDCT,Logic!$A$33,Logic!$A$31),IF(VLOOKUP($G32+1,TBL_rand_scrn_rnd,3,FALSE)<sens_LDCT,Logic!$A$30,Logic!$A$32)) -> 2 | AF32: -0.0003846153846 | AG32: =VLOOKUP(Logic!$A$34,TBL_EVENT,VLOOKUP($E32,TBL_STATE,3,FALSE),FALSE) -> FALSE | AH32: 115.0568878 | AI32: =Logic!$A$34 -> 6 | AJ32: 0 | AK32: =VLOOKUP(Logic!$A$35,TBL_EVENT,VLOOKUP($E32,TBL_STATE,3,FALSE),FALSE) -> FALSE | AL32: 200 | AM32: =Logic!$A$35 -> 7 | AN32: 0 | AO32: =VLOOKUP(Logic!$A$36,TBL_EVENT,VLOOKUP($E32,TBL_STATE,3,FALSE),FALSE) -> FALSE | AP32: 200 | AQ32: =Logic!$A$36 -> 8 | AR32: 0 | AS32: =VLOOKUP(Logic!$A$37,TBL_EVENT,VLOOKUP($E32,TBL_STATE,3,FALSE),FALSE) -> FALSE | AT32: =IF($M31,$CA32+IF($BZ32>$CA32,CHOOSE(Scenarios!$D$10+1,1,0,0.5)*$BZ32-$CA32,0),t_no_event) -> 200 | AU32: =Logic!$A$37 -> 9 | AV32: 0 | AW32: =VLOOKUP(Logic!$A$38,TBL_EVENT,VLOOKUP($E32,TBL_STATE,3,FALSE),FALSE) -> FALSE | AX32: 66.57641635 | AY32: =Logic!$A$38 -> 10 | AZ32: 0 | BE32: 200 | BF32: 200 | BG32: 200 | BH32: 200 | BI32: 200 | BJ32: 200 | BL32: 2 | BM32: 6 | BN32: 7 | BO32: 8 | BP32: 9 | BQ32: 10 | BS32: -0.0003846153846 | BT32: 0 | BU32: 0 | BV32: 0 | BW32: 0 | BX32: 0 | BZ32: 200 | CA32: 200
A33: 1003.470125 | B33: 100 | C33: FALSE | D33: FALSE | E33: FALSE | F33: FALSE | G33: 1 | H33: 100 | I33: FALSE | J33: 200 | K33: FALSE | L33: FALSE | M33: FALSE | N33: FALSE | O33: FALSE | P33: 66.57641635 | Q33: FALSE | R33: 1 | S33: N/a | T33: 0 | U33: =IF($O33,CHOOSE($O33, IF($AQ$3<0.25,c_rdtf_sIa_ini,IF($AQ$3<1,c_rdtf_sIa_ini+(($AQ$3-0.25)/0.75)*c_rdtf_sIa_rem_ind_yr,IF($AQ$3<IF(Scenarios!$D$16=1,5,2),c_rdtf_sIa_ini+c_rdtf_sIa_rem_ind_yr+($AQ$3-1)*c_rdtf_sIa_subyrs,c_rdtf_sIa_ini+c_rdtf_sIa_rem_ind_yr+c_rdtf_sIa_subyrs))), IF($AQ$3<0.25,c_rdtf_sIb_ini,IF($AQ$3<1,c_rdtf_sIb_ini+(($AQ$3-0.25)/0.75)*c_rdtf_sIb_rem_ind_yr,IF($AQ$3<IF(Scenarios!$D$16=1,5,2),c_rdtf_sIb_ini+c_rdtf_sIb_rem_ind_yr+($AQ$3-1)*c_rdtf_sIb_subyrs,c_rdtf_sIb_ini+c_rdtf_sIb_rem_ind_yr+c_rdtf_sIb_subyrs))), IF($AQ$3<0.25,c_rdtf_sIIa_ini,IF($AQ$3<1,c_rdtf_sIIa_ini+(($AQ$3-0.25)/0.75)*c_rdtf_sIIa_rem_ind_yr,IF($AQ$3<IF(Scenarios!$D$16=1,5,2),c_rdtf_sIIa_ini+c_rdtf_sIIa_rem_ind_yr+($AQ$3-1)*c_rdtf_sIIa_subyrs,c_rdtf_sIIa_ini+c_rdtf_sIIa_rem_ind_yr+c_rdtf_sIIa_subyrs))), IF($AQ$3<0.25,c_rdtf_sIIb_ini,IF($AQ$3<1,c_rdtf_sIIb_ini+(($AQ$3-0.25)/0.75)*c_rdtf_sIIb_rem_ind_yr,IF($AQ$3<IF(Scenarios!$D$16=1,5,2),c_rdtf_sIIb_ini+c_rdtf_sIIb_rem_ind_yr+($AQ$3-1)*c_rdtf_sIIb_subyrs,c_rdtf_sIIb_ini+c_rdtf_sIIb_rem_ind_yr+c_rdtf_sIIb_subyrs))), IF($AQ$3<0.25,c_rdtf_sIIIa_ini,IF($AQ$3<1,c_rdtf_sIIIa_ini+(($AQ$3-0.25)/0.75)*c_rdtf_sIIIa_rem_ind_yr,IF($AQ$3<IF(Scenarios!$D$16=1,5,2),c_rdtf_sIIIa_ini+c_rdtf_sIIIa_rem_ind_yr+($AQ$3-1)*c_rdtf_sIIIa_subyrs,c_rdtf_sIIIa_ini+c_rdtf_sIIIa_rem_ind_yr+c_rdtf_sIIIa_subyrs))), IF($AQ$3<0.25,c_rdtf_sIIIb_ini,IF($AQ$3<1,c_rdtf_sIIIb_ini+(($AQ$3-0.25)/0.75)*c_rdtf_sIIIb_rem_ind_yr,IF($AQ$3<IF(Scenarios!$D$16=1,5,2),c_rdtf_sIIIb_ini+c_rdtf_sIIIb_rem_ind_yr+($AQ$3-1)*c_rdtf_sIIIb_subyrs,c_rdtf_sIIIb_ini+c_rdtf_sIIIb_rem_ind_yr+c_rdtf_sIIIb_subyrs))), IF($AQ$3<0.25,c_rdtf_sIV_ini,IF($AQ$3<1,c_rdtf_sIV_ini+(($AQ$3-0.25)/0.75)*c_rdtf_sIV_rem_ind_yr,IF($AQ$3<IF(Scenarios!$D$16=1,5,2),c_rdtf_sIV_ini+c_rdtf_sIV_rem_ind_yr+($AQ$3-1)*c_rdtf_sIV_subyrs,c_rdtf_sIV_ini+c_rdtf_sIV_rem_ind_yr+c_rdtf_sIV_subyrs)))), IF($B33=3,c_false_pos,0)) *(1+d_costs)^(-$A33) -> 0 | V33: 0 | W33: 0 | X33: 0 | Y33: 0 | Z33: 0 | AA33: 0 | AB33: N/a | AC33: =IF($G33<1,VLOOKUP(Logic!$A$29,TBL_EVENT,VLOOKUP($E33,TBL_STATE,3,FALSE),FALSE),FALSE) -> FALSE | AD33: 0.07831235998 | AE33: =IF($E33=Logic!$A$7,IF(VLOOKUP($G33+1,TBL_rand_scrn_rnd,2,FALSE)<spec_LDCT,Logic!$A$33,Logic!$A$31),IF(VLOOKUP($G33+1,TBL_rand_scrn_rnd,3,FALSE)<sens_LDCT,Logic!$A$30,Logic!$A$32)) -> 2 | AF33: -0.0003846153846 | AG33: =VLOOKUP(Logic!$A$34,TBL_EVENT,VLOOKUP($E33,TBL_STATE,3,FALSE),FALSE) -> FALSE | AH33: 115.0568878 | AI33: =Logic!$A$34 -> 6 | AJ33: 0 | AK33: =VLOOKUP(Logic!$A$35,TBL_EVENT,VLOOKUP($E33,TBL_STATE,3,FALSE),FALSE) -> FALSE | AL33: 200 | AM33: =Logic!$A$35 -> 7 | AN33: 0 | AO33: =VLOOKUP(Logic!$A$36,TBL_EVENT,VLOOKUP($E33,TBL_STATE,3,FALSE),FALSE) -> FALSE | AP33: 200 | AQ33: =Logic!$A$36 -> 8 | AR33: 0 | AS33: =VLOOKUP(Logic!$A$37,TBL_EVENT,VLOOKUP($E33,TBL_STATE,3,FALSE),FALSE) -> FALSE | AT33: =IF($M32,$CA33+IF($BZ33>$CA33,CHOOSE(Scenarios!$D$10+1,1,0,0.5)*$BZ33-$CA33,0),t_no_event) -> 200 | AU33: =Logic!$A$37 -> 9 | AV33: 0 | AW33: =VLOOKUP(Logic!$A$38,TBL_EVENT,VLOOKUP($E33,TBL_STATE,3,FALSE),FALSE) -> FALSE | AX33: 66.57641635 | AY33: =Logic!$A$38 -> 10 | AZ33: 0 | BE33: 200 | BF33: 200 | BG33: 200 | BH33: 200 | BI33: 200 | BJ33: 200 | BL33: 2 | BM33: 6 | BN33: 7 | BO33: 8 | BP33: 9 | BQ33: 10 | BS33: -0.0003846153846 | BT33: 0 | BU33: 0 | BV33: 0 | BW33: 0 | BX33: 0 | BZ33: 200 | CA33: 200
A34: 1203.470125 | B34: 100 | C34: FALSE | D34: FALSE | E34: FALSE | F34: FALSE | G34: 1 | H34: 100 | I34: FALSE | J34: 200 | K34: FALSE | L34: FALSE | M34: FALSE | N34: FALSE | O34: FALSE | P34: =IF($H34=9,($A$3+$A35),$I$3) -> 66.57641635 | Q34: FALSE | R34: 1 | S34: N/a | T34: 0 | U34: =IF($O34,CHOOSE($O34, IF($AQ$3<0.25,c_rdtf_sIa_ini,IF($AQ$3<1,c_rdtf_sIa_ini+(($AQ$3-0.25)/0.75)*c_rdtf_sIa_rem_ind_yr,IF($AQ$3<IF(Scenarios!$D$16=1,5,2),c_rdtf_sIa_ini+c_rdtf_sIa_rem_ind_yr+($AQ$3-1)*c_rdtf_sIa_subyrs,c_rdtf_sIa_ini+c_rdtf_sIa_rem_ind_yr+c_rdtf_sIa_subyrs))), IF($AQ$3<0.25,c_rdtf_sIb_ini,IF($AQ$3<1,c_rdtf_sIb_ini+(($AQ$3-0.25)/0.75)*c_rdtf_sIb_rem_ind_yr,IF($AQ$3<IF(Scenarios!$D$16=1,5,2),c_rdtf_sIb_ini+c_rdtf_sIb_rem_ind_yr+($AQ$3-1)*c_rdtf_sIb_subyrs,c_rdtf_sIb_ini+c_rdtf_sIb_rem_ind_yr+c_rdtf_sIb_subyrs))), IF($AQ$3<0.25,c_rdtf_sIIa_ini,IF($AQ$3<1,c_rdtf_sIIa_ini+(($AQ$3-0.25)/0.75)*c_rdtf_sIIa_rem_ind_yr,IF($AQ$3<IF(Scenarios!$D$16=1,5,2),c_rdtf_sIIa_ini+c_rdtf_sIIa_rem_ind_yr+($AQ$3-1)*c_rdtf_sIIa_subyrs,c_rdtf_sIIa_ini+c_rdtf_sIIa_rem_ind_yr+c_rdtf_sIIa_subyrs))), IF($AQ$3<0.25,c_rdtf_sIIb_ini,IF($AQ$3<1,c_rdtf_sIIb_ini+(($AQ$3-0.25)/0.75)*c_rdtf_sIIb_rem_ind_yr,IF($AQ$3<IF(Scenarios!$D$16=1,5,2),c_rdtf_sIIb_ini+c_rdtf_sIIb_rem_ind_yr+($AQ$3-1)*c_rdtf_sIIb_subyrs,c_rdtf_sIIb_ini+c_rdtf_sIIb_rem_ind_yr+c_rdtf_sIIb_subyrs))), IF($AQ$3<0.25,c_rdtf_sIIIa_ini,IF($AQ$3<1,c_rdtf_sIIIa_ini+(($AQ$3-0.25)/0.75)*c_rdtf_sIIIa_rem_ind_yr,IF($AQ$3<IF(Scenarios!$D$16=1,5,2),c_rdtf_sIIIa_ini+c_rdtf_sIIIa_rem_ind_yr+($AQ$3-1)*c_rdtf_sIIIa_subyrs,c_rdtf_sIIIa_ini+c_rdtf_sIIIa_rem_ind_yr+c_rdtf_sIIIa_subyrs))), IF($AQ$3<0.25,c_rdtf_sIIIb_ini,IF($AQ$3<1,c_rdtf_sIIIb_ini+(($AQ$3-0.25)/0.75)*c_rdtf_sIIIb_rem_ind_yr,IF($AQ$3<IF(Scenarios!$D$16=1,5,2),c_rdtf_sIIIb_ini+c_rdtf_sIIIb_rem_ind_yr+($AQ$3-1)*c_rdtf_sIIIb_subyrs,c_rdtf_sIIIb_ini+c_rdtf_sIIIb_rem_ind_yr+c_rdtf_sIIIb_subyrs))), IF($AQ$3<0.25,c_rdtf_sIV_ini,IF($AQ$3<1,c_rdtf_sIV_ini+(($AQ$3-0.25)/0.75)*c_rdtf_sIV_rem_ind_yr,IF($AQ$3<IF(Scenarios!$D$16=1,5,2),c_rdtf_sIV_ini+c_rdtf_sIV_rem_ind_yr+($AQ$3-1)*c_rdtf_sIV_subyrs,c_rdtf_sIV_ini+c_rdtf_sIV_rem_ind_yr+c_rdtf_sIV_subyrs)))), IF($B34=3,c_false_pos,0)) *(1+d_costs)^(-$A34) -> 0 | V34: 0 | W34: 0 | X34: 0 | Y34: 0 | Z34: 0 | AA34: 0 | AB34: N/a | AC34: =IF($G34<1,VLOOKUP(Logic!$A$29,TBL_EVENT,VLOOKUP($E34,TBL_STATE,3,FALSE),FALSE),FALSE) -> FALSE | AD34: 0.07831235998 | AE34: =IF($E34=Logic!$A$7,IF(VLOOKUP($G34+1,TBL_rand_scrn_rnd,2,FALSE)<spec_LDCT,Logic!$A$33,Logic!$A$31),IF(VLOOKUP($G34+1,TBL_rand_scrn_rnd,3,FALSE)<sens_LDCT,Logic!$A$30,Logic!$A$32)) -> 2 | AF34: -0.0003846153846 | AG34: =VLOOKUP(Logic!$A$34,TBL_EVENT,VLOOKUP($E34,TBL_STATE,3,FALSE),FALSE) -> FALSE | AH34: 115.0568878 | AI34: =Logic!$A$34 -> 6 | AJ34: 0 | AK34: =VLOOKUP(Logic!$A$35,TBL_EVENT,VLOOKUP($E34,TBL_STATE,3,FALSE),FALSE) -> FALSE | AL34: 200 | AM34: =Logic!$A$35 -> 7 | AN34: 0 | AO34: =VLOOKUP(Logic!$A$36,TBL_EVENT,VLOOKUP($E34,TBL_STATE,3,FALSE),FALSE) -> FALSE | AP34: 200 | AQ34: =Logic!$A$36 -> 8 | AR34: 0 | AS34: =VLOOKUP(Logic!$A$37,TBL_EVENT,VLOOKUP($E34,TBL_STATE,3,FALSE),FALSE) -> FALSE | AT34: =IF($M33,$CA34+IF($BZ34>$CA34,CHOOSE(Scenarios!$D$10+1,1,0,0.5)*$BZ34-$CA34,0),t_no_event) -> 200 | AU34: =Logic!$A$37 -> 9 | AV34: 0 | AW34: =VLOOKUP(Logic!$A$38,TBL_EVENT,VLOOKUP($E34,TBL_STATE,3,FALSE),FALSE) -> FALSE | AX34: 66.57641635 | AY34: =Logic!$A$38 -> 10 | AZ34: 0 | BE34: 200 | BF34: 200 | BG34: 200 | BH34: 200 | BI34: 200 | BJ34: 200 | BL34: 2 | BM34: 6 | BN34: 7 | BO34: 8 | BP34: 9 | BQ34: 10 | BS34: -0.0003846153846 | BT34: 0 | BU34: 0 | BV34: 0 | BW34: 0 | BX34: 0 | BZ34: =IF($M33,CHOOSE($O34,survival_sIa,survival_sIb,survival_sIIa,survival_sIIb,survival_sIIIa,survival_sIIIb,survival_sIV),t_no_event) -> 200 | CA34: 200
A35: 1403.470125 | B35: =$H34 -> 100 | C35: =$I34 -> FALSE | D35: FALSE | E35: FALSE | F35: FALSE | G35: =IF($H34<6,1,0)+$G34 -> 1 | H35: =IF($H34<9,INDEX($BL35:$BQ35,MATCH($J35,$BE35:$BJ35,0)),100) -> 100 | I35: =IF($H34>8,FALSE,VLOOKUP($H35,TBL_EVENT,2,FALSE)) -> FALSE | J35: =MIN($BE35:$BJ35) -> 200 | K35: FALSE | L35: FALSE | M35: FALSE | N35: FALSE | O35: FALSE | P35: 66.57641635 | Q35: =IF($H35=10,IF($F35="Pre*",TRUE,FALSE),FALSE) -> FALSE | R35: 1 | S35: N/a | T35: 0 | U35: =IF($O35,CHOOSE($O35, IF($AQ$3<0.25,c_rdtf_sIa_ini,IF($AQ$3<1,c_rdtf_sIa_ini+(($AQ$3-0.25)/0.75)*c_rdtf_sIa_rem_ind_yr,IF($AQ$3<IF(Scenarios!$D$16=1,5,2),c_rdtf_sIa_ini+c_rdtf_sIa_rem_ind_yr+($AQ$3-1)*c_rdtf_sIa_subyrs,c_rdtf_sIa_ini+c_rdtf_sIa_rem_ind_yr+c_rdtf_sIa_subyrs))), IF($AQ$3<0.25,c_rdtf_sIb_ini,IF($AQ$3<1,c_rdtf_sIb_ini+(($AQ$3-0.25)/0.75)*c_rdtf_sIb_rem_ind_yr,IF($AQ$3<IF(Scenarios!$D$16=1,5,2),c_rdtf_sIb_ini+c_rdtf_sIb_rem_ind_yr+($AQ$3-1)*c_rdtf_sIb_subyrs,c_rdtf_sIb_ini+c_rdtf_sIb_rem_ind_yr+c_rdtf_sIb_subyrs))), IF($AQ$3<0.25,c_rdtf_sIIa_ini,IF($AQ$3<1,c_rdtf_sIIa_ini+(($AQ$3-0.25)/0.75)*c_rdtf_sIIa_rem_ind_yr,IF($AQ$3<IF(Scenarios!$D$16=1,5,2),c_rdtf_sIIa_ini+c_rdtf_sIIa_rem_ind_yr+($AQ$3-1)*c_rdtf_sIIa_subyrs,c_rdtf_sIIa_ini+c_rdtf_sIIa_rem_ind_yr+c_rdtf_sIIa_subyrs))), IF($AQ$3<0.25,c_rdtf_sIIb_ini,IF($AQ$3<1,c_rdtf_sIIb_ini+(($AQ$3-0.25)/0.75)*c_rdtf_sIIb_rem_ind_yr,IF($AQ$3<IF(Scenarios!$D$16=1,5,2),c_rdtf_sIIb_ini+c_rdtf_sIIb_rem_ind_yr+($AQ$3-1)*c_rdtf_sIIb_subyrs,c_rdtf_sIIb_ini+c_rdtf_sIIb_rem_ind_yr+c_rdtf_sIIb_subyrs))), IF($AQ$3<0.25,c_rdtf_sIIIa_ini,IF($AQ$3<1,c_rdtf_sIIIa_ini+(($AQ$3-0.25)/0.75)*c_rdtf_sIIIa_rem_ind_yr,IF($AQ$3<IF(Scenarios!$D$16=1,5,2),c_rdtf_sIIIa_ini+c_rdtf_sIIIa_rem_ind_yr+($AQ$3-1)*c_rdtf_sIIIa_subyrs,c_rdtf_sIIIa_ini+c_rdtf_sIIIa_rem_ind_yr+c_rdtf_sIIIa_subyrs))), IF($AQ$3<0.25,c_rdtf_sIIIb_ini,IF($AQ$3<1,c_rdtf_sIIIb_ini+(($AQ$3-0.25)/0.75)*c_rdtf_sIIIb_rem_ind_yr,IF($AQ$3<IF(Scenarios!$D$16=1,5,2),c_rdtf_sIIIb_ini+c_rdtf_sIIIb_rem_ind_yr+($AQ$3-1)*c_rdtf_sIIIb_subyrs,c_rdtf_sIIIb_ini+c_rdtf_sIIIb_rem_ind_yr+c_rdtf_sIIIb_subyrs))), IF($AQ$3<0.25,c_rdtf_sIV_ini,IF($AQ$3<1,c_rdtf_sIV_ini+(($AQ$3-0.25)/0.75)*c_rdtf_sIV_rem_ind_yr,IF($AQ$3<IF(Scenarios!$D$16=1,5,2),c_rdtf_sIV_ini+c_rdtf_sIV_rem_ind_yr+($AQ$3-1)*c_rdtf_sIV_subyrs,c_rdtf_sIV_ini+c_rdtf_sIV_rem_ind_yr+c_rdtf_sIV_subyrs)))), IF($B35=3,c_false_pos,0)) *(1+d_costs)^(-$A35) -> 0 | V35: 0 | W35: 0 | X35: =IF($J35=t_no_event,0,(INDEX($BS35:$BX35,MATCH($J35,$BE35:$BJ35,0)))) -> 0 | Y35: 0 | Z35: 0 | AA35: 0 | AB35: N/a | AC35: =IF($G35<1,VLOOKUP(Logic!$A$29,TBL_EVENT,VLOOKUP($E35,TBL_STATE,3,FALSE),FALSE),FALSE) -> FALSE | AD35: 0.07831235998 | AE35: =IF($E35=Logic!$A$7,IF(VLOOKUP($G35+1,TBL_rand_scrn_rnd,2,FALSE)<spec_LDCT,Logic!$A$33,Logic!$A$31),IF(VLOOKUP($G35+1,TBL_rand_scrn_rnd,3,FALSE)<sens_LDCT,Logic!$A$30,Logic!$A$32)) -> 2 | AF35: -0.0003846153846 | AG35: =VLOOKUP(Logic!$A$34,TBL_EVENT,VLOOKUP($E35,TBL_STATE,3,FALSE),FALSE) -> FALSE | AH35: 115.0568878 | AI35: =Logic!$A$34 -> 6 | AJ35: 0 | AK35: =VLOOKUP(Logic!$A$35,TBL_EVENT,VLOOKUP($E35,TBL_STATE,3,FALSE),FALSE) -> FALSE | AL35: 200 | AM35: =Logic!$A$35 -> 7 | AN35: 0 | AO35: =VLOOKUP(Logic!$A$36,TBL_EVENT,VLOOKUP($E35,TBL_STATE,3,FALSE),FALSE) -> FALSE | AP35: 200 | AQ35: =Logic!$A$36 -> 8 | AR35: 0 | AS35: =VLOOKUP(Logic!$A$37,TBL_EVENT,VLOOKUP($E35,TBL_STATE,3,FALSE),FALSE) -> FALSE | AT35: =IF($M34,$CA35+IF($BZ35>$CA35,CHOOSE(Scenarios!$D$10+1,1,0,0.5)*$BZ35-$CA35,0),t_no_event) -> 200 | AU35: =Logic!$A$37 -> 9 | AV35: 0 | AW35: =VLOOKUP(Logic!$A$38,TBL_EVENT,VLOOKUP($E35,TBL_STATE,3,FALSE),FALSE) -> FALSE | AX35: 66.57641635 | AY35: =Logic!$A$38 -> 10 | AZ35: 0 | BE35: =IF($AC35,($BE34-MIN($BF34:$BJ34)),t_no_event) -> 200 | BF35: =IF($AG35,$AH35,t_no_event) -> 200 | BG35: =IF($AK35,$AL35,t_no_event) -> 200 | BH35: =IF($AO35,$AP35,t_no_event) -> 200 | BI35: =IF($AS35,$AT35,t_no_event) -> 200 | BJ35: =IF($AW35,$AX35,t_no_event) -> 200 | BL35: =$AE35 -> 2 | BM35: =$AI35 -> 6 | BN35: =$AM35 -> 7 | BO35: =$AQ35 -> 8 | BP35: =$AU35 -> 9 | BQ35: =$AY35 -> 10 | BS35: =$AF35 -> -0.0003846153846 | BT35: =$AJ35 -> 0 | BU35: =$AN35 -> 0 | BV35: =$AR35 -> 0 | BW35: =$AV35 -> 0 | BX35: =$AZ35 -> 0 | BZ35: 200 | CA35: 200
A36: 1603.470125 | B36: =$H35 -> 100 | C36: =$I35 -> FALSE | D36: FALSE | E36: FALSE | F36: FALSE | G36: =IF($H35<6,1,0)+$G35 -> 1 | H36: =IF($H35<9,INDEX($BL36:$BQ36,MATCH($J36,$BE36:$BJ36,0)),100) -> 100 | I36: =IF($H35>8,FALSE,VLOOKUP($H36,TBL_EVENT,2,FALSE)) -> FALSE | J36: =MIN($BE36:$BJ36) -> 200 | K36: FALSE | L36: FALSE | M36: =IF((SUMIFS($A38,$H36,2)+SUMIFS($A38,$H36,8)+$A$3)=$A$3,FALSE,$A$3+$A38) -> FALSE | N36: FALSE | O36: FALSE | P36: 66.57641635 | Q36: =IF($H36=10,IF($F36="Pre*",TRUE,FALSE),FALSE) -> FALSE | R36: 1 | S36: N/a | T36: 0 | U36: =IF($O36,CHOOSE($O36, IF($AQ$3<0.25,c_rdtf_sIa_ini,IF($AQ$3<1,c_rdtf_sIa_ini+(($AQ$3-0.25)/0.75)*c_rdtf_sIa_rem_ind_yr,IF($AQ$3<IF(Scenarios!$D$16=1,5,2),c_rdtf_sIa_ini+c_rdtf_sIa_rem_ind_yr+($AQ$3-1)*c_rdtf_sIa_subyrs,c_rdtf_sIa_ini+c_rdtf_sIa_rem_ind_yr+c_rdtf_sIa_subyrs))), IF($AQ$3<0.25,c_rdtf_sIb_ini,IF($AQ$3<1,c_rdtf_sIb_ini+(($AQ$3-0.25)/0.75)*c_rdtf_sIb_rem_ind_yr,IF($AQ$3<IF(Scenarios!$D$16=1,5,2),c_rdtf_sIb_ini+c_rdtf_sIb_rem_ind_yr+($AQ$3-1)*c_rdtf_sIb_subyrs,c_rdtf_sIb_ini+c_rdtf_sIb_rem_ind_yr+c_rdtf_sIb_subyrs))), IF($AQ$3<0.25,c_rdtf_sIIa_ini,IF($AQ$3<1,c_rdtf_sIIa_ini+(($AQ$3-0.25)/0.75)*c_rdtf_sIIa_rem_ind_yr,IF($AQ$3<IF(Scenarios!$D$16=1,5,2),c_rdtf_sIIa_ini+c_rdtf_sIIa_rem_ind_yr+($AQ$3-1)*c_rdtf_sIIa_subyrs,c_rdtf_sIIa_ini+c_rdtf_sIIa_rem_ind_yr+c_rdtf_sIIa_subyrs))), IF($AQ$3<0.25,c_rdtf_sIIb_ini,IF($AQ$3<1,c_rdtf_sIIb_ini+(($AQ$3-0.25)/0.75)*c_rdtf_sIIb_rem_ind_yr,IF($AQ$3<IF(Scenarios!$D$16=1,5,2),c_rdtf_sIIb_ini+c_rdtf_sIIb_rem_ind_yr+($AQ$3-1)*c_rdtf_sIIb_subyrs,c_rdtf_sIIb_ini+c_rdtf_sIIb_rem_ind_yr+c_rdtf_sIIb_subyrs))), IF($AQ$3<0.25,c_rdtf_sIIIa_ini,IF($AQ$3<1,c_rdtf_sIIIa_ini+(($AQ$3-0.25)/0.75)*c_rdtf_sIIIa_rem_ind_yr,IF($AQ$3<IF(Scenarios!$D$16=1,5,2),c_rdtf_sIIIa_ini+c_rdtf_sIIIa_rem_ind_yr+($AQ$3-1)*c_rdtf_sIIIa_subyrs,c_rdtf_sIIIa_ini+c_rdtf_sIIIa_rem_ind_yr+c_rdtf_sIIIa_subyrs))), IF($AQ$3<0.25,c_rdtf_sIIIb_ini,IF($AQ$3<1,c_rdtf_sIIIb_ini+(($AQ$3-0.25)/0.75)*c_rdtf_sIIIb_rem_ind_yr,IF($AQ$3<IF(Scenarios!$D$16=1,5,2),c_rdtf_sIIIb_ini+c_rdtf_sIIIb_rem_ind_yr+($AQ$3-1)*c_rdtf_sIIIb_subyrs,c_rdtf_sIIIb_ini+c_rdtf_sIIIb_rem_ind_yr+c_rdtf_sIIIb_subyrs))), IF($AQ$3<0.25,c_rdtf_sIV_ini,IF($AQ$3<1,c_rdtf_sIV_ini+(($AQ$3-0.25)/0.75)*c_rdtf_sIV_rem_ind_yr,IF($AQ$3<IF(Scenarios!$D$16=1,5,2),c_rdtf_sIV_ini+c_rdtf_sIV_rem_ind_yr+($AQ$3-1)*c_rdtf_sIV_subyrs,c_rdtf_sIV_ini+c_rdtf_sIV_rem_ind_yr+c_rdtf_sIV_subyrs)))), IF($B36=3,c_false_pos,0)) *(1+d_costs)^(-$A36) -> 0 | V36: 0 | W36: 0 | X36: =IF($J36=t_no_event,0,(INDEX($BS36:$BX36,MATCH($J36,$BE36:$BJ36,0)))) -> 0 | Y36: 0 | Z36: 0 | AA36: 0 | AB36: N/a | AC36: =IF($G36<1,VLOOKUP(Logic!$A$29,TBL_EVENT,VLOOKUP($E36,TBL_STATE,3,FALSE),FALSE),FALSE) -> FALSE | AD36: 0.07831235998 | AE36: =IF($E36=Logic!$A$7,IF(VLOOKUP($G36+1,TBL_rand_scrn_rnd,2,FALSE)<spec_LDCT,Logic!$A$33,Logic!$A$31),IF(VLOOKUP($G36+1,TBL_rand_scrn_rnd,3,FALSE)<sens_LDCT,Logic!$A$30,Logic!$A$32)) -> 2 | AF36: -0.0003846153846 | AG36: =VLOOKUP(Logic!$A$34,TBL_EVENT,VLOOKUP($E36,TBL_STATE,3,FALSE),FALSE) -> FALSE | AH36: =$H$3-$D36 -> 115.0568878 | AI36: =Logic!$A$34 -> 6 | AJ36: 0 | AK36: =VLOOKUP(Logic!$A$35,TBL_EVENT,VLOOKUP($E36,TBL_STATE,3,FALSE),FALSE) -> FALSE | AL36: 200 | AM36: =Logic!$A$35 -> 7 | AN36: 0 | AO36: =VLOOKUP(Logic!$A$36,TBL_EVENT,VLOOKUP($E36,TBL_STATE,3,FALSE),FALSE) -> FALSE | AP36: 200 | AQ36: =Logic!$A$36 -> 8 | AR36: 0 | AS36: =VLOOKUP(Logic!$A$37,TBL_EVENT,VLOOKUP($E36,TBL_STATE,3,FALSE),FALSE) -> FALSE | AT36: =IF($M35,$CA36+IF($BZ36>$CA36,CHOOSE(Scenarios!$D$10+1,1,0,0.5)*$BZ36-$CA36,0),t_no_event) -> 200 | AU36: =Logic!$A$37 -> 9 | AV36: 0 | AW36: =VLOOKUP(Logic!$A$38,TBL_EVENT,VLOOKUP($E36,TBL_STATE,3,FALSE),FALSE) -> FALSE | AX36: 66.57641635 | AY36: =Logic!$A$38 -> 10 | AZ36: 0 | BE36: =IF($AC36,($BE35-MIN($BF35:$BJ35)),t_no_event) -> 200 | BF36: =IF($AG36,$AH36,t_no_event) -> 200 | BG36: =IF($AK36,$AL36,t_no_event) -> 200 | BH36: =IF($AO36,$AP36,t_no_event) -> 200 | BI36: =IF($AS36,$AT36,t_no_event) -> 200 | BJ36: =IF($AW36,$AX36,t_no_event) -> 200 | BL36: =$AE36 -> 2 | BM36: =$AI36 -> 6 | BN36: =$AM36 -> 7 | BO36: =$AQ36 -> 8 | BP36: =$AU36 -> 9 | BQ36: =$AY36 -> 10 | BS36: =$AF36 -> -0.0003846153846 | BT36: =$AJ36 -> 0 | BU36: =$AN36 -> 0 | BV36: =$AR36 -> 0 | BW36: =$AV36 -> 0 | BX36: =$AZ36 -> 0 | BZ36: 200 | CA36: 200
A37: 1803.470125 | B37: =$H36 -> 100 | C37: =$I36 -> FALSE | D37: FALSE | E37: FALSE | F37: FALSE | G37: =IF($H36<6,1,0)+$G36 -> 1 | H37: =IF($H36<9,INDEX($BL37:$BQ37,MATCH($J37,$BE37:$BJ37,0)),100) -> 100 | I37: =IF($H36>8,FALSE,VLOOKUP($H37,TBL_EVENT,2,FALSE)) -> FALSE | J37: =MIN($BE37:$BJ37) -> 200 | K37: FALSE | L37: FALSE | M37: =IF((SUMIFS($A39,$H37,2)+SUMIFS($A39,$H37,8)+$A$3)=$A$3,FALSE,$A$3+$A39) -> FALSE | N37: =IF($O$3,IF($M37,$O$3-$M37),IF($M37,$U$3-$M37)) -> FALSE | O37: FALSE | P37: 66.57641635 | Q37: =IF($H37=10,IF($F37="Pre*",TRUE,FALSE),FALSE) -> FALSE | R37: 1 | S37: N/a | T37: 0 | U37: =IF($O37,CHOOSE($O37, IF($AQ$3<0.25,c_rdtf_sIa_ini,IF($AQ$3<1,c_rdtf_sIa_ini+(($AQ$3-0.25)/0.75)*c_rdtf_sIa_rem_ind_yr,IF($AQ$3<IF(Scenarios!$D$16=1,5,2),c_rdtf_sIa_ini+c_rdtf_sIa_rem_ind_yr+($AQ$3-1)*c_rdtf_sIa_subyrs,c_rdtf_sIa_ini+c_rdtf_sIa_rem_ind_yr+c_rdtf_sIa_subyrs))), IF($AQ$3<0.25,c_rdtf_sIb_ini,IF($AQ$3<1,c_rdtf_sIb_ini+(($AQ$3-0.25)/0.75)*c_rdtf_sIb_rem_ind_yr,IF($AQ$3<IF(Scenarios!$D$16=1,5,2),c_rdtf_sIb_ini+c_rdtf_sIb_rem_ind_yr+($AQ$3-1)*c_rdtf_sIb_subyrs,c_rdtf_sIb_ini+c_rdtf_sIb_rem_ind_yr+c_rdtf_sIb_subyrs))), IF($AQ$3<0.25,c_rdtf_sIIa_ini,IF($AQ$3<1,c_rdtf_sIIa_ini+(($AQ$3-0.25)/0.75)*c_rdtf_sIIa_rem_ind_yr,IF($AQ$3<IF(Scenarios!$D$16=1,5,2),c_rdtf_sIIa_ini+c_rdtf_sIIa_rem_ind_yr+($AQ$3-1)*c_rdtf_sIIa_subyrs,c_rdtf_sIIa_ini+c_rdtf_sIIa_rem_ind_yr+c_rdtf_sIIa_subyrs))), IF($AQ$3<0.25,c_rdtf_sIIb_ini,IF($AQ$3<1,c_rdtf_sIIb_ini+(($AQ$3-0.25)/0.75)*c_rdtf_sIIb_rem_ind_yr,IF($AQ$3<IF(Scenarios!$D$16=1,5,2),c_rdtf_sIIb_ini+c_rdtf_sIIb_rem_ind_yr+($AQ$3-1)*c_rdtf_sIIb_subyrs,c_rdtf_sIIb_ini+c_rdtf_sIIb_rem_ind_yr+c_rdtf_sIIb_subyrs))), IF($AQ$3<0.25,c_rdtf_sIIIa_ini,IF($AQ$3<1,c_rdtf_sIIIa_ini+(($AQ$3-0.25)/0.75)*c_rdtf_sIIIa_rem_ind_yr,IF($AQ$3<IF(Scenarios!$D$16=1,5,2),c_rdtf_sIIIa_ini+c_rdtf_sIIIa_rem_ind_yr+($AQ$3-1)*c_rdtf_sIIIa_subyrs,c_rdtf_sIIIa_ini+c_rdtf_sIIIa_rem_ind_yr+c_rdtf_sIIIa_subyrs))), IF($AQ$3<0.25,c_rdtf_sIIIb_ini,IF($AQ$3<1,c_rdtf_sIIIb_ini+(($AQ$3-0.25)/0.75)*c_rdtf_sIIIb_rem_ind_yr,IF($AQ$3<IF(Scenarios!$D$16=1,5,2),c_rdtf_sIIIb_ini+c_rdtf_sIIIb_rem_ind_yr+($AQ$3-1)*c_rdtf_sIIIb_subyrs,c_rdtf_sIIIb_ini+c_rdtf_sIIIb_rem_ind_yr+c_rdtf_sIIIb_subyrs))), IF($AQ$3<0.25,c_rdtf_sIV_ini,IF($AQ$3<1,c_rdtf_sIV_ini+(($AQ$3-0.25)/0.75)*c_rdtf_sIV_rem_ind_yr,IF($AQ$3<IF(Scenarios!$D$16=1,5,2),c_rdtf_sIV_ini+c_rdtf_sIV_rem_ind_yr+($AQ$3-1)*c_rdtf_sIV_subyrs,c_rdtf_sIV_ini+c_rdtf_sIV_rem_ind_yr+c_rdtf_sIV_subyrs)))), IF($B37=3,c_false_pos,0)) *(1+d_costs)^(-$A37) -> 0 | V37: 0 | W37: 0 | X37: =IF($J37=t_no_event,0,(INDEX($BS37:$BX37,MATCH($J37,$BE37:$BJ37,0)))) -> 0 | Y37: 0 | Z37: 0 | AA37: 0 | AB37: N/a | AC37: =IF($G37<1,VLOOKUP(Logic!$A$29,TBL_EVENT,VLOOKUP($E37,TBL_STATE,3,FALSE),FALSE),FALSE) -> FALSE | AD37: 0.07831235998 | AE37: =IF($E37=Logic!$A$7,IF(VLOOKUP($G37+1,TBL_rand_scrn_rnd,2,FALSE)<spec_LDCT,Logic!$A$33,Logic!$A$31),IF(VLOOKUP($G37+1,TBL_rand_scrn_rnd,3,FALSE)<sens_LDCT,Logic!$A$30,Logic!$A$32)) -> 2 | AF37: -0.0003846153846 | AG37: =VLOOKUP(Logic!$A$34,TBL_EVENT,VLOOKUP($E37,TBL_STATE,3,FALSE),FALSE) -> FALSE | AH37: 115.0568878 | AI37: =Logic!$A$34 -> 6 | AJ37: 0 | AK37: =VLOOKUP(Logic!$A$35,TBL_EVENT,VLOOKUP($E37,TBL_STATE,3,FALSE),FALSE) -> FALSE | AL37: 200 | AM37: =Logic!$A$35 -> 7 | AN37: 0 | AO37: =VLOOKUP(Logic!$A$36,TBL_EVENT,VLOOKUP($E37,TBL_STATE,3,FALSE),FALSE) -> FALSE | AP37: 200 | AQ37: =Logic!$A$36 -> 8 | AR37: 0 | AS37: =VLOOKUP(Logic!$A$37,TBL_EVENT,VLOOKUP($E37,TBL_STATE,3,FALSE),FALSE) -> FALSE | AT37: =IF($M36,$CA37+IF($BZ37>$CA37,CHOOSE(Scenarios!$D$10+1,1,0,0.5)*$BZ37-$CA37,0),t_no_event) -> 200 | AU37: =Logic!$A$37 -> 9 | AV37: 0 | AW37: =VLOOKUP(Logic!$A$38,TBL_EVENT,VLOOKUP($E37,TBL_STATE,3,FALSE),FALSE) -> FALSE | AX37: 66.57641635 | AY37: =Logic!$A$38 -> 10 | AZ37: 0 | BE37: =IF($AC37,($BE36-MIN($BF36:$BJ36)),t_no_event) -> 200 | BF37: =IF($AG37,$AH37,t_no_event) -> 200 | BG37: =IF($AK37,$AL37,t_no_event) -> 200 | BH37: =IF($AO37,$AP37,t_no_event) -> 200 | BI37: =IF($AS37,$AT37,t_no_event) -> 200 | BJ37: =IF($AW37,$AX37,t_no_event) -> 200 | BL37: =$AE37 -> 2 | BM37: =$AI37 -> 6 | BN37: =$AM37 -> 7 | BO37: =$AQ37 -> 8 | BP37: =$AU37 -> 9 | BQ37: =$AY37 -> 10 | BS37: =$AF37 -> -0.0003846153846 | BT37: =$AJ37 -> 0 | BU37: =$AN37 -> 0 | BV37: =$AR37 -> 0 | BW37: =$AV37 -> 0 | BX37: =$AZ37 -> 0 | BZ37: 200 | CA37: 200
A38: 2003.470125
A39: (T)-Triple screen, NLST | C39: Sub years of screening = | D39: 1 | E39: 2 | Q39: Scenario active and lived >10 yrs= | R39: =IF($BM$3>10,IF(Scenarios!$D$21=1,1,0),0) -> 0
A40: 0 | B40: 0 | C40: =VLOOKUP($B40,TBL_EVENT,2,FALSE) -> Enter model | D40: =$A$3+$A40 -> 63.10629124 | E40: =$D$3 -> A | F40: =$E$3 -> No lung cancer | G40: 0 | H40: =INDEX($BL40:$BR40,MATCH($J40,$BE40:$BK40,0)) -> 5 | I40: =VLOOKUP($H40,TBL_EVENT,2,FALSE) -> LDCT screening - TN | J40: =MIN($BE40:$BK40) -> 0.07831235998 | K40: =IF($H40=2,VLOOKUP($E40,TBL_STATE,7),FALSE) -> FALSE | L40: =IF($K40,IF($K40<>$Q$3,TRUE)) -> FALSE | M40: =IF((SUMIFS($A41,$H40,2)+SUMIFS($A41,$H40,8)+$A$3)=$A$3,FALSE,$A$3+$A41) -> FALSE | N40: =IF($O$3,IF($M40,$O$3-$M40),IF($M40,$U$3-$M40)) -> FALSE | O40: =VLOOKUP($E40,TBL_STATE,6) -> FALSE | P40: =IF($H40=9,($A$3+$A41),$I$3) -> 66.57641635 | Q40: =IF($H40=10,IF($F40="Pre*",TRUE,FALSE),FALSE) -> FALSE | R40: =IF($R$39=1,IF($R39=1,IF($A40<10,IF($A41>10,(1-(($A41-10)/$J40)),1),0),0),1) -> 1 | S40: =IF(AND($H40<6,$G40=0),$D40+$E$39,FALSE) -> 65.10629124 | T40: =IF($G40>$G39,c_LDCT+c_scrn_nurse,0)*IF($R40=0,0,1)*(1+d_costs)^(-$A40) -> 0 | U40: =IF($O40,CHOOSE($O40, IF($BL$3<0.25,c_rdtf_sIa_ini,IF($BL$3<1,c_rdtf_sIa_ini+(($BL$3-0.25)/0.75)*c_rdtf_sIa_rem_ind_yr,IF($BL$3<IF(Scenarios!$D$16=1,5,2),c_rdtf_sIa_ini+c_rdtf_sIa_rem_ind_yr+($BL$3-1)*c_rdtf_sIa_subyrs,c_rdtf_sIa_ini+c_rdtf_sIa_rem_ind_yr+c_rdtf_sIa_subyrs))), IF($BL$3<0.25,c_rdtf_sIb_ini,IF($BL$3<1,c_rdtf_sIb_ini+(($BL$3-0.25)/0.75)*c_rdtf_sIb_rem_ind_yr,IF($BL$3<IF(Scenarios!$D$16=1,5,2),c_rdtf_sIb_ini+c_rdtf_sIb_rem_ind_yr+($BL$3-1)*c_rdtf_sIb_subyrs,c_rdtf_sIb_ini+c_rdtf_sIb_rem_ind_yr+c_rdtf_sIb_subyrs))), IF($BL$3<0.25,c_rdtf_sIIa_ini,IF($BL$3<1,c_rdtf_sIIa_ini+(($BL$3-0.25)/0.75)*c_rdtf_sIIa_rem_ind_yr,IF($BL$3<IF(Scenarios!$D$16=1,5,2),c_rdtf_sIIa_ini+c_rdtf_sIIa_rem_ind_yr+($BL$3-1)*c_rdtf_sIIa_subyrs,c_rdtf_sIIa_ini+c_rdtf_sIIa_rem_ind_yr+c_rdtf_sIIa_subyrs))), IF($BL$3<0.25,c_rdtf_sIIb_ini,IF($BL$3<1,c_rdtf_sIIb_ini+(($BL$3-0.25)/0.75)*c_rdtf_sIIb_rem_ind_yr,IF($BL$3<IF(Scenarios!$D$16=1,5,2),c_rdtf_sIIb_ini+c_rdtf_sIIb_rem_ind_yr+($BL$3-1)*c_rdtf_sIIb_subyrs,c_rdtf_sIIb_ini+c_rdtf_sIIb_rem_ind_yr+c_rdtf_sIIb_subyrs))), IF($BL$3<0.25,c_rdtf_sIIIa_ini,IF($BL$3<1,c_rdtf_sIIIa_ini+(($BL$3-0.25)/0.75)*c_rdtf_sIIIa_rem_ind_yr,IF($BL$3<IF(Scenarios!$D$16=1,5,2),c_rdtf_sIIIa_ini+c_rdtf_sIIIa_rem_ind_yr+($BL$3-1)*c_rdtf_sIIIa_subyrs,c_rdtf_sIIIa_ini+c_rdtf_sIIIa_rem_ind_yr+c_rdtf_sIIIa_subyrs))), IF($BL$3<0.25,c_rdtf_sIIIb_ini,IF($BL$3<1,c_rdtf_sIIIb_ini+(($BL$3-0.25)/0.75)*c_rdtf_sIIIb_rem_ind_yr,IF($BL$3<IF(Scenarios!$D$16=1,5,2),c_rdtf_sIIIb_ini+c_rdtf_sIIIb_rem_ind_yr+($BL$3-1)*c_rdtf_sIIIb_subyrs,c_rdtf_sIIIb_ini+c_rdtf_sIIIb_rem_ind_yr+c_rdtf_sIIIb_subyrs))), IF($BL$3<0.25,c_rdtf_sIV_ini,IF($BL$3<1,c_rdtf_sIV_ini+(($BL$3-0.25)/0.75)*c_rdtf_sIV_rem_ind_yr,IF($BL$3<IF(Scenarios!$D$16=1,5,2),c_rdtf_sIV_ini+c_rdtf_sIV_rem_ind_yr+($BL$3-1)*c_rdtf_sIV_subyrs,c_rdtf_sIV_ini+c_rdtf_sIV_rem_ind_yr+c_rdtf_sIV_subyrs)))), IF($B40=3,c_false_pos,0)) *(1+d_costs)^(-$A40) -> 0 | V40: =IF($B40=9,c_eol_lung,0)*IF($R40=1,1,0)*(1+d_costs)^(-$A40) -> 0 | W40: =VLOOKUP($E40,TBL_STATE,IF($B$3=0,5,4)) -> 0.7816447302 | X40: =IF($J40=t_no_event,0,(INDEX($BS40:$BY40,MATCH($J40,$BE40:$BK40,0)))) -> -0.0003846153846 | Y40: =IF($J40=t_no_event,0,($X40*(1+d_benefits)^(-$A40))) -> -0.0003846153846 | Z40: =(($J40*$W40)*$R40)+$X40 -> 0.06082782811 | AA40: =$Y40+$W40*(EXP(-LN(1+d_benefits)*$A40)-EXP(-LN(1+d_benefits)*$A41))/LN(1+d_benefits) -> 0.0607454472 | AB40: =IF(AND($B40=8,$M39<MIN($S$40:$S$54)),1,0) -> 0 | AC40: =VLOOKUP(Logic!$A$29,TBL_EVENT,VLOOKUP($E40,TBL_STATE,3,FALSE),FALSE) -> TRUE | AD40: =$AD$26 -> 0.07831235998 | AE40: =IF($E40=Logic!$A$7,IF(VLOOKUP($G40+1,TBL_rand_scrn_rnd,2,FALSE)<spec_LDCT,Logic!$A$33,Logic!$A$31),IF(VLOOKUP($G40+1,TBL_rand_scrn_rnd,3,FALSE)<sens_LDCT,Logic!$A$30,Logic!$A$32)) -> 5 | AF40: =IF(AE40<6,IF(AE40=3,(u_dis_scrn_anx*(t_dis_scrn_anx/52))+(u_dis_fp*(t_dis_fp/12)),u_dis_scrn_anx*(t_dis_scrn_anx/52)),0) -> -0.0003846153846 | AG40: =VLOOKUP(Logic!$A$34,TBL_EVENT,VLOOKUP($E40,TBL_STATE,3,FALSE),FALSE) -> TRUE | AH40: =$H$3-$D40 -> 51.95059658 | AI40: =Logic!$A$34 -> 6 | AJ40: 0 | AK40: =VLOOKUP(Logic!$A$35,TBL_EVENT,VLOOKUP($E40,TBL_STATE,3,FALSE),FALSE) -> FALSE | AL40: =VLOOKUP($E40,TBL_pre_cl_prog,6) -> 200 | AM40: =Logic!$A$35 -> 7 | AN40: 0 | AO40: =VLOOKUP(Logic!$A$36,TBL_EVENT,VLOOKUP($E40,TBL_STATE,3,FALSE),FALSE) -> FALSE | AP40: =VLOOKUP($E40,TBL_cl_pres,6) -> 200 | AQ40: =Logic!$A$36 -> 8 | AR40: 0 | AS40: =VLOOKUP(Logic!$A$37,TBL_EVENT,VLOOKUP($E40,TBL_STATE,3,FALSE),FALSE) -> FALSE | AT40: =t_no_event -> 200 | AU40: =Logic!$A$37 -> 9 | AV40: 0 | AW40: =VLOOKUP(Logic!$A$38,TBL_EVENT,VLOOKUP($E40,TBL_STATE,3,FALSE),FALSE) -> TRUE | AX40: =$I$3-$D40 -> 3.470125118 | AY40: =Logic!$A$38 -> 10 | AZ40: 0 | BA40: =IF(VLOOKUP(Logic!$A$29,TBL_EVENT,VLOOKUP($E40,TBL_STATE,3,FALSE),FALSE), IF(IF($G40=1,($D$39-MIN(BE40:BJ40)-$A40), IF($G40=2,($E$39-MIN(BE40-BJ40)-$A40), t_no_event))<0,TRUE,FALSE),FALSE) -> FALSE | BB40: =t_no_event -> 200 | BC40: =IF($E40=Logic!$A$7,IF(RAND()<spec_LDCT,Logic!$A$33,Logic!$A$31),IF(RAND()<sens_LDCT,Logic!$A$30,Logic!$A$32)) -> 5 | BD40: =IF(BC40<6,IF(BC40=3,(u_dis_scrn_anx*(t_dis_scrn_anx/52))+(u_dis_fp*(t_dis_fp/12)),u_dis_scrn_anx*(t_dis_scrn_anx/52)),0) -> -0.0003846153846 | BE40: =IF($AC40,$AD40,t_no_event) -> 0.07831235998 | BF40: =IF($AG40,$AH40,t_no_event) -> 51.95059658 | BG40: =IF($AK40,$AL40,t_no_event) -> 200 | BH40: =IF($AO40,$AP40,t_no_event) -> 200 | BI40: =IF($AS40,$AT40,t_no_event) -> 200 | BJ40: =IF($AW40,$AX40,t_no_event) -> 3.470125118 | BK40: =IF($BA40,$BB40,t_no_event) -> 200 | BL40: =$AE40 -> 5 | BM40: =$AI40 -> 6 | BN40: =$AM40 -> 7 | BO40: =$AQ40 -> 8 | BP40: =$AU40 -> 9 | BQ40: =$AY40 -> 10 | BR40: =$BC40 -> 5 | BS40: =$AF40 -> -0.0003846153846 | BT40: =$AJ40 -> 0 | BU40: =$AN40 -> 0 | BV40: =$AR40 -> 0 | BW40: =$AV40 -> 0 | BX40: =$AZ40 -> 0 | BY40: =IF(Scenario_mode=11,0,$BD40) -> -0.0003846153846
A41: =$A40+$J40 -> 0.07831235998 | B41: =$H40 -> 5 | C41: =$I40 -> LDCT screening - TN | D41: =IF($E40="P",FALSE,IF(D40,$A$3+$A41,FALSE)) -> 63.1846036 | E41: =VLOOKUP($B41,TBL_EVENT_OUTCOME,VLOOKUP($E40,TBL_STATE,3,FALSE),FALSE) -> A | F41: =VLOOKUP($E41,TBL_STATE,2) -> No lung cancer | G41: =IF($H40<6,1,0)+$G40 -> 1 | H41: =IF($H40<9,INDEX($BL41:$BR41,MATCH($J41,$BE41:$BK41,0)),100) -> 3 | I41: =IF($H40>8,FALSE,VLOOKUP($H41,TBL_EVENT,2,FALSE)) -> LDCT screening - FP | J41: 0.92168764 | K41: FALSE | L41: FALSE | M41: =IF((SUMIFS($A42,$H41,2)+SUMIFS($A42,$H41,8)+$A$3)=$A$3,FALSE,$A$3+$A42) -> FALSE | N41: =IF($O$3,IF($M41,$O$3-$M41),IF($M41,$U$3-$M41)) -> FALSE | O41: FALSE | P41: 66.57641635 | Q41: =IF($H41=10,IF($F41="Pre*",TRUE,FALSE),FALSE) -> FALSE | R41: 1 | S41: =IF(AND($H41<6,$G41=0),$D41+$E$39,FALSE) -> FALSE | T41: 104.7715187 | U41: =IF($O41,CHOOSE($O41, IF($BL$3<0.25,c_rdtf_sIa_ini,IF($BL$3<1,c_rdtf_sIa_ini+(($BL$3-0.25)/0.75)*c_rdtf_sIa_rem_ind_yr,IF($BL$3<IF(Scenarios!$D$16=1,5,2),c_rdtf_sIa_ini+c_rdtf_sIa_rem_ind_yr+($BL$3-1)*c_rdtf_sIa_subyrs,c_rdtf_sIa_ini+c_rdtf_sIa_rem_ind_yr+c_rdtf_sIa_subyrs))), IF($BL$3<0.25,c_rdtf_sIb_ini,IF($BL$3<1,c_rdtf_sIb_ini+(($BL$3-0.25)/0.75)*c_rdtf_sIb_rem_ind_yr,IF($BL$3<IF(Scenarios!$D$16=1,5,2),c_rdtf_sIb_ini+c_rdtf_sIb_rem_ind_yr+($BL$3-1)*c_rdtf_sIb_subyrs,c_rdtf_sIb_ini+c_rdtf_sIb_rem_ind_yr+c_rdtf_sIb_subyrs))), IF($BL$3<0.25,c_rdtf_sIIa_ini,IF($BL$3<1,c_rdtf_sIIa_ini+(($BL$3-0.25)/0.75)*c_rdtf_sIIa_rem_ind_yr,IF($BL$3<IF(Scenarios!$D$16=1,5,2),c_rdtf_sIIa_ini+c_rdtf_sIIa_rem_ind_yr+($BL$3-1)*c_rdtf_sIIa_subyrs,c_rdtf_sIIa_ini+c_rdtf_sIIa_rem_ind_yr+c_rdtf_sIIa_subyrs))), IF($BL$3<0.25,c_rdtf_sIIb_ini,IF($BL$3<1,c_rdtf_sIIb_ini+(($BL$3-0.25)/0.75)*c_rdtf_sIIb_rem_ind_yr,IF($BL$3<IF(Scenarios!$D$16=1,5,2),c_rdtf_sIIb_ini+c_rdtf_sIIb_rem_ind_yr+($BL$3-1)*c_rdtf_sIIb_subyrs,c_rdtf_sIIb_ini+c_rdtf_sIIb_rem_ind_yr+c_rdtf_sIIb_subyrs))), IF($BL$3<0.25,c_rdtf_sIIIa_ini,IF($BL$3<1,c_rdtf_sIIIa_ini+(($BL$3-0.25)/0.75)*c_rdtf_sIIIa_rem_ind_yr,IF($BL$3<IF(Scenarios!$D$16=1,5,2),c_rdtf_sIIIa_ini+c_rdtf_sIIIa_rem_ind_yr+($BL$3-1)*c_rdtf_sIIIa_subyrs,c_rdtf_sIIIa_ini+c_rdtf_sIIIa_rem_ind_yr+c_rdtf_sIIIa_subyrs))), IF($BL$3<0.25,c_rdtf_sIIIb_ini,IF($BL$3<1,c_rdtf_sIIIb_ini+(($BL$3-0.25)/0.75)*c_rdtf_sIIIb_rem_ind_yr,IF($BL$3<IF(Scenarios!$D$16=1,5,2),c_rdtf_sIIIb_ini+c_rdtf_sIIIb_rem_ind_yr+($BL$3-1)*c_rdtf_sIIIb_subyrs,c_rdtf_sIIIb_ini+c_rdtf_sIIIb_rem_ind_yr+c_rdtf_sIIIb_subyrs))), IF($BL$3<0.25,c_rdtf_sIV_ini,IF($BL$3<1,c_rdtf_sIV_ini+(($BL$3-0.25)/0.75)*c_rdtf_sIV_rem_ind_yr,IF($BL$3<IF(Scenarios!$D$16=1,5,2),c_rdtf_sIV_ini+c_rdtf_sIV_rem_ind_yr+($BL$3-1)*c_rdtf_sIV_subyrs,c_rdtf_sIV_ini+c_rdtf_sIV_rem_ind_yr+c_rdtf_sIV_subyrs)))), IF($B41=3,c_false_pos,0)) *(1+d_costs)^(-$A41) -> 0 | V41: 0 | W41: 0.7816447302 | X41: -0.01613461538 | Y41: -0.01609120631 | Z41: 0.7042976713 | AA41: 0.6911314715 | AB41: =IF(AND($B41=8,$M40<MIN($S$40:$S$54)),1,0) -> 0 | AC41: =IF($G41<1,VLOOKUP(Logic!$A$29,TBL_EVENT,VLOOKUP($E41,TBL_STATE,3,FALSE),FALSE),FALSE) -> FALSE | AD41: =IF(G41=0,$AD$40-$A41,$AD$40) -> 0.07831235998 | AE41: =IF($E41=Logic!$A$7,IF(VLOOKUP($G41+1,TBL_rand_scrn_rnd,2,FALSE)<spec_LDCT,Logic!$A$33,Logic!$A$31),IF(VLOOKUP($G41+1,TBL_rand_scrn_rnd,3,FALSE)<sens_LDCT,Logic!$A$30,Logic!$A$32)) -> 5 | AF41: -0.0003846153846 | AG41: =VLOOKUP(Logic!$A$34,TBL_EVENT,VLOOKUP($E41,TBL_STATE,3,FALSE),FALSE) -> TRUE | AH41: 51.87228422 | AI41: =Logic!$A$34 -> 6 | AJ41: 0 | AK41: =VLOOKUP(Logic!$A$35,TBL_EVENT,VLOOKUP($E41,TBL_STATE,3,FALSE),FALSE) -> FALSE | AL41: =IF($B41=4,VLOOKUP($E41,TBL_pre_cl_prog,6,FALSE)-$J40,VLOOKUP($E41,TBL_pre_cl_prog,6,FALSE)) -> 200 | AM41: =Logic!$A$35 -> 7 | AN41: 0 | AO41: =VLOOKUP(Logic!$A$36,TBL_EVENT,VLOOKUP($E41,TBL_STATE,3,FALSE),FALSE) -> FALSE | AP41: =IF($B41=4,VLOOKUP($E41,TBL_cl_pres,6,FALSE)-$J40,VLOOKUP($E41,TBL_cl_pres,6,FALSE)) -> 200 | AQ41: =Logic!$A$36 -> 8 | AR41: 0 | AS41: =VLOOKUP(Logic!$A$37,TBL_EVENT,VLOOKUP($E41,TBL_STATE,3,FALSE),FALSE) -> FALSE | AT41: =IF($M40,$CA41+IF($BZ41>$CA41,CHOOSE(Scenarios!$D$10+1,1,0,0.5)*$BZ41-$CA41,0),t_no_event) -> 200 | AU41: =Logic!$A$37 -> 9 | AV41: 0 | AW41: =VLOOKUP(Logic!$A$38,TBL_EVENT,VLOOKUP($E41,TBL_STATE,3,FALSE),FALSE) -> TRUE | AX41: 3.391812758 | AY41: =Logic!$A$38 -> 10 | AZ41: 0 | BA41: =IF(VLOOKUP(Logic!$A$29,TBL_EVENT,VLOOKUP($E41,TBL_STATE,3,FALSE),FALSE), IF(IF($G41=1,($D$39-MIN(BE41:BJ41)-$A41), IF($G41=2,($E$39-MIN(BE41-BJ41)-$A41), t_no_event))<0,TRUE,FALSE),FALSE) -> TRUE | BB41: =IF($BA41,IF($A41=$G40,1,1-($A41-ROUNDDOWN($A41,0))),t_no_event) -> 0.92168764 | BC41: =IF($E41=Logic!$A$7,IF(RAND()<spec_LDCT,Logic!$A$33,Logic!$A$31),IF(RAND()<sens_LDCT,Logic!$A$30,Logic!$A$32)) -> 3 | BD41: -0.01613461538 | BE41: 200 | BF41: 51.87228422 | BG41: 200 | BH41: 200 | BI41: =IF($AS41,$AT27,t_no_event) -> 200 | BJ41: 3.391812758 | BK41: 0.92168764 | BL41: =$AE41 -> 5 | BM41: =$AI41 -> 6 | BN41: =$AM41 -> 7 | BO41: =$AQ41 -> 8 | BP41: =$AU41 -> 9 | BQ41: =$AY41 -> 10 | BR41: 3 | BS41: =$AF41 -> -0.0003846153846 | BT41: =$AJ41 -> 0 | BU41: =$AN41 -> 0 | BV41: =$AR41 -> 0 | BW41: =$AV41 -> 0 | BX41: =$AZ41 -> 0 | BY41: -0.01613461538 | BZ41: =IF($M40,CHOOSE($O41,survival_sIa,survival_sIb,survival_sIIa,survival_sIIb,survival_sIIIa,survival_sIIIb,survival_sIV),t_no_event) -> 200 | CA41: =IF($M40,CHOOSE(IF($Q$3,$Q$3,8),survival_sIa,survival_sIb,survival_sIIa,survival_sIIb,survival_sIIIa,survival_sIIIb,survival_sIV,t_no_event)+$N40,t_no_event) -> 200
A42: 1 | B42: =$H41 -> 3 | C42: =$I41 -> LDCT screening - FP | D42: 64.10629124 | E42: A | F42: No lung cancer | G42: =IF($H41<6,1,0)+$G41 -> 2 | H42: 3 | I42: LDCT screening - FP | J42: 1 | K42: FALSE | L42: FALSE | M42: FALSE | N42: FALSE | O42: FALSE | P42: 66.57641635 | Q42: FALSE | R42: 1 | S42: FALSE | T42: 101.5016035 | U42: =IF($O42,CHOOSE($O42, IF($BL$3<0.25,c_rdtf_sIa_ini,IF($BL$3<1,c_rdtf_sIa_ini+(($BL$3-0.25)/0.75)*c_rdtf_sIa_rem_ind_yr,IF($BL$3<IF(Scenarios!$D$16=1,5,2),c_rdtf_sIa_ini+c_rdtf_sIa_rem_ind_yr+($BL$3-1)*c_rdtf_sIa_subyrs,c_rdtf_sIa_ini+c_rdtf_sIa_rem_ind_yr+c_rdtf_sIa_subyrs))), IF($BL$3<0.25,c_rdtf_sIb_ini,IF($BL$3<1,c_rdtf_sIb_ini+(($BL$3-0.25)/0.75)*c_rdtf_sIb_rem_ind_yr,IF($BL$3<IF(Scenarios!$D$16=1,5,2),c_rdtf_sIb_ini+c_rdtf_sIb_rem_ind_yr+($BL$3-1)*c_rdtf_sIb_subyrs,c_rdtf_sIb_ini+c_rdtf_sIb_rem_ind_yr+c_rdtf_sIb_subyrs))), IF($BL$3<0.25,c_rdtf_sIIa_ini,IF($BL$3<1,c_rdtf_sIIa_ini+(($BL$3-0.25)/0.75)*c_rdtf_sIIa_rem_ind_yr,IF($BL$3<IF(Scenarios!$D$16=1,5,2),c_rdtf_sIIa_ini+c_rdtf_sIIa_rem_ind_yr+($BL$3-1)*c_rdtf_sIIa_subyrs,c_rdtf_sIIa_ini+c_rdtf_sIIa_rem_ind_yr+c_rdtf_sIIa_subyrs))), IF($BL$3<0.25,c_rdtf_sIIb_ini,IF($BL$3<1,c_rdtf_sIIb_ini+(($BL$3-0.25)/0.75)*c_rdtf_sIIb_rem_ind_yr,IF($BL$3<IF(Scenarios!$D$16=1,5,2),c_rdtf_sIIb_ini+c_rdtf_sIIb_rem_ind_yr+($BL$3-1)*c_rdtf_sIIb_subyrs,c_rdtf_sIIb_ini+c_rdtf_sIIb_rem_ind_yr+c_rdtf_sIIb_subyrs))), IF($BL$3<0.25,c_rdtf_sIIIa_ini,IF($BL$3<1,c_rdtf_sIIIa_ini+(($BL$3-0.25)/0.75)*c_rdtf_sIIIa_rem_ind_yr,IF($BL$3<IF(Scenarios!$D$16=1,5,2),c_rdtf_sIIIa_ini+c_rdtf_sIIIa_rem_ind_yr+($BL$3-1)*c_rdtf_sIIIa_subyrs,c_rdtf_sIIIa_ini+c_rdtf_sIIIa_rem_ind_yr+c_rdtf_sIIIa_subyrs))), IF($BL$3<0.25,c_rdtf_sIIIb_ini,IF($BL$3<1,c_rdtf_sIIIb_ini+(($BL$3-0.25)/0.75)*c_rdtf_sIIIb_rem_ind_yr,IF($BL$3<IF(Scenarios!$D$16=1,5,2),c_rdtf_sIIIb_ini+c_rdtf_sIIIb_rem_ind_yr+($BL$3-1)*c_rdtf_sIIIb_subyrs,c_rdtf_sIIIb_ini+c_rdtf_sIIIb_rem_ind_yr+c_rdtf_sIIIb_subyrs))), IF($BL$3<0.25,c_rdtf_sIV_ini,IF($BL$3<1,c_rdtf_sIV_ini+(($BL$3-0.25)/0.75)*c_rdtf_sIV_rem_ind_yr,IF($BL$3<IF(Scenarios!$D$16=1,5,2),c_rdtf_sIV_ini+c_rdtf_sIV_rem_ind_yr+($BL$3-1)*c_rdtf_sIV_subyrs,c_rdtf_sIV_ini+c_rdtf_sIV_rem_ind_yr+c_rdtf_sIV_subyrs)))), IF($B42=3,c_false_pos,0)) *(1+d_costs)^(-$A42) -> 178.3841439 | V42: 0 | W42: 0.7816447302 | X42: -0.01613461538 | Y42: -0.01558900037 | Z42: 0.7655101148 | AA42: 0.7267807971 | AB42: 0 | AC42: =IF($G42<1,VLOOKUP(Logic!$A$29,TBL_EVENT,VLOOKUP($E42,TBL_STATE,3,FALSE),FALSE),FALSE) -> FALSE | AD42: 0.07831235998 | AE42: =IF($E42=Logic!$A$7,IF(VLOOKUP($G42+1,TBL_rand_scrn_rnd,2,FALSE)<spec_LDCT,Logic!$A$33,Logic!$A$31),IF(VLOOKUP($G42+1,TBL_rand_scrn_rnd,3,FALSE)<sens_LDCT,Logic!$A$30,Logic!$A$32)) -> 5 | AF42: -0.0003846153846 | AG42: =VLOOKUP(Logic!$A$34,TBL_EVENT,VLOOKUP($E42,TBL_STATE,3,FALSE),FALSE) -> TRUE | AH42: 50.95059658 | AI42: =Logic!$A$34 -> 6 | AJ42: 0 | AK42: =VLOOKUP(Logic!$A$35,TBL_EVENT,VLOOKUP($E42,TBL_STATE,3,FALSE),FALSE) -> FALSE | AL42: =IF($B42=4,VLOOKUP($E42,TBL_pre_cl_prog,6,FALSE)-$J41,VLOOKUP($E42,TBL_pre_cl_prog,6,FALSE)) -> 200 | AM42: =Logic!$A$35 -> 7 | AN42: 0 | AO42: =VLOOKUP(Logic!$A$36,TBL_EVENT,VLOOKUP($E42,TBL_STATE,3,FALSE),FALSE) -> FALSE | AP42: 200 | AQ42: =Logic!$A$36 -> 8 | AR42: 0 | AS42: =VLOOKUP(Logic!$A$37,TBL_EVENT,VLOOKUP($E42,TBL_STATE,3,FALSE),FALSE) -> FALSE | AT42: =IF($M41,$CA42+IF($BZ42>$CA42,CHOOSE(Scenarios!$D$10+1,1,0,0.5)*$BZ42-$CA42,0),t_no_event) -> 200 | AU42: =Logic!$A$37 -> 9 | AV42: 0 | AW42: =VLOOKUP(Logic!$A$38,TBL_EVENT,VLOOKUP($E42,TBL_STATE,3,FALSE),FALSE) -> TRUE | AX42: 2.470125118 | AY42: =Logic!$A$38 -> 10 | AZ42: 0 | BA42: =IF(VLOOKUP(Logic!$A$29,TBL_EVENT,VLOOKUP($E42,TBL_STATE,3,FALSE),FALSE), IF(IF($G42=1,($D$39-MIN(BE42:BJ42)-$A42), IF($G42=2,($E$39-MIN(BE42-BJ42)-$A42), t_no_event))<0,TRUE,FALSE),FALSE) -> TRUE | BB42: =IF($BA42,IF($A42=$G41,1,1-($A42-ROUNDDOWN($A42,0))),t_no_event) -> 1 | BC42: =IF($E42=Logic!$A$7,IF(RAND()<spec_LDCT,Logic!$A$33,Logic!$A$31),IF(RAND()<sens_LDCT,Logic!$A$30,Logic!$A$32)) -> 3 | BD42: -0.01613461538 | BE42: 200 | BF42: 50.95059658 | BG42: 200 | BH42: 200 | BI42: 200 | BJ42: 2.470125118 | BK42: 1 | BL42: =$AE42 -> 5 | BM42: =$AI42 -> 6 | BN42: =$AM42 -> 7 | BO42: =$AQ42 -> 8 | BP42: =$AU42 -> 9 | BQ42: =$AY42 -> 10 | BR42: 3 | BS42: =$AF42 -> -0.0003846153846 | BT42: =$AJ42 -> 0 | BU42: =$AN42 -> 0 | BV42: =$AR42 -> 0 | BW42: =$AV42 -> 0 | BX42: =$AZ42 -> 0 | BY42: -0.01613461538 | BZ42: =IF($M41,CHOOSE($O42,survival_sIa,survival_sIb,survival_sIIa,survival_sIIb,survival_sIIIa,survival_sIIIb,survival_sIV),t_no_event) -> 200 | CA42: 200
A43: 2 | B43: 3 | C43: LDCT screening - FP | D43: 65.10629124 | E43: A | F43: No lung cancer | G43: 3 | H43: 10 | I43: Non-lung cancer death | J43: 1.470125118 | K43: FALSE | L43: FALSE | M43: FALSE | N43: FALSE | O43: FALSE | P43: =IF($H43=9,($A$3+$A44),$I$3) -> 66.57641635 | Q43: FALSE | R43: 1 | S43: FALSE | T43: 98.06918217 | U43: =IF($O43,CHOOSE($O43, IF($BL$3<0.25,c_rdtf_sIa_ini,IF($BL$3<1,c_rdtf_sIa_ini+(($BL$3-0.25)/0.75)*c_rdtf_sIa_rem_ind_yr,IF($BL$3<IF(Scenarios!$D$16=1,5,2),c_rdtf_sIa_ini+c_rdtf_sIa_rem_ind_yr+($BL$3-1)*c_rdtf_sIa_subyrs,c_rdtf_sIa_ini+c_rdtf_sIa_rem_ind_yr+c_rdtf_sIa_subyrs))), IF($BL$3<0.25,c_rdtf_sIb_ini,IF($BL$3<1,c_rdtf_sIb_ini+(($BL$3-0.25)/0.75)*c_rdtf_sIb_rem_ind_yr,IF($BL$3<IF(Scenarios!$D$16=1,5,2),c_rdtf_sIb_ini+c_rdtf_sIb_rem_ind_yr+($BL$3-1)*c_rdtf_sIb_subyrs,c_rdtf_sIb_ini+c_rdtf_sIb_rem_ind_yr+c_rdtf_sIb_subyrs))), IF($BL$3<0.25,c_rdtf_sIIa_ini,IF($BL$3<1,c_rdtf_sIIa_ini+(($BL$3-0.25)/0.75)*c_rdtf_sIIa_rem_ind_yr,IF($BL$3<IF(Scenarios!$D$16=1,5,2),c_rdtf_sIIa_ini+c_rdtf_sIIa_rem_ind_yr+($BL$3-1)*c_rdtf_sIIa_subyrs,c_rdtf_sIIa_ini+c_rdtf_sIIa_rem_ind_yr+c_rdtf_sIIa_subyrs))), IF($BL$3<0.25,c_rdtf_sIIb_ini,IF($BL$3<1,c_rdtf_sIIb_ini+(($BL$3-0.25)/0.75)*c_rdtf_sIIb_rem_ind_yr,IF($BL$3<IF(Scenarios!$D$16=1,5,2),c_rdtf_sIIb_ini+c_rdtf_sIIb_rem_ind_yr+($BL$3-1)*c_rdtf_sIIb_subyrs,c_rdtf_sIIb_ini+c_rdtf_sIIb_rem_ind_yr+c_rdtf_sIIb_subyrs))), IF($BL$3<0.25,c_rdtf_sIIIa_ini,IF($BL$3<1,c_rdtf_sIIIa_ini+(($BL$3-0.25)/0.75)*c_rdtf_sIIIa_rem_ind_yr,IF($BL$3<IF(Scenarios!$D$16=1,5,2),c_rdtf_sIIIa_ini+c_rdtf_sIIIa_rem_ind_yr+($BL$3-1)*c_rdtf_sIIIa_subyrs,c_rdtf_sIIIa_ini+c_rdtf_sIIIa_rem_ind_yr+c_rdtf_sIIIa_subyrs))), IF($BL$3<0.25,c_rdtf_sIIIb_ini,IF($BL$3<1,c_rdtf_sIIIb_ini+(($BL$3-0.25)/0.75)*c_rdtf_sIIIb_rem_ind_yr,IF($BL$3<IF(Scenarios!$D$16=1,5,2),c_rdtf_sIIIb_ini+c_rdtf_sIIIb_rem_ind_yr+($BL$3-1)*c_rdtf_sIIIb_subyrs,c_rdtf_sIIIb_ini+c_rdtf_sIIIb_rem_ind_yr+c_rdtf_sIIIb_subyrs))), IF($BL$3<0.25,c_rdtf_sIV_ini,IF($BL$3<1,c_rdtf_sIV_ini+(($BL$3-0.25)/0.75)*c_rdtf_sIV_rem_ind_yr,IF($BL$3<IF(Scenarios!$D$16=1,5,2),c_rdtf_sIV_ini+c_rdtf_sIV_rem_ind_yr+($BL$3-1)*c_rdtf_sIV_subyrs,c_rdtf_sIV_ini+c_rdtf_sIV_rem_ind_yr+c_rdtf_sIV_subyrs)))), IF($B43=3,c_false_pos,0)) *(1+d_costs)^(-$A43) -> 172.3518298 | V43: 0 | W43: 0.7816447302 | X43: 0 | Y43: 0 | Z43: 1.149115551 | AA43: 1.046037356 | AB43: 0 | AC43: =IF($G43<1,VLOOKUP(Logic!$A$29,TBL_EVENT,VLOOKUP($E43,TBL_STATE,3,FALSE),FALSE),FALSE) -> FALSE | AD43: 0.07831235998 | AE43: =IF($E43=Logic!$A$7,IF(VLOOKUP($G43+1,TBL_rand_scrn_rnd,2,FALSE)<spec_LDCT,Logic!$A$33,Logic!$A$31),IF(VLOOKUP($G43+1,TBL_rand_scrn_rnd,3,FALSE)<sens_LDCT,Logic!$A$30,Logic!$A$32)) -> 3 | AF43: -0.01613461538 | AG43: =VLOOKUP(Logic!$A$34,TBL_EVENT,VLOOKUP($E43,TBL_STATE,3,FALSE),FALSE) -> TRUE | AH43: 49.95059658 | AI43: =Logic!$A$34 -> 6 | AJ43: 0 | AK43: =VLOOKUP(Logic!$A$35,TBL_EVENT,VLOOKUP($E43,TBL_STATE,3,FALSE),FALSE) -> FALSE | AL43: 200 | AM43: =Logic!$A$35 -> 7 | AN43: 0 | AO43: =VLOOKUP(Logic!$A$36,TBL_EVENT,VLOOKUP($E43,TBL_STATE,3,FALSE),FALSE) -> FALSE | AP43: 200 | AQ43: =Logic!$A$36 -> 8 | AR43: 0 | AS43: =VLOOKUP(Logic!$A$37,TBL_EVENT,VLOOKUP($E43,TBL_STATE,3,FALSE),FALSE) -> FALSE | AT43: =IF($M42,$CA43+IF($BZ43>$CA43,CHOOSE(Scenarios!$D$10+1,1,0,0.5)*$BZ43-$CA43,0),t_no_event) -> 200 | AU43: =Logic!$A$37 -> 9 | AV43: 0 | AW43: =VLOOKUP(Logic!$A$38,TBL_EVENT,VLOOKUP($E43,TBL_STATE,3,FALSE),FALSE) -> TRUE | AX43: 1.470125118 | AY43: =Logic!$A$38 -> 10 | AZ43: 0 | BA43: =IF(VLOOKUP(Logic!$A$29,TBL_EVENT,VLOOKUP($E43,TBL_STATE,3,FALSE),FALSE), IF(IF($G43=1,($D$39-MIN(BE43:BJ43)-$A43), IF($G43=2,($E$39-MIN(BE43-BJ43)-$A43), t_no_event))<0,TRUE,FALSE),FALSE) -> FALSE | BB43: 200 | BC43: =IF($E43=Logic!$A$7,IF(RAND()<spec_LDCT,Logic!$A$33,Logic!$A$31),IF(RAND()<sens_LDCT,Logic!$A$30,Logic!$A$32)) -> 5 | BD43: -0.0003846153846 | BE43: 200 | BF43: 49.95059658 | BG43: 200 | BH43: 200 | BI43: 200 | BJ43: 1.470125118 | BK43: 200 | BL43: 3 | BM43: 6 | BN43: 7 | BO43: 8 | BP43: 9 | BQ43: 10 | BR43: 5 | BS43: -0.01613461538 | BT43: 0 | BU43: 0 | BV43: 0 | BW43: 0 | BX43: 0 | BY43: -0.0003846153846 | BZ43: =IF($M42,CHOOSE($O43,survival_sIa,survival_sIb,survival_sIIa,survival_sIIb,survival_sIIIa,survival_sIIIb,survival_sIV),t_no_event) -> 200 | CA43: 200
A44: 3.470125118 | B44: 10 | C44: Non-lung cancer death | D44: 66.57641635 | E44: P | F44: Death | G44: 3 | H44: 100 | I44: FALSE | J44: 200 | K44: FALSE | L44: FALSE | M44: FALSE | N44: FALSE | O44: FALSE | P44: =IF($H44=9,($A$3+$A45),$I$3) -> 66.57641635 | Q44: FALSE | R44: 1 | S44: FALSE | T44: 0 | U44: =IF($O44,CHOOSE($O44, IF($BL$3<0.25,c_rdtf_sIa_ini,IF($BL$3<1,c_rdtf_sIa_ini+(($BL$3-0.25)/0.75)*c_rdtf_sIa_rem_ind_yr,IF($BL$3<IF(Scenarios!$D$16=1,5,2),c_rdtf_sIa_ini+c_rdtf_sIa_rem_ind_yr+($BL$3-1)*c_rdtf_sIa_subyrs,c_rdtf_sIa_ini+c_rdtf_sIa_rem_ind_yr+c_rdtf_sIa_subyrs))), IF($BL$3<0.25,c_rdtf_sIb_ini,IF($BL$3<1,c_rdtf_sIb_ini+(($BL$3-0.25)/0.75)*c_rdtf_sIb_rem_ind_yr,IF($BL$3<IF(Scenarios!$D$16=1,5,2),c_rdtf_sIb_ini+c_rdtf_sIb_rem_ind_yr+($BL$3-1)*c_rdtf_sIb_subyrs,c_rdtf_sIb_ini+c_rdtf_sIb_rem_ind_yr+c_rdtf_sIb_subyrs))), IF($BL$3<0.25,c_rdtf_sIIa_ini,IF($BL$3<1,c_rdtf_sIIa_ini+(($BL$3-0.25)/0.75)*c_rdtf_sIIa_rem_ind_yr,IF($BL$3<IF(Scenarios!$D$16=1,5,2),c_rdtf_sIIa_ini+c_rdtf_sIIa_rem_ind_yr+($BL$3-1)*c_rdtf_sIIa_subyrs,c_rdtf_sIIa_ini+c_rdtf_sIIa_rem_ind_yr+c_rdtf_sIIa_subyrs))), IF($BL$3<0.25,c_rdtf_sIIb_ini,IF($BL$3<1,c_rdtf_sIIb_ini+(($BL$3-0.25)/0.75)*c_rdtf_sIIb_rem_ind_yr,IF($BL$3<IF(Scenarios!$D$16=1,5,2),c_rdtf_sIIb_ini+c_rdtf_sIIb_rem_ind_yr+($BL$3-1)*c_rdtf_sIIb_subyrs,c_rdtf_sIIb_ini+c_rdtf_sIIb_rem_ind_yr+c_rdtf_sIIb_subyrs))), IF($BL$3<0.25,c_rdtf_sIIIa_ini,IF($BL$3<1,c_rdtf_sIIIa_ini+(($BL$3-0.25)/0.75)*c_rdtf_sIIIa_rem_ind_yr,IF($BL$3<IF(Scenarios!$D$16=1,5,2),c_rdtf_sIIIa_ini+c_rdtf_sIIIa_rem_ind_yr+($BL$3-1)*c_rdtf_sIIIa_subyrs,c_rdtf_sIIIa_ini+c_rdtf_sIIIa_rem_ind_yr+c_rdtf_sIIIa_subyrs))), IF($BL$3<0.25,c_rdtf_sIIIb_ini,IF($BL$3<1,c_rdtf_sIIIb_ini+(($BL$3-0.25)/0.75)*c_rdtf_sIIIb_rem_ind_yr,IF($BL$3<IF(Scenarios!$D$16=1,5,2),c_rdtf_sIIIb_ini+c_rdtf_sIIIb_rem_ind_yr+($BL$3-1)*c_rdtf_sIIIb_subyrs,c_rdtf_sIIIb_ini+c_rdtf_sIIIb_rem_ind_yr+c_rdtf_sIIIb_subyrs))), IF($BL$3<0.25,c_rdtf_sIV_ini,IF($BL$3<1,c_rdtf_sIV_ini+(($BL$3-0.25)/0.75)*c_rdtf_sIV_rem_ind_yr,IF($BL$3<IF(Scenarios!$D$16=1,5,2),c_rdtf_sIV_ini+c_rdtf_sIV_rem_ind_yr+($BL$3-1)*c_rdtf_sIV_subyrs,c_rdtf_sIV_ini+c_rdtf_sIV_rem_ind_yr+c_rdtf_sIV_subyrs)))), IF($B44=3,c_false_pos,0)) *(1+d_costs)^(-$A44) -> 0 | V44: 0 | W44: 0 | X44: 0 | Y44: 0 | Z44: 0 | AA44: 0 | AB44: 0 | AC44: =IF($G44<1,VLOOKUP(Logic!$A$29,TBL_EVENT,VLOOKUP($E44,TBL_STATE,3,FALSE),FALSE),FALSE) -> FALSE | AD44: 0.07831235998 | AE44: =IF($E44=Logic!$A$7,IF(VLOOKUP($G44+1,TBL_rand_scrn_rnd,2,FALSE)<spec_LDCT,Logic!$A$33,Logic!$A$31),IF(VLOOKUP($G44+1,TBL_rand_scrn_rnd,3,FALSE)<sens_LDCT,Logic!$A$30,Logic!$A$32)) -> 2 | AF44: -0.0003846153846 | AG44: =VLOOKUP(Logic!$A$34,TBL_EVENT,VLOOKUP($E44,TBL_STATE,3,FALSE),FALSE) -> FALSE | AH44: 48.48047147 | AI44: =Logic!$A$34 -> 6 | AJ44: 0 | AK44: =VLOOKUP(Logic!$A$35,TBL_EVENT,VLOOKUP($E44,TBL_STATE,3,FALSE),FALSE) -> FALSE | AL44: 200 | AM44: =Logic!$A$35 -> 7 | AN44: 0 | AO44: =VLOOKUP(Logic!$A$36,TBL_EVENT,VLOOKUP($E44,TBL_STATE,3,FALSE),FALSE) -> FALSE | AP44: 200 | AQ44: =Logic!$A$36 -> 8 | AR44: 0 | AS44: =VLOOKUP(Logic!$A$37,TBL_EVENT,VLOOKUP($E44,TBL_STATE,3,FALSE),FALSE) -> FALSE | AT44: =IF($M43,$CA44+IF($BZ44>$CA44,CHOOSE(Scenarios!$D$10+1,1,0,0.5)*$BZ44-$CA44,0),t_no_event) -> 200 | AU44: =Logic!$A$37 -> 9 | AV44: 0 | AW44: =VLOOKUP(Logic!$A$38,TBL_EVENT,VLOOKUP($E44,TBL_STATE,3,FALSE),FALSE) -> FALSE | AX44: 0 | AY44: =Logic!$A$38 -> 10 | AZ44: 0 | BA44: =IF(VLOOKUP(Logic!$A$29,TBL_EVENT,VLOOKUP($E44,TBL_STATE,3,FALSE),FALSE), IF(IF($G44=1,($D$39-MIN(BE44:BJ44)-$A44), IF($G44=2,($E$39-MIN(BE44-BJ44)-$A44), t_no_event))<0,TRUE,FALSE),FALSE) -> FALSE | BB44: 200 | BC44: =IF($E44=Logic!$A$7,IF(RAND()<spec_LDCT,Logic!$A$33,Logic!$A$31),IF(RAND()<sens_LDCT,Logic!$A$30,Logic!$A$32)) -> 4 | BD44: -0.0003846153846 | BE44: 200 | BF44: 200 | BG44: 200 | BH44: 200 | BI44: 200 | BJ44: 200 | BK44: 200 | BL44: 2 | BM44: 6 | BN44: 7 | BO44: 8 | BP44: 9 | BQ44: 10 | BR44: 4 | BS44: -0.0003846153846 | BT44: 0 | BU44: 0 | BV44: 0 | BW44: 0 | BX44: 0 | BY44: -0.0003846153846 | BZ44: 200 | CA44: 200
A45: 203.4701251 | B45: 100 | C45: FALSE | D45: FALSE | E45: FALSE | F45: FALSE | G45: 3 | H45: 100 | I45: FALSE | J45: 200 | K45: FALSE | L45: FALSE | M45: FALSE | N45: FALSE | O45: FALSE | P45: 66.57641635 | Q45: FALSE | R45: 1 | S45: FALSE | T45: 0 | U45: =IF($O45,CHOOSE($O45, IF($BL$3<0.25,c_rdtf_sIa_ini,IF($BL$3<1,c_rdtf_sIa_ini+(($BL$3-0.25)/0.75)*c_rdtf_sIa_rem_ind_yr,IF($BL$3<IF(Scenarios!$D$16=1,5,2),c_rdtf_sIa_ini+c_rdtf_sIa_rem_ind_yr+($BL$3-1)*c_rdtf_sIa_subyrs,c_rdtf_sIa_ini+c_rdtf_sIa_rem_ind_yr+c_rdtf_sIa_subyrs))), IF($BL$3<0.25,c_rdtf_sIb_ini,IF($BL$3<1,c_rdtf_sIb_ini+(($BL$3-0.25)/0.75)*c_rdtf_sIb_rem_ind_yr,IF($BL$3<IF(Scenarios!$D$16=1,5,2),c_rdtf_sIb_ini+c_rdtf_sIb_rem_ind_yr+($BL$3-1)*c_rdtf_sIb_subyrs,c_rdtf_sIb_ini+c_rdtf_sIb_rem_ind_yr+c_rdtf_sIb_subyrs))), IF($BL$3<0.25,c_rdtf_sIIa_ini,IF($BL$3<1,c_rdtf_sIIa_ini+(($BL$3-0.25)/0.75)*c_rdtf_sIIa_rem_ind_yr,IF($BL$3<IF(Scenarios!$D$16=1,5,2),c_rdtf_sIIa_ini+c_rdtf_sIIa_rem_ind_yr+($BL$3-1)*c_rdtf_sIIa_subyrs,c_rdtf_sIIa_ini+c_rdtf_sIIa_rem_ind_yr+c_rdtf_sIIa_subyrs))), IF($BL$3<0.25,c_rdtf_sIIb_ini,IF($BL$3<1,c_rdtf_sIIb_ini+(($BL$3-0.25)/0.75)*c_rdtf_sIIb_rem_ind_yr,IF($BL$3<IF(Scenarios!$D$16=1,5,2),c_rdtf_sIIb_ini+c_rdtf_sIIb_rem_ind_yr+($BL$3-1)*c_rdtf_sIIb_subyrs,c_rdtf_sIIb_ini+c_rdtf_sIIb_rem_ind_yr+c_rdtf_sIIb_subyrs))), IF($BL$3<0.25,c_rdtf_sIIIa_ini,IF($BL$3<1,c_rdtf_sIIIa_ini+(($BL$3-0.25)/0.75)*c_rdtf_sIIIa_rem_ind_yr,IF($BL$3<IF(Scenarios!$D$16=1,5,2),c_rdtf_sIIIa_ini+c_rdtf_sIIIa_rem_ind_yr+($BL$3-1)*c_rdtf_sIIIa_subyrs,c_rdtf_sIIIa_ini+c_rdtf_sIIIa_rem_ind_yr+c_rdtf_sIIIa_subyrs))), IF($BL$3<0.25,c_rdtf_sIIIb_ini,IF($BL$3<1,c_rdtf_sIIIb_ini+(($BL$3-0.25)/0.75)*c_rdtf_sIIIb_rem_ind_yr,IF($BL$3<IF(Scenarios!$D$16=1,5,2),c_rdtf_sIIIb_ini+c_rdtf_sIIIb_rem_ind_yr+($BL$3-1)*c_rdtf_sIIIb_subyrs,c_rdtf_sIIIb_ini+c_rdtf_sIIIb_rem_ind_yr+c_rdtf_sIIIb_subyrs))), IF($BL$3<0.25,c_rdtf_sIV_ini,IF($BL$3<1,c_rdtf_sIV_ini+(($BL$3-0.25)/0.75)*c_rdtf_sIV_rem_ind_yr,IF($BL$3<IF(Scenarios!$D$16=1,5,2),c_rdtf_sIV_ini+c_rdtf_sIV_rem_ind_yr+($BL$3-1)*c_rdtf_sIV_subyrs,c_rdtf_sIV_ini+c_rdtf_sIV_rem_ind_yr+c_rdtf_sIV_subyrs)))), IF($B45=3,c_false_pos,0)) *(1+d_costs)^(-$A45) -> 0 | V45: 0 | W45: 0 | X45: 0 | Y45: 0 | Z45: 0 | AA45: 0 | AB45: 0 | AC45: =IF($G45<1,VLOOKUP(Logic!$A$29,TBL_EVENT,VLOOKUP($E45,TBL_STATE,3,FALSE),FALSE),FALSE) -> FALSE | AD45: 0.07831235998 | AE45: =IF($E45=Logic!$A$7,IF(VLOOKUP($G45+1,TBL_rand_scrn_rnd,2,FALSE)<spec_LDCT,Logic!$A$33,Logic!$A$31),IF(VLOOKUP($G45+1,TBL_rand_scrn_rnd,3,FALSE)<sens_LDCT,Logic!$A$30,Logic!$A$32)) -> 2 | AF45: -0.0003846153846 | AG45: =VLOOKUP(Logic!$A$34,TBL_EVENT,VLOOKUP($E45,TBL_STATE,3,FALSE),FALSE) -> FALSE | AH45: 115.0568878 | AI45: =Logic!$A$34 -> 6 | AJ45: 0 | AK45: =VLOOKUP(Logic!$A$35,TBL_EVENT,VLOOKUP($E45,TBL_STATE,3,FALSE),FALSE) -> FALSE | AL45: 200 | AM45: =Logic!$A$35 -> 7 | AN45: 0 | AO45: =VLOOKUP(Logic!$A$36,TBL_EVENT,VLOOKUP($E45,TBL_STATE,3,FALSE),FALSE) -> FALSE | AP45: 200 | AQ45: =Logic!$A$36 -> 8 | AR45: 0 | AS45: =VLOOKUP(Logic!$A$37,TBL_EVENT,VLOOKUP($E45,TBL_STATE,3,FALSE),FALSE) -> FALSE | AT45: =IF($M44,$CA45+IF($BZ45>$CA45,CHOOSE(Scenarios!$D$10+1,1,0,0.5)*$BZ45-$CA45,0),t_no_event) -> 200 | AU45: =Logic!$A$37 -> 9 | AV45: 0 | AW45: =VLOOKUP(Logic!$A$38,TBL_EVENT,VLOOKUP($E45,TBL_STATE,3,FALSE),FALSE) -> FALSE | AX45: 66.57641635 | AY45: =Logic!$A$38 -> 10 | AZ45: 0 | BA45: =IF(VLOOKUP(Logic!$A$29,TBL_EVENT,VLOOKUP($E45,TBL_STATE,3,FALSE),FALSE), IF(IF($G45=1,($D$39-MIN(BE45:BJ45)-$A45), IF($G45=2,($E$39-MIN(BE45-BJ45)-$A45), t_no_event))<0,TRUE,FALSE),FALSE) -> FALSE | BB45: 200 | BC45: =IF($E45=Logic!$A$7,IF(RAND()<spec_LDCT,Logic!$A$33,Logic!$A$31),IF(RAND()<sens_LDCT,Logic!$A$30,Logic!$A$32)) -> 2 | BD45: -0.0003846153846 | BE45: 200 | BF45: 200 | BG45: 200 | BH45: 200 | BI45: 200 | BJ45: 200 | BK45: 200 | BL45: 2 | BM45: 6 | BN45: 7 | BO45: 8 | BP45: 9 | BQ45: 10 | BR45: 2 | BS45: -0.0003846153846 | BT45: 0 | BU45: 0 | BV45: 0 | BW45: 0 | BX45: 0 | BY45: -0.0003846153846 | BZ45: 200 | CA45: 200
A46: 403.4701251 | B46: 100 | C46: FALSE | D46: FALSE | E46: FALSE | F46: FALSE | G46: 3 | H46: 100 | I46: FALSE | J46: 200 | K46: FALSE | L46: FALSE | M46: FALSE | N46: FALSE | O46: FALSE | P46: 66.57641635 | Q46: FALSE | R46: 1 | S46: FALSE | T46: 0 | U46: =IF($O46,CHOOSE($O46, IF($BL$3<0.25,c_rdtf_sIa_ini,IF($BL$3<1,c_rdtf_sIa_ini+(($BL$3-0.25)/0.75)*c_rdtf_sIa_rem_ind_yr,IF($BL$3<IF(Scenarios!$D$16=1,5,2),c_rdtf_sIa_ini+c_rdtf_sIa_rem_ind_yr+($BL$3-1)*c_rdtf_sIa_subyrs,c_rdtf_sIa_ini+c_rdtf_sIa_rem_ind_yr+c_rdtf_sIa_subyrs))), IF($BL$3<0.25,c_rdtf_sIb_ini,IF($BL$3<1,c_rdtf_sIb_ini+(($BL$3-0.25)/0.75)*c_rdtf_sIb_rem_ind_yr,IF($BL$3<IF(Scenarios!$D$16=1,5,2),c_rdtf_sIb_ini+c_rdtf_sIb_rem_ind_yr+($BL$3-1)*c_rdtf_sIb_subyrs,c_rdtf_sIb_ini+c_rdtf_sIb_rem_ind_yr+c_rdtf_sIb_subyrs))), IF($BL$3<0.25,c_rdtf_sIIa_ini,IF($BL$3<1,c_rdtf_sIIa_ini+(($BL$3-0.25)/0.75)*c_rdtf_sIIa_rem_ind_yr,IF($BL$3<IF(Scenarios!$D$16=1,5,2),c_rdtf_sIIa_ini+c_rdtf_sIIa_rem_ind_yr+($BL$3-1)*c_rdtf_sIIa_subyrs,c_rdtf_sIIa_ini+c_rdtf_sIIa_rem_ind_yr+c_rdtf_sIIa_subyrs))), IF($BL$3<0.25,c_rdtf_sIIb_ini,IF($BL$3<1,c_rdtf_sIIb_ini+(($BL$3-0.25)/0.75)*c_rdtf_sIIb_rem_ind_yr,IF($BL$3<IF(Scenarios!$D$16=1,5,2),c_rdtf_sIIb_ini+c_rdtf_sIIb_rem_ind_yr+($BL$3-1)*c_rdtf_sIIb_subyrs,c_rdtf_sIIb_ini+c_rdtf_sIIb_rem_ind_yr+c_rdtf_sIIb_subyrs))), IF($BL$3<0.25,c_rdtf_sIIIa_ini,IF($BL$3<1,c_rdtf_sIIIa_ini+(($BL$3-0.25)/0.75)*c_rdtf_sIIIa_rem_ind_yr,IF($BL$3<IF(Scenarios!$D$16=1,5,2),c_rdtf_sIIIa_ini+c_rdtf_sIIIa_rem_ind_yr+($BL$3-1)*c_rdtf_sIIIa_subyrs,c_rdtf_sIIIa_ini+c_rdtf_sIIIa_rem_ind_yr+c_rdtf_sIIIa_subyrs))), IF($BL$3<0.25,c_rdtf_sIIIb_ini,IF($BL$3<1,c_rdtf_sIIIb_ini+(($BL$3-0.25)/0.75)*c_rdtf_sIIIb_rem_ind_yr,IF($BL$3<IF(Scenarios!$D$16=1,5,2),c_rdtf_sIIIb_ini+c_rdtf_sIIIb_rem_ind_yr+($BL$3-1)*c_rdtf_sIIIb_subyrs,c_rdtf_sIIIb_ini+c_rdtf_sIIIb_rem_ind_yr+c_rdtf_sIIIb_subyrs))), IF($BL$3<0.25,c_rdtf_sIV_ini,IF($BL$3<1,c_rdtf_sIV_ini+(($BL$3-0.25)/0.75)*c_rdtf_sIV_rem_ind_yr,IF($BL$3<IF(Scenarios!$D$16=1,5,2),c_rdtf_sIV_ini+c_rdtf_sIV_rem_ind_yr+($BL$3-1)*c_rdtf_sIV_subyrs,c_rdtf_sIV_ini+c_rdtf_sIV_rem_ind_yr+c_rdtf_sIV_subyrs)))), IF($B46=3,c_false_pos,0)) *(1+d_costs)^(-$A46) -> 0 | V46: 0 | W46: 0 | X46: 0 | Y46: 0 | Z46: 0 | AA46: 0 | AB46: 0 | AC46: =IF($G46<1,VLOOKUP(Logic!$A$29,TBL_EVENT,VLOOKUP($E46,TBL_STATE,3,FALSE),FALSE),FALSE) -> FALSE | AD46: 0.07831235998 | AE46: =IF($E46=Logic!$A$7,IF(VLOOKUP($G46+1,TBL_rand_scrn_rnd,2,FALSE)<spec_LDCT,Logic!$A$33,Logic!$A$31),IF(VLOOKUP($G46+1,TBL_rand_scrn_rnd,3,FALSE)<sens_LDCT,Logic!$A$30,Logic!$A$32)) -> 2 | AF46: -0.0003846153846 | AG46: =VLOOKUP(Logic!$A$34,TBL_EVENT,VLOOKUP($E46,TBL_STATE,3,FALSE),FALSE) -> FALSE | AH46: 115.0568878 | AI46: =Logic!$A$34 -> 6 | AJ46: 0 | AK46: =VLOOKUP(Logic!$A$35,TBL_EVENT,VLOOKUP($E46,TBL_STATE,3,FALSE),FALSE) -> FALSE | AL46: 200 | AM46: =Logic!$A$35 -> 7 | AN46: 0 | AO46: =VLOOKUP(Logic!$A$36,TBL_EVENT,VLOOKUP($E46,TBL_STATE,3,FALSE),FALSE) -> FALSE | AP46: 200 | AQ46: =Logic!$A$36 -> 8 | AR46: 0 | AS46: =VLOOKUP(Logic!$A$37,TBL_EVENT,VLOOKUP($E46,TBL_STATE,3,FALSE),FALSE) -> FALSE | AT46: =IF($M45,$CA46+IF($BZ46>$CA46,CHOOSE(Scenarios!$D$10+1,1,0,0.5)*$BZ46-$CA46,0),t_no_event) -> 200 | AU46: =Logic!$A$37 -> 9 | AV46: 0 | AW46: =VLOOKUP(Logic!$A$38,TBL_EVENT,VLOOKUP($E46,TBL_STATE,3,FALSE),FALSE) -> FALSE | AX46: 66.57641635 | AY46: =Logic!$A$38 -> 10 | AZ46: 0 | BA46: =IF(VLOOKUP(Logic!$A$29,TBL_EVENT,VLOOKUP($E46,TBL_STATE,3,FALSE),FALSE), IF(IF($G46=1,($D$39-MIN(BE46:BJ46)-$A46), IF($G46=2,($E$39-MIN(BE46-BJ46)-$A46), t_no_event))<0,TRUE,FALSE),FALSE) -> FALSE | BB46: =IF($BA46,IF($A46=$G45,1,1-($A46-ROUNDDOWN($A46,0))),t_no_event) -> 200 | BC46: =IF($E46=Logic!$A$7,IF(RAND()<spec_LDCT,Logic!$A$33,Logic!$A$31),IF(RAND()<sens_LDCT,Logic!$A$30,Logic!$A$32)) -> 2 | BD46: -0.0003846153846 | BE46: 200 | BF46: 200 | BG46: 200 | BH46: 200 | BI46: 200 | BJ46: 200 | BK46: 200 | BL46: 2 | BM46: 6 | BN46: 7 | BO46: 8 | BP46: 9 | BQ46: 10 | BR46: 2 | BS46: -0.0003846153846 | BT46: 0 | BU46: 0 | BV46: 0 | BW46: 0 | BX46: 0 | BY46: -0.0003846153846 | BZ46: 200 | CA46: 200
A47: 603.4701251 | B47: 100 | C47: FALSE | D47: FALSE | E47: FALSE | F47: FALSE | G47: 3 | H47: 100 | I47: FALSE | J47: 200 | K47: FALSE | L47: FALSE | M47: FALSE | N47: FALSE | O47: FALSE | P47: 66.57641635 | Q47: FALSE | R47: 1 | S47: FALSE | T47: 0 | U47: =IF($O47,CHOOSE($O47, IF($BL$3<0.25,c_rdtf_sIa_ini,IF($BL$3<1,c_rdtf_sIa_ini+(($BL$3-0.25)/0.75)*c_rdtf_sIa_rem_ind_yr,IF($BL$3<IF(Scenarios!$D$16=1,5,2),c_rdtf_sIa_ini+c_rdtf_sIa_rem_ind_yr+($BL$3-1)*c_rdtf_sIa_subyrs,c_rdtf_sIa_ini+c_rdtf_sIa_rem_ind_yr+c_rdtf_sIa_subyrs))), IF($BL$3<0.25,c_rdtf_sIb_ini,IF($BL$3<1,c_rdtf_sIb_ini+(($BL$3-0.25)/0.75)*c_rdtf_sIb_rem_ind_yr,IF($BL$3<IF(Scenarios!$D$16=1,5,2),c_rdtf_sIb_ini+c_rdtf_sIb_rem_ind_yr+($BL$3-1)*c_rdtf_sIb_subyrs,c_rdtf_sIb_ini+c_rdtf_sIb_rem_ind_yr+c_rdtf_sIb_subyrs))), IF($BL$3<0.25,c_rdtf_sIIa_ini,IF($BL$3<1,c_rdtf_sIIa_ini+(($BL$3-0.25)/0.75)*c_rdtf_sIIa_rem_ind_yr,IF($BL$3<IF(Scenarios!$D$16=1,5,2),c_rdtf_sIIa_ini+c_rdtf_sIIa_rem_ind_yr+($BL$3-1)*c_rdtf_sIIa_subyrs,c_rdtf_sIIa_ini+c_rdtf_sIIa_rem_ind_yr+c_rdtf_sIIa_subyrs))), IF($BL$3<0.25,c_rdtf_sIIb_ini,IF($BL$3<1,c_rdtf_sIIb_ini+(($BL$3-0.25)/0.75)*c_rdtf_sIIb_rem_ind_yr,IF($BL$3<IF(Scenarios!$D$16=1,5,2),c_rdtf_sIIb_ini+c_rdtf_sIIb_rem_ind_yr+($BL$3-1)*c_rdtf_sIIb_subyrs,c_rdtf_sIIb_ini+c_rdtf_sIIb_rem_ind_yr+c_rdtf_sIIb_subyrs))), IF($BL$3<0.25,c_rdtf_sIIIa_ini,IF($BL$3<1,c_rdtf_sIIIa_ini+(($BL$3-0.25)/0.75)*c_rdtf_sIIIa_rem_ind_yr,IF($BL$3<IF(Scenarios!$D$16=1,5,2),c_rdtf_sIIIa_ini+c_rdtf_sIIIa_rem_ind_yr+($BL$3-1)*c_rdtf_sIIIa_subyrs,c_rdtf_sIIIa_ini+c_rdtf_sIIIa_rem_ind_yr+c_rdtf_sIIIa_subyrs))), IF($BL$3<0.25,c_rdtf_sIIIb_ini,IF($BL$3<1,c_rdtf_sIIIb_ini+(($BL$3-0.25)/0.75)*c_rdtf_sIIIb_rem_ind_yr,IF($BL$3<IF(Scenarios!$D$16=1,5,2),c_rdtf_sIIIb_ini+c_rdtf_sIIIb_rem_ind_yr+($BL$3-1)*c_rdtf_sIIIb_subyrs,c_rdtf_sIIIb_ini+c_rdtf_sIIIb_rem_ind_yr+c_rdtf_sIIIb_subyrs))), IF($BL$3<0.25,c_rdtf_sIV_ini,IF($BL$3<1,c_rdtf_sIV_ini+(($BL$3-0.25)/0.75)*c_rdtf_sIV_rem_ind_yr,IF($BL$3<IF(Scenarios!$D$16=1,5,2),c_rdtf_sIV_ini+c_rdtf_sIV_rem_ind_yr+($BL$3-1)*c_rdtf_sIV_subyrs,c_rdtf_sIV_ini+c_rdtf_sIV_rem_ind_yr+c_rdtf_sIV_subyrs)))), IF($B47=3,c_false_pos,0)) *(1+d_costs)^(-$A47) -> 0 | V47: 0 | W47: 0 | X47: 0 | Y47: 0 | Z47: 0 | AA47: 0 | AB47: 0 | AC47: =IF($G47<1,VLOOKUP(Logic!$A$29,TBL_EVENT,VLOOKUP($E47,TBL_STATE,3,FALSE),FALSE),FALSE) -> FALSE | AD47: 0.07831235998 | AE47: =IF($E47=Logic!$A$7,IF(VLOOKUP($G47+1,TBL_rand_scrn_rnd,2,FALSE)<spec_LDCT,Logic!$A$33,Logic!$A$31),IF(VLOOKUP($G47+1,TBL_rand_scrn_rnd,3,FALSE)<sens_LDCT,Logic!$A$30,Logic!$A$32)) -> 2 | AF47: -0.0003846153846 | AG47: =VLOOKUP(Logic!$A$34,TBL_EVENT,VLOOKUP($E47,TBL_STATE,3,FALSE),FALSE) -> FALSE | AH47: 115.0568878 | AI47: =Logic!$A$34 -> 6 | AJ47: 0 | AK47: =VLOOKUP(Logic!$A$35,TBL_EVENT,VLOOKUP($E47,TBL_STATE,3,FALSE),FALSE) -> FALSE | AL47: 200 | AM47: =Logic!$A$35 -> 7 | AN47: 0 | AO47: =VLOOKUP(Logic!$A$36,TBL_EVENT,VLOOKUP($E47,TBL_STATE,3,FALSE),FALSE) -> FALSE | AP47: 200 | AQ47: =Logic!$A$36 -> 8 | AR47: 0 | AS47: =VLOOKUP(Logic!$A$37,TBL_EVENT,VLOOKUP($E47,TBL_STATE,3,FALSE),FALSE) -> FALSE | AT47: =IF($M46,$CA47+IF($BZ47>$CA47,CHOOSE(Scenarios!$D$10+1,1,0,0.5)*$BZ47-$CA47,0),t_no_event) -> 200 | AU47: =Logic!$A$37 -> 9 | AV47: 0 | AW47: =VLOOKUP(Logic!$A$38,TBL_EVENT,VLOOKUP($E47,TBL_STATE,3,FALSE),FALSE) -> FALSE | AX47: 66.57641635 | AY47: =Logic!$A$38 -> 10 | AZ47: 0 | BA47: =IF(VLOOKUP(Logic!$A$29,TBL_EVENT,VLOOKUP($E47,TBL_STATE,3,FALSE),FALSE), IF(IF($G47=1,($D$39-MIN(BE47:BJ47)-$A47), IF($G47=2,($E$39-MIN(BE47-BJ47)-$A47), t_no_event))<0,TRUE,FALSE),FALSE) -> FALSE | BB47: 200 | BC47: =IF($E47=Logic!$A$7,IF(RAND()<spec_LDCT,Logic!$A$33,Logic!$A$31),IF(RAND()<sens_LDCT,Logic!$A$30,Logic!$A$32)) -> 2 | BD47: -0.0003846153846 | BE47: 200 | BF47: 200 | BG47: 200 | BH47: 200 | BI47: 200 | BJ47: 200 | BK47: 200 | BL47: 2 | BM47: 6 | BN47: 7 | BO47: 8 | BP47: 9 | BQ47: 10 | BR47: 2 | BS47: -0.0003846153846 | BT47: 0 | BU47: 0 | BV47: 0 | BW47: 0 | BX47: 0 | BY47: -0.0003846153846 | BZ47: 200 | CA47: 200
A48: 803.4701251 | B48: 100 | C48: FALSE | D48: FALSE | E48: FALSE | F48: FALSE | G48: 3 | H48: 100 | I48: FALSE | J48: 200 | K48: FALSE | L48: FALSE | M48: FALSE | N48: FALSE | O48: FALSE | P48: 66.57641635 | Q48: FALSE | R48: 1 | S48: FALSE | T48: 0 | U48: =IF($O48,CHOOSE($O48, IF($BL$3<0.25,c_rdtf_sIa_ini,IF($BL$3<1,c_rdtf_sIa_ini+(($BL$3-0.25)/0.75)*c_rdtf_sIa_rem_ind_yr,IF($BL$3<IF(Scenarios!$D$16=1,5,2),c_rdtf_sIa_ini+c_rdtf_sIa_rem_ind_yr+($BL$3-1)*c_rdtf_sIa_subyrs,c_rdtf_sIa_ini+c_rdtf_sIa_rem_ind_yr+c_rdtf_sIa_subyrs))), IF($BL$3<0.25,c_rdtf_sIb_ini,IF($BL$3<1,c_rdtf_sIb_ini+(($BL$3-0.25)/0.75)*c_rdtf_sIb_rem_ind_yr,IF($BL$3<IF(Scenarios!$D$16=1,5,2),c_rdtf_sIb_ini+c_rdtf_sIb_rem_ind_yr+($BL$3-1)*c_rdtf_sIb_subyrs,c_rdtf_sIb_ini+c_rdtf_sIb_rem_ind_yr+c_rdtf_sIb_subyrs))), IF($BL$3<0.25,c_rdtf_sIIa_ini,IF($BL$3<1,c_rdtf_sIIa_ini+(($BL$3-0.25)/0.75)*c_rdtf_sIIa_rem_ind_yr,IF($BL$3<IF(Scenarios!$D$16=1,5,2),c_rdtf_sIIa_ini+c_rdtf_sIIa_rem_ind_yr+($BL$3-1)*c_rdtf_sIIa_subyrs,c_rdtf_sIIa_ini+c_rdtf_sIIa_rem_ind_yr+c_rdtf_sIIa_subyrs))), IF($BL$3<0.25,c_rdtf_sIIb_ini,IF($BL$3<1,c_rdtf_sIIb_ini+(($BL$3-0.25)/0.75)*c_rdtf_sIIb_rem_ind_yr,IF($BL$3<IF(Scenarios!$D$16=1,5,2),c_rdtf_sIIb_ini+c_rdtf_sIIb_rem_ind_yr+($BL$3-1)*c_rdtf_sIIb_subyrs,c_rdtf_sIIb_ini+c_rdtf_sIIb_rem_ind_yr+c_rdtf_sIIb_subyrs))), IF($BL$3<0.25,c_rdtf_sIIIa_ini,IF($BL$3<1,c_rdtf_sIIIa_ini+(($BL$3-0.25)/0.75)*c_rdtf_sIIIa_rem_ind_yr,IF($BL$3<IF(Scenarios!$D$16=1,5,2),c_rdtf_sIIIa_ini+c_rdtf_sIIIa_rem_ind_yr+($BL$3-1)*c_rdtf_sIIIa_subyrs,c_rdtf_sIIIa_ini+c_rdtf_sIIIa_rem_ind_yr+c_rdtf_sIIIa_subyrs))), IF($BL$3<0.25,c_rdtf_sIIIb_ini,IF($BL$3<1,c_rdtf_sIIIb_ini+(($BL$3-0.25)/0.75)*c_rdtf_sIIIb_rem_ind_yr,IF($BL$3<IF(Scenarios!$D$16=1,5,2),c_rdtf_sIIIb_ini+c_rdtf_sIIIb_rem_ind_yr+($BL$3-1)*c_rdtf_sIIIb_subyrs,c_rdtf_sIIIb_ini+c_rdtf_sIIIb_rem_ind_yr+c_rdtf_sIIIb_subyrs))), IF($BL$3<0.25,c_rdtf_sIV_ini,IF($BL$3<1,c_rdtf_sIV_ini+(($BL$3-0.25)/0.75)*c_rdtf_sIV_rem_ind_yr,IF($BL$3<IF(Scenarios!$D$16=1,5,2),c_rdtf_sIV_ini+c_rdtf_sIV_rem_ind_yr+($BL$3-1)*c_rdtf_sIV_subyrs,c_rdtf_sIV_ini+c_rdtf_sIV_rem_ind_yr+c_rdtf_sIV_subyrs)))), IF($B48=3,c_false_pos,0)) *(1+d_costs)^(-$A48) -> 0 | V48: 0 | W48: 0 | X48: 0 | Y48: 0 | Z48: 0 | AA48: 0 | AB48: 0 | AC48: =IF($G48<1,VLOOKUP(Logic!$A$29,TBL_EVENT,VLOOKUP($E48,TBL_STATE,3,FALSE),FALSE),FALSE) -> FALSE | AD48: 0.07831235998 | AE48: =IF($E48=Logic!$A$7,IF(VLOOKUP($G48+1,TBL_rand_scrn_rnd,2,FALSE)<spec_LDCT,Logic!$A$33,Logic!$A$31),IF(VLOOKUP($G48+1,TBL_rand_scrn_rnd,3,FALSE)<sens_LDCT,Logic!$A$30,Logic!$A$32)) -> 2 | AF48: -0.0003846153846 | AG48: =VLOOKUP(Logic!$A$34,TBL_EVENT,VLOOKUP($E48,TBL_STATE,3,FALSE),FALSE) -> FALSE | AH48: 115.0568878 | AI48: =Logic!$A$34 -> 6 | AJ48: 0 | AK48: =VLOOKUP(Logic!$A$35,TBL_EVENT,VLOOKUP($E48,TBL_STATE,3,FALSE),FALSE) -> FALSE | AL48: 200 | AM48: =Logic!$A$35 -> 7 | AN48: 0 | AO48: =VLOOKUP(Logic!$A$36,TBL_EVENT,VLOOKUP($E48,TBL_STATE,3,FALSE),FALSE) -> FALSE | AP48: 200 | AQ48: =Logic!$A$36 -> 8 | AR48: 0 | AS48: =VLOOKUP(Logic!$A$37,TBL_EVENT,VLOOKUP($E48,TBL_STATE,3,FALSE),FALSE) -> FALSE | AT48: =IF($M47,$CA48+IF($BZ48>$CA48,CHOOSE(Scenarios!$D$10+1,1,0,0.5)*$BZ48-$CA48,0),t_no_event) -> 200 | AU48: =Logic!$A$37 -> 9 | AV48: 0 | AW48: =VLOOKUP(Logic!$A$38,TBL_EVENT,VLOOKUP($E48,TBL_STATE,3,FALSE),FALSE) -> FALSE | AX48: 66.57641635 | AY48: =Logic!$A$38 -> 10 | AZ48: 0 | BA48: =IF(VLOOKUP(Logic!$A$29,TBL_EVENT,VLOOKUP($E48,TBL_STATE,3,FALSE),FALSE), IF(IF($G48=1,($D$39-MIN(BE48:BJ48)-$A48), IF($G48=2,($E$39-MIN(BE48-BJ48)-$A48), t_no_event))<0,TRUE,FALSE),FALSE) -> FALSE | BB48: 200 | BC48: =IF($E48=Logic!$A$7,IF(RAND()<spec_LDCT,Logic!$A$33,Logic!$A$31),IF(RAND()<sens_LDCT,Logic!$A$30,Logic!$A$32)) -> 2 | BD48: -0.0003846153846 | BE48: 200 | BF48: 200 | BG48: 200 | BH48: 200 | BI48: 200 | BJ48: 200 | BK48: 200 | BL48: 2 | BM48: 6 | BN48: 7 | BO48: 8 | BP48: 9 | BQ48: 10 | BR48: 2 | BS48: -0.0003846153846 | BT48: 0 | BU48: 0 | BV48: 0 | BW48: 0 | BX48: 0 | BY48: -0.0003846153846 | BZ48: 200 | CA48: 200
A49: 1003.470125 | B49: 100 | C49: FALSE | D49: FALSE | E49: FALSE | F49: FALSE | G49: 3 | H49: 100 | I49: FALSE | J49: 200 | K49: FALSE | L49: FALSE | M49: FALSE | N49: FALSE | O49: FALSE | P49: 66.57641635 | Q49: FALSE | R49: 1 | S49: FALSE | T49: 0 | U49: =IF($O49,CHOOSE($O49, IF($BL$3<0.25,c_rdtf_sIa_ini,IF($BL$3<1,c_rdtf_sIa_ini+(($BL$3-0.25)/0.75)*c_rdtf_sIa_rem_ind_yr,IF($BL$3<IF(Scenarios!$D$16=1,5,2),c_rdtf_sIa_ini+c_rdtf_sIa_rem_ind_yr+($BL$3-1)*c_rdtf_sIa_subyrs,c_rdtf_sIa_ini+c_rdtf_sIa_rem_ind_yr+c_rdtf_sIa_subyrs))), IF($BL$3<0.25,c_rdtf_sIb_ini,IF($BL$3<1,c_rdtf_sIb_ini+(($BL$3-0.25)/0.75)*c_rdtf_sIb_rem_ind_yr,IF($BL$3<IF(Scenarios!$D$16=1,5,2),c_rdtf_sIb_ini+c_rdtf_sIb_rem_ind_yr+($BL$3-1)*c_rdtf_sIb_subyrs,c_rdtf_sIb_ini+c_rdtf_sIb_rem_ind_yr+c_rdtf_sIb_subyrs))), IF($BL$3<0.25,c_rdtf_sIIa_ini,IF($BL$3<1,c_rdtf_sIIa_ini+(($BL$3-0.25)/0.75)*c_rdtf_sIIa_rem_ind_yr,IF($BL$3<IF(Scenarios!$D$16=1,5,2),c_rdtf_sIIa_ini+c_rdtf_sIIa_rem_ind_yr+($BL$3-1)*c_rdtf_sIIa_subyrs,c_rdtf_sIIa_ini+c_rdtf_sIIa_rem_ind_yr+c_rdtf_sIIa_subyrs))), IF($BL$3<0.25,c_rdtf_sIIb_ini,IF($BL$3<1,c_rdtf_sIIb_ini+(($BL$3-0.25)/0.75)*c_rdtf_sIIb_rem_ind_yr,IF($BL$3<IF(Scenarios!$D$16=1,5,2),c_rdtf_sIIb_ini+c_rdtf_sIIb_rem_ind_yr+($BL$3-1)*c_rdtf_sIIb_subyrs,c_rdtf_sIIb_ini+c_rdtf_sIIb_rem_ind_yr+c_rdtf_sIIb_subyrs))), IF($BL$3<0.25,c_rdtf_sIIIa_ini,IF($BL$3<1,c_rdtf_sIIIa_ini+(($BL$3-0.25)/0.75)*c_rdtf_sIIIa_rem_ind_yr,IF($BL$3<IF(Scenarios!$D$16=1,5,2),c_rdtf_sIIIa_ini+c_rdtf_sIIIa_rem_ind_yr+($BL$3-1)*c_rdtf_sIIIa_subyrs,c_rdtf_sIIIa_ini+c_rdtf_sIIIa_rem_ind_yr+c_rdtf_sIIIa_subyrs))), IF($BL$3<0.25,c_rdtf_sIIIb_ini,IF($BL$3<1,c_rdtf_sIIIb_ini+(($BL$3-0.25)/0.75)*c_rdtf_sIIIb_rem_ind_yr,IF($BL$3<IF(Scenarios!$D$16=1,5,2),c_rdtf_sIIIb_ini+c_rdtf_sIIIb_rem_ind_yr+($BL$3-1)*c_rdtf_sIIIb_subyrs,c_rdtf_sIIIb_ini+c_rdtf_sIIIb_rem_ind_yr+c_rdtf_sIIIb_subyrs))), IF($BL$3<0.25,c_rdtf_sIV_ini,IF($BL$3<1,c_rdtf_sIV_ini+(($BL$3-0.25)/0.75)*c_rdtf_sIV_rem_ind_yr,IF($BL$3<IF(Scenarios!$D$16=1,5,2),c_rdtf_sIV_ini+c_rdtf_sIV_rem_ind_yr+($BL$3-1)*c_rdtf_sIV_subyrs,c_rdtf_sIV_ini+c_rdtf_sIV_rem_ind_yr+c_rdtf_sIV_subyrs)))), IF($B49=3,c_false_pos,0)) *(1+d_costs)^(-$A49) -> 0 | V49: 0 | W49: 0 | X49: 0 | Y49: 0 | Z49: 0 | AA49: 0 | AB49: 0 | AC49: =IF($G49<1,VLOOKUP(Logic!$A$29,TBL_EVENT,VLOOKUP($E49,TBL_STATE,3,FALSE),FALSE),FALSE) -> FALSE | AD49: 0.07831235998 | AE49: =IF($E49=Logic!$A$7,IF(VLOOKUP($G49+1,TBL_rand_scrn_rnd,2,FALSE)<spec_LDCT,Logic!$A$33,Logic!$A$31),IF(VLOOKUP($G49+1,TBL_rand_scrn_rnd,3,FALSE)<sens_LDCT,Logic!$A$30,Logic!$A$32)) -> 2 | AF49: -0.0003846153846 | AG49: =VLOOKUP(Logic!$A$34,TBL_EVENT,VLOOKUP($E49,TBL_STATE,3,FALSE),FALSE) -> FALSE | AH49: 115.0568878 | AI49: =Logic!$A$34 -> 6 | AJ49: 0 | AK49: =VLOOKUP(Logic!$A$35,TBL_EVENT,VLOOKUP($E49,TBL_STATE,3,FALSE),FALSE) -> FALSE | AL49: 200 | AM49: =Logic!$A$35 -> 7 | AN49: 0 | AO49: =VLOOKUP(Logic!$A$36,TBL_EVENT,VLOOKUP($E49,TBL_STATE,3,FALSE),FALSE) -> FALSE | AP49: 200 | AQ49: =Logic!$A$36 -> 8 | AR49: 0 | AS49: =VLOOKUP(Logic!$A$37,TBL_EVENT,VLOOKUP($E49,TBL_STATE,3,FALSE),FALSE) -> FALSE | AT49: =IF($M48,$CA49+IF($BZ49>$CA49,CHOOSE(Scenarios!$D$10+1,1,0,0.5)*$BZ49-$CA49,0),t_no_event) -> 200 | AU49: =Logic!$A$37 -> 9 | AV49: 0 | AW49: =VLOOKUP(Logic!$A$38,TBL_EVENT,VLOOKUP($E49,TBL_STATE,3,FALSE),FALSE) -> FALSE | AX49: 66.57641635 | AY49: =Logic!$A$38 -> 10 | AZ49: 0 | BA49: =IF(VLOOKUP(Logic!$A$29,TBL_EVENT,VLOOKUP($E49,TBL_STATE,3,FALSE),FALSE), IF(IF($G49=1,($D$39-MIN(BE49:BJ49)-$A49), IF($G49=2,($E$39-MIN(BE49-BJ49)-$A49), t_no_event))<0,TRUE,FALSE),FALSE) -> FALSE | BB49: 200 | BC49: =IF($E49=Logic!$A$7,IF(RAND()<spec_LDCT,Logic!$A$33,Logic!$A$31),IF(RAND()<sens_LDCT,Logic!$A$30,Logic!$A$32)) -> 2 | BD49: -0.0003846153846 | BE49: 200 | BF49: 200 | BG49: 200 | BH49: 200 | BI49: 200 | BJ49: 200 | BK49: 200 | BL49: 2 | BM49: 6 | BN49: 7 | BO49: 8 | BP49: 9 | BQ49: 10 | BR49: 2 | BS49: -0.0003846153846 | BT49: 0 | BU49: 0 | BV49: 0 | BW49: 0 | BX49: 0 | BY49: -0.0003846153846 | BZ49: 200 | CA49: 200
A50: 1203.470125 | B50: 100 | C50: FALSE | D50: FALSE | E50: FALSE | F50: FALSE | G50: 3 | H50: 100 | I50: FALSE | J50: 200 | K50: FALSE | L50: FALSE | M50: FALSE | N50: =IF($O$3,IF($M50,$O$3-$M50),IF($M50,$U$3-$M50)) -> FALSE | O50: FALSE | P50: 66.57641635 | Q50: FALSE | R50: 1 | S50: FALSE | T50: 0 | U50: =IF($O50,CHOOSE($O50, IF($BL$3<0.25,c_rdtf_sIa_ini,IF($BL$3<1,c_rdtf_sIa_ini+(($BL$3-0.25)/0.75)*c_rdtf_sIa_rem_ind_yr,IF($BL$3<IF(Scenarios!$D$16=1,5,2),c_rdtf_sIa_ini+c_rdtf_sIa_rem_ind_yr+($BL$3-1)*c_rdtf_sIa_subyrs,c_rdtf_sIa_ini+c_rdtf_sIa_rem_ind_yr+c_rdtf_sIa_subyrs))), IF($BL$3<0.25,c_rdtf_sIb_ini,IF($BL$3<1,c_rdtf_sIb_ini+(($BL$3-0.25)/0.75)*c_rdtf_sIb_rem_ind_yr,IF($BL$3<IF(Scenarios!$D$16=1,5,2),c_rdtf_sIb_ini+c_rdtf_sIb_rem_ind_yr+($BL$3-1)*c_rdtf_sIb_subyrs,c_rdtf_sIb_ini+c_rdtf_sIb_rem_ind_yr+c_rdtf_sIb_subyrs))), IF($BL$3<0.25,c_rdtf_sIIa_ini,IF($BL$3<1,c_rdtf_sIIa_ini+(($BL$3-0.25)/0.75)*c_rdtf_sIIa_rem_ind_yr,IF($BL$3<IF(Scenarios!$D$16=1,5,2),c_rdtf_sIIa_ini+c_rdtf_sIIa_rem_ind_yr+($BL$3-1)*c_rdtf_sIIa_subyrs,c_rdtf_sIIa_ini+c_rdtf_sIIa_rem_ind_yr+c_rdtf_sIIa_subyrs))), IF($BL$3<0.25,c_rdtf_sIIb_ini,IF($BL$3<1,c_rdtf_sIIb_ini+(($BL$3-0.25)/0.75)*c_rdtf_sIIb_rem_ind_yr,IF($BL$3<IF(Scenarios!$D$16=1,5,2),c_rdtf_sIIb_ini+c_rdtf_sIIb_rem_ind_yr+($BL$3-1)*c_rdtf_sIIb_subyrs,c_rdtf_sIIb_ini+c_rdtf_sIIb_rem_ind_yr+c_rdtf_sIIb_subyrs))), IF($BL$3<0.25,c_rdtf_sIIIa_ini,IF($BL$3<1,c_rdtf_sIIIa_ini+(($BL$3-0.25)/0.75)*c_rdtf_sIIIa_rem_ind_yr,IF($BL$3<IF(Scenarios!$D$16=1,5,2),c_rdtf_sIIIa_ini+c_rdtf_sIIIa_rem_ind_yr+($BL$3-1)*c_rdtf_sIIIa_subyrs,c_rdtf_sIIIa_ini+c_rdtf_sIIIa_rem_ind_yr+c_rdtf_sIIIa_subyrs))), IF($BL$3<0.25,c_rdtf_sIIIb_ini,IF($BL$3<1,c_rdtf_sIIIb_ini+(($BL$3-0.25)/0.75)*c_rdtf_sIIIb_rem_ind_yr,IF($BL$3<IF(Scenarios!$D$16=1,5,2),c_rdtf_sIIIb_ini+c_rdtf_sIIIb_rem_ind_yr+($BL$3-1)*c_rdtf_sIIIb_subyrs,c_rdtf_sIIIb_ini+c_rdtf_sIIIb_rem_ind_yr+c_rdtf_sIIIb_subyrs))), IF($BL$3<0.25,c_rdtf_sIV_ini,IF($BL$3<1,c_rdtf_sIV_ini+(($BL$3-0.25)/0.75)*c_rdtf_sIV_rem_ind_yr,IF($BL$3<IF(Scenarios!$D$16=1,5,2),c_rdtf_sIV_ini+c_rdtf_sIV_rem_ind_yr+($BL$3-1)*c_rdtf_sIV_subyrs,c_rdtf_sIV_ini+c_rdtf_sIV_rem_ind_yr+c_rdtf_sIV_subyrs)))), IF($B50=3,c_false_pos,0)) *(1+d_costs)^(-$A50) -> 0 | V50: 0 | W50: 0 | X50: 0 | Y50: 0 | Z50: 0 | AA50: 0 | AB50: 0 | AC50: =IF($G50<1,VLOOKUP(Logic!$A$29,TBL_EVENT,VLOOKUP($E50,TBL_STATE,3,FALSE),FALSE),FALSE) -> FALSE | AD50: 0.07831235998 | AE50: =IF($E50=Logic!$A$7,IF(VLOOKUP($G50+1,TBL_rand_scrn_rnd,2,FALSE)<spec_LDCT,Logic!$A$33,Logic!$A$31),IF(VLOOKUP($G50+1,TBL_rand_scrn_rnd,3,FALSE)<sens_LDCT,Logic!$A$30,Logic!$A$32)) -> 2 | AF50: -0.0003846153846 | AG50: =VLOOKUP(Logic!$A$34,TBL_EVENT,VLOOKUP($E50,TBL_STATE,3,FALSE),FALSE) -> FALSE | AH50: 115.0568878 | AI50: =Logic!$A$34 -> 6 | AJ50: 0 | AK50: =VLOOKUP(Logic!$A$35,TBL_EVENT,VLOOKUP($E50,TBL_STATE,3,FALSE),FALSE) -> FALSE | AL50: 200 | AM50: =Logic!$A$35 -> 7 | AN50: 0 | AO50: =VLOOKUP(Logic!$A$36,TBL_EVENT,VLOOKUP($E50,TBL_STATE,3,FALSE),FALSE) -> FALSE | AP50: 200 | AQ50: =Logic!$A$36 -> 8 | AR50: 0 | AS50: =VLOOKUP(Logic!$A$37,TBL_EVENT,VLOOKUP($E50,TBL_STATE,3,FALSE),FALSE) -> FALSE | AT50: =IF($M49,$CA50+IF($BZ50>$CA50,CHOOSE(Scenarios!$D$10+1,1,0,0.5)*$BZ50-$CA50,0),t_no_event) -> 200 | AU50: =Logic!$A$37 -> 9 | AV50: 0 | AW50: =VLOOKUP(Logic!$A$38,TBL_EVENT,VLOOKUP($E50,TBL_STATE,3,FALSE),FALSE) -> FALSE | AX50: 66.57641635 | AY50: =Logic!$A$38 -> 10 | AZ50: 0 | BA50: =IF(VLOOKUP(Logic!$A$29,TBL_EVENT,VLOOKUP($E50,TBL_STATE,3,FALSE),FALSE), IF(IF($G50=1,($D$39-MIN(BE50:BJ50)-$A50), IF($G50=2,($E$39-MIN(BE50-BJ50)-$A50), t_no_event))<0,TRUE,FALSE),FALSE) -> FALSE | BB50: 200 | BC50: =IF($E50=Logic!$A$7,IF(RAND()<spec_LDCT,Logic!$A$33,Logic!$A$31),IF(RAND()<sens_LDCT,Logic!$A$30,Logic!$A$32)) -> 2 | BD50: -0.0003846153846 | BE50: 200 | BF50: 200 | BG50: 200 | BH50: 200 | BI50: 200 | BJ50: 200 | BK50: 200 | BL50: 2 | BM50: 6 | BN50: 7 | BO50: 8 | BP50: 9 | BQ50: 10 | BR50: 2 | BS50: -0.0003846153846 | BT50: 0 | BU50: 0 | BV50: 0 | BW50: 0 | BX50: 0 | BY50: -0.0003846153846 | BZ50: 200 | CA50: 200
A51: 1403.470125 | B51: 100 | C51: FALSE | D51: FALSE | E51: FALSE | F51: FALSE | G51: 3 | H51: 100 | I51: FALSE | J51: 200 | K51: FALSE | L51: FALSE | M51: FALSE | N51: FALSE | O51: FALSE | P51: 66.57641635 | Q51: FALSE | R51: 1 | S51: FALSE | T51: 0 | U51: =IF($O51,CHOOSE($O51, IF($BL$3<0.25,c_rdtf_sIa_ini,IF($BL$3<1,c_rdtf_sIa_ini+(($BL$3-0.25)/0.75)*c_rdtf_sIa_rem_ind_yr,IF($BL$3<IF(Scenarios!$D$16=1,5,2),c_rdtf_sIa_ini+c_rdtf_sIa_rem_ind_yr+($BL$3-1)*c_rdtf_sIa_subyrs,c_rdtf_sIa_ini+c_rdtf_sIa_rem_ind_yr+c_rdtf_sIa_subyrs))), IF($BL$3<0.25,c_rdtf_sIb_ini,IF($BL$3<1,c_rdtf_sIb_ini+(($BL$3-0.25)/0.75)*c_rdtf_sIb_rem_ind_yr,IF($BL$3<IF(Scenarios!$D$16=1,5,2),c_rdtf_sIb_ini+c_rdtf_sIb_rem_ind_yr+($BL$3-1)*c_rdtf_sIb_subyrs,c_rdtf_sIb_ini+c_rdtf_sIb_rem_ind_yr+c_rdtf_sIb_subyrs))), IF($BL$3<0.25,c_rdtf_sIIa_ini,IF($BL$3<1,c_rdtf_sIIa_ini+(($BL$3-0.25)/0.75)*c_rdtf_sIIa_rem_ind_yr,IF($BL$3<IF(Scenarios!$D$16=1,5,2),c_rdtf_sIIa_ini+c_rdtf_sIIa_rem_ind_yr+($BL$3-1)*c_rdtf_sIIa_subyrs,c_rdtf_sIIa_ini+c_rdtf_sIIa_rem_ind_yr+c_rdtf_sIIa_subyrs))), IF($BL$3<0.25,c_rdtf_sIIb_ini,IF($BL$3<1,c_rdtf_sIIb_ini+(($BL$3-0.25)/0.75)*c_rdtf_sIIb_rem_ind_yr,IF($BL$3<IF(Scenarios!$D$16=1,5,2),c_rdtf_sIIb_ini+c_rdtf_sIIb_rem_ind_yr+($BL$3-1)*c_rdtf_sIIb_subyrs,c_rdtf_sIIb_ini+c_rdtf_sIIb_rem_ind_yr+c_rdtf_sIIb_subyrs))), IF($BL$3<0.25,c_rdtf_sIIIa_ini,IF($BL$3<1,c_rdtf_sIIIa_ini+(($BL$3-0.25)/0.75)*c_rdtf_sIIIa_rem_ind_yr,IF($BL$3<IF(Scenarios!$D$16=1,5,2),c_rdtf_sIIIa_ini+c_rdtf_sIIIa_rem_ind_yr+($BL$3-1)*c_rdtf_sIIIa_subyrs,c_rdtf_sIIIa_ini+c_rdtf_sIIIa_rem_ind_yr+c_rdtf_sIIIa_subyrs))), IF($BL$3<0.25,c_rdtf_sIIIb_ini,IF($BL$3<1,c_rdtf_sIIIb_ini+(($BL$3-0.25)/0.75)*c_rdtf_sIIIb_rem_ind_yr,IF($BL$3<IF(Scenarios!$D$16=1,5,2),c_rdtf_sIIIb_ini+c_rdtf_sIIIb_rem_ind_yr+($BL$3-1)*c_rdtf_sIIIb_subyrs,c_rdtf_sIIIb_ini+c_rdtf_sIIIb_rem_ind_yr+c_rdtf_sIIIb_subyrs))), IF($BL$3<0.25,c_rdtf_sIV_ini,IF($BL$3<1,c_rdtf_sIV_ini+(($BL$3-0.25)/0.75)*c_rdtf_sIV_rem_ind_yr,IF($BL$3<IF(Scenarios!$D$16=1,5,2),c_rdtf_sIV_ini+c_rdtf_sIV_rem_ind_yr+($BL$3-1)*c_rdtf_sIV_subyrs,c_rdtf_sIV_ini+c_rdtf_sIV_rem_ind_yr+c_rdtf_sIV_subyrs)))), IF($B51=3,c_false_pos,0)) *(1+d_costs)^(-$A51) -> 0 | V51: 0 | W51: 0 | X51: 0 | Y51: 0 | Z51: 0 | AA51: 0 | AB51: 0 | AC51: =IF($G51<1,VLOOKUP(Logic!$A$29,TBL_EVENT,VLOOKUP($E51,TBL_STATE,3,FALSE),FALSE),FALSE) -> FALSE | AD51: 0.07831235998 | AE51: =IF($E51=Logic!$A$7,IF(VLOOKUP($G51+1,TBL_rand_scrn_rnd,2,FALSE)<spec_LDCT,Logic!$A$33,Logic!$A$31),IF(VLOOKUP($G51+1,TBL_rand_scrn_rnd,3,FALSE)<sens_LDCT,Logic!$A$30,Logic!$A$32)) -> 2 | AF51: -0.0003846153846 | AG51: =VLOOKUP(Logic!$A$34,TBL_EVENT,VLOOKUP($E51,TBL_STATE,3,FALSE),FALSE) -> FALSE | AH51: 115.0568878 | AI51: =Logic!$A$34 -> 6 | AJ51: 0 | AK51: =VLOOKUP(Logic!$A$35,TBL_EVENT,VLOOKUP($E51,TBL_STATE,3,FALSE),FALSE) -> FALSE | AL51: 200 | AM51: =Logic!$A$35 -> 7 | AN51: 0 | AO51: =VLOOKUP(Logic!$A$36,TBL_EVENT,VLOOKUP($E51,TBL_STATE,3,FALSE),FALSE) -> FALSE | AP51: 200 | AQ51: =Logic!$A$36 -> 8 | AR51: 0 | AS51: =VLOOKUP(Logic!$A$37,TBL_EVENT,VLOOKUP($E51,TBL_STATE,3,FALSE),FALSE) -> FALSE | AT51: =IF($M50,$CA51+IF($BZ51>$CA51,CHOOSE(Scenarios!$D$10+1,1,0,0.5)*$BZ51-$CA51,0),t_no_event) -> 200 | AU51: =Logic!$A$37 -> 9 | AV51: 0 | AW51: =VLOOKUP(Logic!$A$38,TBL_EVENT,VLOOKUP($E51,TBL_STATE,3,FALSE),FALSE) -> FALSE | AX51: 66.57641635 | AY51: =Logic!$A$38 -> 10 | AZ51: 0 | BA51: =IF(VLOOKUP(Logic!$A$29,TBL_EVENT,VLOOKUP($E51,TBL_STATE,3,FALSE),FALSE), IF(IF($G51=1,($D$39-MIN(BE51:BJ51)-$A51), IF($G51=2,($E$39-MIN(BE51-BJ51)-$A51), t_no_event))<0,TRUE,FALSE),FALSE) -> FALSE | BB51: 200 | BC51: =IF($E51=Logic!$A$7,IF(RAND()<spec_LDCT,Logic!$A$33,Logic!$A$31),IF(RAND()<sens_LDCT,Logic!$A$30,Logic!$A$32)) -> 2 | BD51: -0.0003846153846 | BE51: 200 | BF51: 200 | BG51: 200 | BH51: 200 | BI51: 200 | BJ51: 200 | BK51: 200 | BL51: 2 | BM51: 6 | BN51: 7 | BO51: 8 | BP51: 9 | BQ51: 10 | BR51: 2 | BS51: -0.0003846153846 | BT51: 0 | BU51: 0 | BV51: 0 | BW51: 0 | BX51: 0 | BY51: -0.0003846153846 | BZ51: 200 | CA51: 200
A52: 1603.470125 | B52: 100 | C52: FALSE | D52: FALSE | E52: FALSE | F52: FALSE | G52: 3 | H52: 100 | I52: FALSE | J52: 200 | K52: FALSE | L52: FALSE | M52: FALSE | N52: FALSE | O52: FALSE | P52: 66.57641635 | Q52: FALSE | R52: 1 | S52: FALSE | T52: 0 | U52: =IF($O52,CHOOSE($O52, IF($BL$3<0.25,c_rdtf_sIa_ini,IF($BL$3<1,c_rdtf_sIa_ini+(($BL$3-0.25)/0.75)*c_rdtf_sIa_rem_ind_yr,IF($BL$3<IF(Scenarios!$D$16=1,5,2),c_rdtf_sIa_ini+c_rdtf_sIa_rem_ind_yr+($BL$3-1)*c_rdtf_sIa_subyrs,c_rdtf_sIa_ini+c_rdtf_sIa_rem_ind_yr+c_rdtf_sIa_subyrs))), IF($BL$3<0.25,c_rdtf_sIb_ini,IF($BL$3<1,c_rdtf_sIb_ini+(($BL$3-0.25)/0.75)*c_rdtf_sIb_rem_ind_yr,IF($BL$3<IF(Scenarios!$D$16=1,5,2),c_rdtf_sIb_ini+c_rdtf_sIb_rem_ind_yr+($BL$3-1)*c_rdtf_sIb_subyrs,c_rdtf_sIb_ini+c_rdtf_sIb_rem_ind_yr+c_rdtf_sIb_subyrs))), IF($BL$3<0.25,c_rdtf_sIIa_ini,IF($BL$3<1,c_rdtf_sIIa_ini+(($BL$3-0.25)/0.75)*c_rdtf_sIIa_rem_ind_yr,IF($BL$3<IF(Scenarios!$D$16=1,5,2),c_rdtf_sIIa_ini+c_rdtf_sIIa_rem_ind_yr+($BL$3-1)*c_rdtf_sIIa_subyrs,c_rdtf_sIIa_ini+c_rdtf_sIIa_rem_ind_yr+c_rdtf_sIIa_subyrs))), IF($BL$3<0.25,c_rdtf_sIIb_ini,IF($BL$3<1,c_rdtf_sIIb_ini+(($BL$3-0.25)/0.75)*c_rdtf_sIIb_rem_ind_yr,IF($BL$3<IF(Scenarios!$D$16=1,5,2),c_rdtf_sIIb_ini+c_rdtf_sIIb_rem_ind_yr+($BL$3-1)*c_rdtf_sIIb_subyrs,c_rdtf_sIIb_ini+c_rdtf_sIIb_rem_ind_yr+c_rdtf_sIIb_subyrs))), IF($BL$3<0.25,c_rdtf_sIIIa_ini,IF($BL$3<1,c_rdtf_sIIIa_ini+(($BL$3-0.25)/0.75)*c_rdtf_sIIIa_rem_ind_yr,IF($BL$3<IF(Scenarios!$D$16=1,5,2),c_rdtf_sIIIa_ini+c_rdtf_sIIIa_rem_ind_yr+($BL$3-1)*c_rdtf_sIIIa_subyrs,c_rdtf_sIIIa_ini+c_rdtf_sIIIa_rem_ind_yr+c_rdtf_sIIIa_subyrs))), IF($BL$3<0.25,c_rdtf_sIIIb_ini,IF($BL$3<1,c_rdtf_sIIIb_ini+(($BL$3-0.25)/0.75)*c_rdtf_sIIIb_rem_ind_yr,IF($BL$3<IF(Scenarios!$D$16=1,5,2),c_rdtf_sIIIb_ini+c_rdtf_sIIIb_rem_ind_yr+($BL$3-1)*c_rdtf_sIIIb_subyrs,c_rdtf_sIIIb_ini+c_rdtf_sIIIb_rem_ind_yr+c_rdtf_sIIIb_subyrs))), IF($BL$3<0.25,c_rdtf_sIV_ini,IF($BL$3<1,c_rdtf_sIV_ini+(($BL$3-0.25)/0.75)*c_rdtf_sIV_rem_ind_yr,IF($BL$3<IF(Scenarios!$D$16=1,5,2),c_rdtf_sIV_ini+c_rdtf_sIV_rem_ind_yr+($BL$3-1)*c_rdtf_sIV_subyrs,c_rdtf_sIV_ini+c_rdtf_sIV_rem_ind_yr+c_rdtf_sIV_subyrs)))), IF($B52=3,c_false_pos,0)) *(1+d_costs)^(-$A52) -> 0 | V52: 0 | W52: 0 | X52: 0 | Y52: 0 | Z52: 0 | AA52: 0 | AB52: 0 | AC52: =IF($G52<1,VLOOKUP(Logic!$A$29,TBL_EVENT,VLOOKUP($E52,TBL_STATE,3,FALSE),FALSE),FALSE) -> FALSE | AD52: 0.07831235998 | AE52: =IF($E52=Logic!$A$7,IF(VLOOKUP($G52+1,TBL_rand_scrn_rnd,2,FALSE)<spec_LDCT,Logic!$A$33,Logic!$A$31),IF(VLOOKUP($G52+1,TBL_rand_scrn_rnd,3,FALSE)<sens_LDCT,Logic!$A$30,Logic!$A$32)) -> 2 | AF52: -0.0003846153846 | AG52: =VLOOKUP(Logic!$A$34,TBL_EVENT,VLOOKUP($E52,TBL_STATE,3,FALSE),FALSE) -> FALSE | AH52: 115.0568878 | AI52: =Logic!$A$34 -> 6 | AJ52: 0 | AK52: =VLOOKUP(Logic!$A$35,TBL_EVENT,VLOOKUP($E52,TBL_STATE,3,FALSE),FALSE) -> FALSE | AL52: 200 | AM52: =Logic!$A$35 -> 7 | AN52: 0 | AO52: =VLOOKUP(Logic!$A$36,TBL_EVENT,VLOOKUP($E52,TBL_STATE,3,FALSE),FALSE) -> FALSE | AP52: 200 | AQ52: =Logic!$A$36 -> 8 | AR52: 0 | AS52: =VLOOKUP(Logic!$A$37,TBL_EVENT,VLOOKUP($E52,TBL_STATE,3,FALSE),FALSE) -> FALSE | AT52: =IF($M51,$CA52+IF($BZ52>$CA52,CHOOSE(Scenarios!$D$10+1,1,0,0.5)*$BZ52-$CA52,0),t_no_event) -> 200 | AU52: =Logic!$A$37 -> 9 | AV52: 0 | AW52: =VLOOKUP(Logic!$A$38,TBL_EVENT,VLOOKUP($E52,TBL_STATE,3,FALSE),FALSE) -> FALSE | AX52: 66.57641635 | AY52: =Logic!$A$38 -> 10 | AZ52: 0 | BA52: =IF(VLOOKUP(Logic!$A$29,TBL_EVENT,VLOOKUP($E52,TBL_STATE,3,FALSE),FALSE), IF(IF($G52=1,($D$39-MIN(BE52:BJ52)-$A52), IF($G52=2,($E$39-MIN(BE52-BJ52)-$A52), t_no_event))<0,TRUE,FALSE),FALSE) -> FALSE | BB52: 200 | BC52: =IF($E52=Logic!$A$7,IF(RAND()<spec_LDCT,Logic!$A$33,Logic!$A$31),IF(RAND()<sens_LDCT,Logic!$A$30,Logic!$A$32)) -> 2 | BD52: -0.0003846153846 | BE52: 200 | BF52: 200 | BG52: 200 | BH52: 200 | BI52: 200 | BJ52: 200 | BK52: 200 | BL52: 2 | BM52: 6 | BN52: 7 | BO52: 8 | BP52: 9 | BQ52: 10 | BR52: 2 | BS52: -0.0003846153846 | BT52: 0 | BU52: 0 | BV52: 0 | BW52: 0 | BX52: 0 | BY52: -0.0003846153846 | BZ52: 200 | CA52: 200
A53: 1803.470125 | B53: 100 | C53: FALSE | D53: FALSE | E53: FALSE | F53: FALSE | G53: 3 | H53: 100 | I53: FALSE | J53: 200 | K53: FALSE | L53: FALSE | M53: FALSE | N53: FALSE | O53: FALSE | P53: 66.57641635 | Q53: FALSE | R53: 1 | S53: FALSE | T53: 0 | U53: =IF($O53,CHOOSE($O53, IF($BL$3<0.25,c_rdtf_sIa_ini,IF($BL$3<1,c_rdtf_sIa_ini+(($BL$3-0.25)/0.75)*c_rdtf_sIa_rem_ind_yr,IF($BL$3<IF(Scenarios!$D$16=1,5,2),c_rdtf_sIa_ini+c_rdtf_sIa_rem_ind_yr+($BL$3-1)*c_rdtf_sIa_subyrs,c_rdtf_sIa_ini+c_rdtf_sIa_rem_ind_yr+c_rdtf_sIa_subyrs))), IF($BL$3<0.25,c_rdtf_sIb_ini,IF($BL$3<1,c_rdtf_sIb_ini+(($BL$3-0.25)/0.75)*c_rdtf_sIb_rem_ind_yr,IF($BL$3<IF(Scenarios!$D$16=1,5,2),c_rdtf_sIb_ini+c_rdtf_sIb_rem_ind_yr+($BL$3-1)*c_rdtf_sIb_subyrs,c_rdtf_sIb_ini+c_rdtf_sIb_rem_ind_yr+c_rdtf_sIb_subyrs))), IF($BL$3<0.25,c_rdtf_sIIa_ini,IF($BL$3<1,c_rdtf_sIIa_ini+(($BL$3-0.25)/0.75)*c_rdtf_sIIa_rem_ind_yr,IF($BL$3<IF(Scenarios!$D$16=1,5,2),c_rdtf_sIIa_ini+c_rdtf_sIIa_rem_ind_yr+($BL$3-1)*c_rdtf_sIIa_subyrs,c_rdtf_sIIa_ini+c_rdtf_sIIa_rem_ind_yr+c_rdtf_sIIa_subyrs))), IF($BL$3<0.25,c_rdtf_sIIb_ini,IF($BL$3<1,c_rdtf_sIIb_ini+(($BL$3-0.25)/0.75)*c_rdtf_sIIb_rem_ind_yr,IF($BL$3<IF(Scenarios!$D$16=1,5,2),c_rdtf_sIIb_ini+c_rdtf_sIIb_rem_ind_yr+($BL$3-1)*c_rdtf_sIIb_subyrs,c_rdtf_sIIb_ini+c_rdtf_sIIb_rem_ind_yr+c_rdtf_sIIb_subyrs))), IF($BL$3<0.25,c_rdtf_sIIIa_ini,IF($BL$3<1,c_rdtf_sIIIa_ini+(($BL$3-0.25)/0.75)*c_rdtf_sIIIa_rem_ind_yr,IF($BL$3<IF(Scenarios!$D$16=1,5,2),c_rdtf_sIIIa_ini+c_rdtf_sIIIa_rem_ind_yr+($BL$3-1)*c_rdtf_sIIIa_subyrs,c_rdtf_sIIIa_ini+c_rdtf_sIIIa_rem_ind_yr+c_rdtf_sIIIa_subyrs))), IF($BL$3<0.25,c_rdtf_sIIIb_ini,IF($BL$3<1,c_rdtf_sIIIb_ini+(($BL$3-0.25)/0.75)*c_rdtf_sIIIb_rem_ind_yr,IF($BL$3<IF(Scenarios!$D$16=1,5,2),c_rdtf_sIIIb_ini+c_rdtf_sIIIb_rem_ind_yr+($BL$3-1)*c_rdtf_sIIIb_subyrs,c_rdtf_sIIIb_ini+c_rdtf_sIIIb_rem_ind_yr+c_rdtf_sIIIb_subyrs))), IF($BL$3<0.25,c_rdtf_sIV_ini,IF($BL$3<1,c_rdtf_sIV_ini+(($BL$3-0.25)/0.75)*c_rdtf_sIV_rem_ind_yr,IF($BL$3<IF(Scenarios!$D$16=1,5,2),c_rdtf_sIV_ini+c_rdtf_sIV_rem_ind_yr+($BL$3-1)*c_rdtf_sIV_subyrs,c_rdtf_sIV_ini+c_rdtf_sIV_rem_ind_yr+c_rdtf_sIV_subyrs)))), IF($B53=3,c_false_pos,0)) *(1+d_costs)^(-$A53) -> 0 | V53: 0 | W53: 0 | X53: 0 | Y53: 0 | Z53: 0 | AA53: 0 | AB53: 0 | AC53: =IF($G53<1,VLOOKUP(Logic!$A$29,TBL_EVENT,VLOOKUP($E53,TBL_STATE,3,FALSE),FALSE),FALSE) -> FALSE | AD53: 0.07831235998 | AE53: =IF($E53=Logic!$A$7,IF(VLOOKUP($G53+1,TBL_rand_scrn_rnd,2,FALSE)<spec_LDCT,Logic!$A$33,Logic!$A$31),IF(VLOOKUP($G53+1,TBL_rand_scrn_rnd,3,FALSE)<sens_LDCT,Logic!$A$30,Logic!$A$32)) -> 2 | AF53: -0.0003846153846 | AG53: =VLOOKUP(Logic!$A$34,TBL_EVENT,VLOOKUP($E53,TBL_STATE,3,FALSE),FALSE) -> FALSE | AH53: 115.0568878 | AI53: =Logic!$A$34 -> 6 | AJ53: 0 | AK53: =VLOOKUP(Logic!$A$35,TBL_EVENT,VLOOKUP($E53,TBL_STATE,3,FALSE),FALSE) -> FALSE | AL53: 200 | AM53: =Logic!$A$35 -> 7 | AN53: 0 | AO53: =VLOOKUP(Logic!$A$36,TBL_EVENT,VLOOKUP($E53,TBL_STATE,3,FALSE),FALSE) -> FALSE | AP53: 200 | AQ53: =Logic!$A$36 -> 8 | AR53: 0 | AS53: =VLOOKUP(Logic!$A$37,TBL_EVENT,VLOOKUP($E53,TBL_STATE,3,FALSE),FALSE) -> FALSE | AT53: =IF($M52,$CA53+IF($BZ53>$CA53,CHOOSE(Scenarios!$D$10+1,1,0,0.5)*$BZ53-$CA53,0),t_no_event) -> 200 | AU53: =Logic!$A$37 -> 9 | AV53: 0 | AW53: =VLOOKUP(Logic!$A$38,TBL_EVENT,VLOOKUP($E53,TBL_STATE,3,FALSE),FALSE) -> FALSE | AX53: 66.57641635 | AY53: =Logic!$A$38 -> 10 | AZ53: 0 | BA53: =IF(VLOOKUP(Logic!$A$29,TBL_EVENT,VLOOKUP($E53,TBL_STATE,3,FALSE),FALSE), IF(IF($G53=1,($D$39-MIN(BE53:BJ53)-$A53), IF($G53=2,($E$39-MIN(BE53-BJ53)-$A53), t_no_event))<0,TRUE,FALSE),FALSE) -> FALSE | BB53: 200 | BC53: =IF($E53=Logic!$A$7,IF(RAND()<spec_LDCT,Logic!$A$33,Logic!$A$31),IF(RAND()<sens_LDCT,Logic!$A$30,Logic!$A$32)) -> 4 | BD53: -0.0003846153846 | BE53: 200 | BF53: 200 | BG53: 200 | BH53: 200 | BI53: 200 | BJ53: 200 | BK53: 200 | BL53: 2 | BM53: 6 | BN53: 7 | BO53: 8 | BP53: 9 | BQ53: 10 | BR53: 4 | BS53: -0.0003846153846 | BT53: 0 | BU53: 0 | BV53: 0 | BW53: 0 | BX53: 0 | BY53: -0.0003846153846 | BZ53: 200 | CA53: 200
A54: 2003.470125 | B54: 100 | C54: FALSE | D54: FALSE | E54: FALSE | F54: FALSE | G54: 3 | H54: 100 | I54: FALSE | J54: 200 | K54: FALSE | L54: FALSE | M54: FALSE | N54: FALSE | O54: FALSE | P54: 66.57641635 | Q54: FALSE | R54: 1 | S54: FALSE | T54: 0 | U54: =IF($O54,CHOOSE($O54, IF($BL$3<0.25,c_rdtf_sIa_ini,IF($BL$3<1,c_rdtf_sIa_ini+(($BL$3-0.25)/0.75)*c_rdtf_sIa_rem_ind_yr,IF($BL$3<IF(Scenarios!$D$16=1,5,2),c_rdtf_sIa_ini+c_rdtf_sIa_rem_ind_yr+($BL$3-1)*c_rdtf_sIa_subyrs,c_rdtf_sIa_ini+c_rdtf_sIa_rem_ind_yr+c_rdtf_sIa_subyrs))), IF($BL$3<0.25,c_rdtf_sIb_ini,IF($BL$3<1,c_rdtf_sIb_ini+(($BL$3-0.25)/0.75)*c_rdtf_sIb_rem_ind_yr,IF($BL$3<IF(Scenarios!$D$16=1,5,2),c_rdtf_sIb_ini+c_rdtf_sIb_rem_ind_yr+($BL$3-1)*c_rdtf_sIb_subyrs,c_rdtf_sIb_ini+c_rdtf_sIb_rem_ind_yr+c_rdtf_sIb_subyrs))), IF($BL$3<0.25,c_rdtf_sIIa_ini,IF($BL$3<1,c_rdtf_sIIa_ini+(($BL$3-0.25)/0.75)*c_rdtf_sIIa_rem_ind_yr,IF($BL$3<IF(Scenarios!$D$16=1,5,2),c_rdtf_sIIa_ini+c_rdtf_sIIa_rem_ind_yr+($BL$3-1)*c_rdtf_sIIa_subyrs,c_rdtf_sIIa_ini+c_rdtf_sIIa_rem_ind_yr+c_rdtf_sIIa_subyrs))), IF($BL$3<0.25,c_rdtf_sIIb_ini,IF($BL$3<1,c_rdtf_sIIb_ini+(($BL$3-0.25)/0.75)*c_rdtf_sIIb_rem_ind_yr,IF($BL$3<IF(Scenarios!$D$16=1,5,2),c_rdtf_sIIb_ini+c_rdtf_sIIb_rem_ind_yr+($BL$3-1)*c_rdtf_sIIb_subyrs,c_rdtf_sIIb_ini+c_rdtf_sIIb_rem_ind_yr+c_rdtf_sIIb_subyrs))), IF($BL$3<0.25,c_rdtf_sIIIa_ini,IF($BL$3<1,c_rdtf_sIIIa_ini+(($BL$3-0.25)/0.75)*c_rdtf_sIIIa_rem_ind_yr,IF($BL$3<IF(Scenarios!$D$16=1,5,2),c_rdtf_sIIIa_ini+c_rdtf_sIIIa_rem_ind_yr+($BL$3-1)*c_rdtf_sIIIa_subyrs,c_rdtf_sIIIa_ini+c_rdtf_sIIIa_rem_ind_yr+c_rdtf_sIIIa_subyrs))), IF($BL$3<0.25,c_rdtf_sIIIb_ini,IF($BL$3<1,c_rdtf_sIIIb_ini+(($BL$3-0.25)/0.75)*c_rdtf_sIIIb_rem_ind_yr,IF($BL$3<IF(Scenarios!$D$16=1,5,2),c_rdtf_sIIIb_ini+c_rdtf_sIIIb_rem_ind_yr+($BL$3-1)*c_rdtf_sIIIb_subyrs,c_rdtf_sIIIb_ini+c_rdtf_sIIIb_rem_ind_yr+c_rdtf_sIIIb_subyrs))), IF($BL$3<0.25,c_rdtf_sIV_ini,IF($BL$3<1,c_rdtf_sIV_ini+(($BL$3-0.25)/0.75)*c_rdtf_sIV_rem_ind_yr,IF($BL$3<IF(Scenarios!$D$16=1,5,2),c_rdtf_sIV_ini+c_rdtf_sIV_rem_ind_yr+($BL$3-1)*c_rdtf_sIV_subyrs,c_rdtf_sIV_ini+c_rdtf_sIV_rem_ind_yr+c_rdtf_sIV_subyrs)))), IF($B54=3,c_false_pos,0)) *(1+d_costs)^(-$A54) -> 0 | V54: 0 | W54: 0 | X54: 0 | Y54: 0 | Z54: 0 | AA54: 0 | AB54: =IF(AND($B54=8,$M53<MIN($S$40:$S$54)),1,0) -> 0 | AC54: =IF($G54<1,VLOOKUP(Logic!$A$29,TBL_EVENT,VLOOKUP($E54,TBL_STATE,3,FALSE),FALSE),FALSE) -> FALSE | AD54: 0.07831235998 | AE54: =IF($E54=Logic!$A$7,IF(VLOOKUP($G54+1,TBL_rand_scrn_rnd,2,FALSE)<spec_LDCT,Logic!$A$33,Logic!$A$31),IF(VLOOKUP($G54+1,TBL_rand_scrn_rnd,3,FALSE)<sens_LDCT,Logic!$A$30,Logic!$A$32)) -> 2 | AF54: -0.0003846153846 | AG54: =VLOOKUP(Logic!$A$34,TBL_EVENT,VLOOKUP($E54,TBL_STATE,3,FALSE),FALSE) -> FALSE | AH54: 115.0568878 | AI54: =Logic!$A$34 -> 6 | AJ54: 0 | AK54: =VLOOKUP(Logic!$A$35,TBL_EVENT,VLOOKUP($E54,TBL_STATE,3,FALSE),FALSE) -> FALSE | AL54: 200 | AM54: =Logic!$A$35 -> 7 | AN54: 0 | AO54: =VLOOKUP(Logic!$A$36,TBL_EVENT,VLOOKUP($E54,TBL_STATE,3,FALSE),FALSE) -> FALSE | AP54: 200 | AQ54: =Logic!$A$36 -> 8 | AR54: 0 | AS54: =VLOOKUP(Logic!$A$37,TBL_EVENT,VLOOKUP($E54,TBL_STATE,3,FALSE),FALSE) -> FALSE | AT54: =IF($M53,$CA54+IF($BZ54>$CA54,CHOOSE(Scenarios!$D$10+1,1,0,0.5)*$BZ54-$CA54,0),t_no_event) -> 200 | AU54: =Logic!$A$37 -> 9 | AV54: 0 | AW54: =VLOOKUP(Logic!$A$38,TBL_EVENT,VLOOKUP($E54,TBL_STATE,3,FALSE),FALSE) -> FALSE | AX54: 66.57641635 | AY54: =Logic!$A$38 -> 10 | AZ54: 0 | BA54: =IF(VLOOKUP(Logic!$A$29,TBL_EVENT,VLOOKUP($E54,TBL_STATE,3,FALSE),FALSE), IF(IF($G54=1,($D$39-MIN(BE54:BJ54)-$A54), IF($G54=2,($E$39-MIN(BE54-BJ54)-$A54), t_no_event))<0,TRUE,FALSE),FALSE) -> FALSE | BB54: 200 | BC54: =IF($E54=Logic!$A$7,IF(RAND()<spec_LDCT,Logic!$A$33,Logic!$A$31),IF(RAND()<sens_LDCT,Logic!$A$30,Logic!$A$32)) -> 2 | BD54: -0.0003846153846 | BE54: 200 | BF54: 200 | BG54: 200 | BH54: 200 | BI54: 200 | BJ54: 200 | BK54: 200 | BL54: 2 | BM54: 6 | BN54: 7 | BO54: 8 | BP54: 9 | BQ54: 10 | BR54: 2 | BS54: -0.0003846153846 | BT54: 0 | BU54: 0 | BV54: 0 | BW54: 0 | BX54: 0 | BY54: -0.0003846153846 | BZ54: 200 | CA54: 200
A55: 2203.470125
A56: (A) Annual screening to Age 80 | Q56: Scenario active and lived >10 yrs= | R56: =IF($CH$3>10,IF(Scenarios!$D$21=1,1,0),0) -> 0
A57: 0 | B57: 0 | C57: =VLOOKUP($B57,TBL_EVENT,2,FALSE) -> Enter model | D57: =$A$3+$A57 -> 63.10629124 | E57: =$D$3 -> A | F57: =$E$3 -> No lung cancer | G57: 0 | H57: =INDEX($BL57:$BR57,MATCH($J57,$BE57:$BK57,0)) -> 5 | I57: =VLOOKUP($H57,TBL_EVENT,2,FALSE) -> LDCT screening - TN | J57: =MIN($BE57:$BK57) -> 0.07831235998 | K57: =IF($H57=2,VLOOKUP($E57,TBL_STATE,7),FALSE) -> FALSE | L57: =IF($K57,IF($K57<>$Q$3,TRUE)) -> FALSE | M57: =IF((SUMIFS($A58,$H57,2)+SUMIFS($A58,$H57,8)+$A$3)=$A$3,FALSE,$A$3+$A58) -> FALSE | N57: =IF($O$3,IF($M57,$O$3-$M57),IF($M57,$U$3-$M57)) -> FALSE | O57: =VLOOKUP($E57,TBL_STATE,6) -> FALSE | P57: =IF($H57=9,($A$3+$A58),$I$3) -> 66.57641635 | Q57: =IF($H57=10,IF($F57="Pre*",TRUE,FALSE),FALSE) -> FALSE | R57: =IF($R$56=1,IF($R56=1,IF($A57<10,IF($A58>10,(1-(($A58-10)/$J57)),1),0),0),1) -> 1 | S57: =IF(AND($H57<6,$G57=0),_xlfn.FLOOR.MATH((80-$D57),1)+$D$57,FALSE) -> 79.10629124 | T57: =IF($G57>$G56,c_LDCT+c_scrn_nurse,0)*IF($R57=0,0,1)*(1+d_costs)^(-$A57) -> 0 | U57: =IF($O57,CHOOSE($O57, IF($CG$3<0.25,c_rdtf_sIa_ini,IF($CG$3<1,c_rdtf_sIa_ini+(($CG$3-0.25)/0.75)*c_rdtf_sIa_rem_ind_yr,IF($CG$3<IF(Scenarios!$D$16=1,5,2),c_rdtf_sIa_ini+c_rdtf_sIa_rem_ind_yr+($CG$3-1)*c_rdtf_sIa_subyrs,c_rdtf_sIa_ini+c_rdtf_sIa_rem_ind_yr+c_rdtf_sIa_subyrs))), IF($CG$3<0.25,c_rdtf_sIb_ini,IF($CG$3<1,c_rdtf_sIb_ini+(($CG$3-0.25)/0.75)*c_rdtf_sIb_rem_ind_yr,IF($CG$3<IF(Scenarios!$D$16=1,5,2),c_rdtf_sIb_ini+c_rdtf_sIb_rem_ind_yr+($CG$3-1)*c_rdtf_sIb_subyrs,c_rdtf_sIb_ini+c_rdtf_sIb_rem_ind_yr+c_rdtf_sIb_subyrs))), IF($CG$3<0.25,c_rdtf_sIIa_ini,IF($CG$3<1,c_rdtf_sIIa_ini+(($CG$3-0.25)/0.75)*c_rdtf_sIIa_rem_ind_yr,IF($CG$3<IF(Scenarios!$D$16=1,5,2),c_rdtf_sIIa_ini+c_rdtf_sIIa_rem_ind_yr+($CG$3-1)*c_rdtf_sIIa_subyrs,c_rdtf_sIIa_ini+c_rdtf_sIIa_rem_ind_yr+c_rdtf_sIIa_subyrs))), IF($CG$3<0.25,c_rdtf_sIIb_ini,IF($CG$3<1,c_rdtf_sIIb_ini+(($CG$3-0.25)/0.75)*c_rdtf_sIIb_rem_ind_yr,IF($CG$3<IF(Scenarios!$D$16=1,5,2),c_rdtf_sIIb_ini+c_rdtf_sIIb_rem_ind_yr+($CG$3-1)*c_rdtf_sIIb_subyrs,c_rdtf_sIIb_ini+c_rdtf_sIIb_rem_ind_yr+c_rdtf_sIIb_subyrs))), IF($CG$3<0.25,c_rdtf_sIIIa_ini,IF($CG$3<1,c_rdtf_sIIIa_ini+(($CG$3-0.25)/0.75)*c_rdtf_sIIIa_rem_ind_yr,IF($CG$3<IF(Scenarios!$D$16=1,5,2),c_rdtf_sIIIa_ini+c_rdtf_sIIIa_rem_ind_yr+($CG$3-1)*c_rdtf_sIIIa_subyrs,c_rdtf_sIIIa_ini+c_rdtf_sIIIa_rem_ind_yr+c_rdtf_sIIIa_subyrs))), IF($CG$3<0.25,c_rdtf_sIIIb_ini,IF($CG$3<1,c_rdtf_sIIIb_ini+(($CG$3-0.25)/0.75)*c_rdtf_sIIIb_rem_ind_yr,IF($CG$3<IF(Scenarios!$D$16=1,5,2),c_rdtf_sIIIb_ini+c_rdtf_sIIIb_rem_ind_yr+($CG$3-1)*c_rdtf_sIIIb_subyrs,c_rdtf_sIIIb_ini+c_rdtf_sIIIb_rem_ind_yr+c_rdtf_sIIIb_subyrs))), IF($CG$3<0.25,c_rdtf_sIV_ini,IF($CG$3<1,c_rdtf_sIV_ini+(($CG$3-0.25)/0.75)*c_rdtf_sIV_rem_ind_yr,IF($CG$3<IF(Scenarios!$D$16=1,5,2),c_rdtf_sIV_ini+c_rdtf_sIV_rem_ind_yr+($CG$3-1)*c_rdtf_sIV_subyrs,c_rdtf_sIV_ini+c_rdtf_sIV_rem_ind_yr+c_rdtf_sIV_subyrs)))), IF($B57=3,c_false_pos,0)) *(1+d_costs)^(-$A57) -> 0 | V57: =IF($B57=9,c_eol_lung,0)*IF($R57=1,1,0)*(1+d_costs)^(-$A57) -> 0 | W57: =VLOOKUP($E57,TBL_STATE,IF($B$3=0,5,4)) -> 0.7816447302 | X57: =IF($J57=t_no_event,0,(INDEX($BS57:$BY57,MATCH($J57,$BE57:$BK57,0)))) -> -0.0003846153846 | Y57: =IF($J57=t_no_event,0,($X57*(1+d_benefits)^(-$A57))) -> -0.0003846153846 | Z57: =(($J57*$W57)*$R57)+$X57 -> 0.06082782811 | AA57: =$Y57+$W57*(EXP(-LN(1+d_benefits)*$A57)-EXP(-LN(1+d_benefits)*$A58))/LN(1+d_benefits) -> 0.0607454472 | AB57: =IF(AND($B57=8,$M56<MIN($S$57:$S$87)),1,0) -> 0 | AC57: =VLOOKUP(Logic!$A$29,TBL_EVENT,VLOOKUP($E57,TBL_STATE,3,FALSE),FALSE) -> TRUE | AD57: =$AD$26 -> 0.07831235998 | AE57: =IF($E57=Logic!$A$7,IF(VLOOKUP($G57+1,TBL_rand_scrn_rnd,2,FALSE)<spec_LDCT,Logic!$A$33,Logic!$A$31),IF(VLOOKUP($G57+1,TBL_rand_scrn_rnd,3,FALSE)<sens_LDCT,Logic!$A$30,Logic!$A$32)) -> 5 | AF57: =IF(AE57<6,IF(AE57=3,(u_dis_scrn_anx*(t_dis_scrn_anx/52))+(u_dis_fp*(t_dis_fp/12)),u_dis_scrn_anx*(t_dis_scrn_anx/52)),0) -> -0.0003846153846 | AG57: =VLOOKUP(Logic!$A$34,TBL_EVENT,VLOOKUP($E57,TBL_STATE,3,FALSE),FALSE) -> TRUE | AH57: =$H$3-$D57 -> 51.95059658 | AI57: =Logic!$A$34 -> 6 | AJ57: 0 | AK57: =VLOOKUP(Logic!$A$35,TBL_EVENT,VLOOKUP($E57,TBL_STATE,3,FALSE),FALSE) -> FALSE | AL57: =VLOOKUP($E57,TBL_pre_cl_prog,6) -> 200 | AM57: =Logic!$A$35 -> 7 | AN57: 0 | AO57: =VLOOKUP(Logic!$A$36,TBL_EVENT,VLOOKUP($E57,TBL_STATE,3,FALSE),FALSE) -> FALSE | AP57: =VLOOKUP($E57,TBL_cl_pres,6) -> 200 | AQ57: =Logic!$A$36 -> 8 | AR57: 0 | AS57: =VLOOKUP(Logic!$A$37,TBL_EVENT,VLOOKUP($E57,TBL_STATE,3,FALSE),FALSE) -> FALSE | AT57: =t_no_event -> 200 | AU57: =Logic!$A$37 -> 9 | AV57: 0 | AW57: =VLOOKUP(Logic!$A$38,TBL_EVENT,VLOOKUP($E57,TBL_STATE,3,FALSE),FALSE) -> TRUE | AX57: =$I$3-$D57 -> 3.470125118 | AY57: =Logic!$A$38 -> 10 | AZ57: 0 | BA57: FALSE | BB57: =t_no_event -> 200 | BC57: =IF($E57=Logic!$A$7,IF(RAND()<spec_LDCT,Logic!$A$33,Logic!$A$31),IF(RAND()<sens_LDCT,Logic!$A$30,Logic!$A$32)) -> 3 | BD57: =IF(BC57<6,IF(BC57=3,(u_dis_scrn_anx*(t_dis_scrn_anx/52))+(u_dis_fp*(t_dis_fp/12)),u_dis_scrn_anx*(t_dis_scrn_anx/52)),0) -> -0.01613461538 | BE57: =IF($AC57,$AD57,t_no_event) -> 0.07831235998 | BF57: =IF($AG57,$AH57,t_no_event) -> 51.95059658 | BG57: =IF($AK57,$AL57,t_no_event) -> 200 | BH57: =IF($AO57,$AP57,t_no_event) -> 200 | BI57: =IF($AS57,$AT57,t_no_event) -> 200 | BJ57: =IF($AW57,$AX57,t_no_event) -> 3.470125118 | BK57: =IF($BA57,$BB57,t_no_event) -> 200 | BL57: =$AE57 -> 5 | BM57: =$AI57 -> 6 | BN57: =$AM57 -> 7 | BO57: =$AQ57 -> 8 | BP57: =$AU57 -> 9 | BQ57: =$AY57 -> 10 | BR57: =$BC57 -> 3 | BS57: =$AF57 -> -0.0003846153846 | BT57: =$AJ57 -> 0 | BU57: =$AN57 -> 0 | BV57: =$AR57 -> 0 | BW57: =$AV57 -> 0 | BX57: =$AZ57 -> 0 | BY57: =IF(Scenario_mode=11,0,$BD57) -> -0.01613461538
A58: =$A57+$J57 -> 0.07831235998 | B58: =$H57 -> 5 | C58: =$I57 -> LDCT screening - TN | D58: =IF($E57="P",FALSE,IF(D57,$A$3+$A58,FALSE)) -> 63.1846036 | E58: =VLOOKUP($B58,TBL_EVENT_OUTCOME,VLOOKUP($E57,TBL_STATE,3,FALSE),FALSE) -> A | F58: =VLOOKUP($E58,TBL_STATE,2) -> No lung cancer | G58: =IF($H57<6,1,0)+$G57 -> 1 | H58: =IF($H57<9,INDEX($BL58:$BR58,MATCH($J58,$BE58:$BK58,0)),100) -> 5 | I58: =IF($H57>8,FALSE,VLOOKUP($H58,TBL_EVENT,2,FALSE)) -> LDCT screening - TN | J58: 0.92168764 | K58: FALSE | L58: FALSE | M58: FALSE | N58: FALSE | O58: FALSE | P58: 66.57641635 | Q58: =IF($H58=10,IF($F58="Pre*",TRUE,FALSE),FALSE) -> FALSE | R58: 1 | S58: =IF(AND($H58<6,$G58=0),_xlfn.FLOOR.MATH((80-$D58),1)+$D$57,FALSE) -> FALSE | T58: 104.7715187 | U58: =IF($O58,CHOOSE($O58, IF($CG$3<0.25,c_rdtf_sIa_ini,IF($CG$3<1,c_rdtf_sIa_ini+(($CG$3-0.25)/0.75)*c_rdtf_sIa_rem_ind_yr,IF($CG$3<IF(Scenarios!$D$16=1,5,2),c_rdtf_sIa_ini+c_rdtf_sIa_rem_ind_yr+($CG$3-1)*c_rdtf_sIa_subyrs,c_rdtf_sIa_ini+c_rdtf_sIa_rem_ind_yr+c_rdtf_sIa_subyrs))), IF($CG$3<0.25,c_rdtf_sIb_ini,IF($CG$3<1,c_rdtf_sIb_ini+(($CG$3-0.25)/0.75)*c_rdtf_sIb_rem_ind_yr,IF($CG$3<IF(Scenarios!$D$16=1,5,2),c_rdtf_sIb_ini+c_rdtf_sIb_rem_ind_yr+($CG$3-1)*c_rdtf_sIb_subyrs,c_rdtf_sIb_ini+c_rdtf_sIb_rem_ind_yr+c_rdtf_sIb_subyrs))), IF($CG$3<0.25,c_rdtf_sIIa_ini,IF($CG$3<1,c_rdtf_sIIa_ini+(($CG$3-0.25)/0.75)*c_rdtf_sIIa_rem_ind_yr,IF($CG$3<IF(Scenarios!$D$16=1,5,2),c_rdtf_sIIa_ini+c_rdtf_sIIa_rem_ind_yr+($CG$3-1)*c_rdtf_sIIa_subyrs,c_rdtf_sIIa_ini+c_rdtf_sIIa_rem_ind_yr+c_rdtf_sIIa_subyrs))), IF($CG$3<0.25,c_rdtf_sIIb_ini,IF($CG$3<1,c_rdtf_sIIb_ini+(($CG$3-0.25)/0.75)*c_rdtf_sIIb_rem_ind_yr,IF($CG$3<IF(Scenarios!$D$16=1,5,2),c_rdtf_sIIb_ini+c_rdtf_sIIb_rem_ind_yr+($CG$3-1)*c_rdtf_sIIb_subyrs,c_rdtf_sIIb_ini+c_rdtf_sIIb_rem_ind_yr+c_rdtf_sIIb_subyrs))), IF($CG$3<0.25,c_rdtf_sIIIa_ini,IF($CG$3<1,c_rdtf_sIIIa_ini+(($CG$3-0.25)/0.75)*c_rdtf_sIIIa_rem_ind_yr,IF($CG$3<IF(Scenarios!$D$16=1,5,2),c_rdtf_sIIIa_ini+c_rdtf_sIIIa_rem_ind_yr+($CG$3-1)*c_rdtf_sIIIa_subyrs,c_rdtf_sIIIa_ini+c_rdtf_sIIIa_rem_ind_yr+c_rdtf_sIIIa_subyrs))), IF($CG$3<0.25,c_rdtf_sIIIb_ini,IF($CG$3<1,c_rdtf_sIIIb_ini+(($CG$3-0.25)/0.75)*c_rdtf_sIIIb_rem_ind_yr,IF($CG$3<IF(Scenarios!$D$16=1,5,2),c_rdtf_sIIIb_ini+c_rdtf_sIIIb_rem_ind_yr+($CG$3-1)*c_rdtf_sIIIb_subyrs,c_rdtf_sIIIb_ini+c_rdtf_sIIIb_rem_ind_yr+c_rdtf_sIIIb_subyrs))), IF($CG$3<0.25,c_rdtf_sIV_ini,IF($CG$3<1,c_rdtf_sIV_ini+(($CG$3-0.25)/0.75)*c_rdtf_sIV_rem_ind_yr,IF($CG$3<IF(Scenarios!$D$16=1,5,2),c_rdtf_sIV_ini+c_rdtf_sIV_rem_ind_yr+($CG$3-1)*c_rdtf_sIV_subyrs,c_rdtf_sIV_ini+c_rdtf_sIV_rem_ind_yr+c_rdtf_sIV_subyrs)))), IF($B58=3,c_false_pos,0)) *(1+d_costs)^(-$A58) -> 0 | V58: 0 | W58: 0.7816447302 | X58: -0.0003846153846 | Y58: -0.0003835806034 | Z58: 0.7200476713 | AA58: 0.7068390972 | AB58: =IF(AND($B58=8,$M57<MIN($S$57:$S$87)),1,0) -> 0 | AC58: =IF($G58<1,VLOOKUP(Logic!$A$29,TBL_EVENT,VLOOKUP($E58,TBL_STATE,3,FALSE),FALSE),FALSE) -> FALSE | AD58: =$AD$57 -> 0.07831235998 | AE58: =IF($E58=Logic!$A$7,IF(VLOOKUP($G58+1,TBL_rand_scrn_rnd,2,FALSE)<spec_LDCT,Logic!$A$33,Logic!$A$31),IF(VLOOKUP($G58+1,TBL_rand_scrn_rnd,3,FALSE)<sens_LDCT,Logic!$A$30,Logic!$A$32)) -> 5 | AF58: -0.0003846153846 | AG58: =VLOOKUP(Logic!$A$34,TBL_EVENT,VLOOKUP($E58,TBL_STATE,3,FALSE),FALSE) -> TRUE | AH58: 51.87228422 | AI58: =Logic!$A$34 -> 6 | AJ58: 0 | AK58: =VLOOKUP(Logic!$A$35,TBL_EVENT,VLOOKUP($E58,TBL_STATE,3,FALSE),FALSE) -> FALSE | AL58: =IF($B58=4,VLOOKUP($E58,TBL_pre_cl_prog,6,FALSE)-$J57,VLOOKUP($E58,TBL_pre_cl_prog,6,FALSE)) -> 200 | AM58: =Logic!$A$35 -> 7 | AN58: 0 | AO58: =VLOOKUP(Logic!$A$36,TBL_EVENT,VLOOKUP($E58,TBL_STATE,3,FALSE),FALSE) -> FALSE | AP58: =IF($B58=4,VLOOKUP($E58,TBL_cl_pres,6,FALSE)-$J57,VLOOKUP($E58,TBL_cl_pres,6,FALSE)) -> 200 | AQ58: =Logic!$A$36 -> 8 | AR58: 0 | AS58: =VLOOKUP(Logic!$A$37,TBL_EVENT,VLOOKUP($E58,TBL_STATE,3,FALSE),FALSE) -> FALSE | AT58: =IF($M57,$CA58+IF($BZ58>$CA58,CHOOSE(Scenarios!$D$10+1,1,0,0.5)*$BZ58-$CA58,0),t_no_event) -> 200 | AU58: =Logic!$A$37 -> 9 | AV58: 0 | AW58: =VLOOKUP(Logic!$A$38,TBL_EVENT,VLOOKUP($E58,TBL_STATE,3,FALSE),FALSE) -> TRUE | AX58: 3.391812758 | AY58: =Logic!$A$38 -> 10 | AZ58: 0 | BA58: =IF($AC58,FALSE,IF(($A$3+$A58)<80,VLOOKUP(Logic!$A$39,TBL_EVENT,VLOOKUP($E58,TBL_STATE,3,FALSE),FALSE),FALSE)) -> TRUE | BB58: =IF($BA58,IF($A58=$G57,1,1-($A58-ROUNDDOWN($A58,0))),t_no_event) -> 0.92168764 | BC58: =IF($E58=Logic!$A$7,IF(RAND()<spec_LDCT,Logic!$A$33,Logic!$A$31),IF(RAND()<sens_LDCT,Logic!$A$30,Logic!$A$32)) -> 5 | BD58: -0.0003846153846 | BE58: =IF($AC58,($BE57-MIN($BF57:$BJ57)),t_no_event) -> 200 | BF58: 51.87228422 | BG58: 200 | BH58: 200 | BI58: 200 | BJ58: 3.391812758 | BK58: =IF($BA58,$BB58,t_no_event) -> 0.92168764 | BL58: =$AE58 -> 5 | BM58: =$AI58 -> 6 | BN58: =$AM58 -> 7 | BO58: =$AQ58 -> 8 | BP58: =$AU58 -> 9 | BQ58: =$AY58 -> 10 | BR58: 5 | BS58: =$AF58 -> -0.0003846153846 | BT58: =$AJ58 -> 0 | BU58: =$AN58 -> 0 | BV58: =$AR58 -> 0 | BW58: =$AV58 -> 0 | BX58: =$AZ58 -> 0 | BY58: -0.0003846153846 | BZ58: =IF($M57,CHOOSE($O58,survival_sIa,survival_sIb,survival_sIIa,survival_sIIb,survival_sIIIa,survival_sIIIb,survival_sIV),t_no_event) -> 200 | CA58: =IF($M57,CHOOSE(IF($Q$3,$Q$3,8),survival_sIa,survival_sIb,survival_sIIa,survival_sIIb,survival_sIIIa,survival_sIIIb,survival_sIV,t_no_event)+$N57,t_no_event) -> 200
A59: 1 | B59: =$H58 -> 5 | C59: =$I58 -> LDCT screening - TN | D59: 64.10629124 | E59: A | F59: No lung cancer | G59: =IF($H58<6,1,0)+$G58 -> 2 | H59: 5 | I59: LDCT screening - TN | J59: 1 | K59: FALSE | L59: FALSE | M59: FALSE | N59: FALSE | O59: FALSE | P59: 66.57641635 | Q59: FALSE | R59: 1 | S59: FALSE | T59: 101.5016035 | U59: =IF($O59,CHOOSE($O59, IF($CG$3<0.25,c_rdtf_sIa_ini,IF($CG$3<1,c_rdtf_sIa_ini+(($CG$3-0.25)/0.75)*c_rdtf_sIa_rem_ind_yr,IF($CG$3<IF(Scenarios!$D$16=1,5,2),c_rdtf_sIa_ini+c_rdtf_sIa_rem_ind_yr+($CG$3-1)*c_rdtf_sIa_subyrs,c_rdtf_sIa_ini+c_rdtf_sIa_rem_ind_yr+c_rdtf_sIa_subyrs))), IF($CG$3<0.25,c_rdtf_sIb_ini,IF($CG$3<1,c_rdtf_sIb_ini+(($CG$3-0.25)/0.75)*c_rdtf_sIb_rem_ind_yr,IF($CG$3<IF(Scenarios!$D$16=1,5,2),c_rdtf_sIb_ini+c_rdtf_sIb_rem_ind_yr+($CG$3-1)*c_rdtf_sIb_subyrs,c_rdtf_sIb_ini+c_rdtf_sIb_rem_ind_yr+c_rdtf_sIb_subyrs))), IF($CG$3<0.25,c_rdtf_sIIa_ini,IF($CG$3<1,c_rdtf_sIIa_ini+(($CG$3-0.25)/0.75)*c_rdtf_sIIa_rem_ind_yr,IF($CG$3<IF(Scenarios!$D$16=1,5,2),c_rdtf_sIIa_ini+c_rdtf_sIIa_rem_ind_yr+($CG$3-1)*c_rdtf_sIIa_subyrs,c_rdtf_sIIa_ini+c_rdtf_sIIa_rem_ind_yr+c_rdtf_sIIa_subyrs))), IF($CG$3<0.25,c_rdtf_sIIb_ini,IF($CG$3<1,c_rdtf_sIIb_ini+(($CG$3-0.25)/0.75)*c_rdtf_sIIb_rem_ind_yr,IF($CG$3<IF(Scenarios!$D$16=1,5,2),c_rdtf_sIIb_ini+c_rdtf_sIIb_rem_ind_yr+($CG$3-1)*c_rdtf_sIIb_subyrs,c_rdtf_sIIb_ini+c_rdtf_sIIb_rem_ind_yr+c_rdtf_sIIb_subyrs))), IF($CG$3<0.25,c_rdtf_sIIIa_ini,IF($CG$3<1,c_rdtf_sIIIa_ini+(($CG$3-0.25)/0.75)*c_rdtf_sIIIa_rem_ind_yr,IF($CG$3<IF(Scenarios!$D$16=1,5,2),c_rdtf_sIIIa_ini+c_rdtf_sIIIa_rem_ind_yr+($CG$3-1)*c_rdtf_sIIIa_subyrs,c_rdtf_sIIIa_ini+c_rdtf_sIIIa_rem_ind_yr+c_rdtf_sIIIa_subyrs))), IF($CG$3<0.25,c_rdtf_sIIIb_ini,IF($CG$3<1,c_rdtf_sIIIb_ini+(($CG$3-0.25)/0.75)*c_rdtf_sIIIb_rem_ind_yr,IF($CG$3<IF(Scenarios!$D$16=1,5,2),c_rdtf_sIIIb_ini+c_rdtf_sIIIb_rem_ind_yr+($CG$3-1)*c_rdtf_sIIIb_subyrs,c_rdtf_sIIIb_ini+c_rdtf_sIIIb_rem_ind_yr+c_rdtf_sIIIb_subyrs))), IF($CG$3<0.25,c_rdtf_sIV_ini,IF($CG$3<1,c_rdtf_sIV_ini+(($CG$3-0.25)/0.75)*c_rdtf_sIV_rem_ind_yr,IF($CG$3<IF(Scenarios!$D$16=1,5,2),c_rdtf_sIV_ini+c_rdtf_sIV_rem_ind_yr+($CG$3-1)*c_rdtf_sIV_subyrs,c_rdtf_sIV_ini+c_rdtf_sIV_rem_ind_yr+c_rdtf_sIV_subyrs)))), IF($B59=3,c_false_pos,0)) *(1+d_costs)^(-$A59) -> 0 | V59: 0 | W59: 0.7816447302 | X59: -0.0003846153846 | Y59: -0.0003716090673 | Z59: 0.7812601148 | AA59: 0.7419981884 | AB59: 0 | AC59: =IF($G59<1,VLOOKUP(Logic!$A$29,TBL_EVENT,VLOOKUP($E59,TBL_STATE,3,FALSE),FALSE),FALSE) -> FALSE | AD59: =$AD$57 -> 0.07831235998 | AE59: =IF($E59=Logic!$A$7,IF(VLOOKUP($G59+1,TBL_rand_scrn_rnd,2,FALSE)<spec_LDCT,Logic!$A$33,Logic!$A$31),IF(VLOOKUP($G59+1,TBL_rand_scrn_rnd,3,FALSE)<sens_LDCT,Logic!$A$30,Logic!$A$32)) -> 5 | AF59: -0.0003846153846 | AG59: =VLOOKUP(Logic!$A$34,TBL_EVENT,VLOOKUP($E59,TBL_STATE,3,FALSE),FALSE) -> TRUE | AH59: 50.95059658 | AI59: =Logic!$A$34 -> 6 | AJ59: 0 | AK59: =VLOOKUP(Logic!$A$35,TBL_EVENT,VLOOKUP($E59,TBL_STATE,3,FALSE),FALSE) -> FALSE | AL59: 200 | AM59: =Logic!$A$35 -> 7 | AN59: 0 | AO59: =VLOOKUP(Logic!$A$36,TBL_EVENT,VLOOKUP($E59,TBL_STATE,3,FALSE),FALSE) -> FALSE | AP59: 200 | AQ59: =Logic!$A$36 -> 8 | AR59: 0 | AS59: =VLOOKUP(Logic!$A$37,TBL_EVENT,VLOOKUP($E59,TBL_STATE,3,FALSE),FALSE) -> FALSE | AT59: =IF($M58,$CA59+IF($BZ59>$CA59,CHOOSE(Scenarios!$D$10+1,1,0,0.5)*$BZ59-$CA59,0),t_no_event) -> 200 | AU59: =Logic!$A$37 -> 9 | AV59: 0 | AW59: =VLOOKUP(Logic!$A$38,TBL_EVENT,VLOOKUP($E59,TBL_STATE,3,FALSE),FALSE) -> TRUE | AX59: 2.470125118 | AY59: =Logic!$A$38 -> 10 | AZ59: 0 | BA59: =IF($AC59,FALSE,IF(($A$3+$A59)<80,VLOOKUP(Logic!$A$39,TBL_EVENT,VLOOKUP($E59,TBL_STATE,3,FALSE),FALSE),FALSE)) -> TRUE | BB59: 1 | BC59: =IF($E59=Logic!$A$7,IF(RAND()<spec_LDCT,Logic!$A$33,Logic!$A$31),IF(RAND()<sens_LDCT,Logic!$A$30,Logic!$A$32)) -> 5 | BD59: -0.0003846153846 | BE59: 200 | BF59: 50.95059658 | BG59: 200 | BH59: 200 | BI59: 200 | BJ59: 2.470125118 | BK59: 1 | BL59: =$AE59 -> 5 | BM59: =$AI59 -> 6 | BN59: =$AM59 -> 7 | BO59: =$AQ59 -> 8 | BP59: =$AU59 -> 9 | BQ59: =$AY59 -> 10 | BR59: 5 | BS59: =$AF59 -> -0.0003846153846 | BT59: =$AJ59 -> 0 | BU59: =$AN59 -> 0 | BV59: =$AR59 -> 0 | BW59: =$AV59 -> 0 | BX59: =$AZ59 -> 0 | BY59: -0.0003846153846 | BZ59: 200 | CA59: 200
A60: 2 | B60: 5 | C60: LDCT screening - TN | D60: 65.10629124 | E60: A | F60: No lung cancer | G60: 3 | H60: 5 | I60: LDCT screening - TN | J60: 1 | K60: FALSE | L60: FALSE | M60: FALSE | N60: FALSE | O60: FALSE | P60: 66.57641635 | Q60: FALSE | R60: 1 | S60: FALSE | T60: 98.06918217 | U60: =IF($O60,CHOOSE($O60, IF($CG$3<0.25,c_rdtf_sIa_ini,IF($CG$3<1,c_rdtf_sIa_ini+(($CG$3-0.25)/0.75)*c_rdtf_sIa_rem_ind_yr,IF($CG$3<IF(Scenarios!$D$16=1,5,2),c_rdtf_sIa_ini+c_rdtf_sIa_rem_ind_yr+($CG$3-1)*c_rdtf_sIa_subyrs,c_rdtf_sIa_ini+c_rdtf_sIa_rem_ind_yr+c_rdtf_sIa_subyrs))), IF($CG$3<0.25,c_rdtf_sIb_ini,IF($CG$3<1,c_rdtf_sIb_ini+(($CG$3-0.25)/0.75)*c_rdtf_sIb_rem_ind_yr,IF($CG$3<IF(Scenarios!$D$16=1,5,2),c_rdtf_sIb_ini+c_rdtf_sIb_rem_ind_yr+($CG$3-1)*c_rdtf_sIb_subyrs,c_rdtf_sIb_ini+c_rdtf_sIb_rem_ind_yr+c_rdtf_sIb_subyrs))), IF($CG$3<0.25,c_rdtf_sIIa_ini,IF($CG$3<1,c_rdtf_sIIa_ini+(($CG$3-0.25)/0.75)*c_rdtf_sIIa_rem_ind_yr,IF($CG$3<IF(Scenarios!$D$16=1,5,2),c_rdtf_sIIa_ini+c_rdtf_sIIa_rem_ind_yr+($CG$3-1)*c_rdtf_sIIa_subyrs,c_rdtf_sIIa_ini+c_rdtf_sIIa_rem_ind_yr+c_rdtf_sIIa_subyrs))), IF($CG$3<0.25,c_rdtf_sIIb_ini,IF($CG$3<1,c_rdtf_sIIb_ini+(($CG$3-0.25)/0.75)*c_rdtf_sIIb_rem_ind_yr,IF($CG$3<IF(Scenarios!$D$16=1,5,2),c_rdtf_sIIb_ini+c_rdtf_sIIb_rem_ind_yr+($CG$3-1)*c_rdtf_sIIb_subyrs,c_rdtf_sIIb_ini+c_rdtf_sIIb_rem_ind_yr+c_rdtf_sIIb_subyrs))), IF($CG$3<0.25,c_rdtf_sIIIa_ini,IF($CG$3<1,c_rdtf_sIIIa_ini+(($CG$3-0.25)/0.75)*c_rdtf_sIIIa_rem_ind_yr,IF($CG$3<IF(Scenarios!$D$16=1,5,2),c_rdtf_sIIIa_ini+c_rdtf_sIIIa_rem_ind_yr+($CG$3-1)*c_rdtf_sIIIa_subyrs,c_rdtf_sIIIa_ini+c_rdtf_sIIIa_rem_ind_yr+c_rdtf_sIIIa_subyrs))), IF($CG$3<0.25,c_rdtf_sIIIb_ini,IF($CG$3<1,c_rdtf_sIIIb_ini+(($CG$3-0.25)/0.75)*c_rdtf_sIIIb_rem_ind_yr,IF($CG$3<IF(Scenarios!$D$16=1,5,2),c_rdtf_sIIIb_ini+c_rdtf_sIIIb_rem_ind_yr+($CG$3-1)*c_rdtf_sIIIb_subyrs,c_rdtf_sIIIb_ini+c_rdtf_sIIIb_rem_ind_yr+c_rdtf_sIIIb_subyrs))), IF($CG$3<0.25,c_rdtf_sIV_ini,IF($CG$3<1,c_rdtf_sIV_ini+(($CG$3-0.25)/0.75)*c_rdtf_sIV_rem_ind_yr,IF($CG$3<IF(Scenarios!$D$16=1,5,2),c_rdtf_sIV_ini+c_rdtf_sIV_rem_ind_yr+($CG$3-1)*c_rdtf_sIV_subyrs,c_rdtf_sIV_ini+c_rdtf_sIV_rem_ind_yr+c_rdtf_sIV_subyrs)))), IF($B60=3,c_false_pos,0)) *(1+d_costs)^(-$A60) -> 0 | V60: 0 | W60: 0.7816447302 | X60: -0.0003846153846 | Y60: -0.0003590425771 | Z60: 0.7812601148 | AA60: 0.7169064622 | AB60: 0 | AC60: =IF($G60<1,VLOOKUP(Logic!$A$29,TBL_EVENT,VLOOKUP($E60,TBL_STATE,3,FALSE),FALSE),FALSE) -> FALSE | AD60: 0.07831235998 | AE60: =IF($E60=Logic!$A$7,IF(VLOOKUP($G60+1,TBL_rand_scrn_rnd,2,FALSE)<spec_LDCT,Logic!$A$33,Logic!$A$31),IF(VLOOKUP($G60+1,TBL_rand_scrn_rnd,3,FALSE)<sens_LDCT,Logic!$A$30,Logic!$A$32)) -> 3 | AF60: -0.01613461538 | AG60: =VLOOKUP(Logic!$A$34,TBL_EVENT,VLOOKUP($E60,TBL_STATE,3,FALSE),FALSE) -> TRUE | AH60: 49.95059658 | AI60: =Logic!$A$34 -> 6 | AJ60: 0 | AK60: =VLOOKUP(Logic!$A$35,TBL_EVENT,VLOOKUP($E60,TBL_STATE,3,FALSE),FALSE) -> FALSE | AL60: 200 | AM60: =Logic!$A$35 -> 7 | AN60: 0 | AO60: =VLOOKUP(Logic!$A$36,TBL_EVENT,VLOOKUP($E60,TBL_STATE,3,FALSE),FALSE) -> FALSE | AP60: 200 | AQ60: =Logic!$A$36 -> 8 | AR60: 0 | AS60: =VLOOKUP(Logic!$A$37,TBL_EVENT,VLOOKUP($E60,TBL_STATE,3,FALSE),FALSE) -> FALSE | AT60: =IF($M59,$CA60+IF($BZ60>$CA60,CHOOSE(Scenarios!$D$10+1,1,0,0.5)*$BZ60-$CA60,0),t_no_event) -> 200 | AU60: =Logic!$A$37 -> 9 | AV60: 0 | AW60: =VLOOKUP(Logic!$A$38,TBL_EVENT,VLOOKUP($E60,TBL_STATE,3,FALSE),FALSE) -> TRUE | AX60: 1.470125118 | AY60: =Logic!$A$38 -> 10 | AZ60: 0 | BA60: =IF($AC60,FALSE,IF(($A$3+$A60)<80,VLOOKUP(Logic!$A$39,TBL_EVENT,VLOOKUP($E60,TBL_STATE,3,FALSE),FALSE),FALSE)) -> TRUE | BB60: 1 | BC60: =IF($E60=Logic!$A$7,IF(RAND()<spec_LDCT,Logic!$A$33,Logic!$A$31),IF(RAND()<sens_LDCT,Logic!$A$30,Logic!$A$32)) -> 5 | BD60: -0.0003846153846 | BE60: 200 | BF60: 49.95059658 | BG60: 200 | BH60: 200 | BI60: 200 | BJ60: 1.470125118 | BK60: 1 | BL60: 3 | BM60: 6 | BN60: 7 | BO60: 8 | BP60: 9 | BQ60: 10 | BR60: 5 | BS60: -0.01613461538 | BT60: 0 | BU60: 0 | BV60: 0 | BW60: 0 | BX60: 0 | BY60: -0.0003846153846 | BZ60: 200 | CA60: 200
A61: 3 | B61: 5 | C61: LDCT screening - TN | D61: 66.10629124 | E61: A | F61: No lung cancer | G61: 4 | H61: 10 | I61: Non-lung cancer death | J61: 0.470125118 | K61: FALSE | L61: FALSE | M61: FALSE | N61: FALSE | O61: FALSE | P61: 66.57641635 | Q61: FALSE | R61: 1 | S61: FALSE | T61: 94.75283301 | U61: =IF($O61,CHOOSE($O61, IF($CG$3<0.25,c_rdtf_sIa_ini,IF($CG$3<1,c_rdtf_sIa_ini+(($CG$3-0.25)/0.75)*c_rdtf_sIa_rem_ind_yr,IF($CG$3<IF(Scenarios!$D$16=1,5,2),c_rdtf_sIa_ini+c_rdtf_sIa_rem_ind_yr+($CG$3-1)*c_rdtf_sIa_subyrs,c_rdtf_sIa_ini+c_rdtf_sIa_rem_ind_yr+c_rdtf_sIa_subyrs))), IF($CG$3<0.25,c_rdtf_sIb_ini,IF($CG$3<1,c_rdtf_sIb_ini+(($CG$3-0.25)/0.75)*c_rdtf_sIb_rem_ind_yr,IF($CG$3<IF(Scenarios!$D$16=1,5,2),c_rdtf_sIb_ini+c_rdtf_sIb_rem_ind_yr+($CG$3-1)*c_rdtf_sIb_subyrs,c_rdtf_sIb_ini+c_rdtf_sIb_rem_ind_yr+c_rdtf_sIb_subyrs))), IF($CG$3<0.25,c_rdtf_sIIa_ini,IF($CG$3<1,c_rdtf_sIIa_ini+(($CG$3-0.25)/0.75)*c_rdtf_sIIa_rem_ind_yr,IF($CG$3<IF(Scenarios!$D$16=1,5,2),c_rdtf_sIIa_ini+c_rdtf_sIIa_rem_ind_yr+($CG$3-1)*c_rdtf_sIIa_subyrs,c_rdtf_sIIa_ini+c_rdtf_sIIa_rem_ind_yr+c_rdtf_sIIa_subyrs))), IF($CG$3<0.25,c_rdtf_sIIb_ini,IF($CG$3<1,c_rdtf_sIIb_ini+(($CG$3-0.25)/0.75)*c_rdtf_sIIb_rem_ind_yr,IF($CG$3<IF(Scenarios!$D$16=1,5,2),c_rdtf_sIIb_ini+c_rdtf_sIIb_rem_ind_yr+($CG$3-1)*c_rdtf_sIIb_subyrs,c_rdtf_sIIb_ini+c_rdtf_sIIb_rem_ind_yr+c_rdtf_sIIb_subyrs))), IF($CG$3<0.25,c_rdtf_sIIIa_ini,IF($CG$3<1,c_rdtf_sIIIa_ini+(($CG$3-0.25)/0.75)*c_rdtf_sIIIa_rem_ind_yr,IF($CG$3<IF(Scenarios!$D$16=1,5,2),c_rdtf_sIIIa_ini+c_rdtf_sIIIa_rem_ind_yr+($CG$3-1)*c_rdtf_sIIIa_subyrs,c_rdtf_sIIIa_ini+c_rdtf_sIIIa_rem_ind_yr+c_rdtf_sIIIa_subyrs))), IF($CG$3<0.25,c_rdtf_sIIIb_ini,IF($CG$3<1,c_rdtf_sIIIb_ini+(($CG$3-0.25)/0.75)*c_rdtf_sIIIb_rem_ind_yr,IF($CG$3<IF(Scenarios!$D$16=1,5,2),c_rdtf_sIIIb_ini+c_rdtf_sIIIb_rem_ind_yr+($CG$3-1)*c_rdtf_sIIIb_subyrs,c_rdtf_sIIIb_ini+c_rdtf_sIIIb_rem_ind_yr+c_rdtf_sIIIb_subyrs))), IF($CG$3<0.25,c_rdtf_sIV_ini,IF($CG$3<1,c_rdtf_sIV_ini+(($CG$3-0.25)/0.75)*c_rdtf_sIV_rem_ind_yr,IF($CG$3<IF(Scenarios!$D$16=1,5,2),c_rdtf_sIV_ini+c_rdtf_sIV_rem_ind_yr+($CG$3-1)*c_rdtf_sIV_subyrs,c_rdtf_sIV_ini+c_rdtf_sIV_rem_ind_yr+c_rdtf_sIV_subyrs)))), IF($B61=3,c_false_pos,0)) *(1+d_costs)^(-$A61) -> 0 | V61: 0 | W61: 0.7816447302 | X61: 0 | Y61: 0 | Z61: 0.367470821 | AA61: 0.3287718509 | AB61: 0 | AC61: =IF($G61<1,VLOOKUP(Logic!$A$29,TBL_EVENT,VLOOKUP($E61,TBL_STATE,3,FALSE),FALSE),FALSE) -> FALSE | AD61: 0.07831235998 | AE61: =IF($E61=Logic!$A$7,IF(VLOOKUP($G61+1,TBL_rand_scrn_rnd,2,FALSE)<spec_LDCT,Logic!$A$33,Logic!$A$31),IF(VLOOKUP($G61+1,TBL_rand_scrn_rnd,3,FALSE)<sens_LDCT,Logic!$A$30,Logic!$A$32)) -> 5 | AF61: -0.0003846153846 | AG61: =VLOOKUP(Logic!$A$34,TBL_EVENT,VLOOKUP($E61,TBL_STATE,3,FALSE),FALSE) -> TRUE | AH61: 48.95059658 | AI61: =Logic!$A$34 -> 6 | AJ61: 0 | AK61: =VLOOKUP(Logic!$A$35,TBL_EVENT,VLOOKUP($E61,TBL_STATE,3,FALSE),FALSE) -> FALSE | AL61: 200 | AM61: =Logic!$A$35 -> 7 | AN61: 0 | AO61: =VLOOKUP(Logic!$A$36,TBL_EVENT,VLOOKUP($E61,TBL_STATE,3,FALSE),FALSE) -> FALSE | AP61: 200 | AQ61: =Logic!$A$36 -> 8 | AR61: 0 | AS61: =VLOOKUP(Logic!$A$37,TBL_EVENT,VLOOKUP($E61,TBL_STATE,3,FALSE),FALSE) -> FALSE | AT61: =IF($M60,$CA61+IF($BZ61>$CA61,CHOOSE(Scenarios!$D$10+1,1,0,0.5)*$BZ61-$CA61,0),t_no_event) -> 200 | AU61: =Logic!$A$37 -> 9 | AV61: 0 | AW61: =VLOOKUP(Logic!$A$38,TBL_EVENT,VLOOKUP($E61,TBL_STATE,3,FALSE),FALSE) -> TRUE | AX61: 0.470125118 | AY61: =Logic!$A$38 -> 10 | AZ61: 0 | BA61: =IF($AC61,FALSE,IF(($A$3+$A61)<80,VLOOKUP(Logic!$A$39,TBL_EVENT,VLOOKUP($E61,TBL_STATE,3,FALSE),FALSE),FALSE)) -> TRUE | BB61: 1 | BC61: =IF($E61=Logic!$A$7,IF(RAND()<spec_LDCT,Logic!$A$33,Logic!$A$31),IF(RAND()<sens_LDCT,Logic!$A$30,Logic!$A$32)) -> 5 | BD61: -0.0003846153846 | BE61: 200 | BF61: 48.95059658 | BG61: 200 | BH61: 200 | BI61: 200 | BJ61: 0.470125118 | BK61: 1 | BL61: 5 | BM61: 6 | BN61: 7 | BO61: 8 | BP61: 9 | BQ61: 10 | BR61: 5 | BS61: -0.0003846153846 | BT61: 0 | BU61: 0 | BV61: 0 | BW61: 0 | BX61: 0 | BY61: -0.0003846153846 | BZ61: 200 | CA61: 200
A62: 3.470125118 | B62: 10 | C62: Non-lung cancer death | D62: 66.57641635 | E62: P | F62: Death | G62: 4 | H62: 100 | I62: FALSE | J62: 200 | K62: FALSE | L62: FALSE | M62: FALSE | N62: FALSE | O62: FALSE | P62: =IF($H62=9,($A$3+$A63),$I$3) -> 66.57641635 | Q62: FALSE | R62: 1 | S62: FALSE | T62: 0 | U62: =IF($O62,CHOOSE($O62, IF($CG$3<0.25,c_rdtf_sIa_ini,IF($CG$3<1,c_rdtf_sIa_ini+(($CG$3-0.25)/0.75)*c_rdtf_sIa_rem_ind_yr,IF($CG$3<IF(Scenarios!$D$16=1,5,2),c_rdtf_sIa_ini+c_rdtf_sIa_rem_ind_yr+($CG$3-1)*c_rdtf_sIa_subyrs,c_rdtf_sIa_ini+c_rdtf_sIa_rem_ind_yr+c_rdtf_sIa_subyrs))), IF($CG$3<0.25,c_rdtf_sIb_ini,IF($CG$3<1,c_rdtf_sIb_ini+(($CG$3-0.25)/0.75)*c_rdtf_sIb_rem_ind_yr,IF($CG$3<IF(Scenarios!$D$16=1,5,2),c_rdtf_sIb_ini+c_rdtf_sIb_rem_ind_yr+($CG$3-1)*c_rdtf_sIb_subyrs,c_rdtf_sIb_ini+c_rdtf_sIb_rem_ind_yr+c_rdtf_sIb_subyrs))), IF($CG$3<0.25,c_rdtf_sIIa_ini,IF($CG$3<1,c_rdtf_sIIa_ini+(($CG$3-0.25)/0.75)*c_rdtf_sIIa_rem_ind_yr,IF($CG$3<IF(Scenarios!$D$16=1,5,2),c_rdtf_sIIa_ini+c_rdtf_sIIa_rem_ind_yr+($CG$3-1)*c_rdtf_sIIa_subyrs,c_rdtf_sIIa_ini+c_rdtf_sIIa_rem_ind_yr+c_rdtf_sIIa_subyrs))), IF($CG$3<0.25,c_rdtf_sIIb_ini,IF($CG$3<1,c_rdtf_sIIb_ini+(($CG$3-0.25)/0.75)*c_rdtf_sIIb_rem_ind_yr,IF($CG$3<IF(Scenarios!$D$16=1,5,2),c_rdtf_sIIb_ini+c_rdtf_sIIb_rem_ind_yr+($CG$3-1)*c_rdtf_sIIb_subyrs,c_rdtf_sIIb_ini+c_rdtf_sIIb_rem_ind_yr+c_rdtf_sIIb_subyrs))), IF($CG$3<0.25,c_rdtf_sIIIa_ini,IF($CG$3<1,c_rdtf_sIIIa_ini+(($CG$3-0.25)/0.75)*c_rdtf_sIIIa_rem_ind_yr,IF($CG$3<IF(Scenarios!$D$16=1,5,2),c_rdtf_sIIIa_ini+c_rdtf_sIIIa_rem_ind_yr+($CG$3-1)*c_rdtf_sIIIa_subyrs,c_rdtf_sIIIa_ini+c_rdtf_sIIIa_rem_ind_yr+c_rdtf_sIIIa_subyrs))), IF($CG$3<0.25,c_rdtf_sIIIb_ini,IF($CG$3<1,c_rdtf_sIIIb_ini+(($CG$3-0.25)/0.75)*c_rdtf_sIIIb_rem_ind_yr,IF($CG$3<IF(Scenarios!$D$16=1,5,2),c_rdtf_sIIIb_ini+c_rdtf_sIIIb_rem_ind_yr+($CG$3-1)*c_rdtf_sIIIb_subyrs,c_rdtf_sIIIb_ini+c_rdtf_sIIIb_rem_ind_yr+c_rdtf_sIIIb_subyrs))), IF($CG$3<0.25,c_rdtf_sIV_ini,IF($CG$3<1,c_rdtf_sIV_ini+(($CG$3-0.25)/0.75)*c_rdtf_sIV_rem_ind_yr,IF($CG$3<IF(Scenarios!$D$16=1,5,2),c_rdtf_sIV_ini+c_rdtf_sIV_rem_ind_yr+($CG$3-1)*c_rdtf_sIV_subyrs,c_rdtf_sIV_ini+c_rdtf_sIV_rem_ind_yr+c_rdtf_sIV_subyrs)))), IF($B62=3,c_false_pos,0)) *(1+d_costs)^(-$A62) -> 0 | V62: 0 | W62: 0 | X62: 0 | Y62: 0 | Z62: 0 | AA62: 0 | AB62: 0 | AC62: =IF($G62<1,VLOOKUP(Logic!$A$29,TBL_EVENT,VLOOKUP($E62,TBL_STATE,3,FALSE),FALSE),FALSE) -> FALSE | AD62: 0.07831235998 | AE62: =IF($E62=Logic!$A$7,IF(VLOOKUP($G62+1,TBL_rand_scrn_rnd,2,FALSE)<spec_LDCT,Logic!$A$33,Logic!$A$31),IF(VLOOKUP($G62+1,TBL_rand_scrn_rnd,3,FALSE)<sens_LDCT,Logic!$A$30,Logic!$A$32)) -> 2 | AF62: -0.0003846153846 | AG62: =VLOOKUP(Logic!$A$34,TBL_EVENT,VLOOKUP($E62,TBL_STATE,3,FALSE),FALSE) -> FALSE | AH62: 48.48047147 | AI62: =Logic!$A$34 -> 6 | AJ62: 0 | AK62: =VLOOKUP(Logic!$A$35,TBL_EVENT,VLOOKUP($E62,TBL_STATE,3,FALSE),FALSE) -> FALSE | AL62: 200 | AM62: =Logic!$A$35 -> 7 | AN62: 0 | AO62: =VLOOKUP(Logic!$A$36,TBL_EVENT,VLOOKUP($E62,TBL_STATE,3,FALSE),FALSE) -> FALSE | AP62: 200 | AQ62: =Logic!$A$36 -> 8 | AR62: 0 | AS62: =VLOOKUP(Logic!$A$37,TBL_EVENT,VLOOKUP($E62,TBL_STATE,3,FALSE),FALSE) -> FALSE | AT62: =IF($M61,$CA62+IF($BZ62>$CA62,CHOOSE(Scenarios!$D$10+1,1,0,0.5)*$BZ62-$CA62,0),t_no_event) -> 200 | AU62: =Logic!$A$37 -> 9 | AV62: 0 | AW62: =VLOOKUP(Logic!$A$38,TBL_EVENT,VLOOKUP($E62,TBL_STATE,3,FALSE),FALSE) -> FALSE | AX62: 0 | AY62: =Logic!$A$38 -> 10 | AZ62: 0 | BA62: =IF($AC62,FALSE,IF(($A$3+$A62)<80,VLOOKUP(Logic!$A$39,TBL_EVENT,VLOOKUP($E62,TBL_STATE,3,FALSE),FALSE),FALSE)) -> FALSE | BB62: 200 | BC62: =IF($E62=Logic!$A$7,IF(RAND()<spec_LDCT,Logic!$A$33,Logic!$A$31),IF(RAND()<sens_LDCT,Logic!$A$30,Logic!$A$32)) -> 4 | BD62: -0.0003846153846 | BE62: 200 | BF62: 200 | BG62: 200 | BH62: 200 | BI62: 200 | BJ62: 200 | BK62: 200 | BL62: 2 | BM62: 6 | BN62: 7 | BO62: 8 | BP62: 9 | BQ62: 10 | BR62: 4 | BS62: -0.0003846153846 | BT62: 0 | BU62: 0 | BV62: 0 | BW62: 0 | BX62: 0 | BY62: -0.0003846153846 | BZ62: 200 | CA62: 200
A63: 203.4701251 | B63: 100 | C63: FALSE | D63: FALSE | E63: FALSE | F63: FALSE | G63: 4 | H63: 100 | I63: FALSE | J63: 200 | K63: FALSE | L63: FALSE | M63: FALSE | N63: FALSE | O63: FALSE | P63: 66.57641635 | Q63: FALSE | R63: 1 | S63: FALSE | T63: 0 | U63: =IF($O63,CHOOSE($O63, IF($CG$3<0.25,c_rdtf_sIa_ini,IF($CG$3<1,c_rdtf_sIa_ini+(($CG$3-0.25)/0.75)*c_rdtf_sIa_rem_ind_yr,IF($CG$3<IF(Scenarios!$D$16=1,5,2),c_rdtf_sIa_ini+c_rdtf_sIa_rem_ind_yr+($CG$3-1)*c_rdtf_sIa_subyrs,c_rdtf_sIa_ini+c_rdtf_sIa_rem_ind_yr+c_rdtf_sIa_subyrs))), IF($CG$3<0.25,c_rdtf_sIb_ini,IF($CG$3<1,c_rdtf_sIb_ini+(($CG$3-0.25)/0.75)*c_rdtf_sIb_rem_ind_yr,IF($CG$3<IF(Scenarios!$D$16=1,5,2),c_rdtf_sIb_ini+c_rdtf_sIb_rem_ind_yr+($CG$3-1)*c_rdtf_sIb_subyrs,c_rdtf_sIb_ini+c_rdtf_sIb_rem_ind_yr+c_rdtf_sIb_subyrs))), IF($CG$3<0.25,c_rdtf_sIIa_ini,IF($CG$3<1,c_rdtf_sIIa_ini+(($CG$3-0.25)/0.75)*c_rdtf_sIIa_rem_ind_yr,IF($CG$3<IF(Scenarios!$D$16=1,5,2),c_rdtf_sIIa_ini+c_rdtf_sIIa_rem_ind_yr+($CG$3-1)*c_rdtf_sIIa_subyrs,c_rdtf_sIIa_ini+c_rdtf_sIIa_rem_ind_yr+c_rdtf_sIIa_subyrs))), IF($CG$3<0.25,c_rdtf_sIIb_ini,IF($CG$3<1,c_rdtf_sIIb_ini+(($CG$3-0.25)/0.75)*c_rdtf_sIIb_rem_ind_yr,IF($CG$3<IF(Scenarios!$D$16=1,5,2),c_rdtf_sIIb_ini+c_rdtf_sIIb_rem_ind_yr+($CG$3-1)*c_rdtf_sIIb_subyrs,c_rdtf_sIIb_ini+c_rdtf_sIIb_rem_ind_yr+c_rdtf_sIIb_subyrs))), IF($CG$3<0.25,c_rdtf_sIIIa_ini,IF($CG$3<1,c_rdtf_sIIIa_ini+(($CG$3-0.25)/0.75)*c_rdtf_sIIIa_rem_ind_yr,IF($CG$3<IF(Scenarios!$D$16=1,5,2),c_rdtf_sIIIa_ini+c_rdtf_sIIIa_rem_ind_yr+($CG$3-1)*c_rdtf_sIIIa_subyrs,c_rdtf_sIIIa_ini+c_rdtf_sIIIa_rem_ind_yr+c_rdtf_sIIIa_subyrs))), IF($CG$3<0.25,c_rdtf_sIIIb_ini,IF($CG$3<1,c_rdtf_sIIIb_ini+(($CG$3-0.25)/0.75)*c_rdtf_sIIIb_rem_ind_yr,IF($CG$3<IF(Scenarios!$D$16=1,5,2),c_rdtf_sIIIb_ini+c_rdtf_sIIIb_rem_ind_yr+($CG$3-1)*c_rdtf_sIIIb_subyrs,c_rdtf_sIIIb_ini+c_rdtf_sIIIb_rem_ind_yr+c_rdtf_sIIIb_subyrs))), IF($CG$3<0.25,c_rdtf_sIV_ini,IF($CG$3<1,c_rdtf_sIV_ini+(($CG$3-0.25)/0.75)*c_rdtf_sIV_rem_ind_yr,IF($CG$3<IF(Scenarios!$D$16=1,5,2),c_rdtf_sIV_ini+c_rdtf_sIV_rem_ind_yr+($CG$3-1)*c_rdtf_sIV_subyrs,c_rdtf_sIV_ini+c_rdtf_sIV_rem_ind_yr+c_rdtf_sIV_subyrs)))), IF($B63=3,c_false_pos,0)) *(1+d_costs)^(-$A63) -> 0 | V63: 0 | W63: 0 | X63: 0 | Y63: 0 | Z63: 0 | AA63: 0 | AB63: 0 | AC63: =IF($G63<1,VLOOKUP(Logic!$A$29,TBL_EVENT,VLOOKUP($E63,TBL_STATE,3,FALSE),FALSE),FALSE) -> FALSE | AD63: 0.07831235998 | AE63: =IF($E63=Logic!$A$7,IF(VLOOKUP($G63+1,TBL_rand_scrn_rnd,2,FALSE)<spec_LDCT,Logic!$A$33,Logic!$A$31),IF(VLOOKUP($G63+1,TBL_rand_scrn_rnd,3,FALSE)<sens_LDCT,Logic!$A$30,Logic!$A$32)) -> 2 | AF63: -0.0003846153846 | AG63: =VLOOKUP(Logic!$A$34,TBL_EVENT,VLOOKUP($E63,TBL_STATE,3,FALSE),FALSE) -> FALSE | AH63: 115.0568878 | AI63: =Logic!$A$34 -> 6 | AJ63: 0 | AK63: =VLOOKUP(Logic!$A$35,TBL_EVENT,VLOOKUP($E63,TBL_STATE,3,FALSE),FALSE) -> FALSE | AL63: 200 | AM63: =Logic!$A$35 -> 7 | AN63: 0 | AO63: =VLOOKUP(Logic!$A$36,TBL_EVENT,VLOOKUP($E63,TBL_STATE,3,FALSE),FALSE) -> FALSE | AP63: 200 | AQ63: =Logic!$A$36 -> 8 | AR63: 0 | AS63: =VLOOKUP(Logic!$A$37,TBL_EVENT,VLOOKUP($E63,TBL_STATE,3,FALSE),FALSE) -> FALSE | AT63: =IF($M62,$CA63+IF($BZ63>$CA63,CHOOSE(Scenarios!$D$10+1,1,0,0.5)*$BZ63-$CA63,0),t_no_event) -> 200 | AU63: =Logic!$A$37 -> 9 | AV63: 0 | AW63: =VLOOKUP(Logic!$A$38,TBL_EVENT,VLOOKUP($E63,TBL_STATE,3,FALSE),FALSE) -> FALSE | AX63: 66.57641635 | AY63: =Logic!$A$38 -> 10 | AZ63: 0 | BA63: =IF($AC63,FALSE,IF(($A$3+$A63)<80,VLOOKUP(Logic!$A$39,TBL_EVENT,VLOOKUP($E63,TBL_STATE,3,FALSE),FALSE),FALSE)) -> FALSE | BB63: 200 | BC63: =IF($E63=Logic!$A$7,IF(RAND()<spec_LDCT,Logic!$A$33,Logic!$A$31),IF(RAND()<sens_LDCT,Logic!$A$30,Logic!$A$32)) -> 4 | BD63: -0.0003846153846 | BE63: 200 | BF63: 200 | BG63: 200 | BH63: 200 | BI63: 200 | BJ63: 200 | BK63: 200 | BL63: 2 | BM63: 6 | BN63: 7 | BO63: 8 | BP63: 9 | BQ63: 10 | BR63: 4 | BS63: -0.0003846153846 | BT63: 0 | BU63: 0 | BV63: 0 | BW63: 0 | BX63: 0 | BY63: -0.0003846153846 | BZ63: 200 | CA63: 200
A64: 403.4701251 | B64: 100 | C64: FALSE | D64: FALSE | E64: FALSE | F64: FALSE | G64: 4 | H64: 100 | I64: FALSE | J64: 200 | K64: FALSE | L64: FALSE | M64: FALSE | N64: FALSE | O64: FALSE | P64: 66.57641635 | Q64: FALSE | R64: 1 | S64: FALSE | T64: 0 | U64: =IF($O64,CHOOSE($O64, IF($CG$3<0.25,c_rdtf_sIa_ini,IF($CG$3<1,c_rdtf_sIa_ini+(($CG$3-0.25)/0.75)*c_rdtf_sIa_rem_ind_yr,IF($CG$3<IF(Scenarios!$D$16=1,5,2),c_rdtf_sIa_ini+c_rdtf_sIa_rem_ind_yr+($CG$3-1)*c_rdtf_sIa_subyrs,c_rdtf_sIa_ini+c_rdtf_sIa_rem_ind_yr+c_rdtf_sIa_subyrs))), IF($CG$3<0.25,c_rdtf_sIb_ini,IF($CG$3<1,c_rdtf_sIb_ini+(($CG$3-0.25)/0.75)*c_rdtf_sIb_rem_ind_yr,IF($CG$3<IF(Scenarios!$D$16=1,5,2),c_rdtf_sIb_ini+c_rdtf_sIb_rem_ind_yr+($CG$3-1)*c_rdtf_sIb_subyrs,c_rdtf_sIb_ini+c_rdtf_sIb_rem_ind_yr+c_rdtf_sIb_subyrs))), IF($CG$3<0.25,c_rdtf_sIIa_ini,IF($CG$3<1,c_rdtf_sIIa_ini+(($CG$3-0.25)/0.75)*c_rdtf_sIIa_rem_ind_yr,IF($CG$3<IF(Scenarios!$D$16=1,5,2),c_rdtf_sIIa_ini+c_rdtf_sIIa_rem_ind_yr+($CG$3-1)*c_rdtf_sIIa_subyrs,c_rdtf_sIIa_ini+c_rdtf_sIIa_rem_ind_yr+c_rdtf_sIIa_subyrs))), IF($CG$3<0.25,c_rdtf_sIIb_ini,IF($CG$3<1,c_rdtf_sIIb_ini+(($CG$3-0.25)/0.75)*c_rdtf_sIIb_rem_ind_yr,IF($CG$3<IF(Scenarios!$D$16=1,5,2),c_rdtf_sIIb_ini+c_rdtf_sIIb_rem_ind_yr+($CG$3-1)*c_rdtf_sIIb_subyrs,c_rdtf_sIIb_ini+c_rdtf_sIIb_rem_ind_yr+c_rdtf_sIIb_subyrs))), IF($CG$3<0.25,c_rdtf_sIIIa_ini,IF($CG$3<1,c_rdtf_sIIIa_ini+(($CG$3-0.25)/0.75)*c_rdtf_sIIIa_rem_ind_yr,IF($CG$3<IF(Scenarios!$D$16=1,5,2),c_rdtf_sIIIa_ini+c_rdtf_sIIIa_rem_ind_yr+($CG$3-1)*c_rdtf_sIIIa_subyrs,c_rdtf_sIIIa_ini+c_rdtf_sIIIa_rem_ind_yr+c_rdtf_sIIIa_subyrs))), IF($CG$3<0.25,c_rdtf_sIIIb_ini,IF($CG$3<1,c_rdtf_sIIIb_ini+(($CG$3-0.25)/0.75)*c_rdtf_sIIIb_rem_ind_yr,IF($CG$3<IF(Scenarios!$D$16=1,5,2),c_rdtf_sIIIb_ini+c_rdtf_sIIIb_rem_ind_yr+($CG$3-1)*c_rdtf_sIIIb_subyrs,c_rdtf_sIIIb_ini+c_rdtf_sIIIb_rem_ind_yr+c_rdtf_sIIIb_subyrs))), IF($CG$3<0.25,c_rdtf_sIV_ini,IF($CG$3<1,c_rdtf_sIV_ini+(($CG$3-0.25)/0.75)*c_rdtf_sIV_rem_ind_yr,IF($CG$3<IF(Scenarios!$D$16=1,5,2),c_rdtf_sIV_ini+c_rdtf_sIV_rem_ind_yr+($CG$3-1)*c_rdtf_sIV_subyrs,c_rdtf_sIV_ini+c_rdtf_sIV_rem_ind_yr+c_rdtf_sIV_subyrs)))), IF($B64=3,c_false_pos,0)) *(1+d_costs)^(-$A64) -> 0 | V64: 0 | W64: 0 | X64: 0 | Y64: 0 | Z64: 0 | AA64: 0 | AB64: 0 | AC64: =IF($G64<1,VLOOKUP(Logic!$A$29,TBL_EVENT,VLOOKUP($E64,TBL_STATE,3,FALSE),FALSE),FALSE) -> FALSE | AD64: 0.07831235998 | AE64: =IF($E64=Logic!$A$7,IF(VLOOKUP($G64+1,TBL_rand_scrn_rnd,2,FALSE)<spec_LDCT,Logic!$A$33,Logic!$A$31),IF(VLOOKUP($G64+1,TBL_rand_scrn_rnd,3,FALSE)<sens_LDCT,Logic!$A$30,Logic!$A$32)) -> 2 | AF64: -0.0003846153846 | AG64: =VLOOKUP(Logic!$A$34,TBL_EVENT,VLOOKUP($E64,TBL_STATE,3,FALSE),FALSE) -> FALSE | AH64: 115.0568878 | AI64: =Logic!$A$34 -> 6 | AJ64: 0 | AK64: =VLOOKUP(Logic!$A$35,TBL_EVENT,VLOOKUP($E64,TBL_STATE,3,FALSE),FALSE) -> FALSE | AL64: 200 | AM64: =Logic!$A$35 -> 7 | AN64: 0 | AO64: =VLOOKUP(Logic!$A$36,TBL_EVENT,VLOOKUP($E64,TBL_STATE,3,FALSE),FALSE) -> FALSE | AP64: 200 | AQ64: =Logic!$A$36 -> 8 | AR64: 0 | AS64: =VLOOKUP(Logic!$A$37,TBL_EVENT,VLOOKUP($E64,TBL_STATE,3,FALSE),FALSE) -> FALSE | AT64: =IF($M63,$CA64+IF($BZ64>$CA64,CHOOSE(Scenarios!$D$10+1,1,0,0.5)*$BZ64-$CA64,0),t_no_event) -> 200 | AU64: =Logic!$A$37 -> 9 | AV64: 0 | AW64: =VLOOKUP(Logic!$A$38,TBL_EVENT,VLOOKUP($E64,TBL_STATE,3,FALSE),FALSE) -> FALSE | AX64: 66.57641635 | AY64: =Logic!$A$38 -> 10 | AZ64: 0 | BA64: =IF($AC64,FALSE,IF(($A$3+$A64)<80,VLOOKUP(Logic!$A$39,TBL_EVENT,VLOOKUP($E64,TBL_STATE,3,FALSE),FALSE),FALSE)) -> FALSE | BB64: 200 | BC64: =IF($E64=Logic!$A$7,IF(RAND()<spec_LDCT,Logic!$A$33,Logic!$A$31),IF(RAND()<sens_LDCT,Logic!$A$30,Logic!$A$32)) -> 2 | BD64: -0.0003846153846 | BE64: 200 | BF64: 200 | BG64: 200 | BH64: 200 | BI64: 200 | BJ64: 200 | BK64: 200 | BL64: 2 | BM64: 6 | BN64: 7 | BO64: 8 | BP64: 9 | BQ64: 10 | BR64: 2 | BS64: -0.0003846153846 | BT64: 0 | BU64: 0 | BV64: 0 | BW64: 0 | BX64: 0 | BY64: -0.0003846153846 | BZ64: 200 | CA64: 200
A65: 603.4701251 | B65: 100 | C65: FALSE | D65: FALSE | E65: FALSE | F65: FALSE | G65: 4 | H65: 100 | I65: FALSE | J65: 200 | K65: FALSE | L65: FALSE | M65: FALSE | N65: FALSE | O65: FALSE | P65: 66.57641635 | Q65: FALSE | R65: 1 | S65: FALSE | T65: 0 | U65: =IF($O65,CHOOSE($O65, IF($CG$3<0.25,c_rdtf_sIa_ini,IF($CG$3<1,c_rdtf_sIa_ini+(($CG$3-0.25)/0.75)*c_rdtf_sIa_rem_ind_yr,IF($CG$3<IF(Scenarios!$D$16=1,5,2),c_rdtf_sIa_ini+c_rdtf_sIa_rem_ind_yr+($CG$3-1)*c_rdtf_sIa_subyrs,c_rdtf_sIa_ini+c_rdtf_sIa_rem_ind_yr+c_rdtf_sIa_subyrs))), IF($CG$3<0.25,c_rdtf_sIb_ini,IF($CG$3<1,c_rdtf_sIb_ini+(($CG$3-0.25)/0.75)*c_rdtf_sIb_rem_ind_yr,IF($CG$3<IF(Scenarios!$D$16=1,5,2),c_rdtf_sIb_ini+c_rdtf_sIb_rem_ind_yr+($CG$3-1)*c_rdtf_sIb_subyrs,c_rdtf_sIb_ini+c_rdtf_sIb_rem_ind_yr+c_rdtf_sIb_subyrs))), IF($CG$3<0.25,c_rdtf_sIIa_ini,IF($CG$3<1,c_rdtf_sIIa_ini+(($CG$3-0.25)/0.75)*c_rdtf_sIIa_rem_ind_yr,IF($CG$3<IF(Scenarios!$D$16=1,5,2),c_rdtf_sIIa_ini+c_rdtf_sIIa_rem_ind_yr+($CG$3-1)*c_rdtf_sIIa_subyrs,c_rdtf_sIIa_ini+c_rdtf_sIIa_rem_ind_yr+c_rdtf_sIIa_subyrs))), IF($CG$3<0.25,c_rdtf_sIIb_ini,IF($CG$3<1,c_rdtf_sIIb_ini+(($CG$3-0.25)/0.75)*c_rdtf_sIIb_rem_ind_yr,IF($CG$3<IF(Scenarios!$D$16=1,5,2),c_rdtf_sIIb_ini+c_rdtf_sIIb_rem_ind_yr+($CG$3-1)*c_rdtf_sIIb_subyrs,c_rdtf_sIIb_ini+c_rdtf_sIIb_rem_ind_yr+c_rdtf_sIIb_subyrs))), IF($CG$3<0.25,c_rdtf_sIIIa_ini,IF($CG$3<1,c_rdtf_sIIIa_ini+(($CG$3-0.25)/0.75)*c_rdtf_sIIIa_rem_ind_yr,IF($CG$3<IF(Scenarios!$D$16=1,5,2),c_rdtf_sIIIa_ini+c_rdtf_sIIIa_rem_ind_yr+($CG$3-1)*c_rdtf_sIIIa_subyrs,c_rdtf_sIIIa_ini+c_rdtf_sIIIa_rem_ind_yr+c_rdtf_sIIIa_subyrs))), IF($CG$3<0.25,c_rdtf_sIIIb_ini,IF($CG$3<1,c_rdtf_sIIIb_ini+(($CG$3-0.25)/0.75)*c_rdtf_sIIIb_rem_ind_yr,IF($CG$3<IF(Scenarios!$D$16=1,5,2),c_rdtf_sIIIb_ini+c_rdtf_sIIIb_rem_ind_yr+($CG$3-1)*c_rdtf_sIIIb_subyrs,c_rdtf_sIIIb_ini+c_rdtf_sIIIb_rem_ind_yr+c_rdtf_sIIIb_subyrs))), IF($CG$3<0.25,c_rdtf_sIV_ini,IF($CG$3<1,c_rdtf_sIV_ini+(($CG$3-0.25)/0.75)*c_rdtf_sIV_rem_ind_yr,IF($CG$3<IF(Scenarios!$D$16=1,5,2),c_rdtf_sIV_ini+c_rdtf_sIV_rem_ind_yr+($CG$3-1)*c_rdtf_sIV_subyrs,c_rdtf_sIV_ini+c_rdtf_sIV_rem_ind_yr+c_rdtf_sIV_subyrs)))), IF($B65=3,c_false_pos,0)) *(1+d_costs)^(-$A65) -> 0 | V65: 0 | W65: 0 | X65: 0 | Y65: 0 | Z65: 0 | AA65: 0 | AB65: 0 | AC65: =IF($G65<1,VLOOKUP(Logic!$A$29,TBL_EVENT,VLOOKUP($E65,TBL_STATE,3,FALSE),FALSE),FALSE) -> FALSE | AD65: 0.07831235998 | AE65: =IF($E65=Logic!$A$7,IF(VLOOKUP($G65+1,TBL_rand_scrn_rnd,2,FALSE)<spec_LDCT,Logic!$A$33,Logic!$A$31),IF(VLOOKUP($G65+1,TBL_rand_scrn_rnd,3,FALSE)<sens_LDCT,Logic!$A$30,Logic!$A$32)) -> 2 | AF65: -0.0003846153846 | AG65: =VLOOKUP(Logic!$A$34,TBL_EVENT,VLOOKUP($E65,TBL_STATE,3,FALSE),FALSE) -> FALSE | AH65: 115.0568878 | AI65: =Logic!$A$34 -> 6 | AJ65: 0 | AK65: =VLOOKUP(Logic!$A$35,TBL_EVENT,VLOOKUP($E65,TBL_STATE,3,FALSE),FALSE) -> FALSE | AL65: 200 | AM65: =Logic!$A$35 -> 7 | AN65: 0 | AO65: =VLOOKUP(Logic!$A$36,TBL_EVENT,VLOOKUP($E65,TBL_STATE,3,FALSE),FALSE) -> FALSE | AP65: 200 | AQ65: =Logic!$A$36 -> 8 | AR65: 0 | AS65: =VLOOKUP(Logic!$A$37,TBL_EVENT,VLOOKUP($E65,TBL_STATE,3,FALSE),FALSE) -> FALSE | AT65: =IF($M64,$CA65+IF($BZ65>$CA65,CHOOSE(Scenarios!$D$10+1,1,0,0.5)*$BZ65-$CA65,0),t_no_event) -> 200 | AU65: =Logic!$A$37 -> 9 | AV65: 0 | AW65: =VLOOKUP(Logic!$A$38,TBL_EVENT,VLOOKUP($E65,TBL_STATE,3,FALSE),FALSE) -> FALSE | AX65: 66.57641635 | AY65: =Logic!$A$38 -> 10 | AZ65: 0 | BA65: =IF($AC65,FALSE,IF(($A$3+$A65)<80,VLOOKUP(Logic!$A$39,TBL_EVENT,VLOOKUP($E65,TBL_STATE,3,FALSE),FALSE),FALSE)) -> FALSE | BB65: 200 | BC65: =IF($E65=Logic!$A$7,IF(RAND()<spec_LDCT,Logic!$A$33,Logic!$A$31),IF(RAND()<sens_LDCT,Logic!$A$30,Logic!$A$32)) -> 2 | BD65: -0.0003846153846 | BE65: 200 | BF65: 200 | BG65: 200 | BH65: 200 | BI65: 200 | BJ65: 200 | BK65: 200 | BL65: 2 | BM65: 6 | BN65: 7 | BO65: 8 | BP65: 9 | BQ65: 10 | BR65: 2 | BS65: -0.0003846153846 | BT65: 0 | BU65: 0 | BV65: 0 | BW65: 0 | BX65: 0 | BY65: -0.0003846153846 | BZ65: 200 | CA65: 200
A66: 803.4701251 | B66: =$H65 -> 100 | C66: =$I65 -> FALSE | D66: FALSE | E66: FALSE | F66: FALSE | G66: =IF($H65<6,1,0)+$G65 -> 4 | H66: 100 | I66: FALSE | J66: 200 | K66: FALSE | L66: FALSE | M66: FALSE | N66: FALSE | O66: FALSE | P66: 66.57641635 | Q66: FALSE | R66: 1 | S66: FALSE | T66: 0 | U66: =IF($O66,CHOOSE($O66, IF($CG$3<0.25,c_rdtf_sIa_ini,IF($CG$3<1,c_rdtf_sIa_ini+(($CG$3-0.25)/0.75)*c_rdtf_sIa_rem_ind_yr,IF($CG$3<IF(Scenarios!$D$16=1,5,2),c_rdtf_sIa_ini+c_rdtf_sIa_rem_ind_yr+($CG$3-1)*c_rdtf_sIa_subyrs,c_rdtf_sIa_ini+c_rdtf_sIa_rem_ind_yr+c_rdtf_sIa_subyrs))), IF($CG$3<0.25,c_rdtf_sIb_ini,IF($CG$3<1,c_rdtf_sIb_ini+(($CG$3-0.25)/0.75)*c_rdtf_sIb_rem_ind_yr,IF($CG$3<IF(Scenarios!$D$16=1,5,2),c_rdtf_sIb_ini+c_rdtf_sIb_rem_ind_yr+($CG$3-1)*c_rdtf_sIb_subyrs,c_rdtf_sIb_ini+c_rdtf_sIb_rem_ind_yr+c_rdtf_sIb_subyrs))), IF($CG$3<0.25,c_rdtf_sIIa_ini,IF($CG$3<1,c_rdtf_sIIa_ini+(($CG$3-0.25)/0.75)*c_rdtf_sIIa_rem_ind_yr,IF($CG$3<IF(Scenarios!$D$16=1,5,2),c_rdtf_sIIa_ini+c_rdtf_sIIa_rem_ind_yr+($CG$3-1)*c_rdtf_sIIa_subyrs,c_rdtf_sIIa_ini+c_rdtf_sIIa_rem_ind_yr+c_rdtf_sIIa_subyrs))), IF($CG$3<0.25,c_rdtf_sIIb_ini,IF($CG$3<1,c_rdtf_sIIb_ini+(($CG$3-0.25)/0.75)*c_rdtf_sIIb_rem_ind_yr,IF($CG$3<IF(Scenarios!$D$16=1,5,2),c_rdtf_sIIb_ini+c_rdtf_sIIb_rem_ind_yr+($CG$3-1)*c_rdtf_sIIb_subyrs,c_rdtf_sIIb_ini+c_rdtf_sIIb_rem_ind_yr+c_rdtf_sIIb_subyrs))), IF($CG$3<0.25,c_rdtf_sIIIa_ini,IF($CG$3<1,c_rdtf_sIIIa_ini+(($CG$3-0.25)/0.75)*c_rdtf_sIIIa_rem_ind_yr,IF($CG$3<IF(Scenarios!$D$16=1,5,2),c_rdtf_sIIIa_ini+c_rdtf_sIIIa_rem_ind_yr+($CG$3-1)*c_rdtf_sIIIa_subyrs,c_rdtf_sIIIa_ini+c_rdtf_sIIIa_rem_ind_yr+c_rdtf_sIIIa_subyrs))), IF($CG$3<0.25,c_rdtf_sIIIb_ini,IF($CG$3<1,c_rdtf_sIIIb_ini+(($CG$3-0.25)/0.75)*c_rdtf_sIIIb_rem_ind_yr,IF($CG$3<IF(Scenarios!$D$16=1,5,2),c_rdtf_sIIIb_ini+c_rdtf_sIIIb_rem_ind_yr+($CG$3-1)*c_rdtf_sIIIb_subyrs,c_rdtf_sIIIb_ini+c_rdtf_sIIIb_rem_ind_yr+c_rdtf_sIIIb_subyrs))), IF($CG$3<0.25,c_rdtf_sIV_ini,IF($CG$3<1,c_rdtf_sIV_ini+(($CG$3-0.25)/0.75)*c_rdtf_sIV_rem_ind_yr,IF($CG$3<IF(Scenarios!$D$16=1,5,2),c_rdtf_sIV_ini+c_rdtf_sIV_rem_ind_yr+($CG$3-1)*c_rdtf_sIV_subyrs,c_rdtf_sIV_ini+c_rdtf_sIV_rem_ind_yr+c_rdtf_sIV_subyrs)))), IF($B66=3,c_false_pos,0)) *(1+d_costs)^(-$A66) -> 0 | V66: 0 | W66: 0 | X66: 0 | Y66: 0 | Z66: 0 | AA66: 0 | AB66: 0 | AC66: =IF($G66<1,VLOOKUP(Logic!$A$29,TBL_EVENT,VLOOKUP($E66,TBL_STATE,3,FALSE),FALSE),FALSE) -> FALSE | AD66: 0.07831235998 | AE66: =IF($E66=Logic!$A$7,IF(VLOOKUP($G66+1,TBL_rand_scrn_rnd,2,FALSE)<spec_LDCT,Logic!$A$33,Logic!$A$31),IF(VLOOKUP($G66+1,TBL_rand_scrn_rnd,3,FALSE)<sens_LDCT,Logic!$A$30,Logic!$A$32)) -> 2 | AF66: -0.0003846153846 | AG66: =VLOOKUP(Logic!$A$34,TBL_EVENT,VLOOKUP($E66,TBL_STATE,3,FALSE),FALSE) -> FALSE | AH66: 115.0568878 | AI66: =Logic!$A$34 -> 6 | AJ66: 0 | AK66: =VLOOKUP(Logic!$A$35,TBL_EVENT,VLOOKUP($E66,TBL_STATE,3,FALSE),FALSE) -> FALSE | AL66: 200 | AM66: =Logic!$A$35 -> 7 | AN66: 0 | AO66: =VLOOKUP(Logic!$A$36,TBL_EVENT,VLOOKUP($E66,TBL_STATE,3,FALSE),FALSE) -> FALSE | AP66: 200 | AQ66: =Logic!$A$36 -> 8 | AR66: 0 | AS66: =VLOOKUP(Logic!$A$37,TBL_EVENT,VLOOKUP($E66,TBL_STATE,3,FALSE),FALSE) -> FALSE | AT66: =IF($M65,$CA66+IF($BZ66>$CA66,CHOOSE(Scenarios!$D$10+1,1,0,0.5)*$BZ66-$CA66,0),t_no_event) -> 200 | AU66: =Logic!$A$37 -> 9 | AV66: 0 | AW66: =VLOOKUP(Logic!$A$38,TBL_EVENT,VLOOKUP($E66,TBL_STATE,3,FALSE),FALSE) -> FALSE | AX66: 66.57641635 | AY66: =Logic!$A$38 -> 10 | AZ66: 0 | BA66: =IF($AC66,FALSE,IF(($A$3+$A66)<80,VLOOKUP(Logic!$A$39,TBL_EVENT,VLOOKUP($E66,TBL_STATE,3,FALSE),FALSE),FALSE)) -> FALSE | BB66: 200 | BC66: =IF($E66=Logic!$A$7,IF(RAND()<spec_LDCT,Logic!$A$33,Logic!$A$31),IF(RAND()<sens_LDCT,Logic!$A$30,Logic!$A$32)) -> 2 | BD66: -0.0003846153846 | BE66: 200 | BF66: 200 | BG66: 200 | BH66: 200 | BI66: 200 | BJ66: 200 | BK66: 200 | BL66: 2 | BM66: 6 | BN66: 7 | BO66: 8 | BP66: 9 | BQ66: 10 | BR66: 2 | BS66: -0.0003846153846 | BT66: 0 | BU66: 0 | BV66: 0 | BW66: 0 | BX66: 0 | BY66: -0.0003846153846 | BZ66: 200 | CA66: 200
A67: 1003.470125 | B67: 100 | C67: FALSE | D67: FALSE | E67: FALSE | F67: FALSE | G67: 4 | H67: 100 | I67: FALSE | J67: 200 | K67: FALSE | L67: FALSE | M67: FALSE | N67: FALSE | O67: FALSE | P67: 66.57641635 | Q67: FALSE | R67: 1 | S67: FALSE | T67: 0 | U67: =IF($O67,CHOOSE($O67, IF($CG$3<0.25,c_rdtf_sIa_ini,IF($CG$3<1,c_rdtf_sIa_ini+(($CG$3-0.25)/0.75)*c_rdtf_sIa_rem_ind_yr,IF($CG$3<IF(Scenarios!$D$16=1,5,2),c_rdtf_sIa_ini+c_rdtf_sIa_rem_ind_yr+($CG$3-1)*c_rdtf_sIa_subyrs,c_rdtf_sIa_ini+c_rdtf_sIa_rem_ind_yr+c_rdtf_sIa_subyrs))), IF($CG$3<0.25,c_rdtf_sIb_ini,IF($CG$3<1,c_rdtf_sIb_ini+(($CG$3-0.25)/0.75)*c_rdtf_sIb_rem_ind_yr,IF($CG$3<IF(Scenarios!$D$16=1,5,2),c_rdtf_sIb_ini+c_rdtf_sIb_rem_ind_yr+($CG$3-1)*c_rdtf_sIb_subyrs,c_rdtf_sIb_ini+c_rdtf_sIb_rem_ind_yr+c_rdtf_sIb_subyrs))), IF($CG$3<0.25,c_rdtf_sIIa_ini,IF($CG$3<1,c_rdtf_sIIa_ini+(($CG$3-0.25)/0.75)*c_rdtf_sIIa_rem_ind_yr,IF($CG$3<IF(Scenarios!$D$16=1,5,2),c_rdtf_sIIa_ini+c_rdtf_sIIa_rem_ind_yr+($CG$3-1)*c_rdtf_sIIa_subyrs,c_rdtf_sIIa_ini+c_rdtf_sIIa_rem_ind_yr+c_rdtf_sIIa_subyrs))), IF($CG$3<0.25,c_rdtf_sIIb_ini,IF($CG$3<1,c_rdtf_sIIb_ini+(($CG$3-0.25)/0.75)*c_rdtf_sIIb_rem_ind_yr,IF($CG$3<IF(Scenarios!$D$16=1,5,2),c_rdtf_sIIb_ini+c_rdtf_sIIb_rem_ind_yr+($CG$3-1)*c_rdtf_sIIb_subyrs,c_rdtf_sIIb_ini+c_rdtf_sIIb_rem_ind_yr+c_rdtf_sIIb_subyrs))), IF($CG$3<0.25,c_rdtf_sIIIa_ini,IF($CG$3<1,c_rdtf_sIIIa_ini+(($CG$3-0.25)/0.75)*c_rdtf_sIIIa_rem_ind_yr,IF($CG$3<IF(Scenarios!$D$16=1,5,2),c_rdtf_sIIIa_ini+c_rdtf_sIIIa_rem_ind_yr+($CG$3-1)*c_rdtf_sIIIa_subyrs,c_rdtf_sIIIa_ini+c_rdtf_sIIIa_rem_ind_yr+c_rdtf_sIIIa_subyrs))), IF($CG$3<0.25,c_rdtf_sIIIb_ini,IF($CG$3<1,c_rdtf_sIIIb_ini+(($CG$3-0.25)/0.75)*c_rdtf_sIIIb_rem_ind_yr,IF($CG$3<IF(Scenarios!$D$16=1,5,2),c_rdtf_sIIIb_ini+c_rdtf_sIIIb_rem_ind_yr+($CG$3-1)*c_rdtf_sIIIb_subyrs,c_rdtf_sIIIb_ini+c_rdtf_sIIIb_rem_ind_yr+c_rdtf_sIIIb_subyrs))), IF($CG$3<0.25,c_rdtf_sIV_ini,IF($CG$3<1,c_rdtf_sIV_ini+(($CG$3-0.25)/0.75)*c_rdtf_sIV_rem_ind_yr,IF($CG$3<IF(Scenarios!$D$16=1,5,2),c_rdtf_sIV_ini+c_rdtf_sIV_rem_ind_yr+($CG$3-1)*c_rdtf_sIV_subyrs,c_rdtf_sIV_ini+c_rdtf_sIV_rem_ind_yr+c_rdtf_sIV_subyrs)))), IF($B67=3,c_false_pos,0)) *(1+d_costs)^(-$A67) -> 0 | V67: 0 | W67: 0 | X67: 0 | Y67: 0 | Z67: 0 | AA67: 0 | AB67: 0 | AC67: =IF($G67<1,VLOOKUP(Logic!$A$29,TBL_EVENT,VLOOKUP($E67,TBL_STATE,3,FALSE),FALSE),FALSE) -> FALSE | AD67: 0.07831235998 | AE67: =IF($E67=Logic!$A$7,IF(VLOOKUP($G67+1,TBL_rand_scrn_rnd,2,FALSE)<spec_LDCT,Logic!$A$33,Logic!$A$31),IF(VLOOKUP($G67+1,TBL_rand_scrn_rnd,3,FALSE)<sens_LDCT,Logic!$A$30,Logic!$A$32)) -> 2 | AF67: -0.0003846153846 | AG67: =VLOOKUP(Logic!$A$34,TBL_EVENT,VLOOKUP($E67,TBL_STATE,3,FALSE),FALSE) -> FALSE | AH67: 115.0568878 | AI67: =Logic!$A$34 -> 6 | AJ67: 0 | AK67: =VLOOKUP(Logic!$A$35,TBL_EVENT,VLOOKUP($E67,TBL_STATE,3,FALSE),FALSE) -> FALSE | AL67: 200 | AM67: =Logic!$A$35 -> 7 | AN67: 0 | AO67: =VLOOKUP(Logic!$A$36,TBL_EVENT,VLOOKUP($E67,TBL_STATE,3,FALSE),FALSE) -> FALSE | AP67: 200 | AQ67: =Logic!$A$36 -> 8 | AR67: 0 | AS67: =VLOOKUP(Logic!$A$37,TBL_EVENT,VLOOKUP($E67,TBL_STATE,3,FALSE),FALSE) -> FALSE | AT67: =IF($M66,$CA67+IF($BZ67>$CA67,CHOOSE(Scenarios!$D$10+1,1,0,0.5)*$BZ67-$CA67,0),t_no_event) -> 200 | AU67: =Logic!$A$37 -> 9 | AV67: 0 | AW67: =VLOOKUP(Logic!$A$38,TBL_EVENT,VLOOKUP($E67,TBL_STATE,3,FALSE),FALSE) -> FALSE | AX67: 66.57641635 | AY67: =Logic!$A$38 -> 10 | AZ67: 0 | BA67: =IF($AC67,FALSE,IF(($A$3+$A67)<80,VLOOKUP(Logic!$A$39,TBL_EVENT,VLOOKUP($E67,TBL_STATE,3,FALSE),FALSE),FALSE)) -> FALSE | BB67: 200 | BC67: =IF($E67=Logic!$A$7,IF(RAND()<spec_LDCT,Logic!$A$33,Logic!$A$31),IF(RAND()<sens_LDCT,Logic!$A$30,Logic!$A$32)) -> 4 | BD67: -0.0003846153846 | BE67: 200 | BF67: 200 | BG67: 200 | BH67: 200 | BI67: 200 | BJ67: 200 | BK67: 200 | BL67: 2 | BM67: 6 | BN67: 7 | BO67: 8 | BP67: 9 | BQ67: 10 | BR67: 4 | BS67: -0.0003846153846 | BT67: 0 | BU67: 0 | BV67: 0 | BW67: 0 | BX67: 0 | BY67: -0.0003846153846 | BZ67: 200 | CA67: 200
A68: 1203.470125 | B68: 100 | C68: FALSE | D68: FALSE | E68: FALSE | F68: FALSE | G68: 4 | H68: 100 | I68: FALSE | J68: 200 | K68: FALSE | L68: FALSE | M68: FALSE | N68: FALSE | O68: FALSE | P68: 66.57641635 | Q68: FALSE | R68: 1 | S68: FALSE | T68: 0 | U68: =IF($O68,CHOOSE($O68, IF($CG$3<0.25,c_rdtf_sIa_ini,IF($CG$3<1,c_rdtf_sIa_ini+(($CG$3-0.25)/0.75)*c_rdtf_sIa_rem_ind_yr,IF($CG$3<IF(Scenarios!$D$16=1,5,2),c_rdtf_sIa_ini+c_rdtf_sIa_rem_ind_yr+($CG$3-1)*c_rdtf_sIa_subyrs,c_rdtf_sIa_ini+c_rdtf_sIa_rem_ind_yr+c_rdtf_sIa_subyrs))), IF($CG$3<0.25,c_rdtf_sIb_ini,IF($CG$3<1,c_rdtf_sIb_ini+(($CG$3-0.25)/0.75)*c_rdtf_sIb_rem_ind_yr,IF($CG$3<IF(Scenarios!$D$16=1,5,2),c_rdtf_sIb_ini+c_rdtf_sIb_rem_ind_yr+($CG$3-1)*c_rdtf_sIb_subyrs,c_rdtf_sIb_ini+c_rdtf_sIb_rem_ind_yr+c_rdtf_sIb_subyrs))), IF($CG$3<0.25,c_rdtf_sIIa_ini,IF($CG$3<1,c_rdtf_sIIa_ini+(($CG$3-0.25)/0.75)*c_rdtf_sIIa_rem_ind_yr,IF($CG$3<IF(Scenarios!$D$16=1,5,2),c_rdtf_sIIa_ini+c_rdtf_sIIa_rem_ind_yr+($CG$3-1)*c_rdtf_sIIa_subyrs,c_rdtf_sIIa_ini+c_rdtf_sIIa_rem_ind_yr+c_rdtf_sIIa_subyrs))), IF($CG$3<0.25,c_rdtf_sIIb_ini,IF($CG$3<1,c_rdtf_sIIb_ini+(($CG$3-0.25)/0.75)*c_rdtf_sIIb_rem_ind_yr,IF($CG$3<IF(Scenarios!$D$16=1,5,2),c_rdtf_sIIb_ini+c_rdtf_sIIb_rem_ind_yr+($CG$3-1)*c_rdtf_sIIb_subyrs,c_rdtf_sIIb_ini+c_rdtf_sIIb_rem_ind_yr+c_rdtf_sIIb_subyrs))), IF($CG$3<0.25,c_rdtf_sIIIa_ini,IF($CG$3<1,c_rdtf_sIIIa_ini+(($CG$3-0.25)/0.75)*c_rdtf_sIIIa_rem_ind_yr,IF($CG$3<IF(Scenarios!$D$16=1,5,2),c_rdtf_sIIIa_ini+c_rdtf_sIIIa_rem_ind_yr+($CG$3-1)*c_rdtf_sIIIa_subyrs,c_rdtf_sIIIa_ini+c_rdtf_sIIIa_rem_ind_yr+c_rdtf_sIIIa_subyrs))), IF($CG$3<0.25,c_rdtf_sIIIb_ini,IF($CG$3<1,c_rdtf_sIIIb_ini+(($CG$3-0.25)/0.75)*c_rdtf_sIIIb_rem_ind_yr,IF($CG$3<IF(Scenarios!$D$16=1,5,2),c_rdtf_sIIIb_ini+c_rdtf_sIIIb_rem_ind_yr+($CG$3-1)*c_rdtf_sIIIb_subyrs,c_rdtf_sIIIb_ini+c_rdtf_sIIIb_rem_ind_yr+c_rdtf_sIIIb_subyrs))), IF($CG$3<0.25,c_rdtf_sIV_ini,IF($CG$3<1,c_rdtf_sIV_ini+(($CG$3-0.25)/0.75)*c_rdtf_sIV_rem_ind_yr,IF($CG$3<IF(Scenarios!$D$16=1,5,2),c_rdtf_sIV_ini+c_rdtf_sIV_rem_ind_yr+($CG$3-1)*c_rdtf_sIV_subyrs,c_rdtf_sIV_ini+c_rdtf_sIV_rem_ind_yr+c_rdtf_sIV_subyrs)))), IF($B68=3,c_false_pos,0)) *(1+d_costs)^(-$A68) -> 0 | V68: 0 | W68: 0 | X68: 0 | Y68: 0 | Z68: 0 | AA68: 0 | AB68: 0 | AC68: =IF($G68<1,VLOOKUP(Logic!$A$29,TBL_EVENT,VLOOKUP($E68,TBL_STATE,3,FALSE),FALSE),FALSE) -> FALSE | AD68: 0.07831235998 | AE68: =IF($E68=Logic!$A$7,IF(VLOOKUP($G68+1,TBL_rand_scrn_rnd,2,FALSE)<spec_LDCT,Logic!$A$33,Logic!$A$31),IF(VLOOKUP($G68+1,TBL_rand_scrn_rnd,3,FALSE)<sens_LDCT,Logic!$A$30,Logic!$A$32)) -> 2 | AF68: -0.0003846153846 | AG68: =VLOOKUP(Logic!$A$34,TBL_EVENT,VLOOKUP($E68,TBL_STATE,3,FALSE),FALSE) -> FALSE | AH68: 115.0568878 | AI68: =Logic!$A$34 -> 6 | AJ68: 0 | AK68: =VLOOKUP(Logic!$A$35,TBL_EVENT,VLOOKUP($E68,TBL_STATE,3,FALSE),FALSE) -> FALSE | AL68: 200 | AM68: =Logic!$A$35 -> 7 | AN68: 0 | AO68: =VLOOKUP(Logic!$A$36,TBL_EVENT,VLOOKUP($E68,TBL_STATE,3,FALSE),FALSE) -> FALSE | AP68: 200 | AQ68: =Logic!$A$36 -> 8 | AR68: 0 | AS68: =VLOOKUP(Logic!$A$37,TBL_EVENT,VLOOKUP($E68,TBL_STATE,3,FALSE),FALSE) -> FALSE | AT68: =IF($M67,$CA68+IF($BZ68>$CA68,CHOOSE(Scenarios!$D$10+1,1,0,0.5)*$BZ68-$CA68,0),t_no_event) -> 200 | AU68: =Logic!$A$37 -> 9 | AV68: 0 | AW68: =VLOOKUP(Logic!$A$38,TBL_EVENT,VLOOKUP($E68,TBL_STATE,3,FALSE),FALSE) -> FALSE | AX68: 66.57641635 | AY68: =Logic!$A$38 -> 10 | AZ68: 0 | BA68: =IF($AC68,FALSE,IF(($A$3+$A68)<80,VLOOKUP(Logic!$A$39,TBL_EVENT,VLOOKUP($E68,TBL_STATE,3,FALSE),FALSE),FALSE)) -> FALSE | BB68: 200 | BC68: =IF($E68=Logic!$A$7,IF(RAND()<spec_LDCT,Logic!$A$33,Logic!$A$31),IF(RAND()<sens_LDCT,Logic!$A$30,Logic!$A$32)) -> 2 | BD68: -0.0003846153846 | BE68: 200 | BF68: 200 | BG68: 200 | BH68: 200 | BI68: 200 | BJ68: 200 | BK68: 200 | BL68: 2 | BM68: 6 | BN68: 7 | BO68: 8 | BP68: 9 | BQ68: 10 | BR68: 2 | BS68: -0.0003846153846 | BT68: 0 | BU68: 0 | BV68: 0 | BW68: 0 | BX68: 0 | BY68: -0.0003846153846 | BZ68: 200 | CA68: 200
A69: 1403.470125 | B69: 100 | C69: FALSE | D69: FALSE | E69: FALSE | F69: FALSE | G69: 4 | H69: 100 | I69: FALSE | J69: 200 | K69: FALSE | L69: FALSE | M69: FALSE | N69: FALSE | O69: FALSE | P69: 66.57641635 | Q69: FALSE | R69: 1 | S69: FALSE | T69: 0 | U69: =IF($O69,CHOOSE($O69, IF($CG$3<0.25,c_rdtf_sIa_ini,IF($CG$3<1,c_rdtf_sIa_ini+(($CG$3-0.25)/0.75)*c_rdtf_sIa_rem_ind_yr,IF($CG$3<IF(Scenarios!$D$16=1,5,2),c_rdtf_sIa_ini+c_rdtf_sIa_rem_ind_yr+($CG$3-1)*c_rdtf_sIa_subyrs,c_rdtf_sIa_ini+c_rdtf_sIa_rem_ind_yr+c_rdtf_sIa_subyrs))), IF($CG$3<0.25,c_rdtf_sIb_ini,IF($CG$3<1,c_rdtf_sIb_ini+(($CG$3-0.25)/0.75)*c_rdtf_sIb_rem_ind_yr,IF($CG$3<IF(Scenarios!$D$16=1,5,2),c_rdtf_sIb_ini+c_rdtf_sIb_rem_ind_yr+($CG$3-1)*c_rdtf_sIb_subyrs,c_rdtf_sIb_ini+c_rdtf_sIb_rem_ind_yr+c_rdtf_sIb_subyrs))), IF($CG$3<0.25,c_rdtf_sIIa_ini,IF($CG$3<1,c_rdtf_sIIa_ini+(($CG$3-0.25)/0.75)*c_rdtf_sIIa_rem_ind_yr,IF($CG$3<IF(Scenarios!$D$16=1,5,2),c_rdtf_sIIa_ini+c_rdtf_sIIa_rem_ind_yr+($CG$3-1)*c_rdtf_sIIa_subyrs,c_rdtf_sIIa_ini+c_rdtf_sIIa_rem_ind_yr+c_rdtf_sIIa_subyrs))), IF($CG$3<0.25,c_rdtf_sIIb_ini,IF($CG$3<1,c_rdtf_sIIb_ini+(($CG$3-0.25)/0.75)*c_rdtf_sIIb_rem_ind_yr,IF($CG$3<IF(Scenarios!$D$16=1,5,2),c_rdtf_sIIb_ini+c_rdtf_sIIb_rem_ind_yr+($CG$3-1)*c_rdtf_sIIb_subyrs,c_rdtf_sIIb_ini+c_rdtf_sIIb_rem_ind_yr+c_rdtf_sIIb_subyrs))), IF($CG$3<0.25,c_rdtf_sIIIa_ini,IF($CG$3<1,c_rdtf_sIIIa_ini+(($CG$3-0.25)/0.75)*c_rdtf_sIIIa_rem_ind_yr,IF($CG$3<IF(Scenarios!$D$16=1,5,2),c_rdtf_sIIIa_ini+c_rdtf_sIIIa_rem_ind_yr+($CG$3-1)*c_rdtf_sIIIa_subyrs,c_rdtf_sIIIa_ini+c_rdtf_sIIIa_rem_ind_yr+c_rdtf_sIIIa_subyrs))), IF($CG$3<0.25,c_rdtf_sIIIb_ini,IF($CG$3<1,c_rdtf_sIIIb_ini+(($CG$3-0.25)/0.75)*c_rdtf_sIIIb_rem_ind_yr,IF($CG$3<IF(Scenarios!$D$16=1,5,2),c_rdtf_sIIIb_ini+c_rdtf_sIIIb_rem_ind_yr+($CG$3-1)*c_rdtf_sIIIb_subyrs,c_rdtf_sIIIb_ini+c_rdtf_sIIIb_rem_ind_yr+c_rdtf_sIIIb_subyrs))), IF($CG$3<0.25,c_rdtf_sIV_ini,IF($CG$3<1,c_rdtf_sIV_ini+(($CG$3-0.25)/0.75)*c_rdtf_sIV_rem_ind_yr,IF($CG$3<IF(Scenarios!$D$16=1,5,2),c_rdtf_sIV_ini+c_rdtf_sIV_rem_ind_yr+($CG$3-1)*c_rdtf_sIV_subyrs,c_rdtf_sIV_ini+c_rdtf_sIV_rem_ind_yr+c_rdtf_sIV_subyrs)))), IF($B69=3,c_false_pos,0)) *(1+d_costs)^(-$A69) -> 0 | V69: 0 | W69: 0 | X69: 0 | Y69: 0 | Z69: 0 | AA69: 0 | AB69: 0 | AC69: =IF($G69<1,VLOOKUP(Logic!$A$29,TBL_EVENT,VLOOKUP($E69,TBL_STATE,3,FALSE),FALSE),FALSE) -> FALSE | AD69: 0.07831235998 | AE69: =IF($E69=Logic!$A$7,IF(VLOOKUP($G69+1,TBL_rand_scrn_rnd,2,FALSE)<spec_LDCT,Logic!$A$33,Logic!$A$31),IF(VLOOKUP($G69+1,TBL_rand_scrn_rnd,3,FALSE)<sens_LDCT,Logic!$A$30,Logic!$A$32)) -> 2 | AF69: -0.0003846153846 | AG69: =VLOOKUP(Logic!$A$34,TBL_EVENT,VLOOKUP($E69,TBL_STATE,3,FALSE),FALSE) -> FALSE | AH69: 115.0568878 | AI69: =Logic!$A$34 -> 6 | AJ69: 0 | AK69: =VLOOKUP(Logic!$A$35,TBL_EVENT,VLOOKUP($E69,TBL_STATE,3,FALSE),FALSE) -> FALSE | AL69: 200 | AM69: =Logic!$A$35 -> 7 | AN69: 0 | AO69: =VLOOKUP(Logic!$A$36,TBL_EVENT,VLOOKUP($E69,TBL_STATE,3,FALSE),FALSE) -> FALSE | AP69: 200 | AQ69: =Logic!$A$36 -> 8 | AR69: 0 | AS69: =VLOOKUP(Logic!$A$37,TBL_EVENT,VLOOKUP($E69,TBL_STATE,3,FALSE),FALSE) -> FALSE | AT69: =IF($M68,$CA69+IF($BZ69>$CA69,CHOOSE(Scenarios!$D$10+1,1,0,0.5)*$BZ69-$CA69,0),t_no_event) -> 200 | AU69: =Logic!$A$37 -> 9 | AV69: 0 | AW69: =VLOOKUP(Logic!$A$38,TBL_EVENT,VLOOKUP($E69,TBL_STATE,3,FALSE),FALSE) -> FALSE | AX69: 66.57641635 | AY69: =Logic!$A$38 -> 10 | AZ69: 0 | BA69: =IF($AC69,FALSE,IF(($A$3+$A69)<80,VLOOKUP(Logic!$A$39,TBL_EVENT,VLOOKUP($E69,TBL_STATE,3,FALSE),FALSE),FALSE)) -> FALSE | BB69: 200 | BC69: =IF($E69=Logic!$A$7,IF(RAND()<spec_LDCT,Logic!$A$33,Logic!$A$31),IF(RAND()<sens_LDCT,Logic!$A$30,Logic!$A$32)) -> 2 | BD69: -0.0003846153846 | BE69: 200 | BF69: 200 | BG69: 200 | BH69: 200 | BI69: 200 | BJ69: 200 | BK69: 200 | BL69: 2 | BM69: 6 | BN69: 7 | BO69: 8 | BP69: 9 | BQ69: 10 | BR69: 2 | BS69: -0.0003846153846 | BT69: 0 | BU69: 0 | BV69: 0 | BW69: 0 | BX69: 0 | BY69: -0.0003846153846 | BZ69: 200 | CA69: 200
A70: 1603.470125 | B70: 100 | C70: FALSE | D70: FALSE | E70: FALSE | F70: FALSE | G70: 4 | H70: 100 | I70: FALSE | J70: 200 | K70: FALSE | L70: FALSE | M70: FALSE | N70: FALSE | O70: FALSE | P70: 66.57641635 | Q70: FALSE | R70: 1 | S70: FALSE | T70: 0 | U70: =IF($O70,CHOOSE($O70, IF($CG$3<0.25,c_rdtf_sIa_ini,IF($CG$3<1,c_rdtf_sIa_ini+(($CG$3-0.25)/0.75)*c_rdtf_sIa_rem_ind_yr,IF($CG$3<IF(Scenarios!$D$16=1,5,2),c_rdtf_sIa_ini+c_rdtf_sIa_rem_ind_yr+($CG$3-1)*c_rdtf_sIa_subyrs,c_rdtf_sIa_ini+c_rdtf_sIa_rem_ind_yr+c_rdtf_sIa_subyrs))), IF($CG$3<0.25,c_rdtf_sIb_ini,IF($CG$3<1,c_rdtf_sIb_ini+(($CG$3-0.25)/0.75)*c_rdtf_sIb_rem_ind_yr,IF($CG$3<IF(Scenarios!$D$16=1,5,2),c_rdtf_sIb_ini+c_rdtf_sIb_rem_ind_yr+($CG$3-1)*c_rdtf_sIb_subyrs,c_rdtf_sIb_ini+c_rdtf_sIb_rem_ind_yr+c_rdtf_sIb_subyrs))), IF($CG$3<0.25,c_rdtf_sIIa_ini,IF($CG$3<1,c_rdtf_sIIa_ini+(($CG$3-0.25)/0.75)*c_rdtf_sIIa_rem_ind_yr,IF($CG$3<IF(Scenarios!$D$16=1,5,2),c_rdtf_sIIa_ini+c_rdtf_sIIa_rem_ind_yr+($CG$3-1)*c_rdtf_sIIa_subyrs,c_rdtf_sIIa_ini+c_rdtf_sIIa_rem_ind_yr+c_rdtf_sIIa_subyrs))), IF($CG$3<0.25,c_rdtf_sIIb_ini,IF($CG$3<1,c_rdtf_sIIb_ini+(($CG$3-0.25)/0.75)*c_rdtf_sIIb_rem_ind_yr,IF($CG$3<IF(Scenarios!$D$16=1,5,2),c_rdtf_sIIb_ini+c_rdtf_sIIb_rem_ind_yr+($CG$3-1)*c_rdtf_sIIb_subyrs,c_rdtf_sIIb_ini+c_rdtf_sIIb_rem_ind_yr+c_rdtf_sIIb_subyrs))), IF($CG$3<0.25,c_rdtf_sIIIa_ini,IF($CG$3<1,c_rdtf_sIIIa_ini+(($CG$3-0.25)/0.75)*c_rdtf_sIIIa_rem_ind_yr,IF($CG$3<IF(Scenarios!$D$16=1,5,2),c_rdtf_sIIIa_ini+c_rdtf_sIIIa_rem_ind_yr+($CG$3-1)*c_rdtf_sIIIa_subyrs,c_rdtf_sIIIa_ini+c_rdtf_sIIIa_rem_ind_yr+c_rdtf_sIIIa_subyrs))), IF($CG$3<0.25,c_rdtf_sIIIb_ini,IF($CG$3<1,c_rdtf_sIIIb_ini+(($CG$3-0.25)/0.75)*c_rdtf_sIIIb_rem_ind_yr,IF($CG$3<IF(Scenarios!$D$16=1,5,2),c_rdtf_sIIIb_ini+c_rdtf_sIIIb_rem_ind_yr+($CG$3-1)*c_rdtf_sIIIb_subyrs,c_rdtf_sIIIb_ini+c_rdtf_sIIIb_rem_ind_yr+c_rdtf_sIIIb_subyrs))), IF($CG$3<0.25,c_rdtf_sIV_ini,IF($CG$3<1,c_rdtf_sIV_ini+(($CG$3-0.25)/0.75)*c_rdtf_sIV_rem_ind_yr,IF($CG$3<IF(Scenarios!$D$16=1,5,2),c_rdtf_sIV_ini+c_rdtf_sIV_rem_ind_yr+($CG$3-1)*c_rdtf_sIV_subyrs,c_rdtf_sIV_ini+c_rdtf_sIV_rem_ind_yr+c_rdtf_sIV_subyrs)))), IF($B70=3,c_false_pos,0)) *(1+d_costs)^(-$A70) -> 0 | V70: 0 | W70: 0 | X70: 0 | Y70: 0 | Z70: 0 | AA70: 0 | AB70: 0 | AC70: =IF($G70<1,VLOOKUP(Logic!$A$29,TBL_EVENT,VLOOKUP($E70,TBL_STATE,3,FALSE),FALSE),FALSE) -> FALSE | AD70: 0.07831235998 | AE70: =IF($E70=Logic!$A$7,IF(VLOOKUP($G70+1,TBL_rand_scrn_rnd,2,FALSE)<spec_LDCT,Logic!$A$33,Logic!$A$31),IF(VLOOKUP($G70+1,TBL_rand_scrn_rnd,3,FALSE)<sens_LDCT,Logic!$A$30,Logic!$A$32)) -> 2 | AF70: -0.0003846153846 | AG70: =VLOOKUP(Logic!$A$34,TBL_EVENT,VLOOKUP($E70,TBL_STATE,3,FALSE),FALSE) -> FALSE | AH70: 115.0568878 | AI70: =Logic!$A$34 -> 6 | AJ70: 0 | AK70: =VLOOKUP(Logic!$A$35,TBL_EVENT,VLOOKUP($E70,TBL_STATE,3,FALSE),FALSE) -> FALSE | AL70: 200 | AM70: =Logic!$A$35 -> 7 | AN70: 0 | AO70: =VLOOKUP(Logic!$A$36,TBL_EVENT,VLOOKUP($E70,TBL_STATE,3,FALSE),FALSE) -> FALSE | AP70: 200 | AQ70: =Logic!$A$36 -> 8 | AR70: 0 | AS70: =VLOOKUP(Logic!$A$37,TBL_EVENT,VLOOKUP($E70,TBL_STATE,3,FALSE),FALSE) -> FALSE | AT70: =IF($M69,$CA70+IF($BZ70>$CA70,CHOOSE(Scenarios!$D$10+1,1,0,0.5)*$BZ70-$CA70,0),t_no_event) -> 200 | AU70: =Logic!$A$37 -> 9 | AV70: 0 | AW70: =VLOOKUP(Logic!$A$38,TBL_EVENT,VLOOKUP($E70,TBL_STATE,3,FALSE),FALSE) -> FALSE | AX70: 66.57641635 | AY70: =Logic!$A$38 -> 10 | AZ70: 0 | BA70: =IF($AC70,FALSE,IF(($A$3+$A70)<80,VLOOKUP(Logic!$A$39,TBL_EVENT,VLOOKUP($E70,TBL_STATE,3,FALSE),FALSE),FALSE)) -> FALSE | BB70: 200 | BC70: =IF($E70=Logic!$A$7,IF(RAND()<spec_LDCT,Logic!$A$33,Logic!$A$31),IF(RAND()<sens_LDCT,Logic!$A$30,Logic!$A$32)) -> 2 | BD70: -0.0003846153846 | BE70: 200 | BF70: 200 | BG70: 200 | BH70: 200 | BI70: 200 | BJ70: 200 | BK70: 200 | BL70: 2 | BM70: 6 | BN70: 7 | BO70: 8 | BP70: 9 | BQ70: 10 | BR70: 2 | BS70: -0.0003846153846 | BT70: 0 | BU70: 0 | BV70: 0 | BW70: 0 | BX70: 0 | BY70: -0.0003846153846 | BZ70: 200 | CA70: 200
A71: 1803.470125 | B71: 100 | C71: FALSE | D71: FALSE | E71: FALSE | F71: FALSE | G71: 4 | H71: 100 | I71: FALSE | J71: 200 | K71: FALSE | L71: FALSE | M71: FALSE | N71: FALSE | O71: FALSE | P71: 66.57641635 | Q71: FALSE | R71: 1 | S71: FALSE | T71: 0 | U71: =IF($O71,CHOOSE($O71, IF($CG$3<0.25,c_rdtf_sIa_ini,IF($CG$3<1,c_rdtf_sIa_ini+(($CG$3-0.25)/0.75)*c_rdtf_sIa_rem_ind_yr,IF($CG$3<IF(Scenarios!$D$16=1,5,2),c_rdtf_sIa_ini+c_rdtf_sIa_rem_ind_yr+($CG$3-1)*c_rdtf_sIa_subyrs,c_rdtf_sIa_ini+c_rdtf_sIa_rem_ind_yr+c_rdtf_sIa_subyrs))), IF($CG$3<0.25,c_rdtf_sIb_ini,IF($CG$3<1,c_rdtf_sIb_ini+(($CG$3-0.25)/0.75)*c_rdtf_sIb_rem_ind_yr,IF($CG$3<IF(Scenarios!$D$16=1,5,2),c_rdtf_sIb_ini+c_rdtf_sIb_rem_ind_yr+($CG$3-1)*c_rdtf_sIb_subyrs,c_rdtf_sIb_ini+c_rdtf_sIb_rem_ind_yr+c_rdtf_sIb_subyrs))), IF($CG$3<0.25,c_rdtf_sIIa_ini,IF($CG$3<1,c_rdtf_sIIa_ini+(($CG$3-0.25)/0.75)*c_rdtf_sIIa_rem_ind_yr,IF($CG$3<IF(Scenarios!$D$16=1,5,2),c_rdtf_sIIa_ini+c_rdtf_sIIa_rem_ind_yr+($CG$3-1)*c_rdtf_sIIa_subyrs,c_rdtf_sIIa_ini+c_rdtf_sIIa_rem_ind_yr+c_rdtf_sIIa_subyrs))), IF($CG$3<0.25,c_rdtf_sIIb_ini,IF($CG$3<1,c_rdtf_sIIb_ini+(($CG$3-0.25)/0.75)*c_rdtf_sIIb_rem_ind_yr,IF($CG$3<IF(Scenarios!$D$16=1,5,2),c_rdtf_sIIb_ini+c_rdtf_sIIb_rem_ind_yr+($CG$3-1)*c_rdtf_sIIb_subyrs,c_rdtf_sIIb_ini+c_rdtf_sIIb_rem_ind_yr+c_rdtf_sIIb_subyrs))), IF($CG$3<0.25,c_rdtf_sIIIa_ini,IF($CG$3<1,c_rdtf_sIIIa_ini+(($CG$3-0.25)/0.75)*c_rdtf_sIIIa_rem_ind_yr,IF($CG$3<IF(Scenarios!$D$16=1,5,2),c_rdtf_sIIIa_ini+c_rdtf_sIIIa_rem_ind_yr+($CG$3-1)*c_rdtf_sIIIa_subyrs,c_rdtf_sIIIa_ini+c_rdtf_sIIIa_rem_ind_yr+c_rdtf_sIIIa_subyrs))), IF($CG$3<0.25,c_rdtf_sIIIb_ini,IF($CG$3<1,c_rdtf_sIIIb_ini+(($CG$3-0.25)/0.75)*c_rdtf_sIIIb_rem_ind_yr,IF($CG$3<IF(Scenarios!$D$16=1,5,2),c_rdtf_sIIIb_ini+c_rdtf_sIIIb_rem_ind_yr+($CG$3-1)*c_rdtf_sIIIb_subyrs,c_rdtf_sIIIb_ini+c_rdtf_sIIIb_rem_ind_yr+c_rdtf_sIIIb_subyrs))), IF($CG$3<0.25,c_rdtf_sIV_ini,IF($CG$3<1,c_rdtf_sIV_ini+(($CG$3-0.25)/0.75)*c_rdtf_sIV_rem_ind_yr,IF($CG$3<IF(Scenarios!$D$16=1,5,2),c_rdtf_sIV_ini+c_rdtf_sIV_rem_ind_yr+($CG$3-1)*c_rdtf_sIV_subyrs,c_rdtf_sIV_ini+c_rdtf_sIV_rem_ind_yr+c_rdtf_sIV_subyrs)))), IF($B71=3,c_false_pos,0)) *(1+d_costs)^(-$A71) -> 0 | V71: 0 | W71: 0 | X71: 0 | Y71: 0 | Z71: 0 | AA71: 0 | AB71: 0 | AC71: =IF($G71<1,VLOOKUP(Logic!$A$29,TBL_EVENT,VLOOKUP($E71,TBL_STATE,3,FALSE),FALSE),FALSE) -> FALSE | AD71: 0.07831235998 | AE71: =IF($E71=Logic!$A$7,IF(VLOOKUP($G71+1,TBL_rand_scrn_rnd,2,FALSE)<spec_LDCT,Logic!$A$33,Logic!$A$31),IF(VLOOKUP($G71+1,TBL_rand_scrn_rnd,3,FALSE)<sens_LDCT,Logic!$A$30,Logic!$A$32)) -> 2 | AF71: -0.0003846153846 | AG71: =VLOOKUP(Logic!$A$34,TBL_EVENT,VLOOKUP($E71,TBL_STATE,3,FALSE),FALSE) -> FALSE | AH71: 115.0568878 | AI71: =Logic!$A$34 -> 6 | AJ71: 0 | AK71: =VLOOKUP(Logic!$A$35,TBL_EVENT,VLOOKUP($E71,TBL_STATE,3,FALSE),FALSE) -> FALSE | AL71: 200 | AM71: =Logic!$A$35 -> 7 | AN71: 0 | AO71: =VLOOKUP(Logic!$A$36,TBL_EVENT,VLOOKUP($E71,TBL_STATE,3,FALSE),FALSE) -> FALSE | AP71: 200 | AQ71: =Logic!$A$36 -> 8 | AR71: 0 | AS71: =VLOOKUP(Logic!$A$37,TBL_EVENT,VLOOKUP($E71,TBL_STATE,3,FALSE),FALSE) -> FALSE | AT71: =IF($M70,$CA71+IF($BZ71>$CA71,CHOOSE(Scenarios!$D$10+1,1,0,0.5)*$BZ71-$CA71,0),t_no_event) -> 200 | AU71: =Logic!$A$37 -> 9 | AV71: 0 | AW71: =VLOOKUP(Logic!$A$38,TBL_EVENT,VLOOKUP($E71,TBL_STATE,3,FALSE),FALSE) -> FALSE | AX71: 66.57641635 | AY71: =Logic!$A$38 -> 10 | AZ71: 0 | BA71: =IF($AC71,FALSE,IF(($A$3+$A71)<80,VLOOKUP(Logic!$A$39,TBL_EVENT,VLOOKUP($E71,TBL_STATE,3,FALSE),FALSE),FALSE)) -> FALSE | BB71: 200 | BC71: =IF($E71=Logic!$A$7,IF(RAND()<spec_LDCT,Logic!$A$33,Logic!$A$31),IF(RAND()<sens_LDCT,Logic!$A$30,Logic!$A$32)) -> 4 | BD71: -0.0003846153846 | BE71: 200 | BF71: 200 | BG71: 200 | BH71: 200 | BI71: 200 | BJ71: 200 | BK71: 200 | BL71: 2 | BM71: 6 | BN71: 7 | BO71: 8 | BP71: 9 | BQ71: 10 | BR71: 4 | BS71: -0.0003846153846 | BT71: 0 | BU71: 0 | BV71: 0 | BW71: 0 | BX71: 0 | BY71: -0.0003846153846 | BZ71: 200 | CA71: 200
A72: 2003.470125 | B72: 100 | C72: FALSE | D72: FALSE | E72: FALSE | F72: FALSE | G72: 4 | H72: 100 | I72: FALSE | J72: 200 | K72: FALSE | L72: FALSE | M72: FALSE | N72: FALSE | O72: FALSE | P72: 66.57641635 | Q72: FALSE | R72: 1 | S72: FALSE | T72: 0 | U72: =IF($O72,CHOOSE($O72, IF($CG$3<0.25,c_rdtf_sIa_ini,IF($CG$3<1,c_rdtf_sIa_ini+(($CG$3-0.25)/0.75)*c_rdtf_sIa_rem_ind_yr,IF($CG$3<IF(Scenarios!$D$16=1,5,2),c_rdtf_sIa_ini+c_rdtf_sIa_rem_ind_yr+($CG$3-1)*c_rdtf_sIa_subyrs,c_rdtf_sIa_ini+c_rdtf_sIa_rem_ind_yr+c_rdtf_sIa_subyrs))), IF($CG$3<0.25,c_rdtf_sIb_ini,IF($CG$3<1,c_rdtf_sIb_ini+(($CG$3-0.25)/0.75)*c_rdtf_sIb_rem_ind_yr,IF($CG$3<IF(Scenarios!$D$16=1,5,2),c_rdtf_sIb_ini+c_rdtf_sIb_rem_ind_yr+($CG$3-1)*c_rdtf_sIb_subyrs,c_rdtf_sIb_ini+c_rdtf_sIb_rem_ind_yr+c_rdtf_sIb_subyrs))), IF($CG$3<0.25,c_rdtf_sIIa_ini,IF($CG$3<1,c_rdtf_sIIa_ini+(($CG$3-0.25)/0.75)*c_rdtf_sIIa_rem_ind_yr,IF($CG$3<IF(Scenarios!$D$16=1,5,2),c_rdtf_sIIa_ini+c_rdtf_sIIa_rem_ind_yr+($CG$3-1)*c_rdtf_sIIa_subyrs,c_rdtf_sIIa_ini+c_rdtf_sIIa_rem_ind_yr+c_rdtf_sIIa_subyrs))), IF($CG$3<0.25,c_rdtf_sIIb_ini,IF($CG$3<1,c_rdtf_sIIb_ini+(($CG$3-0.25)/0.75)*c_rdtf_sIIb_rem_ind_yr,IF($CG$3<IF(Scenarios!$D$16=1,5,2),c_rdtf_sIIb_ini+c_rdtf_sIIb_rem_ind_yr+($CG$3-1)*c_rdtf_sIIb_subyrs,c_rdtf_sIIb_ini+c_rdtf_sIIb_rem_ind_yr+c_rdtf_sIIb_subyrs))), IF($CG$3<0.25,c_rdtf_sIIIa_ini,IF($CG$3<1,c_rdtf_sIIIa_ini+(($CG$3-0.25)/0.75)*c_rdtf_sIIIa_rem_ind_yr,IF($CG$3<IF(Scenarios!$D$16=1,5,2),c_rdtf_sIIIa_ini+c_rdtf_sIIIa_rem_ind_yr+($CG$3-1)*c_rdtf_sIIIa_subyrs,c_rdtf_sIIIa_ini+c_rdtf_sIIIa_rem_ind_yr+c_rdtf_sIIIa_subyrs))), IF($CG$3<0.25,c_rdtf_sIIIb_ini,IF($CG$3<1,c_rdtf_sIIIb_ini+(($CG$3-0.25)/0.75)*c_rdtf_sIIIb_rem_ind_yr,IF($CG$3<IF(Scenarios!$D$16=1,5,2),c_rdtf_sIIIb_ini+c_rdtf_sIIIb_rem_ind_yr+($CG$3-1)*c_rdtf_sIIIb_subyrs,c_rdtf_sIIIb_ini+c_rdtf_sIIIb_rem_ind_yr+c_rdtf_sIIIb_subyrs))), IF($CG$3<0.25,c_rdtf_sIV_ini,IF($CG$3<1,c_rdtf_sIV_ini+(($CG$3-0.25)/0.75)*c_rdtf_sIV_rem_ind_yr,IF($CG$3<IF(Scenarios!$D$16=1,5,2),c_rdtf_sIV_ini+c_rdtf_sIV_rem_ind_yr+($CG$3-1)*c_rdtf_sIV_subyrs,c_rdtf_sIV_ini+c_rdtf_sIV_rem_ind_yr+c_rdtf_sIV_subyrs)))), IF($B72=3,c_false_pos,0)) *(1+d_costs)^(-$A72) -> 0 | V72: 0 | W72: 0 | X72: 0 | Y72: 0 | Z72: 0 | AA72: 0 | AB72: 0 | AC72: =IF($G72<1,VLOOKUP(Logic!$A$29,TBL_EVENT,VLOOKUP($E72,TBL_STATE,3,FALSE),FALSE),FALSE) -> FALSE | AD72: 0.07831235998 | AE72: =IF($E72=Logic!$A$7,IF(VLOOKUP($G72+1,TBL_rand_scrn_rnd,2,FALSE)<spec_LDCT,Logic!$A$33,Logic!$A$31),IF(VLOOKUP($G72+1,TBL_rand_scrn_rnd,3,FALSE)<sens_LDCT,Logic!$A$30,Logic!$A$32)) -> 2 | AF72: -0.0003846153846 | AG72: =VLOOKUP(Logic!$A$34,TBL_EVENT,VLOOKUP($E72,TBL_STATE,3,FALSE),FALSE) -> FALSE | AH72: 115.0568878 | AI72: =Logic!$A$34 -> 6 | AJ72: 0 | AK72: =VLOOKUP(Logic!$A$35,TBL_EVENT,VLOOKUP($E72,TBL_STATE,3,FALSE),FALSE) -> FALSE | AL72: 200 | AM72: =Logic!$A$35 -> 7 | AN72: 0 | AO72: =VLOOKUP(Logic!$A$36,TBL_EVENT,VLOOKUP($E72,TBL_STATE,3,FALSE),FALSE) -> FALSE | AP72: 200 | AQ72: =Logic!$A$36 -> 8 | AR72: 0 | AS72: =VLOOKUP(Logic!$A$37,TBL_EVENT,VLOOKUP($E72,TBL_STATE,3,FALSE),FALSE) -> FALSE | AT72: =IF($M71,$CA72+IF($BZ72>$CA72,CHOOSE(Scenarios!$D$10+1,1,0,0.5)*$BZ72-$CA72,0),t_no_event) -> 200 | AU72: =Logic!$A$37 -> 9 | AV72: 0 | AW72: =VLOOKUP(Logic!$A$38,TBL_EVENT,VLOOKUP($E72,TBL_STATE,3,FALSE),FALSE) -> FALSE | AX72: 66.57641635 | AY72: =Logic!$A$38 -> 10 | AZ72: 0 | BA72: =IF($AC72,FALSE,IF(($A$3+$A72)<80,VLOOKUP(Logic!$A$39,TBL_EVENT,VLOOKUP($E72,TBL_STATE,3,FALSE),FALSE),FALSE)) -> FALSE | BB72: 200 | BC72: =IF($E72=Logic!$A$7,IF(RAND()<spec_LDCT,Logic!$A$33,Logic!$A$31),IF(RAND()<sens_LDCT,Logic!$A$30,Logic!$A$32)) -> 2 | BD72: -0.0003846153846 | BE72: 200 | BF72: 200 | BG72: 200 | BH72: 200 | BI72: 200 | BJ72: 200 | BK72: 200 | BL72: 2 | BM72: 6 | BN72: 7 | BO72: 8 | BP72: 9 | BQ72: 10 | BR72: 2 | BS72: -0.0003846153846 | BT72: 0 | BU72: 0 | BV72: 0 | BW72: 0 | BX72: 0 | BY72: -0.0003846153846 | BZ72: 200 | CA72: 200
A73: 2203.470125 | B73: 100 | C73: FALSE | D73: FALSE | E73: FALSE | F73: FALSE | G73: 4 | H73: 100 | I73: FALSE | J73: 200 | K73: FALSE | L73: FALSE | M73: FALSE | N73: FALSE | O73: FALSE | P73: 66.57641635 | Q73: FALSE | R73: 1 | S73: FALSE | T73: 0 | U73: =IF($O73,CHOOSE($O73, IF($CG$3<0.25,c_rdtf_sIa_ini,IF($CG$3<1,c_rdtf_sIa_ini+(($CG$3-0.25)/0.75)*c_rdtf_sIa_rem_ind_yr,IF($CG$3<IF(Scenarios!$D$16=1,5,2),c_rdtf_sIa_ini+c_rdtf_sIa_rem_ind_yr+($CG$3-1)*c_rdtf_sIa_subyrs,c_rdtf_sIa_ini+c_rdtf_sIa_rem_ind_yr+c_rdtf_sIa_subyrs))), IF($CG$3<0.25,c_rdtf_sIb_ini,IF($CG$3<1,c_rdtf_sIb_ini+(($CG$3-0.25)/0.75)*c_rdtf_sIb_rem_ind_yr,IF($CG$3<IF(Scenarios!$D$16=1,5,2),c_rdtf_sIb_ini+c_rdtf_sIb_rem_ind_yr+($CG$3-1)*c_rdtf_sIb_subyrs,c_rdtf_sIb_ini+c_rdtf_sIb_rem_ind_yr+c_rdtf_sIb_subyrs))), IF($CG$3<0.25,c_rdtf_sIIa_ini,IF($CG$3<1,c_rdtf_sIIa_ini+(($CG$3-0.25)/0.75)*c_rdtf_sIIa_rem_ind_yr,IF($CG$3<IF(Scenarios!$D$16=1,5,2),c_rdtf_sIIa_ini+c_rdtf_sIIa_rem_ind_yr+($CG$3-1)*c_rdtf_sIIa_subyrs,c_rdtf_sIIa_ini+c_rdtf_sIIa_rem_ind_yr+c_rdtf_sIIa_subyrs))), IF($CG$3<0.25,c_rdtf_sIIb_ini,IF($CG$3<1,c_rdtf_sIIb_ini+(($CG$3-0.25)/0.75)*c_rdtf_sIIb_rem_ind_yr,IF($CG$3<IF(Scenarios!$D$16=1,5,2),c_rdtf_sIIb_ini+c_rdtf_sIIb_rem_ind_yr+($CG$3-1)*c_rdtf_sIIb_subyrs,c_rdtf_sIIb_ini+c_rdtf_sIIb_rem_ind_yr+c_rdtf_sIIb_subyrs))), IF($CG$3<0.25,c_rdtf_sIIIa_ini,IF($CG$3<1,c_rdtf_sIIIa_ini+(($CG$3-0.25)/0.75)*c_rdtf_sIIIa_rem_ind_yr,IF($CG$3<IF(Scenarios!$D$16=1,5,2),c_rdtf_sIIIa_ini+c_rdtf_sIIIa_rem_ind_yr+($CG$3-1)*c_rdtf_sIIIa_subyrs,c_rdtf_sIIIa_ini+c_rdtf_sIIIa_rem_ind_yr+c_rdtf_sIIIa_subyrs))), IF($CG$3<0.25,c_rdtf_sIIIb_ini,IF($CG$3<1,c_rdtf_sIIIb_ini+(($CG$3-0.25)/0.75)*c_rdtf_sIIIb_rem_ind_yr,IF($CG$3<IF(Scenarios!$D$16=1,5,2),c_rdtf_sIIIb_ini+c_rdtf_sIIIb_rem_ind_yr+($CG$3-1)*c_rdtf_sIIIb_subyrs,c_rdtf_sIIIb_ini+c_rdtf_sIIIb_rem_ind_yr+c_rdtf_sIIIb_subyrs))), IF($CG$3<0.25,c_rdtf_sIV_ini,IF($CG$3<1,c_rdtf_sIV_ini+(($CG$3-0.25)/0.75)*c_rdtf_sIV_rem_ind_yr,IF($CG$3<IF(Scenarios!$D$16=1,5,2),c_rdtf_sIV_ini+c_rdtf_sIV_rem_ind_yr+($CG$3-1)*c_rdtf_sIV_subyrs,c_rdtf_sIV_ini+c_rdtf_sIV_rem_ind_yr+c_rdtf_sIV_subyrs)))), IF($B73=3,c_false_pos,0)) *(1+d_costs)^(-$A73) -> 0 | V73: 0 | W73: 0 | X73: 0 | Y73: 0 | Z73: 0 | AA73: 0 | AB73: 0 | AC73: =IF($G73<1,VLOOKUP(Logic!$A$29,TBL_EVENT,VLOOKUP($E73,TBL_STATE,3,FALSE),FALSE),FALSE) -> FALSE | AD73: 0.07831235998 | AE73: =IF($E73=Logic!$A$7,IF(VLOOKUP($G73+1,TBL_rand_scrn_rnd,2,FALSE)<spec_LDCT,Logic!$A$33,Logic!$A$31),IF(VLOOKUP($G73+1,TBL_rand_scrn_rnd,3,FALSE)<sens_LDCT,Logic!$A$30,Logic!$A$32)) -> 2 | AF73: -0.0003846153846 | AG73: =VLOOKUP(Logic!$A$34,TBL_EVENT,VLOOKUP($E73,TBL_STATE,3,FALSE),FALSE) -> FALSE | AH73: 115.0568878 | AI73: =Logic!$A$34 -> 6 | AJ73: 0 | AK73: =VLOOKUP(Logic!$A$35,TBL_EVENT,VLOOKUP($E73,TBL_STATE,3,FALSE),FALSE) -> FALSE | AL73: 200 | AM73: =Logic!$A$35 -> 7 | AN73: 0 | AO73: =VLOOKUP(Logic!$A$36,TBL_EVENT,VLOOKUP($E73,TBL_STATE,3,FALSE),FALSE) -> FALSE | AP73: 200 | AQ73: =Logic!$A$36 -> 8 | AR73: 0 | AS73: =VLOOKUP(Logic!$A$37,TBL_EVENT,VLOOKUP($E73,TBL_STATE,3,FALSE),FALSE) -> FALSE | AT73: =IF($M72,$CA73+IF($BZ73>$CA73,CHOOSE(Scenarios!$D$10+1,1,0,0.5)*$BZ73-$CA73,0),t_no_event) -> 200 | AU73: =Logic!$A$37 -> 9 | AV73: 0 | AW73: =VLOOKUP(Logic!$A$38,TBL_EVENT,VLOOKUP($E73,TBL_STATE,3,FALSE),FALSE) -> FALSE | AX73: 66.57641635 | AY73: =Logic!$A$38 -> 10 | AZ73: 0 | BA73: =IF($AC73,FALSE,IF(($A$3+$A73)<80,VLOOKUP(Logic!$A$39,TBL_EVENT,VLOOKUP($E73,TBL_STATE,3,FALSE),FALSE),FALSE)) -> FALSE | BB73: 200 | BC73: =IF($E73=Logic!$A$7,IF(RAND()<spec_LDCT,Logic!$A$33,Logic!$A$31),IF(RAND()<sens_LDCT,Logic!$A$30,Logic!$A$32)) -> 4 | BD73: -0.0003846153846 | BE73: 200 | BF73: 200 | BG73: 200 | BH73: 200 | BI73: 200 | BJ73: 200 | BK73: 200 | BL73: 2 | BM73: 6 | BN73: 7 | BO73: 8 | BP73: 9 | BQ73: 10 | BR73: 4 | BS73: -0.0003846153846 | BT73: 0 | BU73: 0 | BV73: 0 | BW73: 0 | BX73: 0 | BY73: -0.0003846153846 | BZ73: 200 | CA73: 200
A74: 2403.470125 | B74: 100 | C74: FALSE | D74: FALSE | E74: FALSE | F74: FALSE | G74: 4 | H74: 100 | I74: FALSE | J74: 200 | K74: FALSE | L74: FALSE | M74: FALSE | N74: FALSE | O74: FALSE | P74: 66.57641635 | Q74: FALSE | R74: 1 | S74: FALSE | T74: 0 | U74: =IF($O74,CHOOSE($O74, IF($CG$3<0.25,c_rdtf_sIa_ini,IF($CG$3<1,c_rdtf_sIa_ini+(($CG$3-0.25)/0.75)*c_rdtf_sIa_rem_ind_yr,IF($CG$3<IF(Scenarios!$D$16=1,5,2),c_rdtf_sIa_ini+c_rdtf_sIa_rem_ind_yr+($CG$3-1)*c_rdtf_sIa_subyrs,c_rdtf_sIa_ini+c_rdtf_sIa_rem_ind_yr+c_rdtf_sIa_subyrs))), IF($CG$3<0.25,c_rdtf_sIb_ini,IF($CG$3<1,c_rdtf_sIb_ini+(($CG$3-0.25)/0.75)*c_rdtf_sIb_rem_ind_yr,IF($CG$3<IF(Scenarios!$D$16=1,5,2),c_rdtf_sIb_ini+c_rdtf_sIb_rem_ind_yr+($CG$3-1)*c_rdtf_sIb_subyrs,c_rdtf_sIb_ini+c_rdtf_sIb_rem_ind_yr+c_rdtf_sIb_subyrs))), IF($CG$3<0.25,c_rdtf_sIIa_ini,IF($CG$3<1,c_rdtf_sIIa_ini+(($CG$3-0.25)/0.75)*c_rdtf_sIIa_rem_ind_yr,IF($CG$3<IF(Scenarios!$D$16=1,5,2),c_rdtf_sIIa_ini+c_rdtf_sIIa_rem_ind_yr+($CG$3-1)*c_rdtf_sIIa_subyrs,c_rdtf_sIIa_ini+c_rdtf_sIIa_rem_ind_yr+c_rdtf_sIIa_subyrs))), IF($CG$3<0.25,c_rdtf_sIIb_ini,IF($CG$3<1,c_rdtf_sIIb_ini+(($CG$3-0.25)/0.75)*c_rdtf_sIIb_rem_ind_yr,IF($CG$3<IF(Scenarios!$D$16=1,5,2),c_rdtf_sIIb_ini+c_rdtf_sIIb_rem_ind_yr+($CG$3-1)*c_rdtf_sIIb_subyrs,c_rdtf_sIIb_ini+c_rdtf_sIIb_rem_ind_yr+c_rdtf_sIIb_subyrs))), IF($CG$3<0.25,c_rdtf_sIIIa_ini,IF($CG$3<1,c_rdtf_sIIIa_ini+(($CG$3-0.25)/0.75)*c_rdtf_sIIIa_rem_ind_yr,IF($CG$3<IF(Scenarios!$D$16=1,5,2),c_rdtf_sIIIa_ini+c_rdtf_sIIIa_rem_ind_yr+($CG$3-1)*c_rdtf_sIIIa_subyrs,c_rdtf_sIIIa_ini+c_rdtf_sIIIa_rem_ind_yr+c_rdtf_sIIIa_subyrs))), IF($CG$3<0.25,c_rdtf_sIIIb_ini,IF($CG$3<1,c_rdtf_sIIIb_ini+(($CG$3-0.25)/0.75)*c_rdtf_sIIIb_rem_ind_yr,IF($CG$3<IF(Scenarios!$D$16=1,5,2),c_rdtf_sIIIb_ini+c_rdtf_sIIIb_rem_ind_yr+($CG$3-1)*c_rdtf_sIIIb_subyrs,c_rdtf_sIIIb_ini+c_rdtf_sIIIb_rem_ind_yr+c_rdtf_sIIIb_subyrs))), IF($CG$3<0.25,c_rdtf_sIV_ini,IF($CG$3<1,c_rdtf_sIV_ini+(($CG$3-0.25)/0.75)*c_rdtf_sIV_rem_ind_yr,IF($CG$3<IF(Scenarios!$D$16=1,5,2),c_rdtf_sIV_ini+c_rdtf_sIV_rem_ind_yr+($CG$3-1)*c_rdtf_sIV_subyrs,c_rdtf_sIV_ini+c_rdtf_sIV_rem_ind_yr+c_rdtf_sIV_subyrs)))), IF($B74=3,c_false_pos,0)) *(1+d_costs)^(-$A74) -> 0 | V74: 0 | W74: 0 | X74: 0 | Y74: 0 | Z74: 0 | AA74: 0 | AB74: 0 | AC74: =IF($G74<1,VLOOKUP(Logic!$A$29,TBL_EVENT,VLOOKUP($E74,TBL_STATE,3,FALSE),FALSE),FALSE) -> FALSE | AD74: 0.07831235998 | AE74: =IF($E74=Logic!$A$7,IF(VLOOKUP($G74+1,TBL_rand_scrn_rnd,2,FALSE)<spec_LDCT,Logic!$A$33,Logic!$A$31),IF(VLOOKUP($G74+1,TBL_rand_scrn_rnd,3,FALSE)<sens_LDCT,Logic!$A$30,Logic!$A$32)) -> 2 | AF74: -0.0003846153846 | AG74: =VLOOKUP(Logic!$A$34,TBL_EVENT,VLOOKUP($E74,TBL_STATE,3,FALSE),FALSE) -> FALSE | AH74: 115.0568878 | AI74: =Logic!$A$34 -> 6 | AJ74: 0 | AK74: =VLOOKUP(Logic!$A$35,TBL_EVENT,VLOOKUP($E74,TBL_STATE,3,FALSE),FALSE) -> FALSE | AL74: 200 | AM74: =Logic!$A$35 -> 7 | AN74: 0 | AO74: =VLOOKUP(Logic!$A$36,TBL_EVENT,VLOOKUP($E74,TBL_STATE,3,FALSE),FALSE) -> FALSE | AP74: 200 | AQ74: =Logic!$A$36 -> 8 | AR74: 0 | AS74: =VLOOKUP(Logic!$A$37,TBL_EVENT,VLOOKUP($E74,TBL_STATE,3,FALSE),FALSE) -> FALSE | AT74: =IF($M73,$CA74+IF($BZ74>$CA74,CHOOSE(Scenarios!$D$10+1,1,0,0.5)*$BZ74-$CA74,0),t_no_event) -> 200 | AU74: =Logic!$A$37 -> 9 | AV74: 0 | AW74: =VLOOKUP(Logic!$A$38,TBL_EVENT,VLOOKUP($E74,TBL_STATE,3,FALSE),FALSE) -> FALSE | AX74: 66.57641635 | AY74: =Logic!$A$38 -> 10 | AZ74: 0 | BA74: =IF($AC74,FALSE,IF(($A$3+$A74)<80,VLOOKUP(Logic!$A$39,TBL_EVENT,VLOOKUP($E74,TBL_STATE,3,FALSE),FALSE),FALSE)) -> FALSE | BB74: 200 | BC74: =IF($E74=Logic!$A$7,IF(RAND()<spec_LDCT,Logic!$A$33,Logic!$A$31),IF(RAND()<sens_LDCT,Logic!$A$30,Logic!$A$32)) -> 4 | BD74: -0.0003846153846 | BE74: 200 | BF74: 200 | BG74: 200 | BH74: 200 | BI74: 200 | BJ74: 200 | BK74: 200 | BL74: 2 | BM74: 6 | BN74: 7 | BO74: 8 | BP74: 9 | BQ74: 10 | BR74: 4 | BS74: -0.0003846153846 | BT74: 0 | BU74: 0 | BV74: 0 | BW74: 0 | BX74: 0 | BY74: -0.0003846153846 | BZ74: 200 | CA74: 200
A75: 2603.470125 | B75: 100 | C75: FALSE | D75: FALSE | E75: FALSE | F75: FALSE | G75: 4 | H75: 100 | I75: FALSE | J75: 200 | K75: FALSE | L75: FALSE | M75: FALSE | N75: FALSE | O75: FALSE | P75: 66.57641635 | Q75: FALSE | R75: 1 | S75: FALSE | T75: 0 | U75: =IF($O75,CHOOSE($O75, IF($CG$3<0.25,c_rdtf_sIa_ini,IF($CG$3<1,c_rdtf_sIa_ini+(($CG$3-0.25)/0.75)*c_rdtf_sIa_rem_ind_yr,IF($CG$3<IF(Scenarios!$D$16=1,5,2),c_rdtf_sIa_ini+c_rdtf_sIa_rem_ind_yr+($CG$3-1)*c_rdtf_sIa_subyrs,c_rdtf_sIa_ini+c_rdtf_sIa_rem_ind_yr+c_rdtf_sIa_subyrs))), IF($CG$3<0.25,c_rdtf_sIb_ini,IF($CG$3<1,c_rdtf_sIb_ini+(($CG$3-0.25)/0.75)*c_rdtf_sIb_rem_ind_yr,IF($CG$3<IF(Scenarios!$D$16=1,5,2),c_rdtf_sIb_ini+c_rdtf_sIb_rem_ind_yr+($CG$3-1)*c_rdtf_sIb_subyrs,c_rdtf_sIb_ini+c_rdtf_sIb_rem_ind_yr+c_rdtf_sIb_subyrs))), IF($CG$3<0.25,c_rdtf_sIIa_ini,IF($CG$3<1,c_rdtf_sIIa_ini+(($CG$3-0.25)/0.75)*c_rdtf_sIIa_rem_ind_yr,IF($CG$3<IF(Scenarios!$D$16=1,5,2),c_rdtf_sIIa_ini+c_rdtf_sIIa_rem_ind_yr+($CG$3-1)*c_rdtf_sIIa_subyrs,c_rdtf_sIIa_ini+c_rdtf_sIIa_rem_ind_yr+c_rdtf_sIIa_subyrs))), IF($CG$3<0.25,c_rdtf_sIIb_ini,IF($CG$3<1,c_rdtf_sIIb_ini+(($CG$3-0.25)/0.75)*c_rdtf_sIIb_rem_ind_yr,IF($CG$3<IF(Scenarios!$D$16=1,5,2),c_rdtf_sIIb_ini+c_rdtf_sIIb_rem_ind_yr+($CG$3-1)*c_rdtf_sIIb_subyrs,c_rdtf_sIIb_ini+c_rdtf_sIIb_rem_ind_yr+c_rdtf_sIIb_subyrs))), IF($CG$3<0.25,c_rdtf_sIIIa_ini,IF($CG$3<1,c_rdtf_sIIIa_ini+(($CG$3-0.25)/0.75)*c_rdtf_sIIIa_rem_ind_yr,IF($CG$3<IF(Scenarios!$D$16=1,5,2),c_rdtf_sIIIa_ini+c_rdtf_sIIIa_rem_ind_yr+($CG$3-1)*c_rdtf_sIIIa_subyrs,c_rdtf_sIIIa_ini+c_rdtf_sIIIa_rem_ind_yr+c_rdtf_sIIIa_subyrs))), IF($CG$3<0.25,c_rdtf_sIIIb_ini,IF($CG$3<1,c_rdtf_sIIIb_ini+(($CG$3-0.25)/0.75)*c_rdtf_sIIIb_rem_ind_yr,IF($CG$3<IF(Scenarios!$D$16=1,5,2),c_rdtf_sIIIb_ini+c_rdtf_sIIIb_rem_ind_yr+($CG$3-1)*c_rdtf_sIIIb_subyrs,c_rdtf_sIIIb_ini+c_rdtf_sIIIb_rem_ind_yr+c_rdtf_sIIIb_subyrs))), IF($CG$3<0.25,c_rdtf_sIV_ini,IF($CG$3<1,c_rdtf_sIV_ini+(($CG$3-0.25)/0.75)*c_rdtf_sIV_rem_ind_yr,IF($CG$3<IF(Scenarios!$D$16=1,5,2),c_rdtf_sIV_ini+c_rdtf_sIV_rem_ind_yr+($CG$3-1)*c_rdtf_sIV_subyrs,c_rdtf_sIV_ini+c_rdtf_sIV_rem_ind_yr+c_rdtf_sIV_subyrs)))), IF($B75=3,c_false_pos,0)) *(1+d_costs)^(-$A75) -> 0 | V75: 0 | W75: 0 | X75: 0 | Y75: 0 | Z75: 0 | AA75: 0 | AB75: 0 | AC75: =IF($G75<1,VLOOKUP(Logic!$A$29,TBL_EVENT,VLOOKUP($E75,TBL_STATE,3,FALSE),FALSE),FALSE) -> FALSE | AD75: 0.07831235998 | AE75: =IF($E75=Logic!$A$7,IF(VLOOKUP($G75+1,TBL_rand_scrn_rnd,2,FALSE)<spec_LDCT,Logic!$A$33,Logic!$A$31),IF(VLOOKUP($G75+1,TBL_rand_scrn_rnd,3,FALSE)<sens_LDCT,Logic!$A$30,Logic!$A$32)) -> 2 | AF75: -0.0003846153846 | AG75: =VLOOKUP(Logic!$A$34,TBL_EVENT,VLOOKUP($E75,TBL_STATE,3,FALSE),FALSE) -> FALSE | AH75: 115.0568878 | AI75: =Logic!$A$34 -> 6 | AJ75: 0 | AK75: =VLOOKUP(Logic!$A$35,TBL_EVENT,VLOOKUP($E75,TBL_STATE,3,FALSE),FALSE) -> FALSE | AL75: 200 | AM75: =Logic!$A$35 -> 7 | AN75: 0 | AO75: =VLOOKUP(Logic!$A$36,TBL_EVENT,VLOOKUP($E75,TBL_STATE,3,FALSE),FALSE) -> FALSE | AP75: 200 | AQ75: =Logic!$A$36 -> 8 | AR75: 0 | AS75: =VLOOKUP(Logic!$A$37,TBL_EVENT,VLOOKUP($E75,TBL_STATE,3,FALSE),FALSE) -> FALSE | AT75: =IF($M74,$CA75+IF($BZ75>$CA75,CHOOSE(Scenarios!$D$10+1,1,0,0.5)*$BZ75-$CA75,0),t_no_event) -> 200 | AU75: =Logic!$A$37 -> 9 | AV75: 0 | AW75: =VLOOKUP(Logic!$A$38,TBL_EVENT,VLOOKUP($E75,TBL_STATE,3,FALSE),FALSE) -> FALSE | AX75: 66.57641635 | AY75: =Logic!$A$38 -> 10 | AZ75: 0 | BA75: =IF($AC75,FALSE,IF(($A$3+$A75)<80,VLOOKUP(Logic!$A$39,TBL_EVENT,VLOOKUP($E75,TBL_STATE,3,FALSE),FALSE),FALSE)) -> FALSE | BB75: 200 | BC75: =IF($E75=Logic!$A$7,IF(RAND()<spec_LDCT,Logic!$A$33,Logic!$A$31),IF(RAND()<sens_LDCT,Logic!$A$30,Logic!$A$32)) -> 2 | BD75: -0.0003846153846 | BE75: 200 | BF75: 200 | BG75: 200 | BH75: 200 | BI75: 200 | BJ75: 200 | BK75: 200 | BL75: 2 | BM75: 6 | BN75: 7 | BO75: 8 | BP75: 9 | BQ75: 10 | BR75: 2 | BS75: -0.0003846153846 | BT75: 0 | BU75: 0 | BV75: 0 | BW75: 0 | BX75: 0 | BY75: -0.0003846153846 | BZ75: 200 | CA75: 200
A76: 2803.470125 | B76: =$H75 -> 100 | C76: =$I75 -> FALSE | D76: FALSE | E76: FALSE | F76: FALSE | G76: =IF($H75<6,1,0)+$G75 -> 4 | H76: 100 | I76: FALSE | J76: 200 | K76: FALSE | L76: FALSE | M76: FALSE | N76: FALSE | O76: FALSE | P76: 66.57641635 | Q76: FALSE | R76: 1 | S76: FALSE | T76: 0 | U76: =IF($O76,CHOOSE($O76, IF($CG$3<0.25,c_rdtf_sIa_ini,IF($CG$3<1,c_rdtf_sIa_ini+(($CG$3-0.25)/0.75)*c_rdtf_sIa_rem_ind_yr,IF($CG$3<IF(Scenarios!$D$16=1,5,2),c_rdtf_sIa_ini+c_rdtf_sIa_rem_ind_yr+($CG$3-1)*c_rdtf_sIa_subyrs,c_rdtf_sIa_ini+c_rdtf_sIa_rem_ind_yr+c_rdtf_sIa_subyrs))), IF($CG$3<0.25,c_rdtf_sIb_ini,IF($CG$3<1,c_rdtf_sIb_ini+(($CG$3-0.25)/0.75)*c_rdtf_sIb_rem_ind_yr,IF($CG$3<IF(Scenarios!$D$16=1,5,2),c_rdtf_sIb_ini+c_rdtf_sIb_rem_ind_yr+($CG$3-1)*c_rdtf_sIb_subyrs,c_rdtf_sIb_ini+c_rdtf_sIb_rem_ind_yr+c_rdtf_sIb_subyrs))), IF($CG$3<0.25,c_rdtf_sIIa_ini,IF($CG$3<1,c_rdtf_sIIa_ini+(($CG$3-0.25)/0.75)*c_rdtf_sIIa_rem_ind_yr,IF($CG$3<IF(Scenarios!$D$16=1,5,2),c_rdtf_sIIa_ini+c_rdtf_sIIa_rem_ind_yr+($CG$3-1)*c_rdtf_sIIa_subyrs,c_rdtf_sIIa_ini+c_rdtf_sIIa_rem_ind_yr+c_rdtf_sIIa_subyrs))), IF($CG$3<0.25,c_rdtf_sIIb_ini,IF($CG$3<1,c_rdtf_sIIb_ini+(($CG$3-0.25)/0.75)*c_rdtf_sIIb_rem_ind_yr,IF($CG$3<IF(Scenarios!$D$16=1,5,2),c_rdtf_sIIb_ini+c_rdtf_sIIb_rem_ind_yr+($CG$3-1)*c_rdtf_sIIb_subyrs,c_rdtf_sIIb_ini+c_rdtf_sIIb_rem_ind_yr+c_rdtf_sIIb_subyrs))), IF($CG$3<0.25,c_rdtf_sIIIa_ini,IF($CG$3<1,c_rdtf_sIIIa_ini+(($CG$3-0.25)/0.75)*c_rdtf_sIIIa_rem_ind_yr,IF($CG$3<IF(Scenarios!$D$16=1,5,2),c_rdtf_sIIIa_ini+c_rdtf_sIIIa_rem_ind_yr+($CG$3-1)*c_rdtf_sIIIa_subyrs,c_rdtf_sIIIa_ini+c_rdtf_sIIIa_rem_ind_yr+c_rdtf_sIIIa_subyrs))), IF($CG$3<0.25,c_rdtf_sIIIb_ini,IF($CG$3<1,c_rdtf_sIIIb_ini+(($CG$3-0.25)/0.75)*c_rdtf_sIIIb_rem_ind_yr,IF($CG$3<IF(Scenarios!$D$16=1,5,2),c_rdtf_sIIIb_ini+c_rdtf_sIIIb_rem_ind_yr+($CG$3-1)*c_rdtf_sIIIb_subyrs,c_rdtf_sIIIb_ini+c_rdtf_sIIIb_rem_ind_yr+c_rdtf_sIIIb_subyrs))), IF($CG$3<0.25,c_rdtf_sIV_ini,IF($CG$3<1,c_rdtf_sIV_ini+(($CG$3-0.25)/0.75)*c_rdtf_sIV_rem_ind_yr,IF($CG$3<IF(Scenarios!$D$16=1,5,2),c_rdtf_sIV_ini+c_rdtf_sIV_rem_ind_yr+($CG$3-1)*c_rdtf_sIV_subyrs,c_rdtf_sIV_ini+c_rdtf_sIV_rem_ind_yr+c_rdtf_sIV_subyrs)))), IF($B76=3,c_false_pos,0)) *(1+d_costs)^(-$A76) -> 0 | V76: 0 | W76: 0 | X76: 0 | Y76: 0 | Z76: 0 | AA76: 0 | AB76: 0 | AC76: =IF($G76<1,VLOOKUP(Logic!$A$29,TBL_EVENT,VLOOKUP($E76,TBL_STATE,3,FALSE),FALSE),FALSE) -> FALSE | AD76: 0.07831235998 | AE76: =IF($E76=Logic!$A$7,IF(VLOOKUP($G76+1,TBL_rand_scrn_rnd,2,FALSE)<spec_LDCT,Logic!$A$33,Logic!$A$31),IF(VLOOKUP($G76+1,TBL_rand_scrn_rnd,3,FALSE)<sens_LDCT,Logic!$A$30,Logic!$A$32)) -> 2 | AF76: -0.0003846153846 | AG76: =VLOOKUP(Logic!$A$34,TBL_EVENT,VLOOKUP($E76,TBL_STATE,3,FALSE),FALSE) -> FALSE | AH76: 115.0568878 | AI76: =Logic!$A$34 -> 6 | AJ76: 0 | AK76: =VLOOKUP(Logic!$A$35,TBL_EVENT,VLOOKUP($E76,TBL_STATE,3,FALSE),FALSE) -> FALSE | AL76: 200 | AM76: =Logic!$A$35 -> 7 | AN76: 0 | AO76: =VLOOKUP(Logic!$A$36,TBL_EVENT,VLOOKUP($E76,TBL_STATE,3,FALSE),FALSE) -> FALSE | AP76: 200 | AQ76: =Logic!$A$36 -> 8 | AR76: 0 | AS76: =VLOOKUP(Logic!$A$37,TBL_EVENT,VLOOKUP($E76,TBL_STATE,3,FALSE),FALSE) -> FALSE | AT76: =IF($M75,$CA76+IF($BZ76>$CA76,CHOOSE(Scenarios!$D$10+1,1,0,0.5)*$BZ76-$CA76,0),t_no_event) -> 200 | AU76: =Logic!$A$37 -> 9 | AV76: 0 | AW76: =VLOOKUP(Logic!$A$38,TBL_EVENT,VLOOKUP($E76,TBL_STATE,3,FALSE),FALSE) -> FALSE | AX76: 66.57641635 | AY76: =Logic!$A$38 -> 10 | AZ76: 0 | BA76: =IF($AC76,FALSE,IF(($A$3+$A76)<80,VLOOKUP(Logic!$A$39,TBL_EVENT,VLOOKUP($E76,TBL_STATE,3,FALSE),FALSE),FALSE)) -> FALSE | BB76: 200 | BC76: =IF($E76=Logic!$A$7,IF(RAND()<spec_LDCT,Logic!$A$33,Logic!$A$31),IF(RAND()<sens_LDCT,Logic!$A$30,Logic!$A$32)) -> 2 | BD76: -0.0003846153846 | BE76: 200 | BF76: 200 | BG76: 200 | BH76: 200 | BI76: 200 | BJ76: 200 | BK76: 200 | BL76: 2 | BM76: 6 | BN76: 7 | BO76: 8 | BP76: 9 | BQ76: 10 | BR76: 2 | BS76: -0.0003846153846 | BT76: 0 | BU76: 0 | BV76: 0 | BW76: 0 | BX76: 0 | BY76: -0.0003846153846 | BZ76: 200 | CA76: 200
A77: 3003.470125 | B77: =$H76 -> 100 | C77: =$I76 -> FALSE | D77: FALSE | E77: FALSE | F77: FALSE | G77: =IF($H76<6,1,0)+$G76 -> 4 | H77: 100 | I77: FALSE | J77: 200 | K77: FALSE | L77: FALSE | M77: FALSE | N77: FALSE | O77: FALSE | P77: 66.57641635 | Q77: FALSE | R77: 1 | S77: FALSE | T77: 0 | U77: =IF($O77,CHOOSE($O77, IF($CG$3<0.25,c_rdtf_sIa_ini,IF($CG$3<1,c_rdtf_sIa_ini+(($CG$3-0.25)/0.75)*c_rdtf_sIa_rem_ind_yr,IF($CG$3<IF(Scenarios!$D$16=1,5,2),c_rdtf_sIa_ini+c_rdtf_sIa_rem_ind_yr+($CG$3-1)*c_rdtf_sIa_subyrs,c_rdtf_sIa_ini+c_rdtf_sIa_rem_ind_yr+c_rdtf_sIa_subyrs))), IF($CG$3<0.25,c_rdtf_sIb_ini,IF($CG$3<1,c_rdtf_sIb_ini+(($CG$3-0.25)/0.75)*c_rdtf_sIb_rem_ind_yr,IF($CG$3<IF(Scenarios!$D$16=1,5,2),c_rdtf_sIb_ini+c_rdtf_sIb_rem_ind_yr+($CG$3-1)*c_rdtf_sIb_subyrs,c_rdtf_sIb_ini+c_rdtf_sIb_rem_ind_yr+c_rdtf_sIb_subyrs))), IF($CG$3<0.25,c_rdtf_sIIa_ini,IF($CG$3<1,c_rdtf_sIIa_ini+(($CG$3-0.25)/0.75)*c_rdtf_sIIa_rem_ind_yr,IF($CG$3<IF(Scenarios!$D$16=1,5,2),c_rdtf_sIIa_ini+c_rdtf_sIIa_rem_ind_yr+($CG$3-1)*c_rdtf_sIIa_subyrs,c_rdtf_sIIa_ini+c_rdtf_sIIa_rem_ind_yr+c_rdtf_sIIa_subyrs))), IF($CG$3<0.25,c_rdtf_sIIb_ini,IF($CG$3<1,c_rdtf_sIIb_ini+(($CG$3-0.25)/0.75)*c_rdtf_sIIb_rem_ind_yr,IF($CG$3<IF(Scenarios!$D$16=1,5,2),c_rdtf_sIIb_ini+c_rdtf_sIIb_rem_ind_yr+($CG$3-1)*c_rdtf_sIIb_subyrs,c_rdtf_sIIb_ini+c_rdtf_sIIb_rem_ind_yr+c_rdtf_sIIb_subyrs))), IF($CG$3<0.25,c_rdtf_sIIIa_ini,IF($CG$3<1,c_rdtf_sIIIa_ini+(($CG$3-0.25)/0.75)*c_rdtf_sIIIa_rem_ind_yr,IF($CG$3<IF(Scenarios!$D$16=1,5,2),c_rdtf_sIIIa_ini+c_rdtf_sIIIa_rem_ind_yr+($CG$3-1)*c_rdtf_sIIIa_subyrs,c_rdtf_sIIIa_ini+c_rdtf_sIIIa_rem_ind_yr+c_rdtf_sIIIa_subyrs))), IF($CG$3<0.25,c_rdtf_sIIIb_ini,IF($CG$3<1,c_rdtf_sIIIb_ini+(($CG$3-0.25)/0.75)*c_rdtf_sIIIb_rem_ind_yr,IF($CG$3<IF(Scenarios!$D$16=1,5,2),c_rdtf_sIIIb_ini+c_rdtf_sIIIb_rem_ind_yr+($CG$3-1)*c_rdtf_sIIIb_subyrs,c_rdtf_sIIIb_ini+c_rdtf_sIIIb_rem_ind_yr+c_rdtf_sIIIb_subyrs))), IF($CG$3<0.25,c_rdtf_sIV_ini,IF($CG$3<1,c_rdtf_sIV_ini+(($CG$3-0.25)/0.75)*c_rdtf_sIV_rem_ind_yr,IF($CG$3<IF(Scenarios!$D$16=1,5,2),c_rdtf_sIV_ini+c_rdtf_sIV_rem_ind_yr+($CG$3-1)*c_rdtf_sIV_subyrs,c_rdtf_sIV_ini+c_rdtf_sIV_rem_ind_yr+c_rdtf_sIV_subyrs)))), IF($B77=3,c_false_pos,0)) *(1+d_costs)^(-$A77) -> 0 | V77: 0 | W77: 0 | X77: 0 | Y77: 0 | Z77: 0 | AA77: 0 | AB77: 0 | AC77: =IF($G77<1,VLOOKUP(Logic!$A$29,TBL_EVENT,VLOOKUP($E77,TBL_STATE,3,FALSE),FALSE),FALSE) -> FALSE | AD77: 0.07831235998 | AE77: =IF($E77=Logic!$A$7,IF(VLOOKUP($G77+1,TBL_rand_scrn_rnd,2,FALSE)<spec_LDCT,Logic!$A$33,Logic!$A$31),IF(VLOOKUP($G77+1,TBL_rand_scrn_rnd,3,FALSE)<sens_LDCT,Logic!$A$30,Logic!$A$32)) -> 2 | AF77: -0.0003846153846 | AG77: =VLOOKUP(Logic!$A$34,TBL_EVENT,VLOOKUP($E77,TBL_STATE,3,FALSE),FALSE) -> FALSE | AH77: 115.0568878 | AI77: =Logic!$A$34 -> 6 | AJ77: 0 | AK77: =VLOOKUP(Logic!$A$35,TBL_EVENT,VLOOKUP($E77,TBL_STATE,3,FALSE),FALSE) -> FALSE | AL77: 200 | AM77: =Logic!$A$35 -> 7 | AN77: 0 | AO77: =VLOOKUP(Logic!$A$36,TBL_EVENT,VLOOKUP($E77,TBL_STATE,3,FALSE),FALSE) -> FALSE | AP77: 200 | AQ77: =Logic!$A$36 -> 8 | AR77: 0 | AS77: =VLOOKUP(Logic!$A$37,TBL_EVENT,VLOOKUP($E77,TBL_STATE,3,FALSE),FALSE) -> FALSE | AT77: =IF($M76,$CA77+IF($BZ77>$CA77,CHOOSE(Scenarios!$D$10+1,1,0,0.5)*$BZ77-$CA77,0),t_no_event) -> 200 | AU77: =Logic!$A$37 -> 9 | AV77: 0 | AW77: =VLOOKUP(Logic!$A$38,TBL_EVENT,VLOOKUP($E77,TBL_STATE,3,FALSE),FALSE) -> FALSE | AX77: 66.57641635 | AY77: =Logic!$A$38 -> 10 | AZ77: 0 | BA77: =IF($AC77,FALSE,IF(($A$3+$A77)<80,VLOOKUP(Logic!$A$39,TBL_EVENT,VLOOKUP($E77,TBL_STATE,3,FALSE),FALSE),FALSE)) -> FALSE | BB77: 200 | BC77: =IF($E77=Logic!$A$7,IF(RAND()<spec_LDCT,Logic!$A$33,Logic!$A$31),IF(RAND()<sens_LDCT,Logic!$A$30,Logic!$A$32)) -> 2 | BD77: -0.0003846153846 | BE77: 200 | BF77: 200 | BG77: 200 | BH77: 200 | BI77: 200 | BJ77: 200 | BK77: 200 | BL77: 2 | BM77: 6 | BN77: 7 | BO77: 8 | BP77: 9 | BQ77: 10 | BR77: 2 | BS77: -0.0003846153846 | BT77: 0 | BU77: 0 | BV77: 0 | BW77: 0 | BX77: 0 | BY77: -0.0003846153846 | BZ77: 200 | CA77: 200
A78: 3203.470125 | B78: 100 | C78: FALSE | D78: FALSE | E78: FALSE | F78: FALSE | G78: 4 | H78: 100 | I78: FALSE | J78: 200 | K78: FALSE | L78: FALSE | M78: FALSE | N78: FALSE | O78: FALSE | P78: 66.57641635 | Q78: FALSE | R78: 1 | S78: FALSE | T78: 0 | U78: =IF($O78,CHOOSE($O78, IF($CG$3<0.25,c_rdtf_sIa_ini,IF($CG$3<1,c_rdtf_sIa_ini+(($CG$3-0.25)/0.75)*c_rdtf_sIa_rem_ind_yr,IF($CG$3<IF(Scenarios!$D$16=1,5,2),c_rdtf_sIa_ini+c_rdtf_sIa_rem_ind_yr+($CG$3-1)*c_rdtf_sIa_subyrs,c_rdtf_sIa_ini+c_rdtf_sIa_rem_ind_yr+c_rdtf_sIa_subyrs))), IF($CG$3<0.25,c_rdtf_sIb_ini,IF($CG$3<1,c_rdtf_sIb_ini+(($CG$3-0.25)/0.75)*c_rdtf_sIb_rem_ind_yr,IF($CG$3<IF(Scenarios!$D$16=1,5,2),c_rdtf_sIb_ini+c_rdtf_sIb_rem_ind_yr+($CG$3-1)*c_rdtf_sIb_subyrs,c_rdtf_sIb_ini+c_rdtf_sIb_rem_ind_yr+c_rdtf_sIb_subyrs))), IF($CG$3<0.25,c_rdtf_sIIa_ini,IF($CG$3<1,c_rdtf_sIIa_ini+(($CG$3-0.25)/0.75)*c_rdtf_sIIa_rem_ind_yr,IF($CG$3<IF(Scenarios!$D$16=1,5,2),c_rdtf_sIIa_ini+c_rdtf_sIIa_rem_ind_yr+($CG$3-1)*c_rdtf_sIIa_subyrs,c_rdtf_sIIa_ini+c_rdtf_sIIa_rem_ind_yr+c_rdtf_sIIa_subyrs))), IF($CG$3<0.25,c_rdtf_sIIb_ini,IF($CG$3<1,c_rdtf_sIIb_ini+(($CG$3-0.25)/0.75)*c_rdtf_sIIb_rem_ind_yr,IF($CG$3<IF(Scenarios!$D$16=1,5,2),c_rdtf_sIIb_ini+c_rdtf_sIIb_rem_ind_yr+($CG$3-1)*c_rdtf_sIIb_subyrs,c_rdtf_sIIb_ini+c_rdtf_sIIb_rem_ind_yr+c_rdtf_sIIb_subyrs))), IF($CG$3<0.25,c_rdtf_sIIIa_ini,IF($CG$3<1,c_rdtf_sIIIa_ini+(($CG$3-0.25)/0.75)*c_rdtf_sIIIa_rem_ind_yr,IF($CG$3<IF(Scenarios!$D$16=1,5,2),c_rdtf_sIIIa_ini+c_rdtf_sIIIa_rem_ind_yr+($CG$3-1)*c_rdtf_sIIIa_subyrs,c_rdtf_sIIIa_ini+c_rdtf_sIIIa_rem_ind_yr+c_rdtf_sIIIa_subyrs))), IF($CG$3<0.25,c_rdtf_sIIIb_ini,IF($CG$3<1,c_rdtf_sIIIb_ini+(($CG$3-0.25)/0.75)*c_rdtf_sIIIb_rem_ind_yr,IF($CG$3<IF(Scenarios!$D$16=1,5,2),c_rdtf_sIIIb_ini+c_rdtf_sIIIb_rem_ind_yr+($CG$3-1)*c_rdtf_sIIIb_subyrs,c_rdtf_sIIIb_ini+c_rdtf_sIIIb_rem_ind_yr+c_rdtf_sIIIb_subyrs))), IF($CG$3<0.25,c_rdtf_sIV_ini,IF($CG$3<1,c_rdtf_sIV_ini+(($CG$3-0.25)/0.75)*c_rdtf_sIV_rem_ind_yr,IF($CG$3<IF(Scenarios!$D$16=1,5,2),c_rdtf_sIV_ini+c_rdtf_sIV_rem_ind_yr+($CG$3-1)*c_rdtf_sIV_subyrs,c_rdtf_sIV_ini+c_rdtf_sIV_rem_ind_yr+c_rdtf_sIV_subyrs)))), IF($B78=3,c_false_pos,0)) *(1+d_costs)^(-$A78) -> 0 | V78: 0 | W78: 0 | X78: 0 | Y78: 0 | Z78: 0 | AA78: 0 | AB78: 0 | AC78: =IF($G78<1,VLOOKUP(Logic!$A$29,TBL_EVENT,VLOOKUP($E78,TBL_STATE,3,FALSE),FALSE),FALSE) -> FALSE | AD78: 0.07831235998 | AE78: =IF($E78=Logic!$A$7,IF(VLOOKUP($G78+1,TBL_rand_scrn_rnd,2,FALSE)<spec_LDCT,Logic!$A$33,Logic!$A$31),IF(VLOOKUP($G78+1,TBL_rand_scrn_rnd,3,FALSE)<sens_LDCT,Logic!$A$30,Logic!$A$32)) -> 2 | AF78: -0.0003846153846 | AG78: =VLOOKUP(Logic!$A$34,TBL_EVENT,VLOOKUP($E78,TBL_STATE,3,FALSE),FALSE) -> FALSE | AH78: 115.0568878 | AI78: =Logic!$A$34 -> 6 | AJ78: 0 | AK78: =VLOOKUP(Logic!$A$35,TBL_EVENT,VLOOKUP($E78,TBL_STATE,3,FALSE),FALSE) -> FALSE | AL78: 200 | AM78: =Logic!$A$35 -> 7 | AN78: 0 | AO78: =VLOOKUP(Logic!$A$36,TBL_EVENT,VLOOKUP($E78,TBL_STATE,3,FALSE),FALSE) -> FALSE | AP78: 200 | AQ78: =Logic!$A$36 -> 8 | AR78: 0 | AS78: =VLOOKUP(Logic!$A$37,TBL_EVENT,VLOOKUP($E78,TBL_STATE,3,FALSE),FALSE) -> FALSE | AT78: =IF($M77,$CA78+IF($BZ78>$CA78,CHOOSE(Scenarios!$D$10+1,1,0,0.5)*$BZ78-$CA78,0),t_no_event) -> 200 | AU78: =Logic!$A$37 -> 9 | AV78: 0 | AW78: =VLOOKUP(Logic!$A$38,TBL_EVENT,VLOOKUP($E78,TBL_STATE,3,FALSE),FALSE) -> FALSE | AX78: 66.57641635 | AY78: =Logic!$A$38 -> 10 | AZ78: 0 | BA78: =IF($AC78,FALSE,IF(($A$3+$A78)<80,VLOOKUP(Logic!$A$39,TBL_EVENT,VLOOKUP($E78,TBL_STATE,3,FALSE),FALSE),FALSE)) -> FALSE | BB78: 200 | BC78: =IF($E78=Logic!$A$7,IF(RAND()<spec_LDCT,Logic!$A$33,Logic!$A$31),IF(RAND()<sens_LDCT,Logic!$A$30,Logic!$A$32)) -> 2 | BD78: -0.0003846153846 | BE78: 200 | BF78: 200 | BG78: 200 | BH78: 200 | BI78: 200 | BJ78: 200 | BK78: 200 | BL78: 2 | BM78: 6 | BN78: 7 | BO78: 8 | BP78: 9 | BQ78: 10 | BR78: 2 | BS78: -0.0003846153846 | BT78: 0 | BU78: 0 | BV78: 0 | BW78: 0 | BX78: 0 | BY78: -0.0003846153846 | BZ78: 200 | CA78: 200
A79: 3403.470125 | B79: 100 | C79: FALSE | D79: FALSE | E79: FALSE | F79: FALSE | G79: 4 | H79: 100 | I79: FALSE | J79: 200 | K79: FALSE | L79: FALSE | M79: FALSE | N79: FALSE | O79: FALSE | P79: 66.57641635 | Q79: FALSE | R79: 1 | S79: FALSE | T79: 0 | U79: =IF($O79,CHOOSE($O79, IF($CG$3<0.25,c_rdtf_sIa_ini,IF($CG$3<1,c_rdtf_sIa_ini+(($CG$3-0.25)/0.75)*c_rdtf_sIa_rem_ind_yr,IF($CG$3<IF(Scenarios!$D$16=1,5,2),c_rdtf_sIa_ini+c_rdtf_sIa_rem_ind_yr+($CG$3-1)*c_rdtf_sIa_subyrs,c_rdtf_sIa_ini+c_rdtf_sIa_rem_ind_yr+c_rdtf_sIa_subyrs))), IF($CG$3<0.25,c_rdtf_sIb_ini,IF($CG$3<1,c_rdtf_sIb_ini+(($CG$3-0.25)/0.75)*c_rdtf_sIb_rem_ind_yr,IF($CG$3<IF(Scenarios!$D$16=1,5,2),c_rdtf_sIb_ini+c_rdtf_sIb_rem_ind_yr+($CG$3-1)*c_rdtf_sIb_subyrs,c_rdtf_sIb_ini+c_rdtf_sIb_rem_ind_yr+c_rdtf_sIb_subyrs))), IF($CG$3<0.25,c_rdtf_sIIa_ini,IF($CG$3<1,c_rdtf_sIIa_ini+(($CG$3-0.25)/0.75)*c_rdtf_sIIa_rem_ind_yr,IF($CG$3<IF(Scenarios!$D$16=1,5,2),c_rdtf_sIIa_ini+c_rdtf_sIIa_rem_ind_yr+($CG$3-1)*c_rdtf_sIIa_subyrs,c_rdtf_sIIa_ini+c_rdtf_sIIa_rem_ind_yr+c_rdtf_sIIa_subyrs))), IF($CG$3<0.25,c_rdtf_sIIb_ini,IF($CG$3<1,c_rdtf_sIIb_ini+(($CG$3-0.25)/0.75)*c_rdtf_sIIb_rem_ind_yr,IF($CG$3<IF(Scenarios!$D$16=1,5,2),c_rdtf_sIIb_ini+c_rdtf_sIIb_rem_ind_yr+($CG$3-1)*c_rdtf_sIIb_subyrs,c_rdtf_sIIb_ini+c_rdtf_sIIb_rem_ind_yr+c_rdtf_sIIb_subyrs))), IF($CG$3<0.25,c_rdtf_sIIIa_ini,IF($CG$3<1,c_rdtf_sIIIa_ini+(($CG$3-0.25)/0.75)*c_rdtf_sIIIa_rem_ind_yr,IF($CG$3<IF(Scenarios!$D$16=1,5,2),c_rdtf_sIIIa_ini+c_rdtf_sIIIa_rem_ind_yr+($CG$3-1)*c_rdtf_sIIIa_subyrs,c_rdtf_sIIIa_ini+c_rdtf_sIIIa_rem_ind_yr+c_rdtf_sIIIa_subyrs))), IF($CG$3<0.25,c_rdtf_sIIIb_ini,IF($CG$3<1,c_rdtf_sIIIb_ini+(($CG$3-0.25)/0.75)*c_rdtf_sIIIb_rem_ind_yr,IF($CG$3<IF(Scenarios!$D$16=1,5,2),c_rdtf_sIIIb_ini+c_rdtf_sIIIb_rem_ind_yr+($CG$3-1)*c_rdtf_sIIIb_subyrs,c_rdtf_sIIIb_ini+c_rdtf_sIIIb_rem_ind_yr+c_rdtf_sIIIb_subyrs))), IF($CG$3<0.25,c_rdtf_sIV_ini,IF($CG$3<1,c_rdtf_sIV_ini+(($CG$3-0.25)/0.75)*c_rdtf_sIV_rem_ind_yr,IF($CG$3<IF(Scenarios!$D$16=1,5,2),c_rdtf_sIV_ini+c_rdtf_sIV_rem_ind_yr+($CG$3-1)*c_rdtf_sIV_subyrs,c_rdtf_sIV_ini+c_rdtf_sIV_rem_ind_yr+c_rdtf_sIV_subyrs)))), IF($B79=3,c_false_pos,0)) *(1+d_costs)^(-$A79) -> 0 | V79: 0 | W79: 0 | X79: 0 | Y79: 0 | Z79: 0 | AA79: 0 | AB79: 0 | AC79: =IF($G79<1,VLOOKUP(Logic!$A$29,TBL_EVENT,VLOOKUP($E79,TBL_STATE,3,FALSE),FALSE),FALSE) -> FALSE | AD79: 0.07831235998 | AE79: =IF($E79=Logic!$A$7,IF(VLOOKUP($G79+1,TBL_rand_scrn_rnd,2,FALSE)<spec_LDCT,Logic!$A$33,Logic!$A$31),IF(VLOOKUP($G79+1,TBL_rand_scrn_rnd,3,FALSE)<sens_LDCT,Logic!$A$30,Logic!$A$32)) -> 2 | AF79: -0.0003846153846 | AG79: =VLOOKUP(Logic!$A$34,TBL_EVENT,VLOOKUP($E79,TBL_STATE,3,FALSE),FALSE) -> FALSE | AH79: 115.0568878 | AI79: =Logic!$A$34 -> 6 | AJ79: 0 | AK79: =VLOOKUP(Logic!$A$35,TBL_EVENT,VLOOKUP($E79,TBL_STATE,3,FALSE),FALSE) -> FALSE | AL79: 200 | AM79: =Logic!$A$35 -> 7 | AN79: 0 | AO79: =VLOOKUP(Logic!$A$36,TBL_EVENT,VLOOKUP($E79,TBL_STATE,3,FALSE),FALSE) -> FALSE | AP79: 200 | AQ79: =Logic!$A$36 -> 8 | AR79: 0 | AS79: =VLOOKUP(Logic!$A$37,TBL_EVENT,VLOOKUP($E79,TBL_STATE,3,FALSE),FALSE) -> FALSE | AT79: =IF($M78,$CA79+IF($BZ79>$CA79,CHOOSE(Scenarios!$D$10+1,1,0,0.5)*$BZ79-$CA79,0),t_no_event) -> 200 | AU79: =Logic!$A$37 -> 9 | AV79: 0 | AW79: =VLOOKUP(Logic!$A$38,TBL_EVENT,VLOOKUP($E79,TBL_STATE,3,FALSE),FALSE) -> FALSE | AX79: 66.57641635 | AY79: =Logic!$A$38 -> 10 | AZ79: 0 | BA79: =IF($AC79,FALSE,IF(($A$3+$A79)<80,VLOOKUP(Logic!$A$39,TBL_EVENT,VLOOKUP($E79,TBL_STATE,3,FALSE),FALSE),FALSE)) -> FALSE | BB79: 200 | BC79: =IF($E79=Logic!$A$7,IF(RAND()<spec_LDCT,Logic!$A$33,Logic!$A$31),IF(RAND()<sens_LDCT,Logic!$A$30,Logic!$A$32)) -> 2 | BD79: -0.0003846153846 | BE79: 200 | BF79: 200 | BG79: 200 | BH79: 200 | BI79: 200 | BJ79: 200 | BK79: 200 | BL79: 2 | BM79: 6 | BN79: 7 | BO79: 8 | BP79: 9 | BQ79: 10 | BR79: 2 | BS79: -0.0003846153846 | BT79: 0 | BU79: 0 | BV79: 0 | BW79: 0 | BX79: 0 | BY79: -0.0003846153846 | BZ79: 200 | CA79: 200
A80: 3603.470125 | B80: 100 | C80: FALSE | D80: FALSE | E80: FALSE | F80: FALSE | G80: 4 | H80: 100 | I80: FALSE | J80: 200 | K80: FALSE | L80: FALSE | M80: FALSE | N80: FALSE | O80: FALSE | P80: 66.57641635 | Q80: FALSE | R80: 1 | S80: FALSE | T80: 0 | U80: =IF($O80,CHOOSE($O80, IF($CG$3<0.25,c_rdtf_sIa_ini,IF($CG$3<1,c_rdtf_sIa_ini+(($CG$3-0.25)/0.75)*c_rdtf_sIa_rem_ind_yr,IF($CG$3<IF(Scenarios!$D$16=1,5,2),c_rdtf_sIa_ini+c_rdtf_sIa_rem_ind_yr+($CG$3-1)*c_rdtf_sIa_subyrs,c_rdtf_sIa_ini+c_rdtf_sIa_rem_ind_yr+c_rdtf_sIa_subyrs))), IF($CG$3<0.25,c_rdtf_sIb_ini,IF($CG$3<1,c_rdtf_sIb_ini+(($CG$3-0.25)/0.75)*c_rdtf_sIb_rem_ind_yr,IF($CG$3<IF(Scenarios!$D$16=1,5,2),c_rdtf_sIb_ini+c_rdtf_sIb_rem_ind_yr+($CG$3-1)*c_rdtf_sIb_subyrs,c_rdtf_sIb_ini+c_rdtf_sIb_rem_ind_yr+c_rdtf_sIb_subyrs))), IF($CG$3<0.25,c_rdtf_sIIa_ini,IF($CG$3<1,c_rdtf_sIIa_ini+(($CG$3-0.25)/0.75)*c_rdtf_sIIa_rem_ind_yr,IF($CG$3<IF(Scenarios!$D$16=1,5,2),c_rdtf_sIIa_ini+c_rdtf_sIIa_rem_ind_yr+($CG$3-1)*c_rdtf_sIIa_subyrs,c_rdtf_sIIa_ini+c_rdtf_sIIa_rem_ind_yr+c_rdtf_sIIa_subyrs))), IF($CG$3<0.25,c_rdtf_sIIb_ini,IF($CG$3<1,c_rdtf_sIIb_ini+(($CG$3-0.25)/0.75)*c_rdtf_sIIb_rem_ind_yr,IF($CG$3<IF(Scenarios!$D$16=1,5,2),c_rdtf_sIIb_ini+c_rdtf_sIIb_rem_ind_yr+($CG$3-1)*c_rdtf_sIIb_subyrs,c_rdtf_sIIb_ini+c_rdtf_sIIb_rem_ind_yr+c_rdtf_sIIb_subyrs))), IF($CG$3<0.25,c_rdtf_sIIIa_ini,IF($CG$3<1,c_rdtf_sIIIa_ini+(($CG$3-0.25)/0.75)*c_rdtf_sIIIa_rem_ind_yr,IF($CG$3<IF(Scenarios!$D$16=1,5,2),c_rdtf_sIIIa_ini+c_rdtf_sIIIa_rem_ind_yr+($CG$3-1)*c_rdtf_sIIIa_subyrs,c_rdtf_sIIIa_ini+c_rdtf_sIIIa_rem_ind_yr+c_rdtf_sIIIa_subyrs))), IF($CG$3<0.25,c_rdtf_sIIIb_ini,IF($CG$3<1,c_rdtf_sIIIb_ini+(($CG$3-0.25)/0.75)*c_rdtf_sIIIb_rem_ind_yr,IF($CG$3<IF(Scenarios!$D$16=1,5,2),c_rdtf_sIIIb_ini+c_rdtf_sIIIb_rem_ind_yr+($CG$3-1)*c_rdtf_sIIIb_subyrs,c_rdtf_sIIIb_ini+c_rdtf_sIIIb_rem_ind_yr+c_rdtf_sIIIb_subyrs))), IF($CG$3<0.25,c_rdtf_sIV_ini,IF($CG$3<1,c_rdtf_sIV_ini+(($CG$3-0.25)/0.75)*c_rdtf_sIV_rem_ind_yr,IF($CG$3<IF(Scenarios!$D$16=1,5,2),c_rdtf_sIV_ini+c_rdtf_sIV_rem_ind_yr+($CG$3-1)*c_rdtf_sIV_subyrs,c_rdtf_sIV_ini+c_rdtf_sIV_rem_ind_yr+c_rdtf_sIV_subyrs)))), IF($B80=3,c_false_pos,0)) *(1+d_costs)^(-$A80) -> 0 | V80: 0 | W80: 0 | X80: 0 | Y80: 0 | Z80: 0 | AA80: 0 | AB80: 0 | AC80: =IF($G80<1,VLOOKUP(Logic!$A$29,TBL_EVENT,VLOOKUP($E80,TBL_STATE,3,FALSE),FALSE),FALSE) -> FALSE | AD80: 0.07831235998 | AE80: =IF($E80=Logic!$A$7,IF(VLOOKUP($G80+1,TBL_rand_scrn_rnd,2,FALSE)<spec_LDCT,Logic!$A$33,Logic!$A$31),IF(VLOOKUP($G80+1,TBL_rand_scrn_rnd,3,FALSE)<sens_LDCT,Logic!$A$30,Logic!$A$32)) -> 2 | AF80: -0.0003846153846 | AG80: =VLOOKUP(Logic!$A$34,TBL_EVENT,VLOOKUP($E80,TBL_STATE,3,FALSE),FALSE) -> FALSE | AH80: 115.0568878 | AI80: =Logic!$A$34 -> 6 | AJ80: 0 | AK80: =VLOOKUP(Logic!$A$35,TBL_EVENT,VLOOKUP($E80,TBL_STATE,3,FALSE),FALSE) -> FALSE | AL80: 200 | AM80: =Logic!$A$35 -> 7 | AN80: 0 | AO80: =VLOOKUP(Logic!$A$36,TBL_EVENT,VLOOKUP($E80,TBL_STATE,3,FALSE),FALSE) -> FALSE | AP80: 200 | AQ80: =Logic!$A$36 -> 8 | AR80: 0 | AS80: =VLOOKUP(Logic!$A$37,TBL_EVENT,VLOOKUP($E80,TBL_STATE,3,FALSE),FALSE) -> FALSE | AT80: =IF($M79,$CA80+IF($BZ80>$CA80,CHOOSE(Scenarios!$D$10+1,1,0,0.5)*$BZ80-$CA80,0),t_no_event) -> 200 | AU80: =Logic!$A$37 -> 9 | AV80: 0 | AW80: =VLOOKUP(Logic!$A$38,TBL_EVENT,VLOOKUP($E80,TBL_STATE,3,FALSE),FALSE) -> FALSE | AX80: 66.57641635 | AY80: =Logic!$A$38 -> 10 | AZ80: 0 | BA80: =IF($AC80,FALSE,IF(($A$3+$A80)<80,VLOOKUP(Logic!$A$39,TBL_EVENT,VLOOKUP($E80,TBL_STATE,3,FALSE),FALSE),FALSE)) -> FALSE | BB80: 200 | BC80: =IF($E80=Logic!$A$7,IF(RAND()<spec_LDCT,Logic!$A$33,Logic!$A$31),IF(RAND()<sens_LDCT,Logic!$A$30,Logic!$A$32)) -> 2 | BD80: -0.0003846153846 | BE80: 200 | BF80: 200 | BG80: 200 | BH80: 200 | BI80: 200 | BJ80: 200 | BK80: 200 | BL80: 2 | BM80: 6 | BN80: 7 | BO80: 8 | BP80: 9 | BQ80: 10 | BR80: 2 | BS80: -0.0003846153846 | BT80: 0 | BU80: 0 | BV80: 0 | BW80: 0 | BX80: 0 | BY80: -0.0003846153846 | BZ80: 200 | CA80: 200
A81: 3803.470125 | B81: 100 | C81: FALSE | D81: FALSE | E81: FALSE | F81: FALSE | G81: 4 | H81: 100 | I81: FALSE | J81: 200 | K81: FALSE | L81: FALSE | M81: FALSE | N81: FALSE | O81: FALSE | P81: 66.57641635 | Q81: FALSE | R81: 1 | S81: FALSE | T81: 0 | U81: =IF($O81,CHOOSE($O81, IF($CG$3<0.25,c_rdtf_sIa_ini,IF($CG$3<1,c_rdtf_sIa_ini+(($CG$3-0.25)/0.75)*c_rdtf_sIa_rem_ind_yr,IF($CG$3<IF(Scenarios!$D$16=1,5,2),c_rdtf_sIa_ini+c_rdtf_sIa_rem_ind_yr+($CG$3-1)*c_rdtf_sIa_subyrs,c_rdtf_sIa_ini+c_rdtf_sIa_rem_ind_yr+c_rdtf_sIa_subyrs))), IF($CG$3<0.25,c_rdtf_sIb_ini,IF($CG$3<1,c_rdtf_sIb_ini+(($CG$3-0.25)/0.75)*c_rdtf_sIb_rem_ind_yr,IF($CG$3<IF(Scenarios!$D$16=1,5,2),c_rdtf_sIb_ini+c_rdtf_sIb_rem_ind_yr+($CG$3-1)*c_rdtf_sIb_subyrs,c_rdtf_sIb_ini+c_rdtf_sIb_rem_ind_yr+c_rdtf_sIb_subyrs))), IF($CG$3<0.25,c_rdtf_sIIa_ini,IF($CG$3<1,c_rdtf_sIIa_ini+(($CG$3-0.25)/0.75)*c_rdtf_sIIa_rem_ind_yr,IF($CG$3<IF(Scenarios!$D$16=1,5,2),c_rdtf_sIIa_ini+c_rdtf_sIIa_rem_ind_yr+($CG$3-1)*c_rdtf_sIIa_subyrs,c_rdtf_sIIa_ini+c_rdtf_sIIa_rem_ind_yr+c_rdtf_sIIa_subyrs))), IF($CG$3<0.25,c_rdtf_sIIb_ini,IF($CG$3<1,c_rdtf_sIIb_ini+(($CG$3-0.25)/0.75)*c_rdtf_sIIb_rem_ind_yr,IF($CG$3<IF(Scenarios!$D$16=1,5,2),c_rdtf_sIIb_ini+c_rdtf_sIIb_rem_ind_yr+($CG$3-1)*c_rdtf_sIIb_subyrs,c_rdtf_sIIb_ini+c_rdtf_sIIb_rem_ind_yr+c_rdtf_sIIb_subyrs))), IF($CG$3<0.25,c_rdtf_sIIIa_ini,IF($CG$3<1,c_rdtf_sIIIa_ini+(($CG$3-0.25)/0.75)*c_rdtf_sIIIa_rem_ind_yr,IF($CG$3<IF(Scenarios!$D$16=1,5,2),c_rdtf_sIIIa_ini+c_rdtf_sIIIa_rem_ind_yr+($CG$3-1)*c_rdtf_sIIIa_subyrs,c_rdtf_sIIIa_ini+c_rdtf_sIIIa_rem_ind_yr+c_rdtf_sIIIa_subyrs))), IF($CG$3<0.25,c_rdtf_sIIIb_ini,IF($CG$3<1,c_rdtf_sIIIb_ini+(($CG$3-0.25)/0.75)*c_rdtf_sIIIb_rem_ind_yr,IF($CG$3<IF(Scenarios!$D$16=1,5,2),c_rdtf_sIIIb_ini+c_rdtf_sIIIb_rem_ind_yr+($CG$3-1)*c_rdtf_sIIIb_subyrs,c_rdtf_sIIIb_ini+c_rdtf_sIIIb_rem_ind_yr+c_rdtf_sIIIb_subyrs))), IF($CG$3<0.25,c_rdtf_sIV_ini,IF($CG$3<1,c_rdtf_sIV_ini+(($CG$3-0.25)/0.75)*c_rdtf_sIV_rem_ind_yr,IF($CG$3<IF(Scenarios!$D$16=1,5,2),c_rdtf_sIV_ini+c_rdtf_sIV_rem_ind_yr+($CG$3-1)*c_rdtf_sIV_subyrs,c_rdtf_sIV_ini+c_rdtf_sIV_rem_ind_yr+c_rdtf_sIV_subyrs)))), IF($B81=3,c_false_pos,0)) *(1+d_costs)^(-$A81) -> 0 | V81: 0 | W81: 0 | X81: 0 | Y81: 0 | Z81: 0 | AA81: 0 | AB81: 0 | AC81: =IF($G81<1,VLOOKUP(Logic!$A$29,TBL_EVENT,VLOOKUP($E81,TBL_STATE,3,FALSE),FALSE),FALSE) -> FALSE | AD81: 0.07831235998 | AE81: =IF($E81=Logic!$A$7,IF(VLOOKUP($G81+1,TBL_rand_scrn_rnd,2,FALSE)<spec_LDCT,Logic!$A$33,Logic!$A$31),IF(VLOOKUP($G81+1,TBL_rand_scrn_rnd,3,FALSE)<sens_LDCT,Logic!$A$30,Logic!$A$32)) -> 2 | AF81: -0.0003846153846 | AG81: =VLOOKUP(Logic!$A$34,TBL_EVENT,VLOOKUP($E81,TBL_STATE,3,FALSE),FALSE) -> FALSE | AH81: 115.0568878 | AI81: =Logic!$A$34 -> 6 | AJ81: 0 | AK81: =VLOOKUP(Logic!$A$35,TBL_EVENT,VLOOKUP($E81,TBL_STATE,3,FALSE),FALSE) -> FALSE | AL81: 200 | AM81: =Logic!$A$35 -> 7 | AN81: 0 | AO81: =VLOOKUP(Logic!$A$36,TBL_EVENT,VLOOKUP($E81,TBL_STATE,3,FALSE),FALSE) -> FALSE | AP81: 200 | AQ81: =Logic!$A$36 -> 8 | AR81: 0 | AS81: =VLOOKUP(Logic!$A$37,TBL_EVENT,VLOOKUP($E81,TBL_STATE,3,FALSE),FALSE) -> FALSE | AT81: =IF($M80,$CA81+IF($BZ81>$CA81,CHOOSE(Scenarios!$D$10+1,1,0,0.5)*$BZ81-$CA81,0),t_no_event) -> 200 | AU81: =Logic!$A$37 -> 9 | AV81: 0 | AW81: =VLOOKUP(Logic!$A$38,TBL_EVENT,VLOOKUP($E81,TBL_STATE,3,FALSE),FALSE) -> FALSE | AX81: 66.57641635 | AY81: =Logic!$A$38 -> 10 | AZ81: 0 | BA81: =IF($AC81,FALSE,IF(($A$3+$A81)<80,VLOOKUP(Logic!$A$39,TBL_EVENT,VLOOKUP($E81,TBL_STATE,3,FALSE),FALSE),FALSE)) -> FALSE | BB81: 200 | BC81: =IF($E81=Logic!$A$7,IF(RAND()<spec_LDCT,Logic!$A$33,Logic!$A$31),IF(RAND()<sens_LDCT,Logic!$A$30,Logic!$A$32)) -> 4 | BD81: -0.0003846153846 | BE81: 200 | BF81: 200 | BG81: 200 | BH81: 200 | BI81: 200 | BJ81: 200 | BK81: 200 | BL81: 2 | BM81: 6 | BN81: 7 | BO81: 8 | BP81: 9 | BQ81: 10 | BR81: 4 | BS81: -0.0003846153846 | BT81: 0 | BU81: 0 | BV81: 0 | BW81: 0 | BX81: 0 | BY81: -0.0003846153846 | BZ81: 200 | CA81: 200
A82: 4003.470125 | B82: 100 | C82: FALSE | D82: FALSE | E82: FALSE | F82: FALSE | G82: 4 | H82: 100 | I82: FALSE | J82: 200 | K82: FALSE | L82: FALSE | M82: FALSE | N82: FALSE | O82: FALSE | P82: 66.57641635 | Q82: FALSE | R82: 1 | S82: FALSE | T82: 0 | U82: =IF($O82,CHOOSE($O82, IF($CG$3<0.25,c_rdtf_sIa_ini,IF($CG$3<1,c_rdtf_sIa_ini+(($CG$3-0.25)/0.75)*c_rdtf_sIa_rem_ind_yr,IF($CG$3<IF(Scenarios!$D$16=1,5,2),c_rdtf_sIa_ini+c_rdtf_sIa_rem_ind_yr+($CG$3-1)*c_rdtf_sIa_subyrs,c_rdtf_sIa_ini+c_rdtf_sIa_rem_ind_yr+c_rdtf_sIa_subyrs))), IF($CG$3<0.25,c_rdtf_sIb_ini,IF($CG$3<1,c_rdtf_sIb_ini+(($CG$3-0.25)/0.75)*c_rdtf_sIb_rem_ind_yr,IF($CG$3<IF(Scenarios!$D$16=1,5,2),c_rdtf_sIb_ini+c_rdtf_sIb_rem_ind_yr+($CG$3-1)*c_rdtf_sIb_subyrs,c_rdtf_sIb_ini+c_rdtf_sIb_rem_ind_yr+c_rdtf_sIb_subyrs))), IF($CG$3<0.25,c_rdtf_sIIa_ini,IF($CG$3<1,c_rdtf_sIIa_ini+(($CG$3-0.25)/0.75)*c_rdtf_sIIa_rem_ind_yr,IF($CG$3<IF(Scenarios!$D$16=1,5,2),c_rdtf_sIIa_ini+c_rdtf_sIIa_rem_ind_yr+($CG$3-1)*c_rdtf_sIIa_subyrs,c_rdtf_sIIa_ini+c_rdtf_sIIa_rem_ind_yr+c_rdtf_sIIa_subyrs))), IF($CG$3<0.25,c_rdtf_sIIb_ini,IF($CG$3<1,c_rdtf_sIIb_ini+(($CG$3-0.25)/0.75)*c_rdtf_sIIb_rem_ind_yr,IF($CG$3<IF(Scenarios!$D$16=1,5,2),c_rdtf_sIIb_ini+c_rdtf_sIIb_rem_ind_yr+($CG$3-1)*c_rdtf_sIIb_subyrs,c_rdtf_sIIb_ini+c_rdtf_sIIb_rem_ind_yr+c_rdtf_sIIb_subyrs))), IF($CG$3<0.25,c_rdtf_sIIIa_ini,IF($CG$3<1,c_rdtf_sIIIa_ini+(($CG$3-0.25)/0.75)*c_rdtf_sIIIa_rem_ind_yr,IF($CG$3<IF(Scenarios!$D$16=1,5,2),c_rdtf_sIIIa_ini+c_rdtf_sIIIa_rem_ind_yr+($CG$3-1)*c_rdtf_sIIIa_subyrs,c_rdtf_sIIIa_ini+c_rdtf_sIIIa_rem_ind_yr+c_rdtf_sIIIa_subyrs))), IF($CG$3<0.25,c_rdtf_sIIIb_ini,IF($CG$3<1,c_rdtf_sIIIb_ini+(($CG$3-0.25)/0.75)*c_rdtf_sIIIb_rem_ind_yr,IF($CG$3<IF(Scenarios!$D$16=1,5,2),c_rdtf_sIIIb_ini+c_rdtf_sIIIb_rem_ind_yr+($CG$3-1)*c_rdtf_sIIIb_subyrs,c_rdtf_sIIIb_ini+c_rdtf_sIIIb_rem_ind_yr+c_rdtf_sIIIb_subyrs))), IF($CG$3<0.25,c_rdtf_sIV_ini,IF($CG$3<1,c_rdtf_sIV_ini+(($CG$3-0.25)/0.75)*c_rdtf_sIV_rem_ind_yr,IF($CG$3<IF(Scenarios!$D$16=1,5,2),c_rdtf_sIV_ini+c_rdtf_sIV_rem_ind_yr+($CG$3-1)*c_rdtf_sIV_subyrs,c_rdtf_sIV_ini+c_rdtf_sIV_rem_ind_yr+c_rdtf_sIV_subyrs)))), IF($B82=3,c_false_pos,0)) *(1+d_costs)^(-$A82) -> 0 | V82: 0 | W82: 0 | X82: 0 | Y82: 0 | Z82: 0 | AA82: 0 | AB82: 0 | AC82: =IF($G82<1,VLOOKUP(Logic!$A$29,TBL_EVENT,VLOOKUP($E82,TBL_STATE,3,FALSE),FALSE),FALSE) -> FALSE | AD82: 0.07831235998 | AE82: =IF($E82=Logic!$A$7,IF(VLOOKUP($G82+1,TBL_rand_scrn_rnd,2,FALSE)<spec_LDCT,Logic!$A$33,Logic!$A$31),IF(VLOOKUP($G82+1,TBL_rand_scrn_rnd,3,FALSE)<sens_LDCT,Logic!$A$30,Logic!$A$32)) -> 2 | AF82: -0.0003846153846 | AG82: =VLOOKUP(Logic!$A$34,TBL_EVENT,VLOOKUP($E82,TBL_STATE,3,FALSE),FALSE) -> FALSE | AH82: 115.0568878 | AI82: =Logic!$A$34 -> 6 | AJ82: 0 | AK82: =VLOOKUP(Logic!$A$35,TBL_EVENT,VLOOKUP($E82,TBL_STATE,3,FALSE),FALSE) -> FALSE | AL82: 200 | AM82: =Logic!$A$35 -> 7 | AN82: 0 | AO82: =VLOOKUP(Logic!$A$36,TBL_EVENT,VLOOKUP($E82,TBL_STATE,3,FALSE),FALSE) -> FALSE | AP82: 200 | AQ82: =Logic!$A$36 -> 8 | AR82: 0 | AS82: =VLOOKUP(Logic!$A$37,TBL_EVENT,VLOOKUP($E82,TBL_STATE,3,FALSE),FALSE) -> FALSE | AT82: =IF($M81,$CA82+IF($BZ82>$CA82,CHOOSE(Scenarios!$D$10+1,1,0,0.5)*$BZ82-$CA82,0),t_no_event) -> 200 | AU82: =Logic!$A$37 -> 9 | AV82: 0 | AW82: =VLOOKUP(Logic!$A$38,TBL_EVENT,VLOOKUP($E82,TBL_STATE,3,FALSE),FALSE) -> FALSE | AX82: 66.57641635 | AY82: =Logic!$A$38 -> 10 | AZ82: 0 | BA82: =IF($AC82,FALSE,IF(($A$3+$A82)<80,VLOOKUP(Logic!$A$39,TBL_EVENT,VLOOKUP($E82,TBL_STATE,3,FALSE),FALSE),FALSE)) -> FALSE | BB82: 200 | BC82: =IF($E82=Logic!$A$7,IF(RAND()<spec_LDCT,Logic!$A$33,Logic!$A$31),IF(RAND()<sens_LDCT,Logic!$A$30,Logic!$A$32)) -> 2 | BD82: -0.0003846153846 | BE82: 200 | BF82: 200 | BG82: 200 | BH82: 200 | BI82: 200 | BJ82: 200 | BK82: 200 | BL82: 2 | BM82: 6 | BN82: 7 | BO82: 8 | BP82: 9 | BQ82: 10 | BR82: 2 | BS82: -0.0003846153846 | BT82: 0 | BU82: 0 | BV82: 0 | BW82: 0 | BX82: 0 | BY82: -0.0003846153846 | BZ82: 200 | CA82: 200
A83: 4203.470125 | B83: 100 | C83: FALSE | D83: FALSE | E83: FALSE | F83: FALSE | G83: 4 | H83: 100 | I83: FALSE | J83: 200 | K83: FALSE | L83: FALSE | M83: FALSE | N83: FALSE | O83: FALSE | P83: 66.57641635 | Q83: FALSE | R83: 1 | S83: FALSE | T83: 0 | U83: =IF($O83,CHOOSE($O83, IF($CG$3<0.25,c_rdtf_sIa_ini,IF($CG$3<1,c_rdtf_sIa_ini+(($CG$3-0.25)/0.75)*c_rdtf_sIa_rem_ind_yr,IF($CG$3<IF(Scenarios!$D$16=1,5,2),c_rdtf_sIa_ini+c_rdtf_sIa_rem_ind_yr+($CG$3-1)*c_rdtf_sIa_subyrs,c_rdtf_sIa_ini+c_rdtf_sIa_rem_ind_yr+c_rdtf_sIa_subyrs))), IF($CG$3<0.25,c_rdtf_sIb_ini,IF($CG$3<1,c_rdtf_sIb_ini+(($CG$3-0.25)/0.75)*c_rdtf_sIb_rem_ind_yr,IF($CG$3<IF(Scenarios!$D$16=1,5,2),c_rdtf_sIb_ini+c_rdtf_sIb_rem_ind_yr+($CG$3-1)*c_rdtf_sIb_subyrs,c_rdtf_sIb_ini+c_rdtf_sIb_rem_ind_yr+c_rdtf_sIb_subyrs))), IF($CG$3<0.25,c_rdtf_sIIa_ini,IF($CG$3<1,c_rdtf_sIIa_ini+(($CG$3-0.25)/0.75)*c_rdtf_sIIa_rem_ind_yr,IF($CG$3<IF(Scenarios!$D$16=1,5,2),c_rdtf_sIIa_ini+c_rdtf_sIIa_rem_ind_yr+($CG$3-1)*c_rdtf_sIIa_subyrs,c_rdtf_sIIa_ini+c_rdtf_sIIa_rem_ind_yr+c_rdtf_sIIa_subyrs))), IF($CG$3<0.25,c_rdtf_sIIb_ini,IF($CG$3<1,c_rdtf_sIIb_ini+(($CG$3-0.25)/0.75)*c_rdtf_sIIb_rem_ind_yr,IF($CG$3<IF(Scenarios!$D$16=1,5,2),c_rdtf_sIIb_ini+c_rdtf_sIIb_rem_ind_yr+($CG$3-1)*c_rdtf_sIIb_subyrs,c_rdtf_sIIb_ini+c_rdtf_sIIb_rem_ind_yr+c_rdtf_sIIb_subyrs))), IF($CG$3<0.25,c_rdtf_sIIIa_ini,IF($CG$3<1,c_rdtf_sIIIa_ini+(($CG$3-0.25)/0.75)*c_rdtf_sIIIa_rem_ind_yr,IF($CG$3<IF(Scenarios!$D$16=1,5,2),c_rdtf_sIIIa_ini+c_rdtf_sIIIa_rem_ind_yr+($CG$3-1)*c_rdtf_sIIIa_subyrs,c_rdtf_sIIIa_ini+c_rdtf_sIIIa_rem_ind_yr+c_rdtf_sIIIa_subyrs))), IF($CG$3<0.25,c_rdtf_sIIIb_ini,IF($CG$3<1,c_rdtf_sIIIb_ini+(($CG$3-0.25)/0.75)*c_rdtf_sIIIb_rem_ind_yr,IF($CG$3<IF(Scenarios!$D$16=1,5,2),c_rdtf_sIIIb_ini+c_rdtf_sIIIb_rem_ind_yr+($CG$3-1)*c_rdtf_sIIIb_subyrs,c_rdtf_sIIIb_ini+c_rdtf_sIIIb_rem_ind_yr+c_rdtf_sIIIb_subyrs))), IF($CG$3<0.25,c_rdtf_sIV_ini,IF($CG$3<1,c_rdtf_sIV_ini+(($CG$3-0.25)/0.75)*c_rdtf_sIV_rem_ind_yr,IF($CG$3<IF(Scenarios!$D$16=1,5,2),c_rdtf_sIV_ini+c_rdtf_sIV_rem_ind_yr+($CG$3-1)*c_rdtf_sIV_subyrs,c_rdtf_sIV_ini+c_rdtf_sIV_rem_ind_yr+c_rdtf_sIV_subyrs)))), IF($B83=3,c_false_pos,0)) *(1+d_costs)^(-$A83) -> 0 | V83: 0 | W83: 0 | X83: 0 | Y83: 0 | Z83: 0 | AA83: 0 | AB83: 0 | AC83: =IF($G83<1,VLOOKUP(Logic!$A$29,TBL_EVENT,VLOOKUP($E83,TBL_STATE,3,FALSE),FALSE),FALSE) -> FALSE | AD83: 0.07831235998 | AE83: =IF($E83=Logic!$A$7,IF(VLOOKUP($G83+1,TBL_rand_scrn_rnd,2,FALSE)<spec_LDCT,Logic!$A$33,Logic!$A$31),IF(VLOOKUP($G83+1,TBL_rand_scrn_rnd,3,FALSE)<sens_LDCT,Logic!$A$30,Logic!$A$32)) -> 2 | AF83: -0.0003846153846 | AG83: =VLOOKUP(Logic!$A$34,TBL_EVENT,VLOOKUP($E83,TBL_STATE,3,FALSE),FALSE) -> FALSE | AH83: 115.0568878 | AI83: =Logic!$A$34 -> 6 | AJ83: 0 | AK83: =VLOOKUP(Logic!$A$35,TBL_EVENT,VLOOKUP($E83,TBL_STATE,3,FALSE),FALSE) -> FALSE | AL83: 200 | AM83: =Logic!$A$35 -> 7 | AN83: 0 | AO83: =VLOOKUP(Logic!$A$36,TBL_EVENT,VLOOKUP($E83,TBL_STATE,3,FALSE),FALSE) -> FALSE | AP83: 200 | AQ83: =Logic!$A$36 -> 8 | AR83: 0 | AS83: =VLOOKUP(Logic!$A$37,TBL_EVENT,VLOOKUP($E83,TBL_STATE,3,FALSE),FALSE) -> FALSE | AT83: =IF($M82,$CA83+IF($BZ83>$CA83,CHOOSE(Scenarios!$D$10+1,1,0,0.5)*$BZ83-$CA83,0),t_no_event) -> 200 | AU83: =Logic!$A$37 -> 9 | AV83: 0 | AW83: =VLOOKUP(Logic!$A$38,TBL_EVENT,VLOOKUP($E83,TBL_STATE,3,FALSE),FALSE) -> FALSE | AX83: 66.57641635 | AY83: =Logic!$A$38 -> 10 | AZ83: 0 | BA83: =IF($AC83,FALSE,IF(($A$3+$A83)<80,VLOOKUP(Logic!$A$39,TBL_EVENT,VLOOKUP($E83,TBL_STATE,3,FALSE),FALSE),FALSE)) -> FALSE | BB83: 200 | BC83: =IF($E83=Logic!$A$7,IF(RAND()<spec_LDCT,Logic!$A$33,Logic!$A$31),IF(RAND()<sens_LDCT,Logic!$A$30,Logic!$A$32)) -> 2 | BD83: -0.0003846153846 | BE83: 200 | BF83: 200 | BG83: 200 | BH83: 200 | BI83: 200 | BJ83: 200 | BK83: 200 | BL83: 2 | BM83: 6 | BN83: 7 | BO83: 8 | BP83: 9 | BQ83: 10 | BR83: 2 | BS83: -0.0003846153846 | BT83: 0 | BU83: 0 | BV83: 0 | BW83: 0 | BX83: 0 | BY83: -0.0003846153846 | BZ83: 200 | CA83: 200
A84: 4403.470125 | B84: 100 | C84: FALSE | D84: FALSE | E84: FALSE | F84: FALSE | G84: 4 | H84: 100 | I84: FALSE | J84: 200 | K84: FALSE | L84: FALSE | M84: FALSE | N84: FALSE | O84: FALSE | P84: 66.57641635 | Q84: FALSE | R84: 1 | S84: FALSE | T84: 0 | U84: =IF($O84,CHOOSE($O84, IF($CG$3<0.25,c_rdtf_sIa_ini,IF($CG$3<1,c_rdtf_sIa_ini+(($CG$3-0.25)/0.75)*c_rdtf_sIa_rem_ind_yr,IF($CG$3<IF(Scenarios!$D$16=1,5,2),c_rdtf_sIa_ini+c_rdtf_sIa_rem_ind_yr+($CG$3-1)*c_rdtf_sIa_subyrs,c_rdtf_sIa_ini+c_rdtf_sIa_rem_ind_yr+c_rdtf_sIa_subyrs))), IF($CG$3<0.25,c_rdtf_sIb_ini,IF($CG$3<1,c_rdtf_sIb_ini+(($CG$3-0.25)/0.75)*c_rdtf_sIb_rem_ind_yr,IF($CG$3<IF(Scenarios!$D$16=1,5,2),c_rdtf_sIb_ini+c_rdtf_sIb_rem_ind_yr+($CG$3-1)*c_rdtf_sIb_subyrs,c_rdtf_sIb_ini+c_rdtf_sIb_rem_ind_yr+c_rdtf_sIb_subyrs))), IF($CG$3<0.25,c_rdtf_sIIa_ini,IF($CG$3<1,c_rdtf_sIIa_ini+(($CG$3-0.25)/0.75)*c_rdtf_sIIa_rem_ind_yr,IF($CG$3<IF(Scenarios!$D$16=1,5,2),c_rdtf_sIIa_ini+c_rdtf_sIIa_rem_ind_yr+($CG$3-1)*c_rdtf_sIIa_subyrs,c_rdtf_sIIa_ini+c_rdtf_sIIa_rem_ind_yr+c_rdtf_sIIa_subyrs))), IF($CG$3<0.25,c_rdtf_sIIb_ini,IF($CG$3<1,c_rdtf_sIIb_ini+(($CG$3-0.25)/0.75)*c_rdtf_sIIb_rem_ind_yr,IF($CG$3<IF(Scenarios!$D$16=1,5,2),c_rdtf_sIIb_ini+c_rdtf_sIIb_rem_ind_yr+($CG$3-1)*c_rdtf_sIIb_subyrs,c_rdtf_sIIb_ini+c_rdtf_sIIb_rem_ind_yr+c_rdtf_sIIb_subyrs))), IF($CG$3<0.25,c_rdtf_sIIIa_ini,IF($CG$3<1,c_rdtf_sIIIa_ini+(($CG$3-0.25)/0.75)*c_rdtf_sIIIa_rem_ind_yr,IF($CG$3<IF(Scenarios!$D$16=1,5,2),c_rdtf_sIIIa_ini+c_rdtf_sIIIa_rem_ind_yr+($CG$3-1)*c_rdtf_sIIIa_subyrs,c_rdtf_sIIIa_ini+c_rdtf_sIIIa_rem_ind_yr+c_rdtf_sIIIa_subyrs))), IF($CG$3<0.25,c_rdtf_sIIIb_ini,IF($CG$3<1,c_rdtf_sIIIb_ini+(($CG$3-0.25)/0.75)*c_rdtf_sIIIb_rem_ind_yr,IF($CG$3<IF(Scenarios!$D$16=1,5,2),c_rdtf_sIIIb_ini+c_rdtf_sIIIb_rem_ind_yr+($CG$3-1)*c_rdtf_sIIIb_subyrs,c_rdtf_sIIIb_ini+c_rdtf_sIIIb_rem_ind_yr+c_rdtf_sIIIb_subyrs))), IF($CG$3<0.25,c_rdtf_sIV_ini,IF($CG$3<1,c_rdtf_sIV_ini+(($CG$3-0.25)/0.75)*c_rdtf_sIV_rem_ind_yr,IF($CG$3<IF(Scenarios!$D$16=1,5,2),c_rdtf_sIV_ini+c_rdtf_sIV_rem_ind_yr+($CG$3-1)*c_rdtf_sIV_subyrs,c_rdtf_sIV_ini+c_rdtf_sIV_rem_ind_yr+c_rdtf_sIV_subyrs)))), IF($B84=3,c_false_pos,0)) *(1+d_costs)^(-$A84) -> 0 | V84: 0 | W84: 0 | X84: 0 | Y84: 0 | Z84: 0 | AA84: 0 | AB84: 0 | AC84: =IF($G84<1,VLOOKUP(Logic!$A$29,TBL_EVENT,VLOOKUP($E84,TBL_STATE,3,FALSE),FALSE),FALSE) -> FALSE | AD84: 0.07831235998 | AE84: =IF($E84=Logic!$A$7,IF(VLOOKUP($G84+1,TBL_rand_scrn_rnd,2,FALSE)<spec_LDCT,Logic!$A$33,Logic!$A$31),IF(VLOOKUP($G84+1,TBL_rand_scrn_rnd,3,FALSE)<sens_LDCT,Logic!$A$30,Logic!$A$32)) -> 2 | AF84: -0.0003846153846 | AG84: =VLOOKUP(Logic!$A$34,TBL_EVENT,VLOOKUP($E84,TBL_STATE,3,FALSE),FALSE) -> FALSE | AH84: 115.0568878 | AI84: =Logic!$A$34 -> 6 | AJ84: 0 | AK84: =VLOOKUP(Logic!$A$35,TBL_EVENT,VLOOKUP($E84,TBL_STATE,3,FALSE),FALSE) -> FALSE | AL84: 200 | AM84: =Logic!$A$35 -> 7 | AN84: 0 | AO84: =VLOOKUP(Logic!$A$36,TBL_EVENT,VLOOKUP($E84,TBL_STATE,3,FALSE),FALSE) -> FALSE | AP84: 200 | AQ84: =Logic!$A$36 -> 8 | AR84: 0 | AS84: =VLOOKUP(Logic!$A$37,TBL_EVENT,VLOOKUP($E84,TBL_STATE,3,FALSE),FALSE) -> FALSE | AT84: =IF($M83,$CA84+IF($BZ84>$CA84,CHOOSE(Scenarios!$D$10+1,1,0,0.5)*$BZ84-$CA84,0),t_no_event) -> 200 | AU84: =Logic!$A$37 -> 9 | AV84: 0 | AW84: =VLOOKUP(Logic!$A$38,TBL_EVENT,VLOOKUP($E84,TBL_STATE,3,FALSE),FALSE) -> FALSE | AX84: 66.57641635 | AY84: =Logic!$A$38 -> 10 | AZ84: 0 | BA84: =IF($AC84,FALSE,IF(($A$3+$A84)<80,VLOOKUP(Logic!$A$39,TBL_EVENT,VLOOKUP($E84,TBL_STATE,3,FALSE),FALSE),FALSE)) -> FALSE | BB84: 200 | BC84: =IF($E84=Logic!$A$7,IF(RAND()<spec_LDCT,Logic!$A$33,Logic!$A$31),IF(RAND()<sens_LDCT,Logic!$A$30,Logic!$A$32)) -> 2 | BD84: -0.0003846153846 | BE84: 200 | BF84: 200 | BG84: 200 | BH84: 200 | BI84: 200 | BJ84: 200 | BK84: 200 | BL84: 2 | BM84: 6 | BN84: 7 | BO84: 8 | BP84: 9 | BQ84: 10 | BR84: 2 | BS84: -0.0003846153846 | BT84: 0 | BU84: 0 | BV84: 0 | BW84: 0 | BX84: 0 | BY84: -0.0003846153846 | BZ84: 200 | CA84: 200
